Workbook

Sheet Info

Sheet Trial (hidden)

Sheet Instructions (hidden)
A1: Excel Skills | Monthly Cash Flow Projection Template
A2: Instructions
A3: www.excel-skills.com
A5: This template enables users to create monthly cash flow projections for any user defined three year period. The template includes a monthly income statement, cash flow statement and balance sheet. The cash flow projections are based on monthly turnover, gross profit and expense values that are entered by the user as well as a number of default assumptions which are used to create an automated balance sheet. These assumptions include opening balance sheet balances, working capital ratios, payroll accruals, sales tax, income tax, dividends and loans. The monthly reporting periods are based on any user defined start date.
A7: Note: Refer to our Monthly Cash Flow - Forecast vs Actual template for a solution which enables users to compare monthly cash flow forecasts to actual account balances. Our unique range of templates also includes business plan forecasts as well as annual & weekly cash flow projection templates.
A9: The template includes the following sheets:
A10: Assumptions - this sheet includes the default assumptions on which the monthly cash flow projections are based.
A11: IncState - this sheet includes a detailed monthly income statement for a 36 month period. All the rows that are highlighted in yellow in column A require user input and the codes in column A are mainly used in the sales tax, receivables & payables calculations. The rows that do not contain yellow highlighting in column A contain formulas and are therefore calculated automatically.
A12: CashFlow - as with the income statement, only the rows with yellow highlighting in column A require user input. All the other rows contain formulas and are therefore calculated automatically.
A13: BalanceSheet - all balance sheet calculations are based on the template assumptions and the monthly income statement & cash flow statement calculations. No user input is therefore required on this sheet.
A14: Loans1 to Loans3 & Leases - these sheets include detailed amortization tables which are used to calculate the monthly interest and capital repayment amounts that are included on the monthly income statement and cash flow statement. Each sheet provides for a different set of loan repayment terms to be specified.
A16: Note: If you do not want to include any of the line items that are listed on the income statement, cash flow statement or balance sheet, we recommend hiding these items instead of deleting them. If you delete items which are used in other calculations, these calculations will result in errors which you then need to fix or remove.
A18: Setup
A20: Business Name & Reporting Periods
A22: The business name and the start date for the cash flow projections need to be entered at the top of the Assumptions sheet. The business name is included as a heading on all the sheets and the 36 month reporting period which is included in the template is determined based on the start date that is specified. This date is used as the first month and 35 subsequent months are added to form the 3 year projection period.
A24: User Input
A26: The income statement, cash flow statement and balance sheet only require user input where there is yellow highlighting in column A. All rows without yellow highlighting are automatically calculated as detailed in these instructions. Note that even the user input columns contain annual totals which should not be replaced with values.
A28: Income Statement
A30: All monthly income statement projections need to be entered exclusive of any sales tax that may be applicable.
A32: Turnover & Gross Profits
A34: Monthly turnover values need to be entered on the IncState sheet for all 36 months (excluding the annual totals in the columns with dark blue column headings). The projected monthly gross profit percentages also need to be entered on this sheet and are used in order to calculate the gross profit values. The monthly cost of sales projections are calculated by simply deducting the gross profit values from the monthly turnover values.
A36: The template includes two default lines in each of these sections - one for a typical product based item and one for a typical service based item. The template can therefore be used for both service and trade based businesses. There are no cost of sales and gross profit values in service based businesses and a gross profit percentage of 100% can therefore be specified. You can also hide the cost of sales and gross profit sections if you do not want to include them in your cash flow projections.
A38: Note: You can insert as many additional line items as required by inserting the required number of items in each section and then entering the appropriate values where user input is required or copying the formulas from one of the existing lines. We recommend inserting additional line items between the two existing default line items.
A40: Note: The codes in column A are used in the sales tax and trade receivables calculations. The first two characters represent the sales tax code and the last two characters represent the payment status. Refer to the Balance Sheet - Sales Tax and Balance Sheet - Trade Receivables sections for more information on these codes.
A42: Other Income
A44: Monthly projections of other income should be entered in this row. Other income may consist of items like interest or dividends received and this line item is not included in trade receivables and sales tax calculations. If you want to include other income in the trade receivables or sales tax calculations, you need to add the income to the Turnover section as an additional line item.
A46: Operating Expenses
A48: All the monthly operating expense projections need to be entered in the operating expenses section of the income statement. The template contains 22 default operating expense line items but you can add as many additional items as required or delete the line items that you do not need. When adding additional line items, remember to copy the formulas in the total columns from one of the existing line items.
A50: Note: The codes in column A are used in the sales tax and trade payables calculations. The first two characters represent the sales tax code and the last two characters represent the payment status. Refer to the Balance Sheet - Sales Tax and Balance Sheet - Trade Payables sections for more information on these codes.
A52: Staff Costs
A54: All the monthly staff cost projections need to be entered in the staff costs section of the income statement. The template contains 2 default staff cost line items but you can add as many additional items as required or delete the line items that you do not need. When adding additional line items, remember to copy the formulas in the total columns from one of the existing line items.
A56: Note: The codes in column A are used in the sales tax and trade payables calculations. The first two characters represent the sales tax code and the last two characters represent the payment status. Refer to the Balance Sheet - Sales Tax and Balance Sheet - Trade Payables sections for more information on these codes.
A58: Note: Staff costs have been included in a separate section on the income statement in order to be able to calculate payroll accruals. If you do not need to include payroll accruals in your cash flow projections, we recommend entering nil values and hiding these rows. If you delete the section, some of the payroll accrual formulas may result in errors and you therefore may need to delete them as well.
A60: Depreciation & Amortization
A62: Monthly projections for depreciation and amortization need to be calculated independently of the template and included in this section. We unfortunately cannot include default depreciation or amortization calculations because some businesses may have very different asset bases than others with existing assets which may already have been depreciated over a number of years. Any calculation which is based on a percentage of the balance sheet asset value may therefore not be accurate.
A64: If you already have a sheet which is used for depreciation or amortization calculations, you can include it in this template and add formulas in the depreciation & amortization section of the income statement to include your calculations in these line items.
A66: We also realize that some users may want to include depreciation and amortization as part of their operating expenses. We have therefore provided for this in that the depreciation and amortization calculations on the cash flow statement are based on the default code which is included in column A. You can therefore enter nil values in the depreciation & amortization section on the income statement, hide the section and include these line items in the operating expenses section and as long as you also include the default codes in column A, the cash flow statement values for depreciation and amortization will be calculated correctly.
A68: Interest Paid
A70: All interest paid calculations are automated and based on the amortization tables on the Loans1 to Loans3 and Leases sheets. The template accommodates the inclusion of loans & leases based on four different sets of loan repayment terms which need to be specified on the Assumptions sheet.
A72: Opening loan balances are based on the balance sheet opening balances section on the Assumptions sheet and additional loan amounts can be entered in the proceeds from loans section of the cash flow statement and will then automatically be included in the appropriate amortization table.
A74: You do not need to use all four loan amortization sheets - if you only need to include loans based on one set of repayment terms, you can delete the other loan amortization sheets, delete the other interest paid rows on the income statement, delete the other proceeds from loans rows on the cash flow statement, delete the other repayment of loans rows on the cash flow statement and delete the other loan balances from the balance sheet.
A76: The template provides for four sets of loan repayment terms - the same amortization table can basically be used for all loans with the same repayment terms by adding additional loan amounts as proceeds to the cash flow statement in order to add new loans to the appropriate amortization table.
A78: If you need to add more than four sets of loan repayment terms, you will need to copy one of the amortization sheets, change it to reflect the appropriate loan terms and then change the formulas in the amortization table to be based on the correct loan repayment terms at the top of the sheet. This means that you need to add another set of repayment terms to the Assumptions sheet and link the fields at the top of the new amortization table to the appropriate cells on the Assumptions sheet.
A80: If there is an opening balance for the required additional loan terms, you need to include a new code in the balance sheet opening balances section on the Assumptions sheet and base the opening balance calculation in the first period of the amortization schedule on this code. You also need to add new rows to the interest paid section on the income statement, the loan proceeds section on the cash flow statement, the loan repayment section on the cash flow statement and the loan balances section on the balance sheet. The appropriate formulas can be copied from one of the existing items and the sheet reference in the copied formula can then just be replaced by the sheet name of the new amortization table that you've added.
A82: Taxation
A84: The taxation line item on the income statement is automatically calculated based on the profit before tax and the income tax assumptions which are specified on the Assumptions sheet. If you do not want to include income tax in the cash flow projections, simply enter an income tax rate of 0%. This will result in no income tax being calculated.
A86: If you do want to include income tax calculations, the income tax percentage needs to be entered in the Income Tax section on the Assumptions sheet. You can also enter a value for an assessed loss (as a positive value) which may have been carried over from a previous tax year which would result in income tax only being calculated after profits exceed the value of the assessed loss.
A88: You also need to specify the payment frequency in months and the first calendar month in which a payment needs to be included. The template automatically provides for income tax based on what is due and includes the income statement amount and a provision for taxation on the balance sheet. The payment frequency and month of payment assumptions are then used to determine when the income tax liability will be settled which will result in the appropriate cash outflow being recorded on the cash flow statement and the provision for taxation being reduced.
A90: The template can accommodate income tax calculations based on current and subsequent month payments. If you select the Current option, the income tax payment amount will be calculated based on all amounts that have accrued up to and including the month of payment. If you select the Subsequent option, the income tax payment amount will only be calculated based on all amounts which have accrued up to the previous month end.
A92: Example: If you select the Current option in the Income Tax section of the Assumptions sheet, all income tax amounts up to and including the current month will be included in the income tax payment amount. This means that the provision for taxation at the end of the particular month will be nil. The Current setting is therefore usually appropriate for provisional taxpayers.
A94: Example: If you select the Subsequent option, all amounts up to and including the previous month end will be included in the income tax payment amount. The provision for taxation balance on the balance sheet will therefore not be nil at the end of the month of payment and include the current month's income tax charge.
A96: Dividends
A98: The template also includes automated dividends calculations. If you do not want to include any dividends in your cash flow projections, you can simply specify a dividend percentage of zero percent.
A100: If you want to include dividend calculations, you need to specify a dividend percentage which will be applied to the profit for the period in order to calculate the dividend value. You also need to specify the frequency in months of dividend payments and the first payment month. The frequency of dividends determines when the dividends are included on the income statement and the first month of payment determines when the dividend payment is included on the cash flow statement (only has an effect if the dividend payment option is Subsequent).
A102: You can also specify whether the dividend is paid in the month of calculation (Cash option), the month after calculation (Next option) or in a subsequent month. When you elect the subsequent month option, the payment of the dividend will be included based on the relative position of the first month of payment in relation to the year-end period (which is determined based on the template start date at the top of the Assumptions sheet).
A104: Example: If you want to include a dividend in the last month of each financial year, select a payment frequency of 12 months and month 12 as the first payment month. Then select the Cash option in order to include both the dividend on the income statement and the payment in the last month of the year.
A106: Example: If you want to include a dividend in the last month of each financial year but delay payment to the first month of the next financial year, select a payment frequency of 12 months and month 12 as the first payment month. Then select the Next option to include the dividend on the income statement in the last month of the financial year and the payment in the first month of the next financial year. A dividend payable amount will then automatically be included on the balance sheet at year-end.
A108: Balance Sheet
A110: All the calculations on the balance sheet are automated and no user input is therefore required.
A112: Opening Balances
A114: If you need to compile cash flow projections for an existing business, you will need to include the opening balance sheet balances at the start of the cash flow projection period. This is facilitated in the Balance Sheet Opening Balances section on the Assumptions sheet. The opening balances that are entered here are included in the first column on the balance sheet.
A116: You can use the trial balance as at the end of the period immediately before the start of the cash flow projection period for this purpose. All assets should have positive balances and all equity & liabilities should have negative balances. The opening balances should also balance to a total of nil as with any accounting system trial balance. If you enter balances and the total of all balances is not nil, the entire opening balances section on the Assumptions sheet will be highlighted in orange.
A118: You then need to fix the imbalance by adjusting the opening balances so that the total comes to a total of nil. The orange highlighting will then be removed automatically. Also note that the cash flow projection balance sheet cannot balance if the opening balances do not balance.
A120: Note: If you are preparing a cash flow projection for a new business, you can include zero balances for all the balance sheet items in the opening balances section.
A122: Non-Current Assets
A124: The property, plant & equipment balances on the balance sheet are calculated by adding the purchases of property, plant & equipment as entered on the cash flow statement and deducting the depreciation charges included on the income statement.
A126: Intangible assets balances are calculated in much the same way by adding the purchases of intangible assets as per the cash flow statement and deducting the amortization charges which need to be entered on the income statement. The calculation of the investments balances on the balance sheet is a bit simpler in that only the purchases of new investments as per the cash flow statement is added to the previous month's balance and there is no depreciation or amortization on investments.
A128: Note: Purchases of property, plant & equipment, intangible assets and investments all need to be entered as negative values on the cash flow statement.
A130: Current Assets - Inventory
A132: The inventory balances on the balance sheet are calculated based on the inventory days assumption which is specified on the Assumptions sheet. The number of days that are entered here is applied to the monthly cost of sales in order to calculate the appropriate inventory balance. This calculation is based on the actual number of days in each month if the inventory days assumption is greater than the number of days in the appropriate month.
A134: Example: If you enter an inventory days assumption of 60 days and the month is April, the entire cost of sales value for April will be included in the inventory balance because April only has 30 days. After including the 30 days in April, there is a difference of 30 days between the 60 days assumption and the 30 days in April. The March cost of sales balance will therefore be used, divided by the 31 days in March and multiplied by the 30 remaining days. The inventory balance at the end of April will therefore consist of the cost of sales total for April and an equivalent of 30 days of the 31 day cost of sales of March.
A136: Note: The above calculation principle is applied regardless of the number of days which are entered as the inventory days assumption on the Assumptions sheet even if the value of the inventory days assumption requires the inclusion of more than 2 months. This method of calculation is the most accurate way of projecting inventory balances even for businesses where there is significant sales volatility.
A138: Note: If your business does not carry inventory, you can simply enter a nil value in the inventory days assumption on the Assumptions sheet. The inventory line on the balance sheet will then also contain nil values.
A140: If you want to include variable monthly inventory days, you can do so by changing the inventory days assumption in the Workings section of the balance sheet which has been included below the section with the ratios. Simply replace the formula which links the inventory days assumption to the value on the Assumptions sheet by overwriting it with the appropriate inventory days value.
A142: Current Assets - Trade Receivables
A144: The trade receivables balances on the balance sheet are calculated based on the debtors days assumption which is specified on the Assumptions sheet. The debtors days number can be determined based on the average trading terms which has been negotiated with customers. The debtors days is applied to the monthly turnover in order to calculate the appropriate trade receivables balance. This calculation is based on the actual number of days in each month if the debtors days assumption is greater than the number of days in the appropriate month.
A146: Example: If you enter a debtors days assumption of 60 days and the month is April, the entire turnover value for April will be included in the trade receivables balance because April only has 30 days. After including the 30 days in April, there is a difference of 30 days between the 60 days assumption and the 30 days in April. The March turnover balance will therefore be used, divided by the 31 days in March and multiplied by the 30 remaining days. The trade receivables balance at the end of April will therefore consist of the turnover total for April and an equivalent of 30 days of the 31 day turnover of March.
A148: Note: The above calculation principle is applied regardless of the number of days which are entered in the debtors days assumption on the Assumptions sheet even if the value of the debtors days assumption requires the inclusion of more than 2 months. This method of calculation is the most accurate way of projecting trade receivable balances even for businesses where there is significant sales volatility.
A150: Where sales tax is applicable, the appropriate sales tax value relating to monthly turnover will be added to the trade receivables balance. Sales tax codes are defined on the Assumptions sheet and the codes in column A next to the turnover amounts on the income statement are used to determine the appropriate rate of sales tax to be used.
A152: The trade receivables calculation will also only include lines that are coded with a sales tax rate code (in the first two characters) and a "C1" at the end of the code. The C1 part of the code refers to credit sales while the inclusion of a C0 code at the end refers to cash sales. Cash sales do not need to be included in the trade receivables calculation and turnover lines with C0 or no code in column A are therefore ignored when calculating trade receivable balances.
A154: Example: If the standard rate sales tax code is V1 and the appropriate turnover line needs to be included in the calculation of trade receivables, the code V1C1 needs to be added in column A of the appropriate turnover line on the income statement. If you do not want to add sales tax in the trade receivables calculation but you do want a trade receivables line to be included in the balance sheet, you can add a code which refers to a 0% sales tax calculation as well as the C1 credit sales indicator.
A156: Example: If you do not want a particular turnover line to be included in the trade receivables calculation, you can include any sales tax rate followed by C0 in order to exclude the line in the trade receivables calculations. For example, a turnover line with a code of V1C0 would not form part of the trade receivables calculations.
A158: Note: If your business has no trade receivables, you can simply enter a nil value in the debtors days assumption on the Assumptions sheet. The trade receivables line on the balance sheet will then also contain nil values.
A160: If you want to include variable monthly debtors days, you can do so by changing the debtors days assumption in the Workings section of the balance sheet which has been included below the section with the ratios. Simply replace the formula which links the debtors days assumption to the value on the Assumptions sheet by overwriting it with the appropriate debtors days value.
A162: Current Assets - Loans & Advances, Other Receivables
A164: The loans and advances & other receivables balances cannot be calculated by basing them on specific income statement items and they are therefore calculated by adding the movements in these balances as per the cash flow statement to the balances of the previous month. If you therefore want to increase or decrease these balances, you need to add the amount of the increase or decrease to the line with a matching description on the cash flow statement (under the changes in operating assets section).
A166: Current Assets - Cash & Cash Equivalents
A168: The cash & cash equivalents balances on the balance sheet are linked to the closing cash balances on the cash flow statement. If the resulting cash & cash equivalents balance has a negative value, it will automatically be included in the bank overdraft line in the Current Liabilities section of the balance sheet.
A170: Equity - Shareholders Contributions, Reserves
A172: The shareholders contributions & reserves balances cannot be calculated by basing them on income statement items and they are therefore calculated by adding the movements in these balances as per the cash flow statement to the balances of the previous month. If you therefore want to increase or decrease these balances, you need to add the amount of the increase or decrease to the line with a matching description on the cash flow statement.
A174: Note: The shareholders contribution line on the cash flow statement can be found under the cash flow from financing activities and the reserves line on the cash flow statement under the non-cash adjustments.
A176: Equity - Retained Earnings
A178: The retained earnings balances on the balance sheet are linked to the retained earnings for the year which is calculated on the income statement.
A180: Non-Current Liabilities - Loans 1 to 3, Leases
A182: The template provides for loans & leases to be included based on 4 different sets of loan repayment terms. Loans with the same repayment terms can be grouped together in the appropriate line item. There is no difference between the treatment of loans 1 to 3 and leases. If you do not have finance leases and have loans with 4 different sets of repayment terms, you can use the Leases sheet and rename the appropriate line items accordingly.
A184: Note: The loan repayment period in years is limited to a maximum period of 30 years. If you want to include a loan repayment period which exceeds this period, you need to change the data validation settings in the appropriate input cell by selecting the data validation feature from the Data tab on the Excel ribbon and editing the maximum value of 30 which has been set in the loan repayment period cells.
A186: Each of the loan repayment terms can be specified in the Loan Terms section on the Assumptions sheet. The loan terms include the annual interest rate, repayment period in years and a selection field which can be used to indicate interest-only loans. These loan repayment terms are then included at the top of the loan amortization sheet on the Loans1 to Loans3 and Leases sheets.
A188: Note: A set of loan terms can be specified as interest-only by selecting the "Yes" option from the interest-only drop-down list in the appropriate loan terms on the Assumptions sheet. If this selection is made, the loan will be interest only and not include any loan repayments.
A190: All the calculations on the amortization sheets are fully automated. The loan terms are taken from the Assumptions sheet and the opening balances in the first row of the amortization table are based on the opening balances that are entered in the balance sheet opening balances section of the Assumptions sheet.
A192: The loan repayments, interest charged and capital repayments are calculated based on the outstanding balances at the beginning of each period. Additional loans can be added to the appropriate amortization table by entering the appropriate values in the proceeds from loans section on the cash flow statement (under the cash flow from financing activities section).
A194: The outstanding loan or lease balances at the end of each monthly period are then included in the appropriate lines on the balance sheet.
A196: Current Liabilities - Bank Overdraft
A198: The bank overdraft as well as cash & cash equivalents are based on the closing cash balances which are calculated on the cash flow statement. If the appropriate monthly closing balance is negative, the balance is included as a bank overdraft and if it is positive, it is included as cash under current assets on the balance sheet.
A200: Current Liabilities - Trade Payables
A202: The trade payables balances on the balance sheet are calculated based on the creditors days assumption which is specified on the Assumptions sheet. The number of days that are included here can be determined based on the average trading terms which has been negotiated with suppliers.
A204: The monthly cost of sales, operating expenses and staff costs on the income statement are added together in order to determine a monthly value on which the trade payables calculations should be based. Expenses and costs which are paid on a cash basis can be excluded from the trade payables calculation by entering a code which ends in C0 in column A on the income statement. The codes in column A start with the appropriate two character sales tax code and end with the two character payables code.
A206: Example: The expense codes in column A for all line items that need to be included in the trade payables calculation and which need to be subject to sales tax at a standard rate should be V1C1. If the expense item is settled on a cash basis and also subject to the standard sales tax rate, the code in column A should be V1C0 which will then result in the item not being included in the trade payables calculation.
A208: If you want to also include purchases of property, plant & equipment in the trade payables calculation, the standard code of PPE in column A on the cash flow statement needs to be amended to the appropriate code which starts with the sales tax code and ends with C1. For standard sales tax, the code will therefore be V1C1.
A210: Like the calculation of inventory and trade receivables balances, the trade payables balances on the balance sheet are based on the actual number of days in each month if the creditors days assumption is greater than the days in the appropriate month.
A212: Example: If you enter a creditors days assumption of 60 days and the month is April, the entire cost of sales & expense value for April will be included in the trade payables balance because April only has 30 days. After including the 30 days in April, there is a difference of 30 days between the 60 days assumption and the 30 days in April. The March cost of sales & expense balance will therefore be used, divided by the 31 days in March and multiplied by the 30 remaining days. The trade payables balance at the end of April will therefore consist of the cost of sales & expenses total for April and an equivalent of 30 days of the 31 day cost of sales & expense values of March.
A214: Note: The above calculation principle is applied regardless of the number of days which are entered as the creditors days assumption on the Assumptions sheet even if the value of the creditors days assumption requires the inclusion of more than 2 months. This method of calculation is the most accurate way of projecting trade payables balances even for businesses where there is significant sales or expense volatility.
A216: Where sales tax is applicable, the appropriate sales tax value relating to monthly cost of sales & expenses will be added to the trade payables balance. Sales tax codes are defined on the Assumptions sheet and the code in column A next to the cost of sales & expense amounts on the income statement are used to determine the appropriate rate of sales tax to be used.
A218: The trade payables calculation will also only include lines that are coded with a sales tax rate code (in the first two characters) and a "C1" at the end of the code. The C1 part of the code refers to purchases on credit while the inclusion of a C0 code at the end refers to cash purchases. Cash purchases do not need to be included in the trade payables calculation and cost of sales & expense lines with C0 or no code in column A are therefore ignored when calculating trade payables balances.
A220: Example: If the standard rate sales tax code is V1 and the appropriate cost of sales or expense line needs to be included in the calculation of trade payables, the code V1C1 needs to be added in column A of the appropriate line on the income statement. If you do not want to add sales tax in the trade payables calculation but you do want a trade payables line to be included in the balance sheet, you can add a code which refers to a 0% sales tax calculation as well as the C1 credit purchases indicator.
A222: Example: If you do not want a particular cost of sales or expense line to be included in the trade payables calculation, you can include any sales tax rate followed by C0 in order to exclude the line in the trade payables calculations. For example, an expense or cost of sales line item with a code of V1C0 in column A on the income statement would not form part of the trade payables calculations.
A224: Note: If your business has no trade payables, you can simply enter a nil value in the creditors days assumption on the Assumptions sheet. The trade payables line on the balance sheet will then also contain nil values.
A226: If you want to include variable monthly creditors days, you can do so by changing the creditors days assumption in the Workings section of the balance sheet which has been included below the section with the ratios. Simply replace the formula which links the creditors days assumption to the value on the Assumptions sheet by overwriting it with the appropriate creditors days value.
A228: Current Liabilities - Sales Tax
A230: The template accommodates the inclusion of sales tax in all relevant calculations based on four default sales tax calculation codes and any sales tax period. All income statement and cash flow statement items need to be entered exclusive of any sales tax that may be applicable and the trade receivables and trade payables balances on the balance sheet will be calculated inclusive of sales tax. The net sales tax liability is included in the Sales Tax line on the balance sheet.
A232: The template can be used for general sales tax (GST) and value added tax (VAT) purposes. Where there is no sales tax input which reduces the sales tax liability, the codes in column A on the income statement can simply be changed to contain a sales tax code (in the first two characters of the code) which has a zero percentage. Only the sales tax codes that are included next to the turnover lines will then be included in sales tax calculations (as required by some general sales tax calculations).
A234: The appropriate sales tax percentages can be entered in the Sales Tax section of the Assumptions sheet. The template provides for 4 default sales tax codes, each with its own sales tax percentage. The sales tax codes are numbered from V1 to V4.
A236: The income statement contains codes in column A which affects the calculations of sales tax and trade receivables or trade payables. The first two characters of these codes determine which sales tax percentage is used in the sales tax calculations. If an income statement item needs to be excluded from sales tax calculations, you should use a sales tax code with a zero percentage on the Assumptions sheet.
A238: Note: Each line on the income statement can therefore only be linked to one sales tax percentage. If more than one sales tax percentage needs to be applied to the same income statement item, you need to split the income statement amount into two lines and enter the appropriate sales tax codes in column A for each of the lines.
A240: Note: If you are preparing cash flow projections for a business which is not subject to sales tax, simply enter zero percentages for all four sales tax codes.
A242: The sales tax assumptions that need to be specified on the Assumptions sheet also include the frequency of sales tax payments (in months) and the calendar month of the first payment period. You can therefore calculate sales tax based on any period frequency from one to twelve months.
A244: Example: If your business is subject to sales tax payments of every two months and the first payment is due in February, a frequency of 2 needs to be specified and the first payment month should be set to 2 for February. Similarly, if your business is subject to sales tax payments of every 6 months with payments due in March and August, the frequency should be set to 6 and the first payment month should be set to 3. If your business is subject to monthly sales tax payment periods, the frequency should be 1 and the first payment month should also be 1.
A246: The Current or Subsequent setting in the Sales Tax section on the Assumptions sheet determines how the calculated sales tax amounts of the current period are handled. If you select the Current option, the sales tax amounts of the current period will be included in the calculation of the payment amount which is due in the particular month and the sales tax liability at the end of the payment month will be nil.
A248: If you select the Subsequent setting, the sales tax amount of the current period is not included in the calculation of the payment amount and the sales tax liability at the end of the appropriate payment month will always include at least one month.
A250: Note: The Subsequent setting is usually the appropriate setting to use for sales tax purposes. The Current settings is more applicable to tax types which are subject to provisional tax.
A252: Example: If you set a payment frequency of 1 month, first payment month of 1 and select the Current option, the sales tax liability on the balance sheet will always be nil because the current month's sales tax will be included in the sales tax payment. If you have the same period settings and select the Subsequent option, the sales tax liability on the balance sheet will always include the current month's sales tax because the payment amount will be based on the previous month's sales tax.
A254: Note: The first payment month setting refers to the month of payment and not the sales tax period end. There is a difference - a sales tax period may end in February with payment in March which means that the first payment month of the calendar year is actually January or month 1 (if the payment frequency is two months).
A256: Current Liabilities - Payroll Accruals
A258: The payroll accrual on the balance sheet is based on the payroll accrual assumptions in the Working Capital section of the Assumptions sheet and the amounts in the staff costs section of the income statement. If payroll deductions are paid in the same month as they are incurred, you can set the payroll accrual percentage to zero and the payroll accrual balances on the balance sheet will also be zero.
A260: Staff costs have been included in a separate section on the income statement to make it easier to calculate payroll accrual balances. You can however include staff costs in operating expenses but you need to ensure that you also include the "PAY" code in column A for all the staff costs that you want to include in the payroll accrual calculations.
A262: You also need to specify the appropriate percentage of staff costs which needs to be included in your payroll accruals. This percentage should be based on the percentage of staff costs which are paid in a subsequent month and is based on the current month's staff costs. Payroll accruals usually consist of salary & wage deductions which need to be paid over to third parties and differ from entity to entity. You therefore need to calculate the appropriate payroll accrual percentage based on the composition of the salary or wage structures of all employees.
A264: The payroll accrual assumptions that need to be specified on the Assumptions sheet also include the frequency of payroll accrual payment periods (in months) and the payment month of the first payroll accrual period. You can therefore calculate payroll accruals based on any payment period frequency from one to twelve months. The calculated payroll accruals are added together in the payroll accrual balance until the month of payment.
A266: Example: If you need to settle payroll accruals every two months and the first payment is due in February, a frequency of 2 needs to be specified and the first payment month should be set to 2 for February. Similarly, if you settle payroll accruals every 6 months with payments due in March and August, the frequency should be set to 6 and the first payment month should be set to 3. If you settle payroll accruals on a monthly basis, the frequency should be 1 and the first payment month should also be 1.
A268: The Current or Subsequent setting in the Payroll Accruals section on the Assumptions sheet determines how the calculated payroll accrual amounts of the current period are handled. If you select the Current option, the payroll accrual amounts of the current period will be included in the calculation of the payment amount which is due in the particular month and the payroll accrual balance at the end of the payment month will be nil.
A270: If you select the Subsequent setting, the payroll accrual amounts of the current period are not included in the calculation of the payment amount and the payroll accrual balances on the balance sheet at the end of the appropriate payment month will always include at least one month.
A272: Note: The Subsequent setting is usually the appropriate setting to use for payroll accrual purposes. The Current setting is more applicable to tax types which are subject to provisional tax payments where payment occurs in the same month as the tax calculation.
A274: Example: If you set a payment frequency of 1 month, first payment month of 1 and select the Current option, the payroll accruals on the balance sheet will always be nil because the current month's payroll accruals will be included in the payment calculation. If you have the same period settings and select the Subsequent option, the payroll accruals will always include the current month's payroll accrual because the payment amount will be based on the previous month's payroll accrual.
A276: Note: The first payment month setting refers to the month of payment and not the payroll accrual period end. There is a difference - a payroll accrual period may end in February with payment in March which means that the first payment month of the calendar year is actually January or month 1 (if the payment frequency is two months).
A278: If you want to include payroll accruals based on variable monthly payroll accrual percentages, you can do so by changing the payroll accrual percentage assumption in the Workings section of the balance sheet which has been included below the section with the ratios. Simply replace the formula which links the payroll accrual percentage assumption to the value on the Assumptions sheet by overwriting it with the appropriate payment accrual percentage.
A280: Current Liabilities - Other Accruals, Other Provisions
A282: The other accrual & other provisions balances cannot be calculated by basing them on specific income statement items and they are therefore calculated by adding the movements in these balances as per the cash flow statement to the balances of the previous month. If you therefore want to increase or decrease these balances, you need to add the amount of the increase or decrease to the line with a matching description on the cash flow statement (under the changes in operating assets section).
A284: Current Liabilities - Provision for Taxation
A286: The calculation of income tax on the income statement is based on the profit before tax on the income statement and the assumptions that are specified in the Income Tax section on the Assumptions sheet.
A288: The profit before tax amount is multiplied by the income tax percentage on the Assumptions sheet in order to calculate the monthly income tax value. If there is a loss before tax on the income statement, no income tax will be calculated but if there were profits before the period with the loss, the income tax that was calculated in previous periods will be reversed in the period with the loss.
A290: The template also makes provision for the inclusion of an assessed loss which has been carried over from previous financial periods and income tax will only be calculated after the assessed loss has been fully reduced by profits in the projection periods.
A292: The income tax assumptions on the Assumptions sheet also include the frequency of payment of income tax (in months) and the calendar month of the first income tax payment. You can therefore calculate a provision for income tax based on any payment period frequency from one to twelve months. The calculated income tax amounts are added together in the provision for income tax balance on the balance sheet until the month of payment.
A294: Example: If you need to settle income tax liabilities every six months and the income tax payments are due in February and August of each year, a frequency of 6 needs to be specified and the first calendar month should be set to 2 for February. Similarly, if you settle income tax liabilities at the end of each quarter with payments due in March, June, September and December, the frequency should be set to 3 and the first payment month should also be set to 3. If you need to settle income tax liabilities 9 months after each year-end and the cash flow projection year-end is February, the frequency should be set to 12 months and the first payment month should be set to 11.
A296: The Current or Subsequent setting in the Income Tax section on the Assumptions sheet determines how the income tax amounts of the current period are handled. If you select the Current option, the income tax amounts of the current period will be included in the calculation of the payment amount which is due in the particular month and the provision for income tax balance on the balance sheet at the end of the payment month will be nil.
A298: If you select the Subsequent setting, the income tax amounts of the current period are not included in the calculation of the payment amount and the provision for income tax balance on the balance sheet at the end of the appropriate payment month will always include income tax for at least one month.
A300: Note: The Current setting is usually the appropriate setting to use for income tax purposes if the entity is a provisional taxpayer which effectively means that income tax is paid in advance. If the entity is not a provisional taxpayer, the Subsequent setting should be used because income tax will be settled after being incurred.
A302: Current Liabilities - Dividends Payable
A304: The calculation of dividends on the income statement is based on the profit for the year on the income statement and the assumptions that are specified in the Dividends section on the Assumptions sheet. Dividends will only be calculated if you enter a dividend percentage on the Assumptions sheet - if you therefore do not want to include dividends in your cash flow projections, you can simply enter a zero value as the dividend percentage.
A306: The dividend percentage specified on the Assumptions sheet is applied to the profit for the year on the income statement which can be found directly above the dividends line. Dividends will also only be calculated if there is a cumulative profit for the year.
A308: The dividends assumptions on the Assumptions sheet also include the frequency of payment of dividends (in months) and the first calendar month of the dividend payment. You can therefore calculate dividends based on any payment period frequency from one to twelve months (although 6 or 12 months is the norm). The calculated dividends amounts are added together in the dividends payable balance on the balance sheet until the month of payment.
A310: Example: If dividends are declared every six months, you need to specify a frequency of 6 months on the Assumptions sheet and then select the appropriate payment basis. Dividends will be reflected on the income statement every 6 months and the dividends payable balances on the balance sheet will be determined based on the first payment month and the payment option which is selected (Cash, Next or Subsequent). Similarly, if the payment frequency is set to 12 months, dividends will be included on the income statement every 12 months and the dividends payable balance will be determined based on the first payment month and the payment option.
A312: The Cash, Next or Subsequent setting in the Dividends section on the Assumptions sheet determines how the dividends payable balances on the balance sheet are calculated and therefore also when the dividend payment will be included on the cash flow statement.
A314: If you select the Cash option, the dividend payable balances on the balance sheet will always be nil and what this means is that the dividend payment is effectively included in the same month as the month in which the dividend is declared. The month in which the declared dividend is included is based on the payment frequency (in months) and the cash flow projection year-end.
A316: If you select the Next option, the dividend payment will be included in the month after the month in which the dividend amount is included on the income statement. The dividend payable balance on the balance sheet will therefore only contain a balance in the dividend declaration month.
A318: If you select the Subsequent option, dividends will be included on the income statement based on the frequency setting on the Assumptions sheet and the payment of the dividend will be delayed until the first payment month is reached. A dividends payable balance will be reflected on the balance sheet in all months until the payment month is reached.
A320: Example: If you set the dividend payment frequency to 12 months, a dividend amount will be included on the income statement in the last month of the appropriate cash flow projection year. If the payment option is set to Cash, no dividend payable amount will be included on the balance sheet and the dividend payment will be included on the cash flow statement in the same month.
A322: Example: If you set the dividend payment frequency to 12 months and the payment option is set to Next, the dividend will be included on the income statement in the last month of the appropriate cash flow projection year, the dividend payable at the end of the financial year will equal the income statement amount and the dividend payment will be included in the first month of the next financial year.
A324: Example: If you set the dividend payment frequency to 12 months and the payment option is set to Subsequent, the dividend will be included on the income statement in the last month of the appropriate cash flow projection year and the dividend payable at the end of the financial year and all subsequent months in the new financial year until the first payment month is reached will equal the income statement amount. The dividend payment will be included in the first payment month as set on the Assumptions sheet but in the year after inclusion on the income statement.
A326: If the cash flow projection year-end as per the above example is February, the first payment month is set to 9 for September and the Subsequent payment option is selected, the dividend will be included in February on the income statement and the same amount will be included as a dividend payable on the balance sheet from February to August of the next financial year. The dividend payment will then be included in September on the cash flow statement and the dividend payable at the end of September will be nil.
A328: Balance Sheet Errors
A330: If the balance sheet for any monthly period does not balance, the amount of the imbalance will be included in the row below the total equities & liabilities and displayed in red. The template has been designed in such a way that the balance sheet should always be in balance as long as the total of the balance sheet opening balances which are included on the Assumptions sheet is nil.
A332: If you see an imbalance on the balance sheet, you therefore need to check the opening balance sheet balances on the Assumptions sheet and ensure that the total of all the opening balances in this section is nil.
A334: If fixing the opening balances does not resolve your imbalance, you can e-mail our Support function and let us know what changes you have made to the formulas in the template so that we can assist you. If you have made a lot of changes, you may need to start over with the downloaded copy of the template.
A336: Balance Sheet Workings
A338: We have included all the calculations which form part of the calculation of balance sheet balances in the Workings section below the balance sheet ratios. These workings will not be printed and are for information purposes only. You can hide this section if you do not want to see it on the sheet but do not delete any of these formulas because it will result in calculation errors if you do!
A340: Cash Flow Statement
A342: All the rows on the cash flow statement which require user input are indicated with yellow highlighting in column A. All other rows contain formulas which automate the calculations of these items which are all based on income statement or balance sheet values.
A344: The input rows on the cash flow statement are all related to balance sheet items where the calculations on the balance sheet are based on adding the movement on the cash flow statement to the previous month's balance. If you need more guidance on any of these items, refer to the appropriate section for the particular item under the Balance Sheet section of these instructions.
A346: Note: The colour of the codes in column A on the cash flow statement indicate whether positive or negative values need to be entered to increase the appropriate balance sheet item's balance. If the code is green, positive input values increase the balance sheet balance and if the code is red, you need to enter negative values in order to increase the balance sheet balances.
A348: Loan Amortization Tables (Loans1 to Loans3 & Leases sheets)
A350: The template makes provision for including loans with up to four different sets of repayment terms in the cash flow projections. The amortization tables that are used to calculate the interest charges, additional loan amounts, loan repayments and outstanding balances have been included on the Loans1, Loans2, Loans3 and Leases sheets. No user input is required on these sheets.
A352: Note: Refer to the instructions in the income statement - interest paid section and the balance sheet - non-current liabilities section for guidance on how these amortization tables have been compiled and where to include user input for each of these amortization tables.
A354: Help & Customization
A356: If you experience any difficulty while using this template and you are not able to find the appropriate guidance in these instructions, please e-mail us at support@excel-skills.com for assistance. This template has been designed with flexibility in mind to ensure that it can be used in most business environments. If however you need an Excel based template that is customized specifically for your business requirements, please e-mail our Support function and provide a brief explanation of your requirements.
A358: © Copyright
A360: This template remains the intellectual property of www.excel-skills.com and is protected by international copyright laws. Any publication or distribution of this template outside the scope of the permitted use of the template is expressly prohibited. In terms of the permitted use of this template, only the distribution of the template to persons within the same organisation as the registered user or persons outside the organisation who can reasonably be expected to require access to the template as a direct result of the use of the template by the registered user is allowed. Subsequent distribution of the template by parties outside of the organisation is however expressly prohibited and represents an infringement of international copyright laws.

Sheet Assumptions (hidden)
B1: =IF(ISBLANK($C$4),"Example Limited",$C$4) -> Example (Pty) Limited
B2: Cash Flow Projections - Assumptions
B4: Business Name | C4: Example (Pty) Limited
B5: Start Date | C5: 2021-03-01
B7: Financial Assumptions - Income Statement
B8: Turnover
B9: Monthly turnover projections need to be entered on the IncState worksheet.
B10: Gross Profit %
B11: Monthly gross profit percentages need to be entered on the IncState worksheet.
B12: Other Income
B13: Monthly other income projections need to be entered on the IncState worksheet.
B14: Operating Expenses
B15: Monthly operating expense projections need to be entered on the IncState worksheet.
B16: Staff Costs
B17: Monthly staff cost projections need to be entered on the IncState worksheet.
B18: Depreciation & Amortization
B19: Monthly depreciation & amortization charges need to be entered on the IncState worksheet.
B20: Interest, Taxation & Dividends
B21: Automatically calculated on the IncState worksheet.
B23: Financial Assumptions - Balance Sheet
B24: The following balance sheet balances are projected by entering the appropriate monthly movements on the cash flow statement. Red codes
B25: in column A indicate that you need to enter a negative value to increase the appropriate balance sheet balance.
A26: RES | B26: Reserves
A27: ADV | B27: Loans & Advances
A28: ODB | B28: Other Receivables
A29: ACC | B29: Other Accruals
A30: OPV | B30: Other Provisions
A31: PPE | B31: Purchases of property, plant & equipment
A32: INA | B32: Purchases of intangible assets
A33: INV | B33: Purchases of investments
A34: CAP | B34: Proceeds from shareholders' contributions
A35: LT1 | B35: Loans 1 (only the proceeds from loans)
A36: LT2 | B36: Loans 2 (only the proceeds from loans)
A37: LT3 | B37: Loans 3 (only the proceeds from loans)
A38: FIN | B38: Finance Leases (only the proceeds)
B40: The following balance sheet balances are calculated based on the assumptions that are entered on this sheet:
B41: Working Capital
B42: Inventory Days | C42: 30
B43: Debtors Days | C43: 25
B44: Creditors Days | C44: 20
B45: Payroll Accrual:
B46: Accrual % | C46: 0.2
B47: Payment Frequency (Months) | C47: 1
B48: First Payment Month | C48: 1
B49: Current Or Subsequent | C49: Subsequent | D49: =IF(C49="Current",1,0) -> 0
B50: Sales Tax
B51: Rates
A52: V1 | B52: Standard | C52: 0.15
A53: V2 | B53: Secondary | C53: 0
A54: V3 | B54: Zero Rated | C54: 0
A55: V4 | B55: Exempt | C55: 0
B56: Payment Frequency (Months) | C56: 2
B57: First Payment Month | C57: 1
B58: Current Or Subsequent | C58: Subsequent | D58: =IF(C58="Current",1,0) -> 0
B59: Income Tax
B60: Income Tax % | C60: 0.28
B61: Assessed Loss Carried Over | C61: 0
B62: Payment Frequency (Months) | C62: 6
B63: First Payment Month | C63: 2
B64: Current Or Subsequent | C64: Current | D64: =IF(C64="Subsequent",0,1) -> 1
B65: Projected loan repayments and interest are calculated based on the below terms (each on a separate sheet).
B66: Loan Terms | C66: Loans 1 | D66: Loans 2 | E66: Loans 3 | F66: Leases
B67: Interest Rate | C67: 0.1025 | D67: 0.0925 | E67: 0.125 | F67: 0.115
B68: Repayment Term (in years) | C68: 10 | D68: 8 | E68: 5 | F68: 4
B69: Interest Only | C69: No | D69: No | E69: No | F69: No
B70: The below section can be used to include balance sheet opening balances for existing businesses.
B71: Balance Sheet Opening Balances
A72: PPE | B72: Property, Plant & Equipment | C72: 1050000 | D72: =IF(ROUND(SUM(C71:C95),0)<>0,"The total of all the start-up balances should be nil!","") -> 
A73: INA | B73: Intangible Assets | C73: 120000
A74: INV | B74: Investments | C74: 800000
A75: ADV | B75: Loans & Advances | C75: 55000
A76: STC | B76: Inventory | C76: 170000
A77: DEB | B77: Trade Receivables | C77: 370000
A78: ODB | B78: Other Receivables | C78: 53000
A79: CSH | B79: Cash & Cash Equivalents | C79: 171000
A80: CAP | B80: Shareholders' Contributions | C80: -1000
A81: RES | B81: Reserves | C81: 0
A82: EAR | B82: Retained Earnings | C82: -400000
A83: LT1 | B83: Long Term Loans 1 | C83: -1200000 | D83: =IF($C83>0,"Long term loans balances should be entered as negative values!","") -> 
A84: LT2 | B84: Long Term Loans 2 | C84: -500000 | D84: =IF($C84>0,"Long term loans balances should be entered as negative values!","") -> 
A85: LT3 | B85: Long Term Loans 3 | C85: 0
A86: FIN | B86: Finance Leases | C86: -425000 | D86: =IF($C86>0,"Finance lease balances should be entered as negative values!","") -> 
A87: OVD | B87: Bank Overdraft | C87: 0
A88: CRE | B88: Trade Payables | C88: -130000
A89: VAT | B89: Sales Tax | C89: -16000
A90: PAY | B90: Payroll Accruals | C90: -20000
A91: ACC | B91: Accruals | C91: -55000
A92: TAX | B92: Provision For Taxation | C92: 0
A93: DIV | B93: Dividends Payable | C93: 0
A94: OPV | B94: Other Provisions | C94: -42000
B95: Dividends
B96: Dividend % | C96: 0
B97: Payment Frequency (Months) | C97: 12
B98: First Payment Month | C98: 3 | D98: =IF(C97=0,1,C98-((ROUNDUP(C98/C97,0))-1)*C97) -> 3
B99: Cash, Next or Subsequent | C99: Next | D99: =IF(C99="Next",1,IF(C99="Subsequent",IF(C97=0,1,IF(D98-((MONTH($C$5)-1)-((ROUNDUP((MONTH($C$5)-1)/C97,0))-1)*C97)<0,D98+C97-((MONTH($C$5)-1)-((ROUNDUP((MONTH($C$5)-1)/C97,0))-1)*C97),D98-((MONTH($C$5)-1)-((ROUNDUP((MONTH($C$5)-1)/C97,0))-1)*C97))),0)) -> 1

Sheet IncState (hidden)
B1: =IF(ISBLANK(Assumptions!$C$4),"Example Limited",Assumptions!$C$4) -> Example (Pty) Limited
B2: Cash Flow Projections - Income Statement
B3: © www.excel-skills.com
C4: =IF(ISBLANK(Assumptions!$C$5)=TRUE,DATE(YEAR(TODAY()),MONTH(TODAY())+1,0),DATE(YEAR(Assumptions!$C$5),MONTH(Assumptions!$C$5)+1,0)) -> 2021-03-31 | D4: =DATE(YEAR(C4),MONTH(C4)+2,0) -> 2021-04-30 | E4: 2021-05-31 | F4: 2021-06-30 | G4: 2021-07-31 | H4: 2021-08-31 | I4: 2021-09-30 | J4: 2021-10-31 | K4: 2021-11-30 | L4: 2021-12-31 | M4: 2022-01-31 | N4: 2022-02-28 | O4: ="Year-"&YEAR(N4) -> Year-2022 | P4: =DATE(YEAR(N4),MONTH(N4)+2,0) -> 2022-03-31 | Q4: =DATE(YEAR(P4),MONTH(P4)+2,0) -> 2022-04-30 | R4: 2022-05-31 | S4: 2022-06-30 | T4: 2022-07-31 | U4: 2022-08-31 | V4: 2022-09-30 | W4: 2022-10-31 | X4: 2022-11-30 | Y4: 2022-12-31 | Z4: 2023-01-31 | AA4: 2023-02-28 | AB4: ="Year-"&YEAR(AA4) -> Year-2023 | AC4: =DATE(YEAR(AA4),MONTH(AA4)+2,0) -> 2023-03-31 | AD4: =DATE(YEAR(AC4),MONTH(AC4)+2,0) -> 2023-04-30 | AE4: 2023-05-31 | AF4: 2023-06-30 | AG4: 2023-07-31 | AH4: 2023-08-31 | AI4: 2023-09-30 | AJ4: 2023-10-31 | AK4: 2023-11-30 | AL4: 2023-12-31 | AM4: 2024-01-31 | AN4: 2024-02-29 | AO4: ="Year-"&YEAR(AN4) -> Year-2024
A5: V1C1 | B5: Product Sales | C5: 285600 | D5: 305200 | E5: 308000 | F5: 311200 | G5: 315800 | H5: 310000 | I5: 302000 | J5: 314000 | K5: 318200 | L5: 256500 | M5: 330600 | N5: 305200 | O5: =SUM(C5:N5) -> 3662300 | P5: 325200 | Q5: 318000 | R5: 310200 | S5: 330600 | T5: 345200 | U5: 325100 | V5: 305200 | W5: 324100 | X5: 345600 | Y5: 260600 | Z5: 350400 | AA5: 336000 | AB5: =SUM(P5:AA5) -> 3876200 | AC5: 342600 | AD5: 360500 | AE5: 356400 | AF5: 370000 | AG5: 366900 | AH5: 382100 | AI5: 380900 | AJ5: 375800 | AK5: 389500 | AL5: 310000 | AM5: 390100 | AN5: 375400 | AO5: =SUM(AC5:AN5) -> 4400200
A6: V1C1 | B6: Income From Services | C6: 125000 | D6: 115000 | E6: 128000 | F6: 132000 | G6: 127000 | H6: 133000 | I6: 130000 | J6: 128900 | K6: 132000 | L6: 118000 | M6: 135000 | N6: 131200 | O6: 1535100 | P6: 136000 | Q6: 138500 | R6: 137000 | S6: 135600 | T6: 133500 | U6: 141020 | V6: 145300 | W6: 144800 | X6: 144500 | Y6: 128900 | Z6: 148100 | AA6: 139100 | AB6: 1672320 | AC6: 140200 | AD6: 145000 | AE6: 147600 | AF6: 144200 | AG6: 149900 | AH6: 145300 | AI6: 141500 | AJ6: 149800 | AK6: 151020 | AL6: 136400 | AM6: 148400 | AN6: 144250 | AO6: 1743570
B7: Total Turnover | C7: =SUM(OFFSET(C4,1,0,ROW($B7)-ROW($B4)-1,1)) -> 410600 | D7: 420200 | E7: 436000 | F7: 443200 | G7: 442800 | H7: 443000 | I7: 432000 | J7: 442900 | K7: 450200 | L7: 374500 | M7: 465600 | N7: 436400 | O7: 5197400 | P7: 461200 | Q7: 456500 | R7: 447200 | S7: 466200 | T7: 478700 | U7: 466120 | V7: 450500 | W7: 468900 | X7: 490100 | Y7: 389500 | Z7: 498500 | AA7: 475100 | AB7: 5548520 | AC7: 482800 | AD7: 505500 | AE7: 504000 | AF7: 514200 | AG7: 516800 | AH7: 527400 | AI7: 522400 | AJ7: 525600 | AK7: 540520 | AL7: 446400 | AM7: 538500 | AN7: 519650 | AO7: 6143770
A8: V1C1 | B8: Products | C8: =C5-C11 -> 185640 | D8: 198380 | E8: 200200 | F8: 202280 | G8: 205270 | H8: 201500 | I8: 193280 | J8: 200960 | K8: 203648 | L8: 164160 | M8: 211584 | N8: 195328 | O8: 2362230 | P8: =P5-P11 -> 208128 | Q8: 203520 | R8: 198528 | S8: 211584 | T8: 220928 | U8: 208064 | V8: 189224 | W8: 200942 | X8: 214272 | Y8: 161572 | Z8: 217248 | AA8: 208320 | AB8: 2442330 | AC8: =AC5-AC11 -> 205560 | AD8: 216300 | AE8: 213840 | AF8: 222000 | AG8: 220140 | AH8: 229260 | AI8: 228540 | AJ8: 225480 | AK8: 233700 | AL8: 186000 | AM8: 234060 | AN8: 225240 | AO8: 2640120
A9: V1C0 | B9: Services | C9: =C6-C12 -> 0 | D9: 0 | E9: 0 | F9: 0 | G9: 0 | H9: 0 | I9: 0 | J9: 0 | K9: 0 | L9: 0 | M9: 0 | N9: 0 | O9: 0 | P9: =P6-P12 -> 0 | Q9: 0 | R9: 0 | S9: 0 | T9: 0 | U9: 0 | V9: 0 | W9: 0 | X9: 0 | Y9: 0 | Z9: 0 | AA9: 0 | AB9: 0 | AC9: =AC6-AC12 -> 0 | AD9: 0 | AE9: 0 | AF9: 0 | AG9: 0 | AH9: 0 | AI9: 0 | AJ9: 0 | AK9: 0 | AL9: 0 | AM9: 0 | AN9: 0 | AO9: 0
B10: Total Cost of Sales | C10: =SUM(OFFSET(C7,1,0,ROW($B10)-ROW($B7)-1,1)) -> 185640 | D10: 198380 | E10: 200200 | F10: 202280 | G10: 205270 | H10: 201500 | I10: 193280 | J10: 200960 | K10: 203648 | L10: 164160 | M10: 211584 | N10: 195328 | O10: 2362230 | P10: 208128 | Q10: 203520 | R10: 198528 | S10: 211584 | T10: 220928 | U10: 208064 | V10: 189224 | W10: 200942 | X10: 214272 | Y10: 161572 | Z10: 217248 | AA10: 208320 | AB10: 2442330 | AC10: 205560 | AD10: 216300 | AE10: 213840 | AF10: 222000 | AG10: 220140 | AH10: 229260 | AI10: 228540 | AJ10: 225480 | AK10: 233700 | AL10: 186000 | AM10: 234060 | AN10: 225240 | AO10: 2640120
B11: Products | C11: =C5*C14 -> 99960 | D11: 106820 | E11: 107800 | F11: 108920 | G11: 110530 | H11: 108500 | I11: 108720 | J11: 113040 | K11: 114552 | L11: 92340 | M11: 119016 | N11: 109872 | O11: =SUM(C11:N11) -> 1300070 | P11: =P5*P14 -> 117072 | Q11: 114480 | R11: 111672 | S11: 119016 | T11: 124272 | U11: 117036 | V11: 115976 | W11: 123158 | X11: 131328 | Y11: 99028 | Z11: 133152 | AA11: 127680 | AB11: =SUM(P11:AA11) -> 1433870 | AC11: =AC5*AC14 -> 137040 | AD11: 144200 | AE11: 142560 | AF11: 148000 | AG11: 146760 | AH11: 152840 | AI11: 152360 | AJ11: 150320 | AK11: 155800 | AL11: 124000 | AM11: 156040 | AN11: 150160 | AO11: =SUM(AC11:AN11) -> 1760080
B12: Services | C12: =C6*C15 -> 125000 | D12: 115000 | E12: 128000 | F12: 132000 | G12: 127000 | H12: 133000 | I12: 130000 | J12: 128900 | K12: 132000 | L12: 118000 | M12: 135000 | N12: 131200 | O12: =SUM(C12:N12) -> 1535100 | P12: =P6*P15 -> 136000 | Q12: 138500 | R12: 137000 | S12: 135600 | T12: 133500 | U12: 141020 | V12: 145300 | W12: 144800 | X12: 144500 | Y12: 128900 | Z12: 148100 | AA12: 139100 | AB12: =SUM(P12:AA12) -> 1672320 | AC12: =AC6*AC15 -> 140200 | AD12: 145000 | AE12: 147600 | AF12: 144200 | AG12: 149900 | AH12: 145300 | AI12: 141500 | AJ12: 149800 | AK12: 151020 | AL12: 136400 | AM12: 148400 | AN12: 144250 | AO12: =SUM(AC12:AN12) -> 1743570
B13: Total Gross Profit | C13: =SUM(OFFSET(C10,1,0,ROW($B13)-ROW($B10)-1,1)) -> 224960 | D13: 221820 | E13: 235800 | F13: 240920 | G13: 237530 | H13: 241500 | I13: 238720 | J13: 241940 | K13: 246552 | L13: 210340 | M13: 254016 | N13: 241072 | O13: 2835170 | P13: 253072 | Q13: 252980 | R13: 248672 | S13: 254616 | T13: 257772 | U13: 258056 | V13: 261276 | W13: 267958 | X13: 275828 | Y13: 227928 | Z13: 281252 | AA13: 266780 | AB13: 3106190 | AC13: 277240 | AD13: 289200 | AE13: 290160 | AF13: 292200 | AG13: 296660 | AH13: 298140 | AI13: 293860 | AJ13: 300120 | AK13: 306820 | AL13: 260400 | AM13: 304440 | AN13: 294410 | AO13: 3503650
B14: Products | C14: 0.35 | D14: 0.35 | E14: 0.35 | F14: 0.35 | G14: 0.35 | H14: 0.35 | I14: 0.36 | J14: 0.36 | K14: 0.36 | L14: 0.36 | M14: 0.36 | N14: 0.36 | O14: =IF(O5=0,0,O11/O5) -> 0.3549873031 | P14: 0.36 | Q14: 0.36 | R14: 0.36 | S14: 0.36 | T14: 0.36 | U14: 0.36 | V14: 0.38 | W14: 0.38 | X14: 0.38 | Y14: 0.38 | Z14: 0.38 | AA14: 0.38 | AB14: =IF(AB5=0,0,AB11/AB5) -> 0.369916413 | AC14: 0.4 | AD14: 0.4 | AE14: 0.4 | AF14: 0.4 | AG14: 0.4 | AH14: 0.4 | AI14: 0.4 | AJ14: 0.4 | AK14: 0.4 | AL14: 0.4 | AM14: 0.4 | AN14: 0.4 | AO14: =IF(AO5=0,0,AO11/AO5) -> 0.4
B15: Services | C15: 1 | D15: 1 | E15: 1 | F15: 1 | G15: 1 | H15: 1 | I15: 1 | J15: 1 | K15: 1 | L15: 1 | M15: 1 | N15: 1 | O15: =IF(O6=0,0,O12/O6) -> 1 | P15: 1 | Q15: 1 | R15: 1 | S15: 1 | T15: 1 | U15: 1 | V15: 1 | W15: 1 | X15: 1 | Y15: 1 | Z15: 1 | AA15: 1 | AB15: =IF(AB6=0,0,AB12/AB6) -> 1 | AC15: 1 | AD15: 1 | AE15: 1 | AF15: 1 | AG15: 1 | AH15: 1 | AI15: 1 | AJ15: 1 | AK15: 1 | AL15: 1 | AM15: 1 | AN15: 1 | AO15: =IF(AO6=0,0,AO12/AO6) -> 1
B16: Gross Profit % | C16: =IF(C7=0,0,C13/C7) -> 0.5478811495 | D16: 0.5278914802 | E16: 0.5408256881 | F16: 0.5435920578 | G16: 0.5364272809 | H16: 0.5451467269 | I16: 0.5525925926 | J16: 0.5462632648 | K16: 0.5476499334 | L16: 0.5616555407 | M16: 0.5455670103 | N16: 0.5524106324 | O16: =IF(O7=0,0,O13/O7) -> 0.5454977489 | P16: =IF(P7=0,0,P13/P7) -> 0.548725065 | Q16: 0.5541730559 | R16: 0.5560644007 | S16: 0.5461518662 | T16: 0.5384833925 | U16: 0.5536256758 | V16: 0.5799689234 | W16: 0.5714608659 | X16: 0.5627994287 | Y16: 0.5851810013 | Z16: 0.5641965898 | AA16: 0.5615238897 | AB16: =IF(AB7=0,0,AB13/AB7) -> 0.55982316 | AC16: =IF(AC7=0,0,AC13/AC7) -> 0.5742336371 | AD16: 0.5721068249 | AE16: 0.5757142857 | AF16: 0.5682613769 | AG16: 0.5740325077 | AH16: 0.565301479 | AI16: 0.5625191424 | AJ16: 0.5710045662 | AK16: 0.5676385703 | AL16: 0.5833333333 | AM16: 0.5653481894 | AN16: 0.5665544116 | AO16: =IF(AO7=0,0,AO13/AO7) -> 0.5702768821
B17: Other Income | C17: 500 | D17: 500 | E17: 500 | F17: 500 | G17: 500 | H17: 500 | I17: 500 | J17: 500 | K17: 500 | L17: 500 | M17: 500 | N17: 500 | O17: =SUM(C17:N17) -> 6000 | P17: 600 | Q17: 600 | R17: 600 | S17: 600 | T17: 600 | U17: 600 | V17: 600 | W17: 600 | X17: 600 | Y17: 600 | Z17: 600 | AA17: 600 | AB17: =SUM(P17:AA17) -> 7200 | AC17: 650 | AD17: 650 | AE17: 650 | AF17: 650 | AG17: 650 | AH17: 650 | AI17: 650 | AJ17: 650 | AK17: 650 | AL17: 650 | AM17: 650 | AN17: 650 | AO17: =SUM(AC17:AN17) -> 7800
B18: Operating Expenses
A19: V1C1 | B19: Accounting Fees | C19: 2000 | D19: 2000 | E19: 2000 | F19: 2000 | G19: 2000 | H19: 2000 | I19: 2000 | J19: 2000 | K19: 2000 | L19: 2000 | M19: 2000 | N19: 2000 | O19: 24000 | P19: 2000 | Q19: 2000 | R19: 2000 | S19: 2000 | T19: 2000 | U19: 2000 | V19: 2000 | W19: 2000 | X19: 2000 | Y19: 2000 | Z19: 2000 | AA19: 2000 | AB19: 24000 | AC19: 2000 | AD19: 2000 | AE19: 2000 | AF19: 2000 | AG19: 2000 | AH19: 2000 | AI19: 2000 | AJ19: 2000 | AK19: 2000 | AL19: 2000 | AM19: 2000 | AN19: 2000 | AO19: 24000
A20: V1C1 | B20: Advertising & Marketing | C20: 5000 | D20: 5000 | E20: 10000 | F20: 5000 | G20: 5000 | H20: 25000 | I20: 5000 | J20: 5000 | K20: 43000 | L20: 13000 | M20: 5000 | N20: 5000 | O20: 131000 | P20: 5000 | Q20: 22000 | R20: 5000 | S20: 5000 | T20: 5000 | U20: 39000 | V20: 5000 | W20: 5000 | X20: 5000 | Y20: 47000 | Z20: 5000 | AA20: 5000 | AB20: 153000 | AC20: 5000 | AD20: 54000 | AE20: 5000 | AF20: 5000 | AG20: 65000 | AH20: 8000 | AI20: 8000 | AJ20: 8000 | AK20: 32000 | AL20: 18000 | AM20: 18000 | AN20: 18000 | AO20: 244000
A21: V1C0 | B21: Bank Charges | C21: 250 | D21: 250 | E21: 250 | F21: 250 | G21: 250 | H21: 250 | I21: 250 | J21: 250 | K21: 250 | L21: 250 | M21: 250 | N21: 250 | O21: 3000 | P21: 500 | Q21: 500 | R21: 500 | S21: 500 | T21: 500 | U21: 500 | V21: 500 | W21: 500 | X21: 500 | Y21: 500 | Z21: 500 | AA21: 500 | AB21: 6000 | AC21: 730 | AD21: 730 | AE21: 730 | AF21: 730 | AG21: 730 | AH21: 730 | AI21: 730 | AJ21: 730 | AK21: 730 | AL21: 730 | AM21: 730 | AN21: 730 | AO21: 8760
A22: V1C0 | B22: Cleaning Expenses | C22: 500 | D22: 500 | E22: 800 | F22: 800 | G22: 800 | H22: 860 | I22: 860 | J22: 860 | K22: 860 | L22: 860 | M22: 860 | N22: 860 | O22: 9420 | P22: 920 | Q22: 920 | R22: 920 | S22: 920 | T22: 920 | U22: 920 | V22: 920 | W22: 920 | X22: 945 | Y22: 945 | Z22: 945 | AA22: 945 | AB22: 11140 | AC22: 1034 | AD22: 1034 | AE22: 1034 | AF22: 1034 | AG22: 1034 | AH22: 1034 | AI22: 2080 | AJ22: 2080 | AK22: 2080 | AL22: 2080 | AM22: 2080 | AN22: 2080 | AO22: 18684
A23: V1C0 | B23: Computer Expenses | C23: 0 | D23: 0 | E23: 0 | F23: 3800 | G23: 0 | H23: 0 | I23: 0 | J23: 0 | K23: 0 | L23: 0 | M23: 0 | N23: 4200 | O23: 8000 | P23: 0 | Q23: 0 | R23: 0 | S23: 0 | T23: 0 | U23: 1285 | V23: 0 | W23: 0 | X23: 0 | Y23: 890 | Z23: 0 | AA23: 0 | AB23: 2175 | AC23: 0 | AD23: 0 | AE23: 854 | AF23: 0 | AG23: 0 | AH23: 0 | AI23: 0 | AJ23: 1070 | AK23: 0 | AL23: 0 | AM23: 0 | AN23: 0 | AO23: 1924
A24: V1C0 | B24: Consumables | C24: 1250 | D24: 0 | E24: 0 | F24: 0 | G24: 2300 | H24: 780 | I24: 200 | J24: 0 | K24: 0 | L24: 759 | M24: 0 | N24: 0 | O24: 5289 | P24: 543 | Q24: 0 | R24: 0 | S24: 875 | T24: 567 | U24: 357 | V24: 0 | W24: 5778 | X24: 0 | Y24: 0 | Z24: 0 | AA24: 644 | AB24: 8764 | AC24: 1250 | AD24: 655 | AE24: 3556 | AF24: 0 | AG24: 0 | AH24: 764 | AI24: 755 | AJ24: 976 | AK24: 0 | AL24: 0 | AM24: 455 | AN24: 987 | AO24: 9398
A25: V1C0 | B25: Electricity & Water | C25: 1000 | D25: 1000 | E25: 1000 | F25: 1000 | G25: 1000 | H25: 1200 | I25: 1200 | J25: 1200 | K25: 1200 | L25: 1200 | M25: 1200 | N25: 1200 | O25: 13400 | P25: 2700 | Q25: 2700 | R25: 2700 | S25: 2700 | T25: 2700 | U25: 2700 | V25: 2700 | W25: 2700 | X25: 3200 | Y25: 3200 | Z25: 3200 | AA25: 3200 | AB25: 34400 | AC25: 3800 | AD25: 3800 | AE25: 3800 | AF25: 3800 | AG25: 3800 | AH25: 3800 | AI25: 3800 | AJ25: 4100 | AK25: 4100 | AL25: 4100 | AM25: 4100 | AN25: 4100 | AO25: 47100
A26: V4C0 | B26: Entertainment | C26: 0 | D26: 0 | E26: 0 | F26: 0 | G26: 0 | H26: 0 | I26: 0 | J26: 12000 | K26: 0 | L26: 0 | M26: 0 | N26: 0 | O26: 12000 | P26: 0 | Q26: 0 | R26: 0 | S26: 0 | T26: 0 | U26: 0 | V26: 0 | W26: 22000 | X26: 0 | Y26: 0 | Z26: 0 | AA26: 0 | AB26: 22000 | AC26: 0 | AD26: 0 | AE26: 0 | AF26: 0 | AG26: 0 | AH26: 0 | AI26: 29000 | AJ26: 0 | AK26: 0 | AL26: 0 | AM26: 0 | AN26: 0 | AO26: 29000
A27: V1C1 | B27: Equipment Hire | C27: 0 | D27: 0 | E27: 0 | F27: 0 | G27: 18000 | H27: 0 | I27: 0 | J27: 0 | K27: 0 | L27: 0 | M27: 0 | N27: 0 | O27: 18000 | P27: 0 | Q27: 0 | R27: 0 | S27: 0 | T27: 0 | U27: 0 | V27: 0 | W27: 0 | X27: 0 | Y27: 0 | Z27: 33000 | AA27: 0 | AB27: 33000 | AC27: 0 | AD27: 0 | AE27: 0 | AF27: 0 | AG27: 29000 | AH27: 0 | AI27: 0 | AJ27: 0 | AK27: 0 | AL27: 0 | AM27: 0 | AN27: 0 | AO27: 29000
A28: V1C0 | B28: Insurance | C28: 2000 | D28: 2000 | E28: 2000 | F28: 2000 | G28: 2000 | H28: 2000 | I28: 2300 | J28: 2300 | K28: 2300 | L28: 2300 | M28: 2300 | N28: 2300 | O28: 25800 | P28: 2300 | Q28: 2300 | R28: 2300 | S28: 2300 | T28: 2300 | U28: 2300 | V28: 3200 | W28: 3200 | X28: 3200 | Y28: 3200 | Z28: 3200 | AA28: 3200 | AB28: 33000 | AC28: 5100 | AD28: 5100 | AE28: 5100 | AF28: 5100 | AG28: 5100 | AH28: 5100 | AI28: 5100 | AJ28: 6200 | AK28: 6200 | AL28: 6200 | AM28: 6200 | AN28: 6200 | AO28: 66700
A29: V1C1 | B29: Legal Fees | C29: 0 | D29: 0 | E29: 0 | F29: 74000 | G29: 0 | H29: 0 | I29: 0 | J29: 0 | K29: 0 | L29: 0 | M29: 0 | N29: 0 | O29: 74000 | P29: 0 | Q29: 0 | R29: 0 | S29: 0 | T29: 0 | U29: 0 | V29: 0 | W29: 0 | X29: 0 | Y29: 12340 | Z29: 0 | AA29: 0 | AB29: 12340 | AC29: 0 | AD29: 0 | AE29: 0 | AF29: 23100 | AG29: 0 | AH29: 0 | AI29: 0 | AJ29: 0 | AK29: 0 | AL29: 0 | AM29: 0 | AN29: 0 | AO29: 23100
A30: V1C0 | B30: Motor Vehicle Expenses | C30: 0 | D30: 0 | E30: 0 | F30: 0 | G30: 0 | H30: 0 | I30: 1800 | J30: 0 | K30: 0 | L30: 0 | M30: 0 | N30: 0 | O30: 1800 | P30: 0 | Q30: 0 | R30: 0 | S30: 12300 | T30: 0 | U30: 0 | V30: 0 | W30: 0 | X30: 0 | Y30: 0 | Z30: 0 | AA30: 0 | AB30: 12300 | AC30: 0 | AD30: 0 | AE30: 0 | AF30: 0 | AG30: 8120 | AH30: 0 | AI30: 0 | AJ30: 0 | AK30: 0 | AL30: 0 | AM30: 0 | AN30: 0 | AO30: 8120
A31: V1C0 | B31: Postage | C31: 100 | D31: 100 | E31: 100 | F31: 100 | G31: 100 | H31: 100 | I31: 100 | J31: 100 | K31: 100 | L31: 100 | M31: 100 | N31: 100 | O31: 1200 | P31: 140 | Q31: 140 | R31: 140 | S31: 140 | T31: 140 | U31: 140 | V31: 140 | W31: 140 | X31: 140 | Y31: 140 | Z31: 140 | AA31: 140 | AB31: 1680 | AC31: 160 | AD31: 160 | AE31: 160 | AF31: 160 | AG31: 160 | AH31: 160 | AI31: 160 | AJ31: 160 | AK31: 160 | AL31: 160 | AM31: 160 | AN31: 160 | AO31: 1920
A32: V1C1 | B32: Printing & Stationery | C32: 300 | D32: 300 | E32: 300 | F32: 300 | G32: 300 | H32: 300 | I32: 300 | J32: 300 | K32: 300 | L32: 300 | M32: 300 | N32: 300 | O32: 3600 | P32: 420 | Q32: 420 | R32: 420 | S32: 420 | T32: 420 | U32: 420 | V32: 420 | W32: 420 | X32: 420 | Y32: 420 | Z32: 420 | AA32: 420 | AB32: 5040 | AC32: 610 | AD32: 610 | AE32: 610 | AF32: 610 | AG32: 610 | AH32: 610 | AI32: 610 | AJ32: 610 | AK32: 610 | AL32: 610 | AM32: 610 | AN32: 610 | AO32: 7320
A33: V1C1 | B33: Professional Fees | C33: 0 | D33: 0 | E33: 0 | F33: 0 | G33: 0 | H33: 0 | I33: 0 | J33: 32000 | K33: 0 | L33: 0 | M33: 0 | N33: 0 | O33: 32000 | P33: 0 | Q33: 7510 | R33: 0 | S33: 0 | T33: 0 | U33: 0 | V33: 0 | W33: 0 | X33: 0 | Y33: 0 | Z33: 0 | AA33: 0 | AB33: 7510 | AC33: 0 | AD33: 2300 | AE33: 0 | AF33: 0 | AG33: 0 | AH33: 0 | AI33: 0 | AJ33: 0 | AK33: 3900 | AL33: 0 | AM33: 0 | AN33: 0 | AO33: 6200
A34: V1C0 | B34: Rent | C34: 20000 | D34: 20000 | E34: 20000 | F34: 20000 | G34: 20000 | H34: 20000 | I34: 20000 | J34: 20000 | K34: 20000 | L34: 20000 | M34: 22000 | N34: 22000 | O34: 244000 | P34: 22000 | Q34: 22000 | R34: 22000 | S34: 22000 | T34: 22000 | U34: 22000 | V34: 22000 | W34: 22000 | X34: 22000 | Y34: 22000 | Z34: 24200 | AA34: 24200 | AB34: 268400 | AC34: 24200 | AD34: 24200 | AE34: 24200 | AF34: 24200 | AG34: 24200 | AH34: 24200 | AI34: 24200 | AJ34: 24200 | AK34: 24200 | AL34: 24200 | AM34: 26500 | AN34: 26500 | AO34: 295000
A35: V1C0 | B35: Repairs & Maintenance | C35: 0 | D35: 0 | E35: 800 | F35: 0 | G35: 0 | H35: 780 | I35: 0 | J35: 0 | K35: 4300 | L35: 0 | M35: 0 | N35: 0 | O35: 5880 | P35: 0 | Q35: 0 | R35: 0 | S35: 2100 | T35: 0 | U35: 0 | V35: 0 | W35: 0 | X35: 0 | Y35: 2320 | Z35: 0 | AA35: 0 | AB35: 4420 | AC35: 0 | AD35: 1900 | AE35: 0 | AF35: 0 | AG35: 0 | AH35: 7200 | AI35: 0 | AJ35: 0 | AK35: 0 | AL35: 0 | AM35: 0 | AN35: 0 | AO35: 9100
A36: V1C1 | B36: Security | C36: 325 | D36: 325 | E36: 325 | F36: 325 | G36: 325 | H36: 325 | I36: 325 | J36: 325 | K36: 325 | L36: 325 | M36: 325 | N36: 325 | O36: 3900 | P36: 378 | Q36: 378 | R36: 378 | S36: 378 | T36: 378 | U36: 378 | V36: 378 | W36: 378 | X36: 378 | Y36: 378 | Z36: 378 | AA36: 378 | AB36: 4536 | AC36: 421 | AD36: 421 | AE36: 421 | AF36: 421 | AG36: 421 | AH36: 421 | AI36: 421 | AJ36: 421 | AK36: 421 | AL36: 421 | AM36: 421 | AN36: 421 | AO36: 5052
A37: V1C0 | B37: Subscriptions | C37: 0 | D37: 0 | E37: 0 | F37: 0 | G37: 0 | H37: 3200 | I37: 0 | J37: 0 | K37: 0 | L37: 0 | M37: 0 | N37: 0 | O37: 3200 | P37: 0 | Q37: 0 | R37: 0 | S37: 0 | T37: 0 | U37: 3670 | V37: 0 | W37: 0 | X37: 0 | Y37: 0 | Z37: 0 | AA37: 0 | AB37: 3670 | AC37: 0 | AD37: 0 | AE37: 0 | AF37: 0 | AG37: 0 | AH37: 4020 | AI37: 0 | AJ37: 0 | AK37: 0 | AL37: 0 | AM37: 0 | AN37: 0 | AO37: 4020
A38: V1C1 | B38: Telephone & Fax | C38: 2510 | D38: 2510 | E38: 2510 | F38: 2510 | G38: 2510 | H38: 2510 | I38: 2510 | J38: 2510 | K38: 2510 | L38: 2510 | M38: 2510 | N38: 2510 | O38: 30120 | P38: 3420 | Q38: 3420 | R38: 3420 | S38: 3420 | T38: 3420 | U38: 3420 | V38: 3420 | W38: 3420 | X38: 3420 | Y38: 3420 | Z38: 3420 | AA38: 3420 | AB38: 41040 | AC38: 3890 | AD38: 3890 | AE38: 3890 | AF38: 3890 | AG38: 3890 | AH38: 3890 | AI38: 3890 | AJ38: 3890 | AK38: 3890 | AL38: 3890 | AM38: 3890 | AN38: 3890 | AO38: 46680
A39: V1C1 | B39: Training | C39: 0 | D39: 0 | E39: 0 | F39: 0 | G39: 0 | H39: 0 | I39: 0 | J39: 12000 | K39: 0 | L39: 0 | M39: 0 | N39: 0 | O39: 12000 | P39: 0 | Q39: 0 | R39: 0 | S39: 0 | T39: 0 | U39: 0 | V39: 0 | W39: 0 | X39: 8520 | Y39: 0 | Z39: 0 | AA39: 0 | AB39: 8520 | AC39: 0 | AD39: 0 | AE39: 7400 | AF39: 0 | AG39: 0 | AH39: 0 | AI39: 0 | AJ39: 0 | AK39: 0 | AL39: 0 | AM39: 0 | AN39: 0 | AO39: 7400
A40: V1C1 | B40: Uniforms | C40: 0 | D40: 0 | E40: 0 | F40: 0 | G40: 0 | H40: 0 | I40: 2530 | J40: 0 | K40: 0 | L40: 0 | M40: 0 | N40: 0 | O40: 2530 | P40: 0 | Q40: 0 | R40: 0 | S40: 0 | T40: 900 | U40: 0 | V40: 0 | W40: 0 | X40: 0 | Y40: 0 | Z40: 0 | AA40: 0 | AB40: 900 | AC40: 0 | AD40: 0 | AE40: 0 | AF40: 710 | AG40: 0 | AH40: 0 | AI40: 0 | AJ40: 0 | AK40: 0 | AL40: 0 | AM40: 0 | AN40: 0 | AO40: 710
B41: Total Operating Expenses | C41: =SUM(OFFSET(B18,1,1,ROW($B$41)-ROW($B$18)-1,1)) -> 35235 | D41: =SUM(OFFSET(C18,1,1,ROW($B$41)-ROW($B$18)-1,1)) -> 33985 | E41: 40085 | F41: 112085 | G41: 54585 | H41: 59305 | I41: 39375 | J41: 90845 | K41: 77145 | L41: 43604 | M41: 36845 | N41: 41045 | O41: 664139 | P41: 40321 | Q41: 64288 | R41: 39778 | S41: 55053 | T41: 41245 | U41: 79090 | V41: 40678 | W41: 68456 | X41: 49723 | Y41: 98753 | Z41: 76403 | AA41: 44047 | AB41: 697835 | AC41: 48195 | AD41: 100800 | AE41: 58755 | AF41: 70755 | AG41: 144065 | AH41: 61929 | AI41: 80746 | AJ41: 54437 | AK41: 80291 | AL41: 62391 | AM41: 65146 | AN41: 65678 | AO41: 893188
B42: Staff Costs
A43: V4C0 | B43: Salaries | C43: 70000 | D43: 70000 | E43: 70000 | F43: 70000 | G43: 70000 | H43: 70000 | I43: 70000 | J43: 70000 | K43: 70000 | L43: 70000 | M43: 70000 | N43: 70000 | O43: =SUM(C43:N43) -> 840000 | P43: 75000 | Q43: 75000 | R43: 75000 | S43: 75000 | T43: 75000 | U43: 75000 | V43: 75000 | W43: 75000 | X43: 75000 | Y43: 75000 | Z43: 75000 | AA43: 75000 | AB43: =SUM(P43:AA43) -> 900000 | AC43: 80000 | AD43: 80000 | AE43: 80000 | AF43: 80000 | AG43: 80000 | AH43: 80000 | AI43: 80000 | AJ43: 80000 | AK43: 80000 | AL43: 80000 | AM43: 80000 | AN43: 80000 | AO43: =SUM(AC43:AN43) -> 960000
A44: V4C0 | B44: Wages | C44: 30000 | D44: 30000 | E44: 30000 | F44: 30000 | G44: 30000 | H44: 30000 | I44: 30000 | J44: 30000 | K44: 30000 | L44: 30000 | M44: 30000 | N44: 30000 | O44: =SUM(C44:N44) -> 360000 | P44: 35000 | Q44: 35000 | R44: 35000 | S44: 35000 | T44: 35000 | U44: 35000 | V44: 35000 | W44: 35000 | X44: 35000 | Y44: 35000 | Z44: 35000 | AA44: 35000 | AB44: =SUM(P44:AA44) -> 420000 | AC44: 40000 | AD44: 40000 | AE44: 40000 | AF44: 40000 | AG44: 40000 | AH44: 40000 | AI44: 40000 | AJ44: 40000 | AK44: 40000 | AL44: 40000 | AM44: 40000 | AN44: 40000 | AO44: =SUM(AC44:AN44) -> 480000
A45: PAY | B45: Total Staff Costs | C45: =SUM(OFFSET(C42,1,0,ROW($B45)-ROW($B42)-1,1)) -> 100000 | D45: =SUM(OFFSET(D42,1,0,ROW($B45)-ROW($B42)-1,1)) -> 100000 | E45: 100000 | F45: 100000 | G45: 100000 | H45: 100000 | I45: 100000 | J45: 100000 | K45: 100000 | L45: 100000 | M45: 100000 | N45: 100000 | O45: 1200000 | P45: 110000 | Q45: 110000 | R45: 110000 | S45: 110000 | T45: 110000 | U45: 110000 | V45: 110000 | W45: 110000 | X45: 110000 | Y45: 110000 | Z45: 110000 | AA45: 110000 | AB45: 1320000 | AC45: 120000 | AD45: 120000 | AE45: 120000 | AF45: 120000 | AG45: 120000 | AH45: 120000 | AI45: 120000 | AJ45: 120000 | AK45: 120000 | AL45: 120000 | AM45: 120000 | AN45: 120000 | AO45: 1440000
B46: Depreciation & Amortization
A47: DEP | B47: Depreciation | C47: 15000 | D47: 15000 | E47: 15000 | F47: 15000 | G47: 15000 | H47: 15000 | I47: 15000 | J47: 15000 | K47: 15000 | L47: 15000 | M47: 19000 | N47: 19000 | O47: =SUM(C47:N47) -> 188000 | P47: 19000 | Q47: 19000 | R47: 19000 | S47: 19000 | T47: 19000 | U47: 24000 | V47: 24000 | W47: 24000 | X47: 24000 | Y47: 24000 | Z47: 24000 | AA47: 24000 | AB47: =SUM(P47:AA47) -> 263000 | AC47: 24000 | AD47: 27000 | AE47: 27000 | AF47: 27000 | AG47: 27000 | AH47: 25000 | AI47: 25000 | AJ47: 25000 | AK47: 25000 | AL47: 25000 | AM47: 25000 | AN47: 25000 | AO47: =SUM(AC47:AN47) -> 307000
A48: AMT | B48: Amortization | C48: 1000 | D48: 1000 | E48: 1000 | F48: 1000 | G48: 1000 | H48: 1000 | I48: 1000 | J48: 1000 | K48: 1000 | L48: 1000 | M48: 1000 | N48: 1000 | O48: =SUM(C48:N48) -> 12000 | P48: 1000 | Q48: 1000 | R48: 1000 | S48: 1000 | T48: 1000 | U48: 1000 | V48: 1000 | W48: 1000 | X48: 1000 | Y48: 1000 | Z48: 1000 | AA48: 1000 | AB48: =SUM(P48:AA48) -> 12000 | AC48: 1000 | AD48: 1000 | AE48: 1000 | AF48: 1000 | AG48: 1000 | AH48: 1000 | AI48: 1000 | AJ48: 1000 | AK48: 1000 | AL48: 1000 | AM48: 1000 | AN48: 1000 | AO48: =SUM(AC48:AN48) -> 12000
B49: Total Depreciation & Amortization | C49: =SUM(C47:C48) -> 16000 | D49: =SUM(D47:D48) -> 16000 | E49: 16000 | F49: 16000 | G49: 16000 | H49: 16000 | I49: 16000 | J49: 16000 | K49: 16000 | L49: 16000 | M49: 20000 | N49: 20000 | O49: 200000 | P49: 20000 | Q49: 20000 | R49: 20000 | S49: 20000 | T49: 20000 | U49: 25000 | V49: 25000 | W49: 25000 | X49: 25000 | Y49: 25000 | Z49: 25000 | AA49: 25000 | AB49: 275000 | AC49: 25000 | AD49: 28000 | AE49: 28000 | AF49: 28000 | AG49: 28000 | AH49: 26000 | AI49: 26000 | AJ49: 26000 | AK49: 26000 | AL49: 26000 | AM49: 26000 | AN49: 26000 | AO49: 319000
B50: Profit / (Loss) before interest & tax | C50: =SUM(C13,C17,-C41,-C45,-C49) -> 74225 | D50: =SUM(D13,D17,-D41,-D45,-D49) -> 72335 | E50: 80215 | F50: 13335 | G50: 67445 | H50: 66695 | I50: 83845 | J50: 35595 | K50: 53907 | L50: 51236 | M50: 97671 | N50: 80527 | O50: 777031 | P50: 83351 | Q50: 59292 | R50: 79494 | S50: 70163 | T50: 87127 | U50: 44566 | V50: 86198 | W50: 65102 | X50: 91705 | Y50: -5225 | Z50: 70449 | AA50: 88333 | AB50: 820555 | AC50: 84695 | AD50: 41050 | AE50: 84055 | AF50: 74095 | AG50: 5245 | AH50: 90861 | AI50: 67764 | AJ50: 100333 | AK50: 81179 | AL50: 52659 | AM50: 93944 | AN50: 83382 | AO50: 859262
B51: Interest Paid
A52: INT | B52: Interest - Loans 1 | C52: =OFFSET(Loans1!$E$9,COLUMN(C51)-COLUMN($B51)-ROUNDDOWN((COLUMN(C51)-COLUMN($B51))/13,0),0,1,1) -> 10250 | D52: =OFFSET(Loans1!$E$9,COLUMN(D51)-COLUMN($B51)-ROUNDDOWN((COLUMN(D51)-COLUMN($B51))/13,0),0,1,1) -> 10200.67461 | E52: =OFFSET(Loans1!$E$9,COLUMN(E51)-COLUMN($B51)-ROUNDDOWN((COLUMN(E51)-COLUMN($B51))/13,0),0,1,1) -> 10150.92789 | F52: =OFFSET(Loans1!$E$9,COLUMN(F51)-COLUMN($B51)-ROUNDDOWN((COLUMN(F51)-COLUMN($B51))/13,0),0,1,1) -> 10100.75626 | G52: =OFFSET(Loans1!$E$9,COLUMN(G51)-COLUMN($B51)-ROUNDDOWN((COLUMN(G51)-COLUMN($B51))/13,0),0,1,1) -> 10050.15607 | H52: =OFFSET(Loans1!$E$9,COLUMN(H51)-COLUMN($B51)-ROUNDDOWN((COLUMN(H51)-COLUMN($B51))/13,0),0,1,1) -> 9999.12368 | I52: =OFFSET(Loans1!$E$9,COLUMN(I51)-COLUMN($B51)-ROUNDDOWN((COLUMN(I51)-COLUMN($B51))/13,0),0,1,1) -> 9947.655384 | J52: =OFFSET(Loans1!$E$9,COLUMN(J51)-COLUMN($B51)-ROUNDDOWN((COLUMN(J51)-COLUMN($B51))/13,0),0,1,1) -> 9895.747464 | K52: =OFFSET(Loans1!$E$9,COLUMN(K51)-COLUMN($B51)-ROUNDDOWN((COLUMN(K51)-COLUMN($B51))/13,0),0,1,1) -> 9843.396163 | L52: =OFFSET(Loans1!$E$9,COLUMN(L51)-COLUMN($B51)-ROUNDDOWN((COLUMN(L51)-COLUMN($B51))/13,0),0,1,1) -> 9790.597695 | M52: =OFFSET(Loans1!$E$9,COLUMN(M51)-COLUMN($B51)-ROUNDDOWN((COLUMN(M51)-COLUMN($B51))/13,0),0,1,1) -> 9737.34824 | N52: =OFFSET(Loans1!$E$9,COLUMN(N51)-COLUMN($B51)-ROUNDDOWN((COLUMN(N51)-COLUMN($B51))/13,0),0,1,1) -> 9683.643946 | O52: =SUM(C52:N52) -> 119650.0274 | P52: =OFFSET(Loans1!$E$9,COLUMN(P51)-COLUMN($B51)-ROUNDDOWN((COLUMN(P51)-COLUMN($B51))/13,0),0,1,1) -> 9629.480928 | Q52: =OFFSET(Loans1!$E$9,COLUMN(Q51)-COLUMN($B51)-ROUNDDOWN((COLUMN(Q51)-COLUMN($B51))/13,0),0,1,1) -> 9574.855267 | R52: =OFFSET(Loans1!$E$9,COLUMN(R51)-COLUMN($B51)-ROUNDDOWN((COLUMN(R51)-COLUMN($B51))/13,0),0,1,1) -> 9519.763012 | S52: =OFFSET(Loans1!$E$9,COLUMN(S51)-COLUMN($B51)-ROUNDDOWN((COLUMN(S51)-COLUMN($B51))/13,0),0,1,1) -> 9464.200178 | T52: =OFFSET(Loans1!$E$9,COLUMN(T51)-COLUMN($B51)-ROUNDDOWN((COLUMN(T51)-COLUMN($B51))/13,0),0,1,1) -> 9408.162744 | U52: =OFFSET(Loans1!$E$9,COLUMN(U51)-COLUMN($B51)-ROUNDDOWN((COLUMN(U51)-COLUMN($B51))/13,0),0,1,1) -> 9351.646657 | V52: =OFFSET(Loans1!$E$9,COLUMN(V51)-COLUMN($B51)-ROUNDDOWN((COLUMN(V51)-COLUMN($B51))/13,0),0,1,1) -> 9294.647829 | W52: =OFFSET(Loans1!$E$9,COLUMN(W51)-COLUMN($B51)-ROUNDDOWN((COLUMN(W51)-COLUMN($B51))/13,0),0,1,1) -> 9237.162135 | X52: =OFFSET(Loans1!$E$9,COLUMN(X51)-COLUMN($B51)-ROUNDDOWN((COLUMN(X51)-COLUMN($B51))/13,0),0,1,1) -> 9179.185418 | Y52: =OFFSET(Loans1!$E$9,COLUMN(Y51)-COLUMN($B51)-ROUNDDOWN((COLUMN(Y51)-COLUMN($B51))/13,0),0,1,1) -> 9120.713483 | Z52: =OFFSET(Loans1!$E$9,COLUMN(Z51)-COLUMN($B51)-ROUNDDOWN((COLUMN(Z51)-COLUMN($B51))/13,0),0,1,1) -> 9061.742101 | AA52: =OFFSET(Loans1!$E$9,COLUMN(AA51)-COLUMN($B51)-ROUNDDOWN((COLUMN(AA51)-COLUMN($B51))/13,0),0,1,1) -> 9002.267004 | AB52: =SUM(P52:AA52) -> 111843.8268 | AC52: =OFFSET(Loans1!$E$9,COLUMN(AC51)-COLUMN($B51)-ROUNDDOWN((COLUMN(AC51)-COLUMN($B51))/13,0),0,1,1) -> 8942.283891 | AD52: =OFFSET(Loans1!$E$9,COLUMN(AD51)-COLUMN($B51)-ROUNDDOWN((COLUMN(AD51)-COLUMN($B51))/13,0),0,1,1) -> 8881.788423 | AE52: =OFFSET(Loans1!$E$9,COLUMN(AE51)-COLUMN($B51)-ROUNDDOWN((COLUMN(AE51)-COLUMN($B51))/13,0),0,1,1) -> 8820.776222 | AF52: =OFFSET(Loans1!$E$9,COLUMN(AF51)-COLUMN($B51)-ROUNDDOWN((COLUMN(AF51)-COLUMN($B51))/13,0),0,1,1) -> 8759.242875 | AG52: =OFFSET(Loans1!$E$9,COLUMN(AG51)-COLUMN($B51)-ROUNDDOWN((COLUMN(AG51)-COLUMN($B51))/13,0),0,1,1) -> 8697.183931 | AH52: =OFFSET(Loans1!$E$9,COLUMN(AH51)-COLUMN($B51)-ROUNDDOWN((COLUMN(AH51)-COLUMN($B51))/13,0),0,1,1) -> 8634.5949 | AI52: =OFFSET(Loans1!$E$9,COLUMN(AI51)-COLUMN($B51)-ROUNDDOWN((COLUMN(AI51)-COLUMN($B51))/13,0),0,1,1) -> 8571.471255 | AJ52: =OFFSET(Loans1!$E$9,COLUMN(AJ51)-COLUMN($B51)-ROUNDDOWN((COLUMN(AJ51)-COLUMN($B51))/13,0),0,1,1) -> 8507.808428 | AK52: =OFFSET(Loans1!$E$9,COLUMN(AK51)-COLUMN($B51)-ROUNDDOWN((COLUMN(AK51)-COLUMN($B51))/13,0),0,1,1) -> 8443.601815 | AL52: =OFFSET(Loans1!$E$9,COLUMN(AL51)-COLUMN($B51)-ROUNDDOWN((COLUMN(AL51)-COLUMN($B51))/13,0),0,1,1) -> 8378.84677 | AM52: =OFFSET(Loans1!$E$9,COLUMN(AM51)-COLUMN($B51)-ROUNDDOWN((COLUMN(AM51)-COLUMN($B51))/13,0),0,1,1) -> 8313.538609 | AN52: =OFFSET(Loans1!$E$9,COLUMN(AN51)-COLUMN($B51)-ROUNDDOWN((COLUMN(AN51)-COLUMN($B51))/13,0),0,1,1) -> 8247.672608 | AO52: =SUM(AC52:AN52) -> 103198.8097
A53: INT | B53: Interest - Loans 2 | C53: =OFFSET(Loans2!$E$9,COLUMN(C52)-COLUMN($B52)-ROUNDDOWN((COLUMN(C52)-COLUMN($B52))/13,0),0,1,1) -> 3854.166667 | D53: =OFFSET(Loans2!$E$9,COLUMN(D52)-COLUMN($B52)-ROUNDDOWN((COLUMN(D52)-COLUMN($B52))/13,0),0,1,1) -> 3826.910436 | E53: =OFFSET(Loans2!$E$9,COLUMN(E52)-COLUMN($B52)-ROUNDDOWN((COLUMN(E52)-COLUMN($B52))/13,0),0,1,1) -> 3799.444106 | F53: =OFFSET(Loans2!$E$9,COLUMN(F52)-COLUMN($B52)-ROUNDDOWN((COLUMN(F52)-COLUMN($B52))/13,0),0,1,1) -> 3771.766055 | G53: =OFFSET(Loans2!$E$9,COLUMN(G52)-COLUMN($B52)-ROUNDDOWN((COLUMN(G52)-COLUMN($B52))/13,0),0,1,1) -> 3743.874654 | H53: =OFFSET(Loans2!$E$9,COLUMN(H52)-COLUMN($B52)-ROUNDDOWN((COLUMN(H52)-COLUMN($B52))/13,0),0,1,1) -> 4486.601589 | I53: =OFFSET(Loans2!$E$9,COLUMN(I52)-COLUMN($B52)-ROUNDDOWN((COLUMN(I52)-COLUMN($B52))/13,0),0,1,1) -> 4452.827291 | J53: =OFFSET(Loans2!$E$9,COLUMN(J52)-COLUMN($B52)-ROUNDDOWN((COLUMN(J52)-COLUMN($B52))/13,0),0,1,1) -> 4418.79265 | K53: =OFFSET(Loans2!$E$9,COLUMN(K52)-COLUMN($B52)-ROUNDDOWN((COLUMN(K52)-COLUMN($B52))/13,0),0,1,1) -> 4384.495658 | L53: =OFFSET(Loans2!$E$9,COLUMN(L52)-COLUMN($B52)-ROUNDDOWN((COLUMN(L52)-COLUMN($B52))/13,0),0,1,1) -> 4349.934294 | M53: =OFFSET(Loans2!$E$9,COLUMN(M52)-COLUMN($B52)-ROUNDDOWN((COLUMN(M52)-COLUMN($B52))/13,0),0,1,1) -> 4315.106519 | N53: =OFFSET(Loans2!$E$9,COLUMN(N52)-COLUMN($B52)-ROUNDDOWN((COLUMN(N52)-COLUMN($B52))/13,0),0,1,1) -> 4280.010281 | O53: =SUM(C53:N53) -> 49683.9302 | P53: =OFFSET(Loans2!$E$9,COLUMN(P52)-COLUMN($B52)-ROUNDDOWN((COLUMN(P52)-COLUMN($B52))/13,0),0,1,1) -> 4244.643508 | Q53: =OFFSET(Loans2!$E$9,COLUMN(Q52)-COLUMN($B52)-ROUNDDOWN((COLUMN(Q52)-COLUMN($B52))/13,0),0,1,1) -> 4209.004117 | R53: =OFFSET(Loans2!$E$9,COLUMN(R52)-COLUMN($B52)-ROUNDDOWN((COLUMN(R52)-COLUMN($B52))/13,0),0,1,1) -> 4173.090006 | S53: =OFFSET(Loans2!$E$9,COLUMN(S52)-COLUMN($B52)-ROUNDDOWN((COLUMN(S52)-COLUMN($B52))/13,0),0,1,1) -> 4136.899056 | T53: =OFFSET(Loans2!$E$9,COLUMN(T52)-COLUMN($B52)-ROUNDDOWN((COLUMN(T52)-COLUMN($B52))/13,0),0,1,1) -> 4100.429135 | U53: =OFFSET(Loans2!$E$9,COLUMN(U52)-COLUMN($B52)-ROUNDDOWN((COLUMN(U52)-COLUMN($B52))/13,0),0,1,1) -> 4063.678091 | V53: =OFFSET(Loans2!$E$9,COLUMN(V52)-COLUMN($B52)-ROUNDDOWN((COLUMN(V52)-COLUMN($B52))/13,0),0,1,1) -> 4026.643758 | W53: =OFFSET(Loans2!$E$9,COLUMN(W52)-COLUMN($B52)-ROUNDDOWN((COLUMN(W52)-COLUMN($B52))/13,0),0,1,1) -> 3989.323952 | X53: =OFFSET(Loans2!$E$9,COLUMN(X52)-COLUMN($B52)-ROUNDDOWN((COLUMN(X52)-COLUMN($B52))/13,0),0,1,1) -> 3951.716473 | Y53: =OFFSET(Loans2!$E$9,COLUMN(Y52)-COLUMN($B52)-ROUNDDOWN((COLUMN(Y52)-COLUMN($B52))/13,0),0,1,1) -> 3913.819102 | Z53: =OFFSET(Loans2!$E$9,COLUMN(Z52)-COLUMN($B52)-ROUNDDOWN((COLUMN(Z52)-COLUMN($B52))/13,0),0,1,1) -> 3875.629606 | AA53: =OFFSET(Loans2!$E$9,COLUMN(AA52)-COLUMN($B52)-ROUNDDOWN((COLUMN(AA52)-COLUMN($B52))/13,0),0,1,1) -> 3837.145733 | AB53: =SUM(P53:AA53) -> 48522.02254 | AC53: =OFFSET(Loans2!$E$9,COLUMN(AC52)-COLUMN($B52)-ROUNDDOWN((COLUMN(AC52)-COLUMN($B52))/13,0),0,1,1) -> 3798.365213 | AD53: =OFFSET(Loans2!$E$9,COLUMN(AD52)-COLUMN($B52)-ROUNDDOWN((COLUMN(AD52)-COLUMN($B52))/13,0),0,1,1) -> 3759.28576 | AE53: =OFFSET(Loans2!$E$9,COLUMN(AE52)-COLUMN($B52)-ROUNDDOWN((COLUMN(AE52)-COLUMN($B52))/13,0),0,1,1) -> 3719.90507 | AF53: =OFFSET(Loans2!$E$9,COLUMN(AF52)-COLUMN($B52)-ROUNDDOWN((COLUMN(AF52)-COLUMN($B52))/13,0),0,1,1) -> 3680.22082 | AG53: =OFFSET(Loans2!$E$9,COLUMN(AG52)-COLUMN($B52)-ROUNDDOWN((COLUMN(AG52)-COLUMN($B52))/13,0),0,1,1) -> 3640.23067 | AH53: =OFFSET(Loans2!$E$9,COLUMN(AH52)-COLUMN($B52)-ROUNDDOWN((COLUMN(AH52)-COLUMN($B52))/13,0),0,1,1) -> 3599.932263 | AI53: =OFFSET(Loans2!$E$9,COLUMN(AI52)-COLUMN($B52)-ROUNDDOWN((COLUMN(AI52)-COLUMN($B52))/13,0),0,1,1) -> 3559.323223 | AJ53: =OFFSET(Loans2!$E$9,COLUMN(AJ52)-COLUMN($B52)-ROUNDDOWN((COLUMN(AJ52)-COLUMN($B52))/13,0),0,1,1) -> 3518.401154 | AK53: =OFFSET(Loans2!$E$9,COLUMN(AK52)-COLUMN($B52)-ROUNDDOWN((COLUMN(AK52)-COLUMN($B52))/13,0),0,1,1) -> 3477.163645 | AL53: =OFFSET(Loans2!$E$9,COLUMN(AL52)-COLUMN($B52)-ROUNDDOWN((COLUMN(AL52)-COLUMN($B52))/13,0),0,1,1) -> 3435.608263 | AM53: =OFFSET(Loans2!$E$9,COLUMN(AM52)-COLUMN($B52)-ROUNDDOWN((COLUMN(AM52)-COLUMN($B52))/13,0),0,1,1) -> 3393.732559 | AN53: =OFFSET(Loans2!$E$9,COLUMN(AN52)-COLUMN($B52)-ROUNDDOWN((COLUMN(AN52)-COLUMN($B52))/13,0),0,1,1) -> 3351.534062 | AO53: =SUM(AC53:AN53) -> 42933.7027
A54: INT | B54: Interest - Loans 3 | C54: =OFFSET(Loans3!$E$9,COLUMN(C53)-COLUMN($B53)-ROUNDDOWN((COLUMN(C53)-COLUMN($B53))/13,0),0,1,1) -> 0 | D54: =OFFSET(Loans3!$E$9,COLUMN(D53)-COLUMN($B53)-ROUNDDOWN((COLUMN(D53)-COLUMN($B53))/13,0),0,1,1) -> 0 | E54: =OFFSET(Loans3!$E$9,COLUMN(E53)-COLUMN($B53)-ROUNDDOWN((COLUMN(E53)-COLUMN($B53))/13,0),0,1,1) -> 0 | F54: =OFFSET(Loans3!$E$9,COLUMN(F53)-COLUMN($B53)-ROUNDDOWN((COLUMN(F53)-COLUMN($B53))/13,0),0,1,1) -> 0 | G54: =OFFSET(Loans3!$E$9,COLUMN(G53)-COLUMN($B53)-ROUNDDOWN((COLUMN(G53)-COLUMN($B53))/13,0),0,1,1) -> 0 | H54: =OFFSET(Loans3!$E$9,COLUMN(H53)-COLUMN($B53)-ROUNDDOWN((COLUMN(H53)-COLUMN($B53))/13,0),0,1,1) -> 0 | I54: =OFFSET(Loans3!$E$9,COLUMN(I53)-COLUMN($B53)-ROUNDDOWN((COLUMN(I53)-COLUMN($B53))/13,0),0,1,1) -> 0 | J54: =OFFSET(Loans3!$E$9,COLUMN(J53)-COLUMN($B53)-ROUNDDOWN((COLUMN(J53)-COLUMN($B53))/13,0),0,1,1) -> 0 | K54: =OFFSET(Loans3!$E$9,COLUMN(K53)-COLUMN($B53)-ROUNDDOWN((COLUMN(K53)-COLUMN($B53))/13,0),0,1,1) -> 0 | L54: =OFFSET(Loans3!$E$9,COLUMN(L53)-COLUMN($B53)-ROUNDDOWN((COLUMN(L53)-COLUMN($B53))/13,0),0,1,1) -> 0 | M54: =OFFSET(Loans3!$E$9,COLUMN(M53)-COLUMN($B53)-ROUNDDOWN((COLUMN(M53)-COLUMN($B53))/13,0),0,1,1) -> 2500 | N54: =OFFSET(Loans3!$E$9,COLUMN(N53)-COLUMN($B53)-ROUNDDOWN((COLUMN(N53)-COLUMN($B53))/13,0),0,1,1) -> 2469.796821 | O54: 4969.796821 | P54: =OFFSET(Loans3!$E$9,COLUMN(P53)-COLUMN($B53)-ROUNDDOWN((COLUMN(P53)-COLUMN($B53))/13,0),0,1,1) -> 2439.279026 | Q54: =OFFSET(Loans3!$E$9,COLUMN(Q53)-COLUMN($B53)-ROUNDDOWN((COLUMN(Q53)-COLUMN($B53))/13,0),0,1,1) -> 2408.443337 | R54: =OFFSET(Loans3!$E$9,COLUMN(R53)-COLUMN($B53)-ROUNDDOWN((COLUMN(R53)-COLUMN($B53))/13,0),0,1,1) -> 2377.286443 | S54: =OFFSET(Loans3!$E$9,COLUMN(S53)-COLUMN($B53)-ROUNDDOWN((COLUMN(S53)-COLUMN($B53))/13,0),0,1,1) -> 2345.804997 | T54: =OFFSET(Loans3!$E$9,COLUMN(T53)-COLUMN($B53)-ROUNDDOWN((COLUMN(T53)-COLUMN($B53))/13,0),0,1,1) -> 2313.995621 | U54: =OFFSET(Loans3!$E$9,COLUMN(U53)-COLUMN($B53)-ROUNDDOWN((COLUMN(U53)-COLUMN($B53))/13,0),0,1,1) -> 5406.854896 | V54: =OFFSET(Loans3!$E$9,COLUMN(V53)-COLUMN($B53)-ROUNDDOWN((COLUMN(V53)-COLUMN($B53))/13,0),0,1,1) -> 5336.625399 | W54: =OFFSET(Loans3!$E$9,COLUMN(W53)-COLUMN($B53)-ROUNDDOWN((COLUMN(W53)-COLUMN($B53))/13,0),0,1,1) -> 5265.664344 | X54: =OFFSET(Loans3!$E$9,COLUMN(X53)-COLUMN($B53)-ROUNDDOWN((COLUMN(X53)-COLUMN($B53))/13,0),0,1,1) -> 5193.964112 | Y54: =OFFSET(Loans3!$E$9,COLUMN(Y53)-COLUMN($B53)-ROUNDDOWN((COLUMN(Y53)-COLUMN($B53))/13,0),0,1,1) -> 5121.517002 | Z54: =OFFSET(Loans3!$E$9,COLUMN(Z53)-COLUMN($B53)-ROUNDDOWN((COLUMN(Z53)-COLUMN($B53))/13,0),0,1,1) -> 5048.315235 | AA54: =OFFSET(Loans3!$E$9,COLUMN(AA53)-COLUMN($B53)-ROUNDDOWN((COLUMN(AA53)-COLUMN($B53))/13,0),0,1,1) -> 4974.35095 | AB54: 48232.10136 | AC54: =OFFSET(Loans3!$E$9,COLUMN(AC53)-COLUMN($B53)-ROUNDDOWN((COLUMN(AC53)-COLUMN($B53))/13,0),0,1,1) -> 4899.616203 | AD54: =OFFSET(Loans3!$E$9,COLUMN(AD53)-COLUMN($B53)-ROUNDDOWN((COLUMN(AD53)-COLUMN($B53))/13,0),0,1,1) -> 6699.102969 | AE54: =OFFSET(Loans3!$E$9,COLUMN(AE53)-COLUMN($B53)-ROUNDDOWN((COLUMN(AE53)-COLUMN($B53))/13,0),0,1,1) -> 6600.150755 | AF54: =OFFSET(Loans3!$E$9,COLUMN(AF53)-COLUMN($B53)-ROUNDDOWN((COLUMN(AF53)-COLUMN($B53))/13,0),0,1,1) -> 6500.167789 | AG54: =OFFSET(Loans3!$E$9,COLUMN(AG53)-COLUMN($B53)-ROUNDDOWN((COLUMN(AG53)-COLUMN($B53))/13,0),0,1,1) -> 6399.143333 | AH54: =OFFSET(Loans3!$E$9,COLUMN(AH53)-COLUMN($B53)-ROUNDDOWN((COLUMN(AH53)-COLUMN($B53))/13,0),0,1,1) -> 6297.066539 | AI54: =OFFSET(Loans3!$E$9,COLUMN(AI53)-COLUMN($B53)-ROUNDDOWN((COLUMN(AI53)-COLUMN($B53))/13,0),0,1,1) -> 6193.926446 | AJ54: =OFFSET(Loans3!$E$9,COLUMN(AJ53)-COLUMN($B53)-ROUNDDOWN((COLUMN(AJ53)-COLUMN($B53))/13,0),0,1,1) -> 6089.711976 | AK54: =OFFSET(Loans3!$E$9,COLUMN(AK53)-COLUMN($B53)-ROUNDDOWN((COLUMN(AK53)-COLUMN($B53))/13,0),0,1,1) -> 5984.411939 | AL54: =OFFSET(Loans3!$E$9,COLUMN(AL53)-COLUMN($B53)-ROUNDDOWN((COLUMN(AL53)-COLUMN($B53))/13,0),0,1,1) -> 5878.015027 | AM54: =OFFSET(Loans3!$E$9,COLUMN(AM53)-COLUMN($B53)-ROUNDDOWN((COLUMN(AM53)-COLUMN($B53))/13,0),0,1,1) -> 5770.509814 | AN54: =OFFSET(Loans3!$E$9,COLUMN(AN53)-COLUMN($B53)-ROUNDDOWN((COLUMN(AN53)-COLUMN($B53))/13,0),0,1,1) -> 5661.884754 | AO54: 72973.70754
A55: INT | B55: Interest - Leases | C55: =OFFSET(Leases!$E$9,COLUMN(C54)-COLUMN($B54)-ROUNDDOWN((COLUMN(C54)-COLUMN($B54))/13,0),0,1,1) -> 4072.916667 | D55: =OFFSET(Leases!$E$9,COLUMN(D54)-COLUMN($B54)-ROUNDDOWN((COLUMN(D54)-COLUMN($B54))/13,0),0,1,1) -> 4005.690426 | E55: =OFFSET(Leases!$E$9,COLUMN(E54)-COLUMN($B54)-ROUNDDOWN((COLUMN(E54)-COLUMN($B54))/13,0),0,1,1) -> 3937.819933 | F55: =OFFSET(Leases!$E$9,COLUMN(F54)-COLUMN($B54)-ROUNDDOWN((COLUMN(F54)-COLUMN($B54))/13,0),0,1,1) -> 3869.299015 | G55: =OFFSET(Leases!$E$9,COLUMN(G54)-COLUMN($B54)-ROUNDDOWN((COLUMN(G54)-COLUMN($B54))/13,0),0,1,1) -> 3800.121438 | H55: =OFFSET(Leases!$E$9,COLUMN(H54)-COLUMN($B54)-ROUNDDOWN((COLUMN(H54)-COLUMN($B54))/13,0),0,1,1) -> 3730.280909 | I55: =OFFSET(Leases!$E$9,COLUMN(I54)-COLUMN($B54)-ROUNDDOWN((COLUMN(I54)-COLUMN($B54))/13,0),0,1,1) -> 3659.771075 | J55: =OFFSET(Leases!$E$9,COLUMN(J54)-COLUMN($B54)-ROUNDDOWN((COLUMN(J54)-COLUMN($B54))/13,0),0,1,1) -> 3588.585522 | K55: =OFFSET(Leases!$E$9,COLUMN(K54)-COLUMN($B54)-ROUNDDOWN((COLUMN(K54)-COLUMN($B54))/13,0),0,1,1) -> 3516.717774 | L55: =OFFSET(Leases!$E$9,COLUMN(L54)-COLUMN($B54)-ROUNDDOWN((COLUMN(L54)-COLUMN($B54))/13,0),0,1,1) -> 3444.161294 | M55: =OFFSET(Leases!$E$9,COLUMN(M54)-COLUMN($B54)-ROUNDDOWN((COLUMN(M54)-COLUMN($B54))/13,0),0,1,1) -> 3370.90948 | N55: =OFFSET(Leases!$E$9,COLUMN(N54)-COLUMN($B54)-ROUNDDOWN((COLUMN(N54)-COLUMN($B54))/13,0),0,1,1) -> 3296.95567 | O55: 44293.2292 | P55: =OFFSET(Leases!$E$9,COLUMN(P54)-COLUMN($B54)-ROUNDDOWN((COLUMN(P54)-COLUMN($B54))/13,0),0,1,1) -> 3222.293136 | Q55: =OFFSET(Leases!$E$9,COLUMN(Q54)-COLUMN($B54)-ROUNDDOWN((COLUMN(Q54)-COLUMN($B54))/13,0),0,1,1) -> 3146.915086 | R55: =OFFSET(Leases!$E$9,COLUMN(R54)-COLUMN($B54)-ROUNDDOWN((COLUMN(R54)-COLUMN($B54))/13,0),0,1,1) -> 3070.814663 | S55: =OFFSET(Leases!$E$9,COLUMN(S54)-COLUMN($B54)-ROUNDDOWN((COLUMN(S54)-COLUMN($B54))/13,0),0,1,1) -> 2993.984945 | T55: =OFFSET(Leases!$E$9,COLUMN(T54)-COLUMN($B54)-ROUNDDOWN((COLUMN(T54)-COLUMN($B54))/13,0),0,1,1) -> 2916.418941 | U55: =OFFSET(Leases!$E$9,COLUMN(U54)-COLUMN($B54)-ROUNDDOWN((COLUMN(U54)-COLUMN($B54))/13,0),0,1,1) -> 2838.109597 | V55: =OFFSET(Leases!$E$9,COLUMN(V54)-COLUMN($B54)-ROUNDDOWN((COLUMN(V54)-COLUMN($B54))/13,0),0,1,1) -> 2759.049788 | W55: =OFFSET(Leases!$E$9,COLUMN(W54)-COLUMN($B54)-ROUNDDOWN((COLUMN(W54)-COLUMN($B54))/13,0),0,1,1) -> 2679.232323 | X55: =OFFSET(Leases!$E$9,COLUMN(X54)-COLUMN($B54)-ROUNDDOWN((COLUMN(X54)-COLUMN($B54))/13,0),0,1,1) -> 2598.64994 | Y55: =OFFSET(Leases!$E$9,COLUMN(Y54)-COLUMN($B54)-ROUNDDOWN((COLUMN(Y54)-COLUMN($B54))/13,0),0,1,1) -> 2517.295309 | Z55: =OFFSET(Leases!$E$9,COLUMN(Z54)-COLUMN($B54)-ROUNDDOWN((COLUMN(Z54)-COLUMN($B54))/13,0),0,1,1) -> 2435.16103 | AA55: =OFFSET(Leases!$E$9,COLUMN(AA54)-COLUMN($B54)-ROUNDDOWN((COLUMN(AA54)-COLUMN($B54))/13,0),0,1,1) -> 2352.239631 | AB55: 33530.16439 | AC55: =OFFSET(Leases!$E$9,COLUMN(AC54)-COLUMN($B54)-ROUNDDOWN((COLUMN(AC54)-COLUMN($B54))/13,0),0,1,1) -> 2268.523568 | AD55: =OFFSET(Leases!$E$9,COLUMN(AD54)-COLUMN($B54)-ROUNDDOWN((COLUMN(AD54)-COLUMN($B54))/13,0),0,1,1) -> 2184.005226 | AE55: =OFFSET(Leases!$E$9,COLUMN(AE54)-COLUMN($B54)-ROUNDDOWN((COLUMN(AE54)-COLUMN($B54))/13,0),0,1,1) -> 2098.676917 | AF55: =OFFSET(Leases!$E$9,COLUMN(AF54)-COLUMN($B54)-ROUNDDOWN((COLUMN(AF54)-COLUMN($B54))/13,0),0,1,1) -> 2012.530879 | AG55: =OFFSET(Leases!$E$9,COLUMN(AG54)-COLUMN($B54)-ROUNDDOWN((COLUMN(AG54)-COLUMN($B54))/13,0),0,1,1) -> 1925.559274 | AH55: =OFFSET(Leases!$E$9,COLUMN(AH54)-COLUMN($B54)-ROUNDDOWN((COLUMN(AH54)-COLUMN($B54))/13,0),0,1,1) -> 1837.754191 | AI55: =OFFSET(Leases!$E$9,COLUMN(AI54)-COLUMN($B54)-ROUNDDOWN((COLUMN(AI54)-COLUMN($B54))/13,0),0,1,1) -> 1749.107643 | AJ55: =OFFSET(Leases!$E$9,COLUMN(AJ54)-COLUMN($B54)-ROUNDDOWN((COLUMN(AJ54)-COLUMN($B54))/13,0),0,1,1) -> 1659.611565 | AK55: =OFFSET(Leases!$E$9,COLUMN(AK54)-COLUMN($B54)-ROUNDDOWN((COLUMN(AK54)-COLUMN($B54))/13,0),0,1,1) -> 1569.257817 | AL55: =OFFSET(Leases!$E$9,COLUMN(AL54)-COLUMN($B54)-ROUNDDOWN((COLUMN(AL54)-COLUMN($B54))/13,0),0,1,1) -> 1478.038178 | AM55: =OFFSET(Leases!$E$9,COLUMN(AM54)-COLUMN($B54)-ROUNDDOWN((COLUMN(AM54)-COLUMN($B54))/13,0),0,1,1) -> 1385.944352 | AN55: =OFFSET(Leases!$E$9,COLUMN(AN54)-COLUMN($B54)-ROUNDDOWN((COLUMN(AN54)-COLUMN($B54))/13,0),0,1,1) -> 1292.967959 | AO55: 21461.97757
B56: Total Interest Paid | C56: =SUM(C52:C55) -> 18177.08333 | D56: =SUM(D52:D55) -> 18033.27547 | E56: 17888.19193 | F56: 17741.82133 | G56: 17594.15216 | H56: 18216.00618 | I56: 18060.25375 | J56: 17903.12564 | K56: 17744.6096 | L56: 17584.69328 | M56: 19923.36424 | N56: 19730.40672 | O56: 218596.9836 | P56: 19535.6966 | Q56: 19339.21781 | R56: 19140.95412 | S56: 18940.88918 | T56: 18739.00644 | U56: 21660.28924 | V56: 21416.96677 | W56: 21171.38275 | X56: 20923.51594 | Y56: 20673.3449 | Z56: 20420.84797 | AA56: 20166.00332 | AB56: 242128.115 | AC56: 19908.78888 | AD56: 21524.18238 | AE56: 21239.50896 | AF56: 20952.16236 | AG56: 20662.11721 | AH56: 20369.34789 | AI56: 20073.82857 | AJ56: 19775.53312 | AK56: 19474.43522 | AL56: 19170.50824 | AM56: 18863.72533 | AN56: 18554.05938 | AO56: 240568.1975
B57: Profit / (Loss) before tax | C57: =SUM(C50,-C56) -> 56047.91667 | D57: =SUM(D50,-D56) -> 54301.72453 | E57: 62326.80807 | F57: -4406.821327 | G57: 49850.84784 | H57: 48478.99382 | I57: 65784.74625 | J57: 17691.87436 | K57: 36162.3904 | L57: 33651.30672 | M57: 77747.63576 | N57: 60796.59328 | O57: 558434.0164 | P57: 63815.3034 | Q57: 39952.78219 | R57: 60353.04588 | S57: 51222.11082 | T57: 68387.99356 | U57: 22905.71076 | V57: 64781.03323 | W57: 43930.61725 | X57: 70781.48406 | Y57: -25898.3449 | Z57: 50028.15203 | AA57: 68166.99668 | AB57: 578426.885 | AC57: 64786.21112 | AD57: 19525.81762 | AE57: 62815.49104 | AF57: 53142.83764 | AG57: -15417.11721 | AH57: 70491.65211 | AI57: 47690.17143 | AJ57: 80557.46688 | AK57: 61704.56478 | AL57: 33488.49176 | AM57: 75080.27467 | AN57: 64827.94062 | AO57: 618693.8025
A58: TAX | B58: Taxation | C58: =IF(SUM($C57:C57)-Assumptions!$C$61<0,0,(SUM($C57:C57)-Assumptions!$C$61)*Assumptions!$C$60) -> 15693.41667 | D58: =IF(SUM($C57:D57)-Assumptions!$C$61<0,-SUM($C58:C58),((SUM($C57:D57)-Assumptions!$C$61)*Assumptions!$C$60)-SUM($C58:C58)) -> 15204.48287 | E58: =IF(SUM($C57:E57)-Assumptions!$C$61<0,-SUM($C58:D58),((SUM($C57:E57)-Assumptions!$C$61)*Assumptions!$C$60)-SUM($C58:D58)) -> 17451.50626 | F58: =IF(SUM($C57:F57)-Assumptions!$C$61<0,-SUM($C58:E58),((SUM($C57:F57)-Assumptions!$C$61)*Assumptions!$C$60)-SUM($C58:E58)) -> -1233.909972 | G58: =IF(SUM($C57:G57)-Assumptions!$C$61<0,-SUM($C58:F58),((SUM($C57:G57)-Assumptions!$C$61)*Assumptions!$C$60)-SUM($C58:F58)) -> 13958.23739 | H58: =IF(SUM($C57:H57)-Assumptions!$C$61<0,-SUM($C58:G58),((SUM($C57:H57)-Assumptions!$C$61)*Assumptions!$C$60)-SUM($C58:G58)) -> 13574.11827 | I58: =IF(SUM($C57:I57)-Assumptions!$C$61<0,-SUM($C58:H58),((SUM($C57:I57)-Assumptions!$C$61)*Assumptions!$C$60)-SUM($C58:H58)) -> 18419.72895 | J58: =IF(SUM($C57:J57)-Assumptions!$C$61<0,-SUM($C58:I58),((SUM($C57:J57)-Assumptions!$C$61)*Assumptions!$C$60)-SUM($C58:I58)) -> 4953.724822 | K58: =IF(SUM($C57:K57)-Assumptions!$C$61<0,-SUM($C58:J58),((SUM($C57:K57)-Assumptions!$C$61)*Assumptions!$C$60)-SUM($C58:J58)) -> 10125.46931 | L58: =IF(SUM($C57:L57)-Assumptions!$C$61<0,-SUM($C58:K58),((SUM($C57:L57)-Assumptions!$C$61)*Assumptions!$C$60)-SUM($C58:K58)) -> 9422.365881 | M58: =IF(SUM($C57:M57)-Assumptions!$C$61<0,-SUM($C58:L58),((SUM($C57:M57)-Assumptions!$C$61)*Assumptions!$C$60)-SUM($C58:L58)) -> 21769.33801 | N58: =IF(SUM($C57:N57)-Assumptions!$C$61<0,-SUM($C58:M58),((SUM($C57:N57)-Assumptions!$C$61)*Assumptions!$C$60)-SUM($C58:M58)) -> 17023.04612 | O58: =SUM(C58:N58) -> 156361.5246 | P58: =IF(SUM($O57:P57)-Assumptions!$C$61<0,-SUM($O$58:O$58),((SUM($O57:P57)-Assumptions!$C$61)*Assumptions!$C$60)-SUM($O$58:O$58)) -> 17868.28495 | Q58: =IF(SUM($O57:Q57)-Assumptions!$C$61<0,-SUM($O$58:P$58),((SUM($O57:Q57)-Assumptions!$C$61)*Assumptions!$C$60)-SUM($O$58:P$58)) -> 11186.77901 | R58: =IF(SUM($O57:R57)-Assumptions!$C$61<0,-SUM($O$58:Q$58),((SUM($O57:R57)-Assumptions!$C$61)*Assumptions!$C$60)-SUM($O$58:Q$58)) -> 16898.85285 | S58: =IF(SUM($O57:S57)-Assumptions!$C$61<0,-SUM($O$58:R$58),((SUM($O57:S57)-Assumptions!$C$61)*Assumptions!$C$60)-SUM($O$58:R$58)) -> 14342.19103 | T58: =IF(SUM($O57:T57)-Assumptions!$C$61<0,-SUM($O$58:S$58),((SUM($O57:T57)-Assumptions!$C$61)*Assumptions!$C$60)-SUM($O$58:S$58)) -> 19148.6382 | U58: =IF(SUM($O57:U57)-Assumptions!$C$61<0,-SUM($O$58:T$58),((SUM($O57:U57)-Assumptions!$C$61)*Assumptions!$C$60)-SUM($O$58:T$58)) -> 6413.599013 | V58: =IF(SUM($O57:V57)-Assumptions!$C$61<0,-SUM($O$58:U$58),((SUM($O57:V57)-Assumptions!$C$61)*Assumptions!$C$60)-SUM($O$58:U$58)) -> 18138.6893 | W58: =IF(SUM($O57:W57)-Assumptions!$C$61<0,-SUM($O$58:V$58),((SUM($O57:W57)-Assumptions!$C$61)*Assumptions!$C$60)-SUM($O$58:V$58)) -> 12300.57283 | X58: =IF(SUM($O57:X57)-Assumptions!$C$61<0,-SUM($O$58:W$58),((SUM($O57:X57)-Assumptions!$C$61)*Assumptions!$C$60)-SUM($O$58:W$58)) -> 19818.81554 | Y58: =IF(SUM($O57:Y57)-Assumptions!$C$61<0,-SUM($O$58:X$58),((SUM($O57:Y57)-Assumptions!$C$61)*Assumptions!$C$60)-SUM($O$58:X$58)) -> -7251.536571 | Z58: =IF(SUM($O57:Z57)-Assumptions!$C$61<0,-SUM($O$58:Y$58),((SUM($O57:Z57)-Assumptions!$C$61)*Assumptions!$C$60)-SUM($O$58:Y$58)) -> 14007.88257 | AA58: =IF(SUM($O57:AA57)-Assumptions!$C$61<0,-SUM($O$58:Z$58),((SUM($O57:AA57)-Assumptions!$C$61)*Assumptions!$C$60)-SUM($O$58:Z$58)) -> 19086.75907 | AB58: =SUM(P58:AA58) -> 161959.5278 | AC58: =IF(SUM($AB57:AC57)+$O$57-Assumptions!$C$61<0,-(SUM($AB$58:$AB$58)+$O$58),((SUM($AB57:AC57)+$O$57-Assumptions!$C$61)*Assumptions!$C$60)-(SUM($AB$58:AB$58)+$O$58)) -> 18140.13911 | AD58: =IF(SUM($AB57:AD57)+$O$57-Assumptions!$C$61<0,-(SUM($AB$58:$AB$58)+$O$58),((SUM($AB57:AD57)+$O$57-Assumptions!$C$61)*Assumptions!$C$60)-(SUM($AB$58:AC$58)+$O$58)) -> 5467.228934 | AE58: =IF(SUM($AB57:AE57)+$O$57-Assumptions!$C$61<0,-(SUM($AB$58:$AB$58)+$O$58),((SUM($AB57:AE57)+$O$57-Assumptions!$C$61)*Assumptions!$C$60)-(SUM($AB$58:AD$58)+$O$58)) -> 17588.33749 | AF58: =IF(SUM($AB57:AF57)+$O$57-Assumptions!$C$61<0,-(SUM($AB$58:$AB$58)+$O$58),((SUM($AB57:AF57)+$O$57-Assumptions!$C$61)*Assumptions!$C$60)-(SUM($AB$58:AE$58)+$O$58)) -> 14879.99454 | AG58: =IF(SUM($AB57:AG57)+$O$57-Assumptions!$C$61<0,-(SUM($AB$58:$AB$58)+$O$58),((SUM($AB57:AG57)+$O$57-Assumptions!$C$61)*Assumptions!$C$60)-(SUM($AB$58:AF$58)+$O$58)) -> -4316.792818 | AH58: =IF(SUM($AB57:AH57)+$O$57-Assumptions!$C$61<0,-(SUM($AB$58:$AB$58)+$O$58),((SUM($AB57:AH57)+$O$57-Assumptions!$C$61)*Assumptions!$C$60)-(SUM($AB$58:AG$58)+$O$58)) -> 19737.66259 | AI58: =IF(SUM($AB57:AI57)+$O$57-Assumptions!$C$61<0,-(SUM($AB$58:$AB$58)+$O$58),((SUM($AB57:AI57)+$O$57-Assumptions!$C$61)*Assumptions!$C$60)-(SUM($AB$58:AH$58)+$O$58)) -> 13353.248 | AJ58: =IF(SUM($AB57:AJ57)+$O$57-Assumptions!$C$61<0,-(SUM($AB$58:$AB$58)+$O$58),((SUM($AB57:AJ57)+$O$57-Assumptions!$C$61)*Assumptions!$C$60)-(SUM($AB$58:AI$58)+$O$58)) -> 22556.09073 | AK58: =IF(SUM($AB57:AK57)+$O$57-Assumptions!$C$61<0,-(SUM($AB$58:$AB$58)+$O$58),((SUM($AB57:AK57)+$O$57-Assumptions!$C$61)*Assumptions!$C$60)-(SUM($AB$58:AJ$58)+$O$58)) -> 17277.27814 | AL58: =IF(SUM($AB57:AL57)+$O$57-Assumptions!$C$61<0,-(SUM($AB$58:$AB$58)+$O$58),((SUM($AB57:AL57)+$O$57-Assumptions!$C$61)*Assumptions!$C$60)-(SUM($AB$58:AK$58)+$O$58)) -> 9376.777693 | AM58: =IF(SUM($AB57:AM57)+$O$57-Assumptions!$C$61<0,-(SUM($AB$58:$AB$58)+$O$58),((SUM($AB57:AM57)+$O$57-Assumptions!$C$61)*Assumptions!$C$60)-(SUM($AB$58:AL$58)+$O$58)) -> 21022.47691 | AN58: =IF(SUM($AB57:AN57)+$O$57-Assumptions!$C$61<0,-(SUM($AB$58:$AB$58)+$O$58),((SUM($AB57:AN57)+$O$57-Assumptions!$C$61)*Assumptions!$C$60)-(SUM($AB$58:AM$58)+$O$58)) -> 18151.82337 | AO58: =SUM(AC58:AN58) -> 173234.2647
B59: Profit / (Loss) for the year | C59: =SUM(C57,-C58) -> 40354.5 | D59: =SUM(D57,-D58) -> 39097.24166 | E59: 44875.30181 | F59: -3172.911356 | G59: 35892.61044 | H59: 34904.87555 | I59: 47365.0173 | J59: 12738.14954 | K59: 26036.92109 | L59: 24228.94084 | M59: 55978.29775 | N59: 43773.54716 | O59: 402072.4918 | P59: 45947.01845 | Q59: 28766.00318 | R59: 43454.19303 | S59: 36879.91979 | T59: 49239.35536 | U59: 16492.11175 | V59: 46642.34392 | W59: 31630.04442 | X59: 50962.66852 | Y59: -18646.80833 | Z59: 36020.26946 | AA59: 49080.23761 | AB59: 416467.3572 | AC59: 46646.07201 | AD59: 14058.58869 | AE59: 45227.15355 | AF59: 38262.8431 | AG59: -11100.32439 | AH59: 50753.98952 | AI59: 34336.92343 | AJ59: 58001.37615 | AK59: 44427.28664 | AL59: 24111.71407 | AM59: 54057.79776 | AN59: 46676.11724 | AO59: 445459.5378
A60: DIV | B60: Dividends | C60: =BalanceSheet!D79 -> 0 | D60: =BalanceSheet!E79 -> 0 | E60: =BalanceSheet!F79 -> 0 | F60: =BalanceSheet!G79 -> 0 | G60: =BalanceSheet!H79 -> 0 | H60: =BalanceSheet!I79 -> 0 | I60: =BalanceSheet!J79 -> 0 | J60: =BalanceSheet!K79 -> 0 | K60: =BalanceSheet!L79 -> 0 | L60: =BalanceSheet!M79 -> 0 | M60: =BalanceSheet!N79 -> 0 | N60: =BalanceSheet!O79 -> 0 | O60: =SUM(C60:N60) -> 0 | P60: =BalanceSheet!Q79 -> 0 | Q60: =BalanceSheet!R79 -> 0 | R60: =BalanceSheet!S79 -> 0 | S60: =BalanceSheet!T79 -> 0 | T60: =BalanceSheet!U79 -> 0 | U60: =BalanceSheet!V79 -> 0 | V60: =BalanceSheet!W79 -> 0 | W60: =BalanceSheet!X79 -> 0 | X60: =BalanceSheet!Y79 -> 0 | Y60: =BalanceSheet!Z79 -> 0 | Z60: =BalanceSheet!AA79 -> 0 | AA60: =BalanceSheet!AB79 -> 0 | AB60: =SUM(P60:AA60) -> 0 | AC60: =BalanceSheet!AD79 -> 0 | AD60: =BalanceSheet!AE79 -> 0 | AE60: =BalanceSheet!AF79 -> 0 | AF60: =BalanceSheet!AG79 -> 0 | AG60: =BalanceSheet!AH79 -> 0 | AH60: =BalanceSheet!AI79 -> 0 | AI60: =BalanceSheet!AJ79 -> 0 | AJ60: =BalanceSheet!AK79 -> 0 | AK60: =BalanceSheet!AL79 -> 0 | AL60: =BalanceSheet!AM79 -> 0 | AM60: =BalanceSheet!AN79 -> 0 | AN60: =BalanceSheet!AO79 -> 0 | AO60: =SUM(AC60:AN60) -> 0
B61: Retained earnings for the year | C61: =SUM(C59,-C60) -> 40354.5 | D61: =SUM(D59,-D60) -> 39097.24166 | E61: 44875.30181 | F61: -3172.911356 | G61: 35892.61044 | H61: 34904.87555 | I61: 47365.0173 | J61: 12738.14954 | K61: 26036.92109 | L61: 24228.94084 | M61: 55978.29775 | N61: 43773.54716 | O61: 402072.4918 | P61: 45947.01845 | Q61: 28766.00318 | R61: 43454.19303 | S61: 36879.91979 | T61: 49239.35536 | U61: 16492.11175 | V61: 46642.34392 | W61: 31630.04442 | X61: 50962.66852 | Y61: -18646.80833 | Z61: 36020.26946 | AA61: 49080.23761 | AB61: 416467.3572 | AC61: 46646.07201 | AD61: 14058.58869 | AE61: 45227.15355 | AF61: 38262.8431 | AG61: -11100.32439 | AH61: 50753.98952 | AI61: 34336.92343 | AJ61: 58001.37615 | AK61: 44427.28664 | AL61: 24111.71407 | AM61: 54057.79776 | AN61: 46676.11724 | AO61: 445459.5378
B62: Profit / (Loss) % | C62: =IF(C$7=0,0,C59/C$7) -> 0.09828178276 | D62: 0.09304436379 | E62: 0.1029250042 | F62: -0.007159096019 | G62: 0.08105828916 | H62: 0.07879204414 | I62: 0.1096412437 | J62: 0.02876078018 | K62: 0.05783412059 | L62: 0.06469677126 | M62: 0.1202283027 | N62: 0.1003060201 | O62: 0.07736031319 | P62: 0.09962493159 | Q62: 0.06301424574 | R62: 0.09716948352 | S62: 0.07910750706 | T62: 0.1028605711 | U62: 0.03538168658 | V62: 0.1035346147 | W62: 0.06745584222 | X62: 0.1039842247 | Y62: -0.04787370559 | Z62: 0.07225731085 | AA62: 0.1033050676 | AB62: 0.07505917923 | AC62: 0.09661572496 | AD62: 0.02781125359 | AE62: 0.08973641577 | AF62: 0.07441237476 | AG62: -0.02147895586 | AH62: 0.09623433735 | AI62: 0.06572917962 | AJ62: 0.1103526944 | AK62: 0.08219360365 | AL62: 0.05401369639 | AM62: 0.1003858826 | AN62: 0.08982222119 | AO62: 0.07250589423
B65: Interest Cover | C65: =IF(C56=0,0,C50/C56) -> 4.083438395 | D65: =IF(D56=0,0,D50/D56) -> 4.011195866 | E65: 4.484243031 | F65: 0.751613927 | G65: 3.833375963 | H65: 3.661340436 | I65: 4.642515059 | J65: 1.988200313 | K65: 3.03793666 | L65: 2.913670382 | M65: 4.902334707 | N65: 4.081365435 | O65: 3.554628189 | P65: 4.266599841 | Q65: 3.065894422 | R65: 4.153084506 | S65: 3.70431395 | T65: 4.649499443 | U65: 2.057497917 | V65: 4.024752941 | W65: 3.074999907 | X65: 4.382867595 | Y65: -0.2527409099 | Z65: 3.449856739 | AA65: 4.380292843 | AB65: 3.388929038 | AC65: 4.254151296 | AD65: 1.907157228 | AE65: 3.957483205 | AF65: 3.536389167 | AG65: 0.253846203 | AH65: 4.460672991 | AI65: 3.375738703 | AJ65: 5.073592675 | AK65: 4.168490593 | AL65: 2.746875531 | AM65: 4.980140367 | AN65: 4.494003079 | AO65: 3.571802128
B66: Return on Equity (ROE) | C66: =IF(BalanceSheet!D$24=0,0,C59/BalanceSheet!D$24) -> 0.09143330361 | D66: =IF(BalanceSheet!E$24=0,0,D59/BalanceSheet!E$24) -> 0.08137600153 | E66: =IF(BalanceSheet!F$24=0,0,E59/BalanceSheet!F$24) -> 0.08542355161 | F66: =IF(BalanceSheet!G$24=0,0,F59/BalanceSheet!G$24) -> -0.006076579999 | G66: =IF(BalanceSheet!H$24=0,0,G59/BalanceSheet!H$24) -> 0.06431828681 | H66: =IF(BalanceSheet!I$24=0,0,H59/BalanceSheet!I$24) -> 0.05886631301 | I66: =IF(BalanceSheet!J$24=0,0,I59/BalanceSheet!J$24) -> 0.07397124279 | J66: =IF(BalanceSheet!K$24=0,0,J59/BalanceSheet!K$24) -> 0.01950548382 | K66: =IF(BalanceSheet!L$24=0,0,K59/BalanceSheet!L$24) -> 0.03834080266 | L66: =IF(BalanceSheet!M$24=0,0,L59/BalanceSheet!M$24) -> 0.03444935243 | M66: =IF(BalanceSheet!N$24=0,0,M59/BalanceSheet!N$24) -> 0.07372366068 | N66: =IF(BalanceSheet!O$24=0,0,N59/BalanceSheet!O$24) -> 0.0545075913 | O66: =IF(BalanceSheet!P$24=0,0,O59/BalanceSheet!P$24) -> 0.5006677428 | P66: =IF(BalanceSheet!Q$24=0,0,P59/BalanceSheet!Q$24) -> 0.05411774158 | Q66: =IF(BalanceSheet!R$24=0,0,Q59/BalanceSheet!R$24) -> 0.03277110722 | R66: =IF(BalanceSheet!S$24=0,0,R59/BalanceSheet!S$24) -> 0.04716925761 | S66: =IF(BalanceSheet!T$24=0,0,S59/BalanceSheet!T$24) -> 0.03849197823 | T66: =IF(BalanceSheet!U$24=0,0,T59/BalanceSheet!U$24) -> 0.04887965091 | U66: =IF(BalanceSheet!V$24=0,0,U59/BalanceSheet!V$24) -> 0.01610792024 | V66: =IF(BalanceSheet!W$24=0,0,V59/BalanceSheet!W$24) -> 0.04357088264 | W66: =IF(BalanceSheet!X$24=0,0,W59/BalanceSheet!X$24) -> 0.02869918384 | X66: =IF(BalanceSheet!Y$24=0,0,X59/BalanceSheet!Y$24) -> 0.04419675712 | Y66: =IF(BalanceSheet!Z$24=0,0,Y59/BalanceSheet!Z$24) -> -0.01643702544 | Z66: =IF(BalanceSheet!AA$24=0,0,Z59/BalanceSheet!AA$24) -> 0.03077446595 | AA66: =IF(BalanceSheet!AB$24=0,0,AA59/BalanceSheet!AB$24) -> 0.04024488224 | AB66: =IF(BalanceSheet!AC$24=0,0,AB59/BalanceSheet!AC$24) -> 0.3414954891 | AC66: =IF(BalanceSheet!AD$24=0,0,AC59/BalanceSheet!AD$24) -> 0.03683982837 | AD66: =IF(BalanceSheet!AE$24=0,0,AD59/BalanceSheet!AE$24) -> 0.01098117475 | AE66: =IF(BalanceSheet!AF$24=0,0,AE59/BalanceSheet!AF$24) -> 0.03412155446 | AF66: =IF(BalanceSheet!AG$24=0,0,AF59/BalanceSheet!AG$24) -> 0.02805739895 | AG66: =IF(BalanceSheet!AH$24=0,0,AG59/BalanceSheet!AH$24) -> -0.00820644971 | AH66: =IF(BalanceSheet!AI$24=0,0,AH59/BalanceSheet!AI$24) -> 0.03616532514 | AI66: =IF(BalanceSheet!AJ$24=0,0,AI59/BalanceSheet!AJ$24) -> 0.02388281568 | AJ66: =IF(BalanceSheet!AK$24=0,0,AJ59/BalanceSheet!AK$24) -> 0.03877806355 | AK66: =IF(BalanceSheet!AL$24=0,0,AK59/BalanceSheet!AL$24) -> 0.02884600737 | AL66: =IF(BalanceSheet!AM$24=0,0,AL59/BalanceSheet!AM$24) -> 0.0154140806 | AM66: =IF(BalanceSheet!AN$24=0,0,AM59/BalanceSheet!AN$24) -> 0.0334035843 | AN66: =IF(BalanceSheet!AO$24=0,0,AN59/BalanceSheet!AO$24) -> 0.02803371438 | AO66: =IF(BalanceSheet!AP$24=0,0,AO59/BalanceSheet!AP$24) -> 0.2675433645
B67: Return on Net Assets (RONA) | C67: =IF(BalanceSheet!D18-BalanceSheet!D40=0,0,C59/(BalanceSheet!D18-BalanceSheet!D40)) -> 0.01582511437 | D67: =IF(BalanceSheet!E18-BalanceSheet!E40=0,0,D59/(BalanceSheet!E18-BalanceSheet!E40)) -> 0.01519722363 | E67: =IF(BalanceSheet!F18-BalanceSheet!F40=0,0,E59/(BalanceSheet!F18-BalanceSheet!F40)) -> 0.01725364135 | F67: =IF(BalanceSheet!G18-BalanceSheet!G40=0,0,F59/(BalanceSheet!G18-BalanceSheet!G40)) -> -0.001229341725 | G67: =IF(BalanceSheet!H18-BalanceSheet!H40=0,0,G59/(BalanceSheet!H18-BalanceSheet!H40)) -> 0.01380501917 | H67: =IF(BalanceSheet!I18-BalanceSheet!I40=0,0,H59/(BalanceSheet!I18-BalanceSheet!I40)) -> 0.01284633156 | I67: =IF(BalanceSheet!J18-BalanceSheet!J40=0,0,I59/(BalanceSheet!J18-BalanceSheet!J40)) -> 0.01724525854 | J67: =IF(BalanceSheet!K18-BalanceSheet!K40=0,0,J59/(BalanceSheet!K18-BalanceSheet!K40)) -> 0.004646901354 | K67: =IF(BalanceSheet!L18-BalanceSheet!L40=0,0,K59/(BalanceSheet!L18-BalanceSheet!L40)) -> 0.009471365273 | L67: =IF(BalanceSheet!M18-BalanceSheet!M40=0,0,L59/(BalanceSheet!M18-BalanceSheet!M40)) -> 0.008795020531 | M67: =IF(BalanceSheet!N18-BalanceSheet!N40=0,0,M59/(BalanceSheet!N18-BalanceSheet!N40)) -> 0.01847853344 | N67: =IF(BalanceSheet!O18-BalanceSheet!O40=0,0,N59/(BalanceSheet!O18-BalanceSheet!O40)) -> 0.01434496126 | O67: =IF(BalanceSheet!P18-BalanceSheet!P40=0,0,O59/(BalanceSheet!P18-BalanceSheet!P40)) -> 0.1317625527 | P67: =IF(BalanceSheet!Q18-BalanceSheet!Q40=0,0,P59/(BalanceSheet!Q18-BalanceSheet!Q40)) -> 0.01493922695 | Q67: =IF(BalanceSheet!R18-BalanceSheet!R40=0,0,Q59/(BalanceSheet!R18-BalanceSheet!R40)) -> 0.009332580094 | R67: =IF(BalanceSheet!S18-BalanceSheet!S40=0,0,R59/(BalanceSheet!S18-BalanceSheet!S40)) -> 0.014001513 | S67: =IF(BalanceSheet!T18-BalanceSheet!T40=0,0,S59/(BalanceSheet!T18-BalanceSheet!T40)) -> 0.01182815954 | T67: =IF(BalanceSheet!U18-BalanceSheet!U40=0,0,T59/(BalanceSheet!U18-BalanceSheet!U40)) -> 0.01565851178 | U67: =IF(BalanceSheet!V18-BalanceSheet!V40=0,0,U59/(BalanceSheet!V18-BalanceSheet!V40)) -> 0.004801759977 | V67: =IF(BalanceSheet!W18-BalanceSheet!W40=0,0,V59/(BalanceSheet!W18-BalanceSheet!W40)) -> 0.01350180303 | W67: =IF(BalanceSheet!X18-BalanceSheet!X40=0,0,W59/(BalanceSheet!X18-BalanceSheet!X40)) -> 0.009143748244 | X67: =IF(BalanceSheet!Y18-BalanceSheet!Y40=0,0,X59/(BalanceSheet!Y18-BalanceSheet!Y40)) -> 0.01463201778 | Y67: =IF(BalanceSheet!Z18-BalanceSheet!Z40=0,0,Y59/(BalanceSheet!Z18-BalanceSheet!Z40)) -> -0.005425547836 | Z67: =IF(BalanceSheet!AA18-BalanceSheet!AA40=0,0,Z59/(BalanceSheet!AA18-BalanceSheet!AA40)) -> 0.01045531278 | AA67: =IF(BalanceSheet!AB18-BalanceSheet!AB40=0,0,AA59/(BalanceSheet!AB18-BalanceSheet!AB40)) -> 0.01415933637 | AB67: =IF(BalanceSheet!AC18-BalanceSheet!AC40=0,0,AB59/(BalanceSheet!AC18-BalanceSheet!AC40)) -> 0.1201481835 | AC67: =IF(BalanceSheet!AD18-BalanceSheet!AD40=0,0,AC59/(BalanceSheet!AD18-BalanceSheet!AD40)) -> 0.01338594088 | AD67: =IF(BalanceSheet!AE18-BalanceSheet!AE40=0,0,AD59/(BalanceSheet!AE18-BalanceSheet!AE40)) -> 0.003853663723 | AE67: =IF(BalanceSheet!AF18-BalanceSheet!AF40=0,0,AE59/(BalanceSheet!AF18-BalanceSheet!AF40)) -> 0.01234905687 | AF67: =IF(BalanceSheet!AG18-BalanceSheet!AG40=0,0,AF59/(BalanceSheet!AG18-BalanceSheet!AG40)) -> 0.01042745315 | AG67: =IF(BalanceSheet!AH18-BalanceSheet!AH40=0,0,AG59/(BalanceSheet!AH18-BalanceSheet!AH40)) -> -0.003060625297 | AH67: =IF(BalanceSheet!AI18-BalanceSheet!AI40=0,0,AH59/(BalanceSheet!AI18-BalanceSheet!AI40)) -> 0.0139213741 | AI67: =IF(BalanceSheet!AJ18-BalanceSheet!AJ40=0,0,AI59/(BalanceSheet!AJ18-BalanceSheet!AJ40)) -> 0.009412555398 | AJ67: =IF(BalanceSheet!AK18-BalanceSheet!AK40=0,0,AJ59/(BalanceSheet!AK18-BalanceSheet!AK40)) -> 0.01578874771 | AK67: =IF(BalanceSheet!AL18-BalanceSheet!AL40=0,0,AK59/(BalanceSheet!AL18-BalanceSheet!AL40)) -> 0.0120552309 | AL67: =IF(BalanceSheet!AM18-BalanceSheet!AM40=0,0,AL59/(BalanceSheet!AM18-BalanceSheet!AM40)) -> 0.006558485343 | AM67: =IF(BalanceSheet!AN18-BalanceSheet!AN40=0,0,AM59/(BalanceSheet!AN18-BalanceSheet!AN40)) -> 0.01462144886 | AN67: =IF(BalanceSheet!AO18-BalanceSheet!AO40=0,0,AN59/(BalanceSheet!AO18-BalanceSheet!AO40)) -> 0.01258045696 | AO67: =IF(BalanceSheet!AP18-BalanceSheet!AP40=0,0,AO59/(BalanceSheet!AP18-BalanceSheet!AP40)) -> 0.1200632116

Sheet CashFlow (hidden)
B1: =IF(ISBLANK(Assumptions!$C$4),"Example Limited",Assumptions!$C$4) -> Example (Pty) Limited
B2: Cash Flow Projections - Cash Flow Statement
B3: © www.excel-skills.com
C4: =IF(ISBLANK(Assumptions!$C$5)=TRUE,DATE(YEAR(TODAY()),MONTH(TODAY())+1,0),DATE(YEAR(Assumptions!$C$5),MONTH(Assumptions!$C$5)+1,0)) -> 2021-03-31 | D4: =DATE(YEAR(C4),MONTH(C4)+2,0) -> 2021-04-30 | E4: =DATE(YEAR(D4),MONTH(D4)+2,0) -> 2021-05-31 | F4: 2021-06-30 | G4: 2021-07-31 | H4: 2021-08-31 | I4: 2021-09-30 | J4: 2021-10-31 | K4: 2021-11-30 | L4: 2021-12-31 | M4: 2022-01-31 | N4: =DATE(YEAR(M4),MONTH(M4)+2,0) -> 2022-02-28 | O4: ="Year-"&YEAR(N4) -> Year-2022 | P4: =DATE(YEAR(N4),MONTH(N4)+2,0) -> 2022-03-31 | Q4: =DATE(YEAR(P4),MONTH(P4)+2,0) -> 2022-04-30 | R4: 2022-05-31 | S4: 2022-06-30 | T4: 2022-07-31 | U4: 2022-08-31 | V4: 2022-09-30 | W4: 2022-10-31 | X4: 2022-11-30 | Y4: 2022-12-31 | Z4: 2023-01-31 | AA4: 2023-02-28 | AB4: ="Year-"&YEAR(AA4) -> Year-2023 | AC4: =DATE(YEAR(AA4),MONTH(AA4)+2,0) -> 2023-03-31 | AD4: =DATE(YEAR(AC4),MONTH(AC4)+2,0) -> 2023-04-30 | AE4: 2023-05-31 | AF4: 2023-06-30 | AG4: 2023-07-31 | AH4: 2023-08-31 | AI4: 2023-09-30 | AJ4: 2023-10-31 | AK4: 2023-11-30 | AL4: 2023-12-31 | AM4: 2024-01-31 | AN4: 2024-02-29 | AO4: ="Year-"&YEAR(AN4) -> Year-2024
B5: Cash flows from operating activities
B6: Profit / (Loss) for the year | C6: =IncState!C59 -> 40354.5 | D6: =IncState!D59 -> 39097.24166 | E6: =IncState!E59 -> 44875.30181 | F6: =IncState!F59 -> -3172.911356 | G6: =IncState!G59 -> 35892.61044 | H6: =IncState!H59 -> 34904.87555 | I6: =IncState!I59 -> 47365.0173 | J6: =IncState!J59 -> 12738.14954 | K6: =IncState!K59 -> 26036.92109 | L6: =IncState!L59 -> 24228.94084 | M6: =IncState!M59 -> 55978.29775 | N6: =IncState!N59 -> 43773.54716 | O6: =SUM(C6:N6) -> 402072.4918 | P6: =IncState!P59 -> 45947.01845 | Q6: =IncState!Q59 -> 28766.00318 | R6: =IncState!R59 -> 43454.19303 | S6: =IncState!S59 -> 36879.91979 | T6: =IncState!T59 -> 49239.35536 | U6: =IncState!U59 -> 16492.11175 | V6: =IncState!V59 -> 46642.34392 | W6: =IncState!W59 -> 31630.04442 | X6: =IncState!X59 -> 50962.66852 | Y6: =IncState!Y59 -> -18646.80833 | Z6: =IncState!Z59 -> 36020.26946 | AA6: =IncState!AA59 -> 49080.23761 | AB6: =SUM(P6:AA6) -> 416467.3572 | AC6: =IncState!AC59 -> 46646.07201 | AD6: =IncState!AD59 -> 14058.58869 | AE6: =IncState!AE59 -> 45227.15355 | AF6: =IncState!AF59 -> 38262.8431 | AG6: =IncState!AG59 -> -11100.32439 | AH6: =IncState!AH59 -> 50753.98952 | AI6: =IncState!AI59 -> 34336.92343 | AJ6: =IncState!AJ59 -> 58001.37615 | AK6: =IncState!AK59 -> 44427.28664 | AL6: =IncState!AL59 -> 24111.71407 | AM6: =IncState!AM59 -> 54057.79776 | AN6: =IncState!AN59 -> 46676.11724 | AO6: =SUM(AC6:AN6) -> 445459.5378
A7: INT | B7: Interest | C7: =IncState!C56 -> 18177.08333 | D7: =IncState!D56 -> 18033.27547 | E7: =IncState!E56 -> 17888.19193 | F7: =IncState!F56 -> 17741.82133 | G7: =IncState!G56 -> 17594.15216 | H7: =IncState!H56 -> 18216.00618 | I7: =IncState!I56 -> 18060.25375 | J7: =IncState!J56 -> 17903.12564 | K7: =IncState!K56 -> 17744.6096 | L7: =IncState!L56 -> 17584.69328 | M7: =IncState!M56 -> 19923.36424 | N7: =IncState!N56 -> 19730.40672 | O7: =SUM(C7:N7) -> 218596.9836 | P7: =IncState!P56 -> 19535.6966 | Q7: =IncState!Q56 -> 19339.21781 | R7: =IncState!R56 -> 19140.95412 | S7: =IncState!S56 -> 18940.88918 | T7: =IncState!T56 -> 18739.00644 | U7: =IncState!U56 -> 21660.28924 | V7: =IncState!V56 -> 21416.96677 | W7: =IncState!W56 -> 21171.38275 | X7: =IncState!X56 -> 20923.51594 | Y7: =IncState!Y56 -> 20673.3449 | Z7: =IncState!Z56 -> 20420.84797 | AA7: =IncState!AA56 -> 20166.00332 | AB7: =SUM(P7:AA7) -> 242128.115 | AC7: =IncState!AC56 -> 19908.78888 | AD7: =IncState!AD56 -> 21524.18238 | AE7: =IncState!AE56 -> 21239.50896 | AF7: =IncState!AF56 -> 20952.16236 | AG7: =IncState!AG56 -> 20662.11721 | AH7: =IncState!AH56 -> 20369.34789 | AI7: =IncState!AI56 -> 20073.82857 | AJ7: =IncState!AJ56 -> 19775.53312 | AK7: =IncState!AK56 -> 19474.43522 | AL7: =IncState!AL56 -> 19170.50824 | AM7: =IncState!AM56 -> 18863.72533 | AN7: =IncState!AN56 -> 18554.05938 | AO7: =SUM(AC7:AN7) -> 240568.1975
A8: TAX | B8: Taxation | C8: =IncState!C58 -> 15693.41667 | D8: =IncState!D58 -> 15204.48287 | E8: =IncState!E58 -> 17451.50626 | F8: =IncState!F58 -> -1233.909972 | G8: =IncState!G58 -> 13958.23739 | H8: =IncState!H58 -> 13574.11827 | I8: =IncState!I58 -> 18419.72895 | J8: =IncState!J58 -> 4953.724822 | K8: =IncState!K58 -> 10125.46931 | L8: =IncState!L58 -> 9422.365881 | M8: =IncState!M58 -> 21769.33801 | N8: =IncState!N58 -> 17023.04612 | O8: =SUM(C8:N8) -> 156361.5246 | P8: =IncState!P58 -> 17868.28495 | Q8: =IncState!Q58 -> 11186.77901 | R8: =IncState!R58 -> 16898.85285 | S8: =IncState!S58 -> 14342.19103 | T8: =IncState!T58 -> 19148.6382 | U8: =IncState!U58 -> 6413.599013 | V8: =IncState!V58 -> 18138.6893 | W8: =IncState!W58 -> 12300.57283 | X8: =IncState!X58 -> 19818.81554 | Y8: =IncState!Y58 -> -7251.536571 | Z8: =IncState!Z58 -> 14007.88257 | AA8: =IncState!AA58 -> 19086.75907 | AB8: =SUM(P8:AA8) -> 161959.5278 | AC8: =IncState!AC58 -> 18140.13911 | AD8: =IncState!AD58 -> 5467.228934 | AE8: =IncState!AE58 -> 17588.33749 | AF8: =IncState!AF58 -> 14879.99454 | AG8: =IncState!AG58 -> -4316.792818 | AH8: =IncState!AH58 -> 19737.66259 | AI8: =IncState!AI58 -> 13353.248 | AJ8: =IncState!AJ58 -> 22556.09073 | AK8: =IncState!AK58 -> 17277.27814 | AL8: =IncState!AL58 -> 9376.777693 | AM8: =IncState!AM58 -> 21022.47691 | AN8: =IncState!AN58 -> 18151.82337 | AO8: =SUM(AC8:AN8) -> 173234.2647
B9: Adjustment for non-cash expenses:
A10: DEP | B10: Depreciation | C10: =SUMIF(IncState!$A$4:$AO$63,$A10,IncState!C$4:C$63) -> 15000 | D10: =SUMIF(IncState!$A$4:$AO$63,$A10,IncState!D$4:D$63) -> 15000 | E10: =SUMIF(IncState!$A$4:$AO$63,$A10,IncState!E$4:E$63) -> 15000 | F10: =SUMIF(IncState!$A$4:$AO$63,$A10,IncState!F$4:F$63) -> 15000 | G10: =SUMIF(IncState!$A$4:$AO$63,$A10,IncState!G$4:G$63) -> 15000 | H10: =SUMIF(IncState!$A$4:$AO$63,$A10,IncState!H$4:H$63) -> 15000 | I10: =SUMIF(IncState!$A$4:$AO$63,$A10,IncState!I$4:I$63) -> 15000 | J10: =SUMIF(IncState!$A$4:$AO$63,$A10,IncState!J$4:J$63) -> 15000 | K10: =SUMIF(IncState!$A$4:$AO$63,$A10,IncState!K$4:K$63) -> 15000 | L10: =SUMIF(IncState!$A$4:$AO$63,$A10,IncState!L$4:L$63) -> 15000 | M10: =SUMIF(IncState!$A$4:$AO$63,$A10,IncState!M$4:M$63) -> 19000 | N10: =SUMIF(IncState!$A$4:$AO$63,$A10,IncState!N$4:N$63) -> 19000 | O10: =SUM(C10:N10) -> 188000 | P10: =SUMIF(IncState!$A$4:$AO$63,$A10,IncState!P$4:P$63) -> 19000 | Q10: =SUMIF(IncState!$A$4:$AO$63,$A10,IncState!Q$4:Q$63) -> 19000 | R10: =SUMIF(IncState!$A$4:$AO$63,$A10,IncState!R$4:R$63) -> 19000 | S10: =SUMIF(IncState!$A$4:$AO$63,$A10,IncState!S$4:S$63) -> 19000 | T10: =SUMIF(IncState!$A$4:$AO$63,$A10,IncState!T$4:T$63) -> 19000 | U10: =SUMIF(IncState!$A$4:$AO$63,$A10,IncState!U$4:U$63) -> 24000 | V10: =SUMIF(IncState!$A$4:$AO$63,$A10,IncState!V$4:V$63) -> 24000 | W10: =SUMIF(IncState!$A$4:$AO$63,$A10,IncState!W$4:W$63) -> 24000 | X10: =SUMIF(IncState!$A$4:$AO$63,$A10,IncState!X$4:X$63) -> 24000 | Y10: =SUMIF(IncState!$A$4:$AO$63,$A10,IncState!Y$4:Y$63) -> 24000 | Z10: =SUMIF(IncState!$A$4:$AO$63,$A10,IncState!Z$4:Z$63) -> 24000 | AA10: =SUMIF(IncState!$A$4:$AO$63,$A10,IncState!AA$4:AA$63) -> 24000 | AB10: =SUM(P10:AA10) -> 263000 | AC10: =SUMIF(IncState!$A$4:$AO$63,$A10,IncState!AC$4:AC$63) -> 24000 | AD10: =SUMIF(IncState!$A$4:$AO$63,$A10,IncState!AD$4:AD$63) -> 27000 | AE10: =SUMIF(IncState!$A$4:$AO$63,$A10,IncState!AE$4:AE$63) -> 27000 | AF10: =SUMIF(IncState!$A$4:$AO$63,$A10,IncState!AF$4:AF$63) -> 27000 | AG10: =SUMIF(IncState!$A$4:$AO$63,$A10,IncState!AG$4:AG$63) -> 27000 | AH10: =SUMIF(IncState!$A$4:$AO$63,$A10,IncState!AH$4:AH$63) -> 25000 | AI10: =SUMIF(IncState!$A$4:$AO$63,$A10,IncState!AI$4:AI$63) -> 25000 | AJ10: =SUMIF(IncState!$A$4:$AO$63,$A10,IncState!AJ$4:AJ$63) -> 25000 | AK10: =SUMIF(IncState!$A$4:$AO$63,$A10,IncState!AK$4:AK$63) -> 25000 | AL10: =SUMIF(IncState!$A$4:$AO$63,$A10,IncState!AL$4:AL$63) -> 25000 | AM10: =SUMIF(IncState!$A$4:$AO$63,$A10,IncState!AM$4:AM$63) -> 25000 | AN10: =SUMIF(IncState!$A$4:$AO$63,$A10,IncState!AN$4:AN$63) -> 25000 | AO10: =SUM(AC10:AN10) -> 307000
A11: AMT | B11: Amortization | C11: =SUMIF(IncState!$A$4:$AO$63,$A11,IncState!C$4:C$63) -> 1000 | D11: =SUMIF(IncState!$A$4:$AO$63,$A11,IncState!D$4:D$63) -> 1000 | E11: =SUMIF(IncState!$A$4:$AO$63,$A11,IncState!E$4:E$63) -> 1000 | F11: =SUMIF(IncState!$A$4:$AO$63,$A11,IncState!F$4:F$63) -> 1000 | G11: =SUMIF(IncState!$A$4:$AO$63,$A11,IncState!G$4:G$63) -> 1000 | H11: =SUMIF(IncState!$A$4:$AO$63,$A11,IncState!H$4:H$63) -> 1000 | I11: =SUMIF(IncState!$A$4:$AO$63,$A11,IncState!I$4:I$63) -> 1000 | J11: =SUMIF(IncState!$A$4:$AO$63,$A11,IncState!J$4:J$63) -> 1000 | K11: =SUMIF(IncState!$A$4:$AO$63,$A11,IncState!K$4:K$63) -> 1000 | L11: =SUMIF(IncState!$A$4:$AO$63,$A11,IncState!L$4:L$63) -> 1000 | M11: =SUMIF(IncState!$A$4:$AO$63,$A11,IncState!M$4:M$63) -> 1000 | N11: =SUMIF(IncState!$A$4:$AO$63,$A11,IncState!N$4:N$63) -> 1000 | O11: =SUM(C11:N11) -> 12000 | P11: =SUMIF(IncState!$A$4:$AO$63,$A11,IncState!P$4:P$63) -> 1000 | Q11: =SUMIF(IncState!$A$4:$AO$63,$A11,IncState!Q$4:Q$63) -> 1000 | R11: =SUMIF(IncState!$A$4:$AO$63,$A11,IncState!R$4:R$63) -> 1000 | S11: =SUMIF(IncState!$A$4:$AO$63,$A11,IncState!S$4:S$63) -> 1000 | T11: =SUMIF(IncState!$A$4:$AO$63,$A11,IncState!T$4:T$63) -> 1000 | U11: =SUMIF(IncState!$A$4:$AO$63,$A11,IncState!U$4:U$63) -> 1000 | V11: =SUMIF(IncState!$A$4:$AO$63,$A11,IncState!V$4:V$63) -> 1000 | W11: =SUMIF(IncState!$A$4:$AO$63,$A11,IncState!W$4:W$63) -> 1000 | X11: =SUMIF(IncState!$A$4:$AO$63,$A11,IncState!X$4:X$63) -> 1000 | Y11: =SUMIF(IncState!$A$4:$AO$63,$A11,IncState!Y$4:Y$63) -> 1000 | Z11: =SUMIF(IncState!$A$4:$AO$63,$A11,IncState!Z$4:Z$63) -> 1000 | AA11: =SUMIF(IncState!$A$4:$AO$63,$A11,IncState!AA$4:AA$63) -> 1000 | AB11: =SUM(P11:AA11) -> 12000 | AC11: =SUMIF(IncState!$A$4:$AO$63,$A11,IncState!AC$4:AC$63) -> 1000 | AD11: =SUMIF(IncState!$A$4:$AO$63,$A11,IncState!AD$4:AD$63) -> 1000 | AE11: =SUMIF(IncState!$A$4:$AO$63,$A11,IncState!AE$4:AE$63) -> 1000 | AF11: =SUMIF(IncState!$A$4:$AO$63,$A11,IncState!AF$4:AF$63) -> 1000 | AG11: =SUMIF(IncState!$A$4:$AO$63,$A11,IncState!AG$4:AG$63) -> 1000 | AH11: =SUMIF(IncState!$A$4:$AO$63,$A11,IncState!AH$4:AH$63) -> 1000 | AI11: =SUMIF(IncState!$A$4:$AO$63,$A11,IncState!AI$4:AI$63) -> 1000 | AJ11: =SUMIF(IncState!$A$4:$AO$63,$A11,IncState!AJ$4:AJ$63) -> 1000 | AK11: =SUMIF(IncState!$A$4:$AO$63,$A11,IncState!AK$4:AK$63) -> 1000 | AL11: =SUMIF(IncState!$A$4:$AO$63,$A11,IncState!AL$4:AL$63) -> 1000 | AM11: =SUMIF(IncState!$A$4:$AO$63,$A11,IncState!AM$4:AM$63) -> 1000 | AN11: =SUMIF(IncState!$A$4:$AO$63,$A11,IncState!AN$4:AN$63) -> 1000 | AO11: =SUM(AC11:AN11) -> 12000
A12: RES | B12: Reserves | C12: 0 | D12: 0 | E12: 0 | F12: 0 | G12: 0 | H12: 0 | I12: 0 | J12: 0 | K12: 0 | L12: 0 | M12: 0 | N12: 0 | O12: =SUM(C12:N12) -> 0 | P12: 0 | Q12: 0 | R12: 0 | S12: 0 | T12: 0 | U12: 0 | V12: 0 | W12: 0 | X12: 0 | Y12: 0 | Z12: 0 | AA12: 0 | AB12: =SUM(P12:AA12) -> 0 | AC12: 0 | AD12: 0 | AE12: 0 | AF12: 0 | AG12: 0 | AH12: 0 | AI12: 0 | AJ12: 0 | AK12: 0 | AL12: 0 | AM12: 0 | AN12: 0 | AO12: =SUM(AC12:AN12) -> 0
B13: Changes in operating assets & liabilities
A14: STC | B14: Inventory | C14: =BalanceSheet!C12-BalanceSheet!D12 -> -9651.612903 | D14: =BalanceSheet!D12-BalanceSheet!E12 -> -18728.3871 | E14: =BalanceSheet!E12-BalanceSheet!F12 -> 4638.064516 | F14: =BalanceSheet!F12-BalanceSheet!G12 -> -8538.064516 | G14: =BalanceSheet!G12-BalanceSheet!H12 -> 3631.612903 | H14: =BalanceSheet!H12-BalanceSheet!I12 -> 3648.387097 | I14: =BalanceSheet!I12-BalanceSheet!J12 -> 1720 | J14: =BalanceSheet!J12-BalanceSheet!K12 -> -1197.419355 | K14: =BalanceSheet!K12-BalanceSheet!L12 -> -9170.580645 | L14: =BalanceSheet!L12-BalanceSheet!M12 -> 44783.48387 | M14: =BalanceSheet!M12-BalanceSheet!N12 -> -45894.19355 | N14: =BalanceSheet!N12-BalanceSheet!O12 -> -4219.870968 | O14: =SUM(C14:N14) -> -38978.58065 | P14: =BalanceSheet!P12-BalanceSheet!Q12 -> 7564.387097 | Q14: =BalanceSheet!Q12-BalanceSheet!R12 -> -2105.806452 | R14: =BalanceSheet!R12-BalanceSheet!S12 -> 11396.12903 | S14: =BalanceSheet!S12-BalanceSheet!T12 -> -19460.12903 | T14: =BalanceSheet!T12-BalanceSheet!U12 -> -2217.290323 | U14: =BalanceSheet!U12-BalanceSheet!V12 -> 12449.03226 | V14: =BalanceSheet!V12-BalanceSheet!W12 -> 12128.25806 | W14: =BalanceSheet!W12-BalanceSheet!X12 -> -5236 | X14: =BalanceSheet!X12-BalanceSheet!Y12 -> -19812 | Y14: =BalanceSheet!Y12-BalanceSheet!Z12 -> 57912 | Z14: =BalanceSheet!Z12-BalanceSheet!AA12 -> -53880 | AA14: =BalanceSheet!AA12-BalanceSheet!AB12 -> -12096 | AB14: =SUM(P14:AA14) -> -13357.41935 | AC14: =BalanceSheet!AC12-BalanceSheet!AD12 -> 23406.96774 | AD14: =BalanceSheet!AD12-BalanceSheet!AE12 -> -17370.96774 | AE14: =BalanceSheet!AE12-BalanceSheet!AF12 -> 9358.064516 | AF14: =BalanceSheet!AF12-BalanceSheet!AG12 -> -15058.06452 | AG14: =BalanceSheet!AG12-BalanceSheet!AH12 -> 8961.290323 | AH14: =BalanceSheet!AH12-BalanceSheet!AI12 -> -8825.806452 | AI14: =BalanceSheet!AI12-BalanceSheet!AJ12 -> -6675.483871 | AJ14: =BalanceSheet!AJ12-BalanceSheet!AK12 -> 10333.54839 | AK14: =BalanceSheet!AK12-BalanceSheet!AL12 -> -15493.54839 | AL14: =BalanceSheet!AL12-BalanceSheet!AM12 -> 53700 | AM14: =BalanceSheet!AM12-BalanceSheet!AN12 -> -46509.67742 | AN14: =BalanceSheet!AN12-BalanceSheet!AO12 -> -6280.645161 | AO14: =SUM(AC14:AN14) -> -10454.32258
A15: DEB | B15: Trade Receivables | C15: =BalanceSheet!C13-BalanceSheet!D13 -> -10798.3871 | D15: =BalanceSheet!D13-BalanceSheet!E13 -> -21893.27957 | E15: =BalanceSheet!E13-BalanceSheet!F13 -> -1663.172043 | F15: =BalanceSheet!F13-BalanceSheet!G13 -> -20378.49462 | G15: =BalanceSheet!G13-BalanceSheet!H13 -> 14072.04301 | H15: =BalanceSheet!H13-BalanceSheet!I13 -> -185.483871 | I15: =BalanceSheet!I13-BalanceSheet!J13 -> -3153.225806 | J15: =BalanceSheet!J13-BalanceSheet!K13 -> 3245.967742 | K15: =BalanceSheet!K13-BalanceSheet!L13 -> -20687.63441 | L15: =BalanceSheet!L13-BalanceSheet!M13 -> 84123.11828 | M15: =BalanceSheet!M13-BalanceSheet!N13 -> -84487.90323 | N15: =BalanceSheet!N13-BalanceSheet!O13 -> -16282.8341 | O15: =SUM(C15:N15) -> -78089.28571 | P15: =BalanceSheet!P13-BalanceSheet!Q13 -> 20363.47926 | Q15: =BalanceSheet!Q13-BalanceSheet!R13 -> -9753.360215 | R15: =BalanceSheet!R13-BalanceSheet!S13 -> 22737.23118 | S15: =BalanceSheet!S13-BalanceSheet!T13 -> -32033.06452 | T15: =BalanceSheet!T13-BalanceSheet!U13 -> 2819.354839 | U15: =BalanceSheet!U13-BalanceSheet!V13 -> 11666.93548 | V15: =BalanceSheet!V13-BalanceSheet!W13 -> 559.5430108 | W15: =BalanceSheet!W13-BalanceSheet!X13 -> -3137.768817 | X15: =BalanceSheet!X13-BalanceSheet!Y13 -> -34812.23118 | Y15: =BalanceSheet!Y13-BalanceSheet!Z13 -> 108449.328 | Z15: =BalanceSheet!Z13-BalanceSheet!AA13 -> -101088.7097 | AA15: =BalanceSheet!AA13-BalanceSheet!AB13 -> -25507.34447 | AB15: =SUM(P15:AA15) -> -39736.60714 | AC15: =BalanceSheet!AC13-BalanceSheet!AD13 -> 40067.82834 | AD15: =BalanceSheet!AD13-BalanceSheet!AE13 -> -36679.43548 | AE15: =BalanceSheet!AE13-BalanceSheet!AF13 -> 17018.14516 | AF15: =BalanceSheet!AF13-BalanceSheet!AG13 -> -25355.64516 | AG15: =BalanceSheet!AG13-BalanceSheet!AH13 -> 13484.67742 | AH15: =BalanceSheet!AH13-BalanceSheet!AI13 -> -9830.645161 | AI15: =BalanceSheet!AI13-BalanceSheet!AJ13 -> -11512.36559 | AJ15: =BalanceSheet!AJ13-BalanceSheet!AK13 -> 13181.72043 | AK15: =BalanceSheet!AK13-BalanceSheet!AL13 -> -30546.72043 | AL15: =BalanceSheet!AL13-BalanceSheet!AM13 -> 103998.3333 | AM15: =BalanceSheet!AM13-BalanceSheet!AN13 -> -85415.32258 | AN15: =BalanceSheet!AN13-BalanceSheet!AO13 -> -15754.93604 | AO15: =SUM(AC15:AN15) -> -27344.36576
A16: ADV | B16: Loans & Advances | C16: 0 | D16: 0 | E16: 0 | F16: 0 | G16: 0 | H16: 0 | I16: -10000 | J16: 0 | K16: 10000 | L16: 0 | M16: 0 | N16: 0 | O16: =SUM(C16:N16) -> 0 | P16: 0 | Q16: 0 | R16: 0 | S16: 0 | T16: 0 | U16: 0 | V16: 0 | W16: -20000 | X16: 0 | Y16: 0 | Z16: 0 | AA16: 0 | AB16: =SUM(P16:AA16) -> -20000 | AC16: 0 | AD16: 0 | AE16: 0 | AF16: 0 | AG16: 0 | AH16: 0 | AI16: 0 | AJ16: 0 | AK16: 0 | AL16: 0 | AM16: 0 | AN16: 0 | AO16: =SUM(AC16:AN16) -> 0
A17: ODB | B17: Other Receivables | C17: 0 | D17: 0 | E17: 0 | F17: 0 | G17: 0 | H17: 0 | I17: 0 | J17: 0 | K17: 0 | L17: 0 | M17: 0 | N17: 0 | O17: 0 | P17: 0 | Q17: 0 | R17: 0 | S17: 0 | T17: 0 | U17: -7000 | V17: 0 | W17: 0 | X17: 0 | Y17: 0 | Z17: 0 | AA17: 0 | AB17: -7000 | AC17: 0 | AD17: 0 | AE17: 0 | AF17: 0 | AG17: 0 | AH17: 0 | AI17: 0 | AJ17: 0 | AK17: 0 | AL17: 0 | AM17: 0 | AN17: 0 | AO17: 0
A18: CRE | B18: Trade Payables | C18: =BalanceSheet!D33-BalanceSheet!C33 -> 15252.41935 | D18: =BalanceSheet!E33-BalanceSheet!D33 -> 14609.08065 | E18: =BalanceSheet!F33-BalanceSheet!E33 -> -96.82258065 | F18: =BalanceSheet!G33-BalanceSheet!F33 -> 59820.15591 | G18: =BalanceSheet!H33-BalanceSheet!G33 -> -46413.38172 | H18: =BalanceSheet!I33-BalanceSheet!H33 -> -1313.225806 | I18: =BalanceSheet!J33-BalanceSheet!I33 -> -13967.05914 | J18: =BalanceSheet!K33-BalanceSheet!J33 -> 31372.86559 | K18: =BalanceSheet!L33-BalanceSheet!K33 -> 3769.601075 | L18: =BalanceSheet!M33-BalanceSheet!L33 -> -57782.5043 | M18: =BalanceSheet!N33-BalanceSheet!M33 -> 29250.06452 | N18: =BalanceSheet!O33-BalanceSheet!N33 -> 4271.985023 | O18: 38773.17857 | P18: =BalanceSheet!Q33-BalanceSheet!P33 -> -6032.597926 | Q18: =BalanceSheet!R33-BalanceSheet!Q33 -> 20682.88602 | R18: =BalanceSheet!S33-BalanceSheet!R33 -> -27805.46667 | S18: =BalanceSheet!T33-BalanceSheet!S33 -> 15196.86667 | T18: =BalanceSheet!U33-BalanceSheet!T33 -> 2090.230108 | U18: =BalanceSheet!V33-BalanceSheet!U33 -> 15013.80645 | V18: =BalanceSheet!W33-BalanceSheet!V33 -> -34246.70323 | W18: =BalanceSheet!X33-BalanceSheet!W33 -> 3736.832258 | X18: =BalanceSheet!Y33-BalanceSheet!X33 -> 21998.63441 | Y18: =BalanceSheet!Z33-BalanceSheet!Y33 -> -10891.86022 | Z18: =BalanceSheet!AA33-BalanceSheet!Z33 -> 25475.09677 | AA18: =BalanceSheet!AB33-BalanceSheet!AA33 -> -13656.11751 | AB18: 11561.60714 | AC18: =BalanceSheet!AD33-BalanceSheet!AC33 -> -18977.91475 | AD18: =BalanceSheet!AE33-BalanceSheet!AD33 -> 52942.56237 | AE18: =BalanceSheet!AF33-BalanceSheet!AE33 -> -41309.01398 | AF18: =BalanceSheet!AG33-BalanceSheet!AF33 -> 24603.34731 | AG18: =BalanceSheet!AH33-BalanceSheet!AG33 -> 40612.78172 | AH18: =BalanceSheet!AI33-BalanceSheet!AH33 -> -57040 | AI18: =BalanceSheet!AJ33-BalanceSheet!AI33 -> 5486.884946 | AJ18: =BalanceSheet!AK33-BalanceSheet!AJ33 -> -8291.401075 | AK18: =BalanceSheet!AL33-BalanceSheet!AK33 -> 33637.40108 | AL18: =BalanceSheet!AM33-BalanceSheet!AL33 -> -55509.65914 | AM18: =BalanceSheet!AN33-BalanceSheet!AM33 -> 35657.41935 | AN18: =BalanceSheet!AO33-BalanceSheet!AN33 -> 6256.358176 | AO18: 18068.76601
A19: VAT | B19: Sales Tax | C19: =BalanceSheet!D34-BalanceSheet!C34 -> 12458.75 | D19: =BalanceSheet!E34-BalanceSheet!D34 -> 28175.25 | E19: =BalanceSheet!F34-BalanceSheet!E34 -> -27276.75 | F19: =BalanceSheet!G34-BalanceSheet!F34 -> 19325.25 | G19: =BalanceSheet!H34-BalanceSheet!G34 -> -21240.75 | H19: =BalanceSheet!I34-BalanceSheet!H34 -> 27329.25 | I19: =BalanceSheet!J34-BalanceSheet!I34 -> -24869.25 | J19: =BalanceSheet!K34-BalanceSheet!J34 -> 24464.25 | K19: =BalanceSheet!L34-BalanceSheet!K34 -> -28954.95 | L19: =BalanceSheet!M34-BalanceSheet!L34 -> 25010.4 | M19: =BalanceSheet!N34-BalanceSheet!M34 -> -17845.8 | N19: =BalanceSheet!O34-BalanceSheet!N34 -> 30004.05 | O19: 46579.7 | P19: =BalanceSheet!Q34-BalanceSheet!P34 -> -30667.05 | Q19: =BalanceSheet!R34-BalanceSheet!Q34 -> 28303.8 | R19: =BalanceSheet!S34-BalanceSheet!R34 -> -28882.35 | S19: =BalanceSheet!T34-BalanceSheet!S34 -> 29934.45 | T19: =BalanceSheet!U34-BalanceSheet!T34 -> -28789.5 | U19: =BalanceSheet!V34-BalanceSheet!U34 -> 26844.9 | V19: =BalanceSheet!W34-BalanceSheet!V34 -> -26234.25 | W19: =BalanceSheet!X34-BalanceSheet!W34 -> 33225.3 | X19: =BalanceSheet!Y34-BalanceSheet!X34 -> -32399.25 | Y19: =BalanceSheet!Z34-BalanceSheet!Y34 -> 19376.25 | Z19: =BalanceSheet!AA34-BalanceSheet!Z34 -> -22564.65 | AA19: =BalanceSheet!AB34-BalanceSheet!AA34 -> 33409.95 | AB19: 1557.6 | AC19: =BalanceSheet!AD34-BalanceSheet!AC34 -> -29780.55 | AD19: =BalanceSheet!AE34-BalanceSheet!AD34 -> 28260 | AE19: =BalanceSheet!AF34-BalanceSheet!AE34 -> -27906 | AF19: =BalanceSheet!AG34-BalanceSheet!AF34 -> 33216.75 | AG19: =BalanceSheet!AH34-BalanceSheet!AG34 -> -45038.25 | AH19: =BalanceSheet!AI34-BalanceSheet!AH34 -> 35431.65 | AI19: =BalanceSheet!AJ34-BalanceSheet!AI34 -> -22003.8 | AJ19: =BalanceSheet!AK34-BalanceSheet!AJ34 -> 36852.45 | AK19: =BalanceSheet!AL34-BalanceSheet!AK34 -> -39190.2 | AL19: =BalanceSheet!AM34-BalanceSheet!AL34 -> 29701.35 | AM19: =BalanceSheet!AN34-BalanceSheet!AM34 -> -27786.6 | AN19: =BalanceSheet!AO34-BalanceSheet!AN34 -> 34309.8 | AO19: 6066.6
A20: PAY | B20: Payroll Accruals | C20: =BalanceSheet!D35-BalanceSheet!C35 -> 0 | D20: =BalanceSheet!E35-BalanceSheet!D35 -> 0 | E20: =BalanceSheet!F35-BalanceSheet!E35 -> 0 | F20: =BalanceSheet!G35-BalanceSheet!F35 -> 0 | G20: =BalanceSheet!H35-BalanceSheet!G35 -> 0 | H20: =BalanceSheet!I35-BalanceSheet!H35 -> 0 | I20: =BalanceSheet!J35-BalanceSheet!I35 -> 0 | J20: =BalanceSheet!K35-BalanceSheet!J35 -> 0 | K20: =BalanceSheet!L35-BalanceSheet!K35 -> 0 | L20: =BalanceSheet!M35-BalanceSheet!L35 -> 0 | M20: =BalanceSheet!N35-BalanceSheet!M35 -> 0 | N20: =BalanceSheet!O35-BalanceSheet!N35 -> 0 | O20: 0 | P20: =BalanceSheet!Q35-BalanceSheet!P35 -> 2000 | Q20: =BalanceSheet!R35-BalanceSheet!Q35 -> 0 | R20: =BalanceSheet!S35-BalanceSheet!R35 -> 0 | S20: =BalanceSheet!T35-BalanceSheet!S35 -> 0 | T20: =BalanceSheet!U35-BalanceSheet!T35 -> 0 | U20: =BalanceSheet!V35-BalanceSheet!U35 -> 0 | V20: =BalanceSheet!W35-BalanceSheet!V35 -> 0 | W20: =BalanceSheet!X35-BalanceSheet!W35 -> 0 | X20: =BalanceSheet!Y35-BalanceSheet!X35 -> 0 | Y20: =BalanceSheet!Z35-BalanceSheet!Y35 -> 0 | Z20: =BalanceSheet!AA35-BalanceSheet!Z35 -> 0 | AA20: =BalanceSheet!AB35-BalanceSheet!AA35 -> 0 | AB20: 2000 | AC20: =BalanceSheet!AD35-BalanceSheet!AC35 -> 2000 | AD20: =BalanceSheet!AE35-BalanceSheet!AD35 -> 0 | AE20: =BalanceSheet!AF35-BalanceSheet!AE35 -> 0 | AF20: =BalanceSheet!AG35-BalanceSheet!AF35 -> 0 | AG20: =BalanceSheet!AH35-BalanceSheet!AG35 -> 0 | AH20: =BalanceSheet!AI35-BalanceSheet!AH35 -> 0 | AI20: =BalanceSheet!AJ35-BalanceSheet!AI35 -> 0 | AJ20: =BalanceSheet!AK35-BalanceSheet!AJ35 -> 0 | AK20: =BalanceSheet!AL35-BalanceSheet!AK35 -> 0 | AL20: =BalanceSheet!AM35-BalanceSheet!AL35 -> 0 | AM20: =BalanceSheet!AN35-BalanceSheet!AM35 -> 0 | AN20: =BalanceSheet!AO35-BalanceSheet!AN35 -> 0 | AO20: 2000
A21: ACC | B21: Other Accruals | C21: -55000 | D21: 0 | E21: 0 | F21: 0 | G21: 0 | H21: 0 | I21: 0 | J21: 0 | K21: 0 | L21: 0 | M21: 0 | N21: 60000 | O21: 5000 | P21: -60000 | Q21: 0 | R21: 0 | S21: 0 | T21: 0 | U21: 0 | V21: 0 | W21: 0 | X21: 0 | Y21: 0 | Z21: 0 | AA21: 66000 | AB21: 6000 | AC21: -66000 | AD21: 0 | AE21: 0 | AF21: 0 | AG21: 0 | AH21: 0 | AI21: 0 | AJ21: 0 | AK21: 0 | AL21: 0 | AM21: 0 | AN21: 50000 | AO21: -16000
A22: OPV | B22: Other Provisions | C22: -42000 | D22: 0 | E22: 0 | F22: 0 | G22: 0 | H22: 0 | I22: 0 | J22: 0 | K22: 0 | L22: 0 | M22: 0 | N22: 30000 | O22: =SUM(C22:N22) -> -12000 | P22: -30000 | Q22: 0 | R22: 0 | S22: 0 | T22: 0 | U22: 0 | V22: 0 | W22: 0 | X22: 0 | Y22: 0 | Z22: 0 | AA22: 21000 | AB22: =SUM(P22:AA22) -> -9000 | AC22: -21000 | AD22: 0 | AE22: 0 | AF22: 0 | AG22: 0 | AH22: 0 | AI22: 0 | AJ22: 0 | AK22: 0 | AL22: 0 | AM22: 0 | AN22: 40000 | AO22: =SUM(AC22:AN22) -> 19000
B23: Cash generated from operations | C23: =SUM(C6:C22) -> 486.1693548 | D23: 90497.66398 | E23: 71816.31989 | F23: 79563.84677 | G23: 33494.52419 | H23: 112173.9274 | I23: 49575.46505 | J23: 109480.664 | K23: 24863.43602 | L23: 163370.4978 | M23: -1306.832258 | N23: 204300.33 | O23: 938316.0122 | P23: 6579.218433 | Q23: 116419.5194 | R23: 76939.54355 | S23: 83801.12312 | T23: 81029.79462 | U23: 128540.6742 | V23: 63404.84785 | W23: 98690.36344 | X23: 51680.15323 | Y23: 194620.7177 | Z23: -56609.2629 | AA23: 182483.488 | AB23: 1027580.181 | AC23: 39411.33134 | AD23: 96202.15914 | AE23: 69216.1957 | AF23: 119501.3876 | AG23: 51265.49946 | AH23: 76596.19839 | AI23: 59059.23548 | AJ23: 178409.3177 | AK23: 55585.93226 | AL23: 210549.0242 | AM23: -4110.180645 | AN23: 217912.577 | AO23: 1169598.678
A24: INT | B24: Interest paid | C24: =-C7 -> -18177.08333 | D24: -18033.27547 | E24: -17888.19193 | F24: -17741.82133 | G24: -17594.15216 | H24: -18216.00618 | I24: -18060.25375 | J24: -17903.12564 | K24: -17744.6096 | L24: -17584.69328 | M24: -19923.36424 | N24: -19730.40672 | O24: =SUM(C24:N24) -> -218596.9836 | P24: =-P7 -> -19535.6966 | Q24: -19339.21781 | R24: -19140.95412 | S24: -18940.88918 | T24: -18739.00644 | U24: -21660.28924 | V24: -21416.96677 | W24: -21171.38275 | X24: -20923.51594 | Y24: -20673.3449 | Z24: -20420.84797 | AA24: -20166.00332 | AB24: =SUM(P24:AA24) -> -242128.115 | AC24: =-AC7 -> -19908.78888 | AD24: -21524.18238 | AE24: -21239.50896 | AF24: -20952.16236 | AG24: -20662.11721 | AH24: -20369.34789 | AI24: -20073.82857 | AJ24: -19775.53312 | AK24: -19474.43522 | AL24: -19170.50824 | AM24: -18863.72533 | AN24: -18554.05938 | AO24: =SUM(AC24:AN24) -> -240568.1975
A25: TAX | B25: Taxation paid | C25: =BalanceSheet!D37-BalanceSheet!C37-C8 -> 0 | D25: =BalanceSheet!E37-BalanceSheet!D37-D8 -> 0 | E25: =BalanceSheet!F37-BalanceSheet!E37-E8 -> 0 | F25: =BalanceSheet!G37-BalanceSheet!F37-F8 -> 0 | G25: =BalanceSheet!H37-BalanceSheet!G37-G8 -> 0 | H25: =BalanceSheet!I37-BalanceSheet!H37-H8 -> -74647.85149 | I25: =BalanceSheet!J37-BalanceSheet!I37-I8 -> 0 | J25: =BalanceSheet!K37-BalanceSheet!J37-J8 -> 0 | K25: =BalanceSheet!L37-BalanceSheet!K37-K8 -> 0 | L25: =BalanceSheet!M37-BalanceSheet!L37-L8 -> 0 | M25: =BalanceSheet!N37-BalanceSheet!M37-M8 -> 0 | N25: =BalanceSheet!O37-BalanceSheet!N37-N8 -> -81713.6731 | O25: =SUM(C25:N25) -> -156361.5246 | P25: =BalanceSheet!Q37-BalanceSheet!O37-P8 -> 0 | Q25: =BalanceSheet!R37-BalanceSheet!Q37-Q8 -> 0 | R25: =BalanceSheet!S37-BalanceSheet!R37-R8 -> 0 | S25: =BalanceSheet!T37-BalanceSheet!S37-S8 -> 0 | T25: =BalanceSheet!U37-BalanceSheet!T37-T8 -> 0 | U25: =BalanceSheet!V37-BalanceSheet!U37-U8 -> -85858.34505 | V25: =BalanceSheet!W37-BalanceSheet!V37-V8 -> 0 | W25: =BalanceSheet!X37-BalanceSheet!W37-W8 -> 0 | X25: =BalanceSheet!Y37-BalanceSheet!X37-X8 -> 0 | Y25: =BalanceSheet!Z37-BalanceSheet!Y37-Y8 -> 0 | Z25: =BalanceSheet!AA37-BalanceSheet!Z37-Z8 -> 0 | AA25: =BalanceSheet!AB37-BalanceSheet!AA37-AA8 -> -76101.18274 | AB25: =SUM(P25:AA25) -> -161959.5278 | AC25: =BalanceSheet!AD37-BalanceSheet!AB37-AC8 -> 0 | AD25: =BalanceSheet!AE37-BalanceSheet!AD37-AD8 -> 0 | AE25: =BalanceSheet!AF37-BalanceSheet!AE37-AE8 -> 0 | AF25: =BalanceSheet!AG37-BalanceSheet!AF37-AF8 -> 0 | AG25: =BalanceSheet!AH37-BalanceSheet!AG37-AG8 -> 0 | AH25: =BalanceSheet!AI37-BalanceSheet!AH37-AH8 -> -71496.56985 | AI25: =BalanceSheet!AJ37-BalanceSheet!AI37-AI8 -> 0 | AJ25: =BalanceSheet!AK37-BalanceSheet!AJ37-AJ8 -> 0 | AK25: =BalanceSheet!AL37-BalanceSheet!AK37-AK8 -> 0 | AL25: =BalanceSheet!AM37-BalanceSheet!AL37-AL8 -> 0 | AM25: =BalanceSheet!AN37-BalanceSheet!AM37-AM8 -> 0 | AN25: =BalanceSheet!AO37-BalanceSheet!AN37-AN8 -> -101737.6948 | AO25: =SUM(AC25:AN25) -> -173234.2647
B26: Net cash from operating activities | C26: =SUM(C23:C25) -> -17690.91398 | D26: =SUM(D23:D25) -> 72464.38851 | E26: 53928.12796 | F26: 61822.02545 | G26: 15900.37203 | H26: 19310.06975 | I26: 31515.2113 | J26: 91577.53834 | K26: 7118.826426 | L26: 145785.8046 | M26: -21230.1965 | N26: 102856.2501 | O26: 563357.504 | P26: -12956.47816 | Q26: 97080.30155 | R26: 57798.58942 | S26: 64860.23394 | T26: 62290.78818 | U26: 21022.0399 | V26: 41987.88108 | W26: 77518.98069 | X26: 30756.63728 | Y26: 173947.3728 | Z26: -77030.11088 | AA26: 86216.30196 | AB26: 623492.5378 | AC26: 19502.54246 | AD26: 74677.97676 | AE26: 47976.68674 | AF26: 98549.22527 | AG26: 30603.38225 | AH26: -15269.71936 | AI26: 38985.40692 | AJ26: 158633.7846 | AK26: 36111.49704 | AL26: 191378.516 | AM26: -22973.90598 | AN26: 97620.82275 | AO26: 755796.2154
B27: Cash flows from investing activities
A28: PPE | B28: Purchases of property, plant & equipment | C28: 0 | D28: 0 | E28: 0 | F28: 0 | G28: 0 | H28: 0 | I28: 0 | J28: 0 | K28: 0 | L28: 0 | M28: -240000 | N28: 0 | O28: =SUM(C28:N28) -> -240000 | P28: 0 | Q28: 0 | R28: 0 | S28: 0 | T28: 0 | U28: -300000 | V28: 0 | W28: 0 | X28: 0 | Y28: 0 | Z28: 0 | AA28: 0 | AB28: =SUM(P28:AA28) -> -300000 | AC28: 0 | AD28: -180000 | AE28: 0 | AF28: 0 | AG28: 0 | AH28: 0 | AI28: 0 | AJ28: 0 | AK28: 0 | AL28: 0 | AM28: 0 | AN28: 0 | AO28: =SUM(AC28:AN28) -> -180000
A29: INA | B29: Purchases of intangible assets | C29: 0 | D29: 0 | E29: 0 | F29: 0 | G29: 0 | H29: 0 | I29: 0 | J29: 0 | K29: 0 | L29: 0 | M29: 0 | N29: 0 | O29: =SUM(C29:N29) -> 0 | P29: 0 | Q29: 0 | R29: 0 | S29: 0 | T29: 0 | U29: 0 | V29: 0 | W29: 0 | X29: 0 | Y29: 0 | Z29: 0 | AA29: 0 | AB29: =SUM(P29:AA29) -> 0 | AC29: 0 | AD29: 0 | AE29: 0 | AF29: 0 | AG29: 0 | AH29: 0 | AI29: 0 | AJ29: 0 | AK29: 0 | AL29: 0 | AM29: 0 | AN29: 0 | AO29: =SUM(AC29:AN29) -> 0
A30: INV | B30: Purchases of investments | C30: 0 | D30: 0 | E30: 0 | F30: 0 | G30: 0 | H30: 0 | I30: 0 | J30: 0 | K30: 0 | L30: 0 | M30: 0 | N30: 0 | O30: 0 | P30: 0 | Q30: 0 | R30: 0 | S30: 0 | T30: 0 | U30: 0 | V30: 0 | W30: -400000 | X30: 0 | Y30: 0 | Z30: 0 | AA30: 0 | AB30: -400000 | AC30: 0 | AD30: -600000 | AE30: 0 | AF30: 0 | AG30: 0 | AH30: 0 | AI30: 0 | AJ30: 0 | AK30: 0 | AL30: 0 | AM30: 0 | AN30: 0 | AO30: -600000
B31: Net cash used in investing activities | C31: =SUM(C28:C30) -> 0 | D31: =SUM(D28:D30) -> 0 | E31: 0 | F31: 0 | G31: 0 | H31: 0 | I31: 0 | J31: 0 | K31: 0 | L31: 0 | M31: -240000 | N31: 0 | O31: -240000 | P31: 0 | Q31: 0 | R31: 0 | S31: 0 | T31: 0 | U31: -300000 | V31: 0 | W31: -400000 | X31: 0 | Y31: 0 | Z31: 0 | AA31: 0 | AB31: -700000 | AC31: 0 | AD31: -780000 | AE31: 0 | AF31: 0 | AG31: 0 | AH31: 0 | AI31: 0 | AJ31: 0 | AK31: 0 | AL31: 0 | AM31: 0 | AN31: 0 | AO31: -780000
B32: Cash flows from financing activities
A33: CAP | B33: Proceeds from shareholders' contributions | C33: 0 | D33: 0 | E33: 0 | F33: 0 | G33: 0 | H33: 0 | I33: 0 | J33: 0 | K33: 0 | L33: 0 | M33: 0 | N33: 0 | O33: =SUM(C33:N33) -> 0 | P33: 0 | Q33: 0 | R33: 0 | S33: 0 | T33: 0 | U33: 0 | V33: 0 | W33: 0 | X33: 0 | Y33: 0 | Z33: 0 | AA33: 0 | AB33: =SUM(P33:AA33) -> 0 | AC33: 0 | AD33: 0 | AE33: 0 | AF33: 0 | AG33: 0 | AH33: 0 | AI33: 0 | AJ33: 0 | AK33: 0 | AL33: 0 | AM33: 0 | AN33: 0 | AO33: =SUM(AC33:AN33) -> 0
A34: DIV | B34: Dividends paid | C34: =BalanceSheet!D38-BalanceSheet!C38-IncState!C60 -> 0 | D34: =BalanceSheet!E38-BalanceSheet!D38-IncState!D60 -> 0 | E34: =BalanceSheet!F38-BalanceSheet!E38-IncState!E60 -> 0 | F34: =BalanceSheet!G38-BalanceSheet!F38-IncState!F60 -> 0 | G34: =BalanceSheet!H38-BalanceSheet!G38-IncState!G60 -> 0 | H34: =BalanceSheet!I38-BalanceSheet!H38-IncState!H60 -> 0 | I34: =BalanceSheet!J38-BalanceSheet!I38-IncState!I60 -> 0 | J34: =BalanceSheet!K38-BalanceSheet!J38-IncState!J60 -> 0 | K34: =BalanceSheet!L38-BalanceSheet!K38-IncState!K60 -> 0 | L34: =BalanceSheet!M38-BalanceSheet!L38-IncState!L60 -> 0 | M34: =BalanceSheet!N38-BalanceSheet!M38-IncState!M60 -> 0 | N34: =BalanceSheet!O38-BalanceSheet!N38-IncState!N60 -> 0 | O34: =SUM(C34:N34) -> 0 | P34: =BalanceSheet!Q38-BalanceSheet!P38-IncState!P60 -> 0 | Q34: =BalanceSheet!R38-BalanceSheet!Q38-IncState!Q60 -> 0 | R34: =BalanceSheet!S38-BalanceSheet!R38-IncState!R60 -> 0 | S34: =BalanceSheet!T38-BalanceSheet!S38-IncState!S60 -> 0 | T34: =BalanceSheet!U38-BalanceSheet!T38-IncState!T60 -> 0 | U34: =BalanceSheet!V38-BalanceSheet!U38-IncState!U60 -> 0 | V34: =BalanceSheet!W38-BalanceSheet!V38-IncState!V60 -> 0 | W34: =BalanceSheet!X38-BalanceSheet!W38-IncState!W60 -> 0 | X34: =BalanceSheet!Y38-BalanceSheet!X38-IncState!X60 -> 0 | Y34: =BalanceSheet!Z38-BalanceSheet!Y38-IncState!Y60 -> 0 | Z34: =BalanceSheet!AA38-BalanceSheet!Z38-IncState!Z60 -> 0 | AA34: =BalanceSheet!AB38-BalanceSheet!AA38-IncState!AA60 -> 0 | AB34: =SUM(P34:AA34) -> 0 | AC34: =BalanceSheet!AD38-BalanceSheet!AC38-IncState!AC60 -> 0 | AD34: =BalanceSheet!AE38-BalanceSheet!AD38-IncState!AD60 -> 0 | AE34: =BalanceSheet!AF38-BalanceSheet!AE38-IncState!AE60 -> 0 | AF34: =BalanceSheet!AG38-BalanceSheet!AF38-IncState!AF60 -> 0 | AG34: =BalanceSheet!AH38-BalanceSheet!AG38-IncState!AG60 -> 0 | AH34: =BalanceSheet!AI38-BalanceSheet!AH38-IncState!AH60 -> 0 | AI34: =BalanceSheet!AJ38-BalanceSheet!AI38-IncState!AI60 -> 0 | AJ34: =BalanceSheet!AK38-BalanceSheet!AJ38-IncState!AJ60 -> 0 | AK34: =BalanceSheet!AL38-BalanceSheet!AK38-IncState!AK60 -> 0 | AL34: =BalanceSheet!AM38-BalanceSheet!AL38-IncState!AL60 -> 0 | AM34: =BalanceSheet!AN38-BalanceSheet!AM38-IncState!AM60 -> 0 | AN34: =BalanceSheet!AO38-BalanceSheet!AN38-IncState!AN60 -> 0 | AO34: =SUM(AC34:AN34) -> 0
A35: LT1 | B35: Proceeds from loans 1 | C35: 0 | D35: 0 | E35: 0 | F35: 0 | G35: 0 | H35: 0 | I35: 0 | J35: 0 | K35: 0 | L35: 0 | M35: 0 | N35: 0 | O35: =SUM(C35:N35) -> 0 | P35: 0 | Q35: 0 | R35: 0 | S35: 0 | T35: 0 | U35: 0 | V35: 0 | W35: 0 | X35: 0 | Y35: 0 | Z35: 0 | AA35: 0 | AB35: =SUM(P35:AA35) -> 0 | AC35: 0 | AD35: 0 | AE35: 0 | AF35: 0 | AG35: 0 | AH35: 0 | AI35: 0 | AJ35: 0 | AK35: 0 | AL35: 0 | AM35: 0 | AN35: 0 | AO35: =SUM(AC35:AN35) -> 0
A36: LT2 | B36: Proceeds from loans 2 | C36: 0 | D36: 0 | E36: 0 | F36: 0 | G36: 0 | H36: 100000 | I36: 0 | J36: 0 | K36: 0 | L36: 0 | M36: 0 | N36: 0 | O36: =SUM(C36:N36) -> 100000 | P36: 0 | Q36: 0 | R36: 0 | S36: 0 | T36: 0 | U36: 0 | V36: 0 | W36: 0 | X36: 0 | Y36: 0 | Z36: 0 | AA36: 0 | AB36: =SUM(P36:AA36) -> 0 | AC36: 0 | AD36: 0 | AE36: 0 | AF36: 0 | AG36: 0 | AH36: 0 | AI36: 0 | AJ36: 0 | AK36: 0 | AL36: 0 | AM36: 0 | AN36: 0 | AO36: 0
A37: LT3 | B37: Proceeds from loans 3 | C37: 0 | D37: 0 | E37: 0 | F37: 0 | G37: 0 | H37: 0 | I37: 0 | J37: 0 | K37: 0 | L37: 0 | M37: 240000 | N37: 0 | O37: 240000 | P37: 0 | Q37: 0 | R37: 0 | S37: 0 | T37: 0 | U37: 300000 | V37: 0 | W37: 0 | X37: 0 | Y37: 0 | Z37: 0 | AA37: 0 | AB37: 300000 | AC37: 0 | AD37: 180000 | AE37: 0 | AF37: 0 | AG37: 0 | AH37: 0 | AI37: 0 | AJ37: 0 | AK37: 0 | AL37: 0 | AM37: 0 | AN37: 0 | AO37: 180000
A38: FIN | B38: Proceeds from finance leases | C38: 0 | D38: 0 | E38: 0 | F38: 0 | G38: 0 | H38: 0 | I38: 0 | J38: 0 | K38: 0 | L38: 0 | M38: 0 | N38: 0 | O38: 0 | P38: 0 | Q38: 0 | R38: 0 | S38: 0 | T38: 0 | U38: 0 | V38: 0 | W38: 0 | X38: 0 | Y38: 0 | Z38: 0 | AA38: 0 | AB38: 0 | AC38: 0 | AD38: 0 | AE38: 0 | AF38: 0 | AG38: 0 | AH38: 0 | AI38: 0 | AJ38: 0 | AK38: 0 | AL38: 0 | AM38: 0 | AN38: 0 | AO38: 0
A39: LT1 | B39: Repayment of loans 1 | C39: =-OFFSET(Loans1!$F$9,COLUMN(C32)-COLUMN($B32)-ROUNDDOWN((COLUMN(C32)-COLUMN($B32))/13,0),0,1,1) -> -5774.680225 | D39: =-OFFSET(Loans1!$F$9,COLUMN(D32)-COLUMN($B32)-ROUNDDOWN((COLUMN(D32)-COLUMN($B32))/13,0),0,1,1) -> -5824.005619 | E39: =-OFFSET(Loans1!$F$9,COLUMN(E32)-COLUMN($B32)-ROUNDDOWN((COLUMN(E32)-COLUMN($B32))/13,0),0,1,1) -> -5873.752333 | F39: =-OFFSET(Loans1!$F$9,COLUMN(F32)-COLUMN($B32)-ROUNDDOWN((COLUMN(F32)-COLUMN($B32))/13,0),0,1,1) -> -5923.923968 | G39: =-OFFSET(Loans1!$F$9,COLUMN(G32)-COLUMN($B32)-ROUNDDOWN((COLUMN(G32)-COLUMN($B32))/13,0),0,1,1) -> -5974.524152 | H39: =-OFFSET(Loans1!$F$9,COLUMN(H32)-COLUMN($B32)-ROUNDDOWN((COLUMN(H32)-COLUMN($B32))/13,0),0,1,1) -> -6025.556546 | I39: =-OFFSET(Loans1!$F$9,COLUMN(I32)-COLUMN($B32)-ROUNDDOWN((COLUMN(I32)-COLUMN($B32))/13,0),0,1,1) -> -6077.024841 | J39: =-OFFSET(Loans1!$F$9,COLUMN(J32)-COLUMN($B32)-ROUNDDOWN((COLUMN(J32)-COLUMN($B32))/13,0),0,1,1) -> -6128.932762 | K39: =-OFFSET(Loans1!$F$9,COLUMN(K32)-COLUMN($B32)-ROUNDDOWN((COLUMN(K32)-COLUMN($B32))/13,0),0,1,1) -> -6181.284062 | L39: =-OFFSET(Loans1!$F$9,COLUMN(L32)-COLUMN($B32)-ROUNDDOWN((COLUMN(L32)-COLUMN($B32))/13,0),0,1,1) -> -6234.08253 | M39: =-OFFSET(Loans1!$F$9,COLUMN(M32)-COLUMN($B32)-ROUNDDOWN((COLUMN(M32)-COLUMN($B32))/13,0),0,1,1) -> -6287.331985 | N39: =-OFFSET(Loans1!$F$9,COLUMN(N32)-COLUMN($B32)-ROUNDDOWN((COLUMN(N32)-COLUMN($B32))/13,0),0,1,1) -> -6341.036279 | O39: -72646.1353 | P39: =-OFFSET(Loans1!$F$9,COLUMN(P32)-COLUMN($B32)-ROUNDDOWN((COLUMN(P32)-COLUMN($B32))/13,0),0,1,1) -> -6395.199298 | Q39: =-OFFSET(Loans1!$F$9,COLUMN(Q32)-COLUMN($B32)-ROUNDDOWN((COLUMN(Q32)-COLUMN($B32))/13,0),0,1,1) -> -6449.824958 | R39: =-OFFSET(Loans1!$F$9,COLUMN(R32)-COLUMN($B32)-ROUNDDOWN((COLUMN(R32)-COLUMN($B32))/13,0),0,1,1) -> -6504.917213 | S39: =-OFFSET(Loans1!$F$9,COLUMN(S32)-COLUMN($B32)-ROUNDDOWN((COLUMN(S32)-COLUMN($B32))/13,0),0,1,1) -> -6560.480048 | T39: =-OFFSET(Loans1!$F$9,COLUMN(T32)-COLUMN($B32)-ROUNDDOWN((COLUMN(T32)-COLUMN($B32))/13,0),0,1,1) -> -6616.517481 | U39: =-OFFSET(Loans1!$F$9,COLUMN(U32)-COLUMN($B32)-ROUNDDOWN((COLUMN(U32)-COLUMN($B32))/13,0),0,1,1) -> -6673.033568 | V39: =-OFFSET(Loans1!$F$9,COLUMN(V32)-COLUMN($B32)-ROUNDDOWN((COLUMN(V32)-COLUMN($B32))/13,0),0,1,1) -> -6730.032397 | W39: =-OFFSET(Loans1!$F$9,COLUMN(W32)-COLUMN($B32)-ROUNDDOWN((COLUMN(W32)-COLUMN($B32))/13,0),0,1,1) -> -6787.51809 | X39: =-OFFSET(Loans1!$F$9,COLUMN(X32)-COLUMN($B32)-ROUNDDOWN((COLUMN(X32)-COLUMN($B32))/13,0),0,1,1) -> -6845.494807 | Y39: =-OFFSET(Loans1!$F$9,COLUMN(Y32)-COLUMN($B32)-ROUNDDOWN((COLUMN(Y32)-COLUMN($B32))/13,0),0,1,1) -> -6903.966742 | Z39: =-OFFSET(Loans1!$F$9,COLUMN(Z32)-COLUMN($B32)-ROUNDDOWN((COLUMN(Z32)-COLUMN($B32))/13,0),0,1,1) -> -6962.938124 | AA39: =-OFFSET(Loans1!$F$9,COLUMN(AA32)-COLUMN($B32)-ROUNDDOWN((COLUMN(AA32)-COLUMN($B32))/13,0),0,1,1) -> -7022.413221 | AB39: -80452.33595 | AC39: =-OFFSET(Loans1!$F$9,COLUMN(AC32)-COLUMN($B32)-ROUNDDOWN((COLUMN(AC32)-COLUMN($B32))/13,0),0,1,1) -> -7082.396334 | AD39: =-OFFSET(Loans1!$F$9,COLUMN(AD32)-COLUMN($B32)-ROUNDDOWN((COLUMN(AD32)-COLUMN($B32))/13,0),0,1,1) -> -7142.891802 | AE39: =-OFFSET(Loans1!$F$9,COLUMN(AE32)-COLUMN($B32)-ROUNDDOWN((COLUMN(AE32)-COLUMN($B32))/13,0),0,1,1) -> -7203.904003 | AF39: =-OFFSET(Loans1!$F$9,COLUMN(AF32)-COLUMN($B32)-ROUNDDOWN((COLUMN(AF32)-COLUMN($B32))/13,0),0,1,1) -> -7265.43735 | AG39: =-OFFSET(Loans1!$F$9,COLUMN(AG32)-COLUMN($B32)-ROUNDDOWN((COLUMN(AG32)-COLUMN($B32))/13,0),0,1,1) -> -7327.496294 | AH39: =-OFFSET(Loans1!$F$9,COLUMN(AH32)-COLUMN($B32)-ROUNDDOWN((COLUMN(AH32)-COLUMN($B32))/13,0),0,1,1) -> -7390.085325 | AI39: =-OFFSET(Loans1!$F$9,COLUMN(AI32)-COLUMN($B32)-ROUNDDOWN((COLUMN(AI32)-COLUMN($B32))/13,0),0,1,1) -> -7453.20897 | AJ39: =-OFFSET(Loans1!$F$9,COLUMN(AJ32)-COLUMN($B32)-ROUNDDOWN((COLUMN(AJ32)-COLUMN($B32))/13,0),0,1,1) -> -7516.871797 | AK39: =-OFFSET(Loans1!$F$9,COLUMN(AK32)-COLUMN($B32)-ROUNDDOWN((COLUMN(AK32)-COLUMN($B32))/13,0),0,1,1) -> -7581.07841 | AL39: =-OFFSET(Loans1!$F$9,COLUMN(AL32)-COLUMN($B32)-ROUNDDOWN((COLUMN(AL32)-COLUMN($B32))/13,0),0,1,1) -> -7645.833455 | AM39: =-OFFSET(Loans1!$F$9,COLUMN(AM32)-COLUMN($B32)-ROUNDDOWN((COLUMN(AM32)-COLUMN($B32))/13,0),0,1,1) -> -7711.141616 | AN39: =-OFFSET(Loans1!$F$9,COLUMN(AN32)-COLUMN($B32)-ROUNDDOWN((COLUMN(AN32)-COLUMN($B32))/13,0),0,1,1) -> -7777.007617 | AO39: -89097.35297
A40: LT2 | B40: Repayment of loans 2 | C40: =-OFFSET(Loans2!$F$9,COLUMN(C33)-COLUMN($B33)-ROUNDDOWN((COLUMN(C33)-COLUMN($B33))/13,0),0,1,1) -> -3535.943414 | D40: =-OFFSET(Loans2!$F$9,COLUMN(D33)-COLUMN($B33)-ROUNDDOWN((COLUMN(D33)-COLUMN($B33))/13,0),0,1,1) -> -3563.199644 | E40: =-OFFSET(Loans2!$F$9,COLUMN(E33)-COLUMN($B33)-ROUNDDOWN((COLUMN(E33)-COLUMN($B33))/13,0),0,1,1) -> -3590.665975 | F40: =-OFFSET(Loans2!$F$9,COLUMN(F33)-COLUMN($B33)-ROUNDDOWN((COLUMN(F33)-COLUMN($B33))/13,0),0,1,1) -> -3618.344025 | G40: =-OFFSET(Loans2!$F$9,COLUMN(G33)-COLUMN($B33)-ROUNDDOWN((COLUMN(G33)-COLUMN($B33))/13,0),0,1,1) -> -3646.235427 | H40: =-OFFSET(Loans2!$F$9,COLUMN(H33)-COLUMN($B33)-ROUNDDOWN((COLUMN(H33)-COLUMN($B33))/13,0),0,1,1) -> -4381.530507 | I40: =-OFFSET(Loans2!$F$9,COLUMN(I33)-COLUMN($B33)-ROUNDDOWN((COLUMN(I33)-COLUMN($B33))/13,0),0,1,1) -> -4415.304805 | J40: =-OFFSET(Loans2!$F$9,COLUMN(J33)-COLUMN($B33)-ROUNDDOWN((COLUMN(J33)-COLUMN($B33))/13,0),0,1,1) -> -4449.339446 | K40: =-OFFSET(Loans2!$F$9,COLUMN(K33)-COLUMN($B33)-ROUNDDOWN((COLUMN(K33)-COLUMN($B33))/13,0),0,1,1) -> -4483.636438 | L40: =-OFFSET(Loans2!$F$9,COLUMN(L33)-COLUMN($B33)-ROUNDDOWN((COLUMN(L33)-COLUMN($B33))/13,0),0,1,1) -> -4518.197802 | M40: =-OFFSET(Loans2!$F$9,COLUMN(M33)-COLUMN($B33)-ROUNDDOWN((COLUMN(M33)-COLUMN($B33))/13,0),0,1,1) -> -4553.025577 | N40: =-OFFSET(Loans2!$F$9,COLUMN(N33)-COLUMN($B33)-ROUNDDOWN((COLUMN(N33)-COLUMN($B33))/13,0),0,1,1) -> -4588.121816 | O40: =SUM(C40:N40) -> -49343.54488 | P40: =-OFFSET(Loans2!$F$9,COLUMN(P33)-COLUMN($B33)-ROUNDDOWN((COLUMN(P33)-COLUMN($B33))/13,0),0,1,1) -> -4623.488588 | Q40: =-OFFSET(Loans2!$F$9,COLUMN(Q33)-COLUMN($B33)-ROUNDDOWN((COLUMN(Q33)-COLUMN($B33))/13,0),0,1,1) -> -4659.127979 | R40: =-OFFSET(Loans2!$F$9,COLUMN(R33)-COLUMN($B33)-ROUNDDOWN((COLUMN(R33)-COLUMN($B33))/13,0),0,1,1) -> -4695.042091 | S40: =-OFFSET(Loans2!$F$9,COLUMN(S33)-COLUMN($B33)-ROUNDDOWN((COLUMN(S33)-COLUMN($B33))/13,0),0,1,1) -> -4731.23304 | T40: =-OFFSET(Loans2!$F$9,COLUMN(T33)-COLUMN($B33)-ROUNDDOWN((COLUMN(T33)-COLUMN($B33))/13,0),0,1,1) -> -4767.702962 | U40: =-OFFSET(Loans2!$F$9,COLUMN(U33)-COLUMN($B33)-ROUNDDOWN((COLUMN(U33)-COLUMN($B33))/13,0),0,1,1) -> -4804.454005 | V40: =-OFFSET(Loans2!$F$9,COLUMN(V33)-COLUMN($B33)-ROUNDDOWN((COLUMN(V33)-COLUMN($B33))/13,0),0,1,1) -> -4841.488338 | W40: =-OFFSET(Loans2!$F$9,COLUMN(W33)-COLUMN($B33)-ROUNDDOWN((COLUMN(W33)-COLUMN($B33))/13,0),0,1,1) -> -4878.808144 | X40: =-OFFSET(Loans2!$F$9,COLUMN(X33)-COLUMN($B33)-ROUNDDOWN((COLUMN(X33)-COLUMN($B33))/13,0),0,1,1) -> -4916.415624 | Y40: =-OFFSET(Loans2!$F$9,COLUMN(Y33)-COLUMN($B33)-ROUNDDOWN((COLUMN(Y33)-COLUMN($B33))/13,0),0,1,1) -> -4954.312994 | Z40: =-OFFSET(Loans2!$F$9,COLUMN(Z33)-COLUMN($B33)-ROUNDDOWN((COLUMN(Z33)-COLUMN($B33))/13,0),0,1,1) -> -4992.50249 | AA40: =-OFFSET(Loans2!$F$9,COLUMN(AA33)-COLUMN($B33)-ROUNDDOWN((COLUMN(AA33)-COLUMN($B33))/13,0),0,1,1) -> -5030.986363 | AB40: =SUM(P40:AA40) -> -57895.56262 | AC40: =-OFFSET(Loans2!$F$9,COLUMN(AC33)-COLUMN($B33)-ROUNDDOWN((COLUMN(AC33)-COLUMN($B33))/13,0),0,1,1) -> -5069.766883 | AD40: =-OFFSET(Loans2!$F$9,COLUMN(AD33)-COLUMN($B33)-ROUNDDOWN((COLUMN(AD33)-COLUMN($B33))/13,0),0,1,1) -> -5108.846336 | AE40: =-OFFSET(Loans2!$F$9,COLUMN(AE33)-COLUMN($B33)-ROUNDDOWN((COLUMN(AE33)-COLUMN($B33))/13,0),0,1,1) -> -5148.227027 | AF40: =-OFFSET(Loans2!$F$9,COLUMN(AF33)-COLUMN($B33)-ROUNDDOWN((COLUMN(AF33)-COLUMN($B33))/13,0),0,1,1) -> -5187.911277 | AG40: =-OFFSET(Loans2!$F$9,COLUMN(AG33)-COLUMN($B33)-ROUNDDOWN((COLUMN(AG33)-COLUMN($B33))/13,0),0,1,1) -> -5227.901426 | AH40: =-OFFSET(Loans2!$F$9,COLUMN(AH33)-COLUMN($B33)-ROUNDDOWN((COLUMN(AH33)-COLUMN($B33))/13,0),0,1,1) -> -5268.199833 | AI40: =-OFFSET(Loans2!$F$9,COLUMN(AI33)-COLUMN($B33)-ROUNDDOWN((COLUMN(AI33)-COLUMN($B33))/13,0),0,1,1) -> -5308.808873 | AJ40: =-OFFSET(Loans2!$F$9,COLUMN(AJ33)-COLUMN($B33)-ROUNDDOWN((COLUMN(AJ33)-COLUMN($B33))/13,0),0,1,1) -> -5349.730942 | AK40: =-OFFSET(Loans2!$F$9,COLUMN(AK33)-COLUMN($B33)-ROUNDDOWN((COLUMN(AK33)-COLUMN($B33))/13,0),0,1,1) -> -5390.968451 | AL40: =-OFFSET(Loans2!$F$9,COLUMN(AL33)-COLUMN($B33)-ROUNDDOWN((COLUMN(AL33)-COLUMN($B33))/13,0),0,1,1) -> -5432.523833 | AM40: =-OFFSET(Loans2!$F$9,COLUMN(AM33)-COLUMN($B33)-ROUNDDOWN((COLUMN(AM33)-COLUMN($B33))/13,0),0,1,1) -> -5474.399537 | AN40: =-OFFSET(Loans2!$F$9,COLUMN(AN33)-COLUMN($B33)-ROUNDDOWN((COLUMN(AN33)-COLUMN($B33))/13,0),0,1,1) -> -5516.598034 | AO40: =SUM(AC40:AN40) -> -63483.88245
A41: LT3 | B41: Repayment of loans 3 | C41: =-OFFSET(Loans3!$F$9,COLUMN(C35)-COLUMN($B35)-ROUNDDOWN((COLUMN(C35)-COLUMN($B35))/13,0),0,1,1) -> 0 | D41: =-OFFSET(Loans3!$F$9,COLUMN(D35)-COLUMN($B35)-ROUNDDOWN((COLUMN(D35)-COLUMN($B35))/13,0),0,1,1) -> 0 | E41: =-OFFSET(Loans3!$F$9,COLUMN(E35)-COLUMN($B35)-ROUNDDOWN((COLUMN(E35)-COLUMN($B35))/13,0),0,1,1) -> 0 | F41: =-OFFSET(Loans3!$F$9,COLUMN(F35)-COLUMN($B35)-ROUNDDOWN((COLUMN(F35)-COLUMN($B35))/13,0),0,1,1) -> 0 | G41: =-OFFSET(Loans3!$F$9,COLUMN(G35)-COLUMN($B35)-ROUNDDOWN((COLUMN(G35)-COLUMN($B35))/13,0),0,1,1) -> 0 | H41: =-OFFSET(Loans3!$F$9,COLUMN(H35)-COLUMN($B35)-ROUNDDOWN((COLUMN(H35)-COLUMN($B35))/13,0),0,1,1) -> 0 | I41: =-OFFSET(Loans3!$F$9,COLUMN(I35)-COLUMN($B35)-ROUNDDOWN((COLUMN(I35)-COLUMN($B35))/13,0),0,1,1) -> 0 | J41: =-OFFSET(Loans3!$F$9,COLUMN(J35)-COLUMN($B35)-ROUNDDOWN((COLUMN(J35)-COLUMN($B35))/13,0),0,1,1) -> 0 | K41: =-OFFSET(Loans3!$F$9,COLUMN(K35)-COLUMN($B35)-ROUNDDOWN((COLUMN(K35)-COLUMN($B35))/13,0),0,1,1) -> 0 | L41: =-OFFSET(Loans3!$F$9,COLUMN(L35)-COLUMN($B35)-ROUNDDOWN((COLUMN(L35)-COLUMN($B35))/13,0),0,1,1) -> 0 | M41: =-OFFSET(Loans3!$F$9,COLUMN(M35)-COLUMN($B35)-ROUNDDOWN((COLUMN(M35)-COLUMN($B35))/13,0),0,1,1) -> -2899.505174 | N41: =-OFFSET(Loans3!$F$9,COLUMN(N35)-COLUMN($B35)-ROUNDDOWN((COLUMN(N35)-COLUMN($B35))/13,0),0,1,1) -> -2929.708353 | O41: -5829.213527 | P41: =-OFFSET(Loans3!$F$9,COLUMN(P35)-COLUMN($B35)-ROUNDDOWN((COLUMN(P35)-COLUMN($B35))/13,0),0,1,1) -> -2960.226148 | Q41: =-OFFSET(Loans3!$F$9,COLUMN(Q35)-COLUMN($B35)-ROUNDDOWN((COLUMN(Q35)-COLUMN($B35))/13,0),0,1,1) -> -2991.061837 | R41: =-OFFSET(Loans3!$F$9,COLUMN(R35)-COLUMN($B35)-ROUNDDOWN((COLUMN(R35)-COLUMN($B35))/13,0),0,1,1) -> -3022.218732 | S41: =-OFFSET(Loans3!$F$9,COLUMN(S35)-COLUMN($B35)-ROUNDDOWN((COLUMN(S35)-COLUMN($B35))/13,0),0,1,1) -> -3053.700177 | T41: =-OFFSET(Loans3!$F$9,COLUMN(T35)-COLUMN($B35)-ROUNDDOWN((COLUMN(T35)-COLUMN($B35))/13,0),0,1,1) -> -3085.509553 | U41: =-OFFSET(Loans3!$F$9,COLUMN(U35)-COLUMN($B35)-ROUNDDOWN((COLUMN(U35)-COLUMN($B35))/13,0),0,1,1) -> -6742.031746 | V41: =-OFFSET(Loans3!$F$9,COLUMN(V35)-COLUMN($B35)-ROUNDDOWN((COLUMN(V35)-COLUMN($B35))/13,0),0,1,1) -> -6812.261243 | W41: =-OFFSET(Loans3!$F$9,COLUMN(W35)-COLUMN($B35)-ROUNDDOWN((COLUMN(W35)-COLUMN($B35))/13,0),0,1,1) -> -6883.222298 | X41: =-OFFSET(Loans3!$F$9,COLUMN(X35)-COLUMN($B35)-ROUNDDOWN((COLUMN(X35)-COLUMN($B35))/13,0),0,1,1) -> -6954.92253 | Y41: =-OFFSET(Loans3!$F$9,COLUMN(Y35)-COLUMN($B35)-ROUNDDOWN((COLUMN(Y35)-COLUMN($B35))/13,0),0,1,1) -> -7027.36964 | Z41: =-OFFSET(Loans3!$F$9,COLUMN(Z35)-COLUMN($B35)-ROUNDDOWN((COLUMN(Z35)-COLUMN($B35))/13,0),0,1,1) -> -7100.571407 | AA41: =-OFFSET(Loans3!$F$9,COLUMN(AA35)-COLUMN($B35)-ROUNDDOWN((COLUMN(AA35)-COLUMN($B35))/13,0),0,1,1) -> -7174.535692 | AB41: -63807.631 | AC41: =-OFFSET(Loans3!$F$9,COLUMN(AC35)-COLUMN($B35)-ROUNDDOWN((COLUMN(AC35)-COLUMN($B35))/13,0),0,1,1) -> -7249.270439 | AD41: =-OFFSET(Loans3!$F$9,COLUMN(AD35)-COLUMN($B35)-ROUNDDOWN((COLUMN(AD35)-COLUMN($B35))/13,0),0,1,1) -> -9499.412553 | AE41: =-OFFSET(Loans3!$F$9,COLUMN(AE35)-COLUMN($B35)-ROUNDDOWN((COLUMN(AE35)-COLUMN($B35))/13,0),0,1,1) -> -9598.364767 | AF41: =-OFFSET(Loans3!$F$9,COLUMN(AF35)-COLUMN($B35)-ROUNDDOWN((COLUMN(AF35)-COLUMN($B35))/13,0),0,1,1) -> -9698.347734 | AG41: =-OFFSET(Loans3!$F$9,COLUMN(AG35)-COLUMN($B35)-ROUNDDOWN((COLUMN(AG35)-COLUMN($B35))/13,0),0,1,1) -> -9799.372189 | AH41: =-OFFSET(Loans3!$F$9,COLUMN(AH35)-COLUMN($B35)-ROUNDDOWN((COLUMN(AH35)-COLUMN($B35))/13,0),0,1,1) -> -9901.448983 | AI41: =-OFFSET(Loans3!$F$9,COLUMN(AI35)-COLUMN($B35)-ROUNDDOWN((COLUMN(AI35)-COLUMN($B35))/13,0),0,1,1) -> -10004.58908 | AJ41: =-OFFSET(Loans3!$F$9,COLUMN(AJ35)-COLUMN($B35)-ROUNDDOWN((COLUMN(AJ35)-COLUMN($B35))/13,0),0,1,1) -> -10108.80355 | AK41: =-OFFSET(Loans3!$F$9,COLUMN(AK35)-COLUMN($B35)-ROUNDDOWN((COLUMN(AK35)-COLUMN($B35))/13,0),0,1,1) -> -10214.10358 | AL41: =-OFFSET(Loans3!$F$9,COLUMN(AL35)-COLUMN($B35)-ROUNDDOWN((COLUMN(AL35)-COLUMN($B35))/13,0),0,1,1) -> -10320.5005 | AM41: =-OFFSET(Loans3!$F$9,COLUMN(AM35)-COLUMN($B35)-ROUNDDOWN((COLUMN(AM35)-COLUMN($B35))/13,0),0,1,1) -> -10428.00571 | AN41: =-OFFSET(Loans3!$F$9,COLUMN(AN35)-COLUMN($B35)-ROUNDDOWN((COLUMN(AN35)-COLUMN($B35))/13,0),0,1,1) -> -10536.63077 | AO41: -117358.8498
A42: FIN | B42: Repayment of finance leases | C42: =-OFFSET(Leases!$F$9,COLUMN(C36)-COLUMN($B36)-ROUNDDOWN((COLUMN(C36)-COLUMN($B36))/13,0),0,1,1) -> -7014.912118 | D42: =-OFFSET(Leases!$F$9,COLUMN(D36)-COLUMN($B36)-ROUNDDOWN((COLUMN(D36)-COLUMN($B36))/13,0),0,1,1) -> -7082.138359 | E42: =-OFFSET(Leases!$F$9,COLUMN(E36)-COLUMN($B36)-ROUNDDOWN((COLUMN(E36)-COLUMN($B36))/13,0),0,1,1) -> -7150.008852 | F42: =-OFFSET(Leases!$F$9,COLUMN(F36)-COLUMN($B36)-ROUNDDOWN((COLUMN(F36)-COLUMN($B36))/13,0),0,1,1) -> -7218.52977 | G42: =-OFFSET(Leases!$F$9,COLUMN(G36)-COLUMN($B36)-ROUNDDOWN((COLUMN(G36)-COLUMN($B36))/13,0),0,1,1) -> -7287.707347 | H42: =-OFFSET(Leases!$F$9,COLUMN(H36)-COLUMN($B36)-ROUNDDOWN((COLUMN(H36)-COLUMN($B36))/13,0),0,1,1) -> -7357.547876 | I42: =-OFFSET(Leases!$F$9,COLUMN(I36)-COLUMN($B36)-ROUNDDOWN((COLUMN(I36)-COLUMN($B36))/13,0),0,1,1) -> -7428.05771 | J42: =-OFFSET(Leases!$F$9,COLUMN(J36)-COLUMN($B36)-ROUNDDOWN((COLUMN(J36)-COLUMN($B36))/13,0),0,1,1) -> -7499.243263 | K42: =-OFFSET(Leases!$F$9,COLUMN(K36)-COLUMN($B36)-ROUNDDOWN((COLUMN(K36)-COLUMN($B36))/13,0),0,1,1) -> -7571.111011 | L42: =-OFFSET(Leases!$F$9,COLUMN(L36)-COLUMN($B36)-ROUNDDOWN((COLUMN(L36)-COLUMN($B36))/13,0),0,1,1) -> -7643.667491 | M42: =-OFFSET(Leases!$F$9,COLUMN(M36)-COLUMN($B36)-ROUNDDOWN((COLUMN(M36)-COLUMN($B36))/13,0),0,1,1) -> -7716.919305 | N42: =-OFFSET(Leases!$F$9,COLUMN(N36)-COLUMN($B36)-ROUNDDOWN((COLUMN(N36)-COLUMN($B36))/13,0),0,1,1) -> -7790.873115 | O42: -88760.71622 | P42: =-OFFSET(Leases!$F$9,COLUMN(P36)-COLUMN($B36)-ROUNDDOWN((COLUMN(P36)-COLUMN($B36))/13,0),0,1,1) -> -7865.535649 | Q42: =-OFFSET(Leases!$F$9,COLUMN(Q36)-COLUMN($B36)-ROUNDDOWN((COLUMN(Q36)-COLUMN($B36))/13,0),0,1,1) -> -7940.913699 | R42: =-OFFSET(Leases!$F$9,COLUMN(R36)-COLUMN($B36)-ROUNDDOWN((COLUMN(R36)-COLUMN($B36))/13,0),0,1,1) -> -8017.014122 | S42: =-OFFSET(Leases!$F$9,COLUMN(S36)-COLUMN($B36)-ROUNDDOWN((COLUMN(S36)-COLUMN($B36))/13,0),0,1,1) -> -8093.84384 | T42: =-OFFSET(Leases!$F$9,COLUMN(T36)-COLUMN($B36)-ROUNDDOWN((COLUMN(T36)-COLUMN($B36))/13,0),0,1,1) -> -8171.409844 | U42: =-OFFSET(Leases!$F$9,COLUMN(U36)-COLUMN($B36)-ROUNDDOWN((COLUMN(U36)-COLUMN($B36))/13,0),0,1,1) -> -8249.719188 | V42: =-OFFSET(Leases!$F$9,COLUMN(V36)-COLUMN($B36)-ROUNDDOWN((COLUMN(V36)-COLUMN($B36))/13,0),0,1,1) -> -8328.778997 | W42: =-OFFSET(Leases!$F$9,COLUMN(W36)-COLUMN($B36)-ROUNDDOWN((COLUMN(W36)-COLUMN($B36))/13,0),0,1,1) -> -8408.596462 | X42: =-OFFSET(Leases!$F$9,COLUMN(X36)-COLUMN($B36)-ROUNDDOWN((COLUMN(X36)-COLUMN($B36))/13,0),0,1,1) -> -8489.178845 | Y42: =-OFFSET(Leases!$F$9,COLUMN(Y36)-COLUMN($B36)-ROUNDDOWN((COLUMN(Y36)-COLUMN($B36))/13,0),0,1,1) -> -8570.533476 | Z42: =-OFFSET(Leases!$F$9,COLUMN(Z36)-COLUMN($B36)-ROUNDDOWN((COLUMN(Z36)-COLUMN($B36))/13,0),0,1,1) -> -8652.667755 | AA42: =-OFFSET(Leases!$F$9,COLUMN(AA36)-COLUMN($B36)-ROUNDDOWN((COLUMN(AA36)-COLUMN($B36))/13,0),0,1,1) -> -8735.589154 | AB42: -99523.78103 | AC42: =-OFFSET(Leases!$F$9,COLUMN(AC36)-COLUMN($B36)-ROUNDDOWN((COLUMN(AC36)-COLUMN($B36))/13,0),0,1,1) -> -8819.305217 | AD42: =-OFFSET(Leases!$F$9,COLUMN(AD36)-COLUMN($B36)-ROUNDDOWN((COLUMN(AD36)-COLUMN($B36))/13,0),0,1,1) -> -8903.823559 | AE42: =-OFFSET(Leases!$F$9,COLUMN(AE36)-COLUMN($B36)-ROUNDDOWN((COLUMN(AE36)-COLUMN($B36))/13,0),0,1,1) -> -8989.151868 | AF42: =-OFFSET(Leases!$F$9,COLUMN(AF36)-COLUMN($B36)-ROUNDDOWN((COLUMN(AF36)-COLUMN($B36))/13,0),0,1,1) -> -9075.297906 | AG42: =-OFFSET(Leases!$F$9,COLUMN(AG36)-COLUMN($B36)-ROUNDDOWN((COLUMN(AG36)-COLUMN($B36))/13,0),0,1,1) -> -9162.269511 | AH42: =-OFFSET(Leases!$F$9,COLUMN(AH36)-COLUMN($B36)-ROUNDDOWN((COLUMN(AH36)-COLUMN($B36))/13,0),0,1,1) -> -9250.074594 | AI42: =-OFFSET(Leases!$F$9,COLUMN(AI36)-COLUMN($B36)-ROUNDDOWN((COLUMN(AI36)-COLUMN($B36))/13,0),0,1,1) -> -9338.721142 | AJ42: =-OFFSET(Leases!$F$9,COLUMN(AJ36)-COLUMN($B36)-ROUNDDOWN((COLUMN(AJ36)-COLUMN($B36))/13,0),0,1,1) -> -9428.21722 | AK42: =-OFFSET(Leases!$F$9,COLUMN(AK36)-COLUMN($B36)-ROUNDDOWN((COLUMN(AK36)-COLUMN($B36))/13,0),0,1,1) -> -9518.570968 | AL42: =-OFFSET(Leases!$F$9,COLUMN(AL36)-COLUMN($B36)-ROUNDDOWN((COLUMN(AL36)-COLUMN($B36))/13,0),0,1,1) -> -9609.790607 | AM42: =-OFFSET(Leases!$F$9,COLUMN(AM36)-COLUMN($B36)-ROUNDDOWN((COLUMN(AM36)-COLUMN($B36))/13,0),0,1,1) -> -9701.884433 | AN42: =-OFFSET(Leases!$F$9,COLUMN(AN36)-COLUMN($B36)-ROUNDDOWN((COLUMN(AN36)-COLUMN($B36))/13,0),0,1,1) -> -9794.860826 | AO42: -111591.9679
B43: Net cash from financing activities | C43: =SUM(C33:C42) -> -16325.53576 | D43: =SUM(D33:D42) -> -16469.34362 | E43: -16614.42716 | F43: -16760.79776 | G43: -16908.46693 | H43: 82235.36507 | I43: -17920.38736 | J43: -18077.51547 | K43: -18236.03151 | L43: -18395.94782 | M43: 218543.218 | N43: -21649.73956 | O43: 123420.3901 | P43: -21844.44968 | Q43: -22040.92847 | R43: -22239.19216 | S43: -22439.2571 | T43: -22641.13984 | U43: 273530.7615 | V43: -26712.56097 | W43: -26958.14499 | X43: -27206.01181 | Y43: -27456.18285 | Z43: -27708.67978 | AA43: -27963.52443 | AB43: -1679.310597 | AC43: -28220.73887 | AD43: 149345.0257 | AE43: -30939.64767 | AF43: -31226.99427 | AG43: -31517.03942 | AH43: -31809.80873 | AI43: -32105.32806 | AJ43: -32403.6235 | AK43: -32704.72141 | AL43: -33008.64839 | AM43: -33315.4313 | AN43: -33625.09725 | AO43: -201532.0531
B44: Increase / (Decrease) in cash equivalents | C44: =SUM(C26,C31,C43) -> -34016.44974 | D44: 55995.04489 | E44: 37313.7008 | F44: 45061.22768 | G44: -1008.094897 | H44: 101545.4348 | I44: 13594.82395 | J44: 73500.02287 | K44: -11117.20508 | L44: 127389.8567 | M44: -42686.97854 | N44: 81206.51058 | O44: 446777.8941 | P44: -34800.92785 | Q44: 75039.37307 | R44: 35559.39727 | S44: 42420.97684 | T44: 39649.64834 | U44: -5447.198607 | V44: 15275.3201 | W44: -349439.1643 | X44: 3550.625478 | Y44: 146491.19 | Z44: -104738.7907 | AA44: 58252.77753 | AB44: -78186.77278 | AC44: -8718.196412 | AD44: -555976.9975 | AE44: 17037.03907 | AF44: 67322.23101 | AG44: -913.6571664 | AH44: -47079.52809 | AI44: 6880.078855 | AJ44: 126230.1611 | AK44: 3406.775629 | AL44: 158369.8676 | AM44: -56289.33727 | AN44: 63995.72551 | AO44: -225735.8377
B45: Cash & cash equivalents at beginning of year | C45: =BalanceSheet!C16-BalanceSheet!C32 -> 171000 | D45: =C46 -> 136983.5503 | E45: 192978.5952 | F45: 230292.296 | G45: 275353.5236 | H45: 274345.4287 | I45: 375890.8636 | J45: 389485.6875 | K45: 462985.7104 | L45: 451868.5053 | M45: 579258.362 | N45: 536571.3835 | O45: =C45 -> 171000 | P45: =O46 -> 617777.8941 | Q45: 582976.9662 | R45: 658016.3393 | S45: 693575.7366 | T45: 735996.7134 | U45: 775646.3618 | V45: 770199.1631 | W45: 785474.4833 | X45: 436035.3189 | Y45: 439585.9444 | Z45: 586077.1344 | AA45: 481338.3438 | AB45: =P45 -> 617777.8941 | AC45: =AB46 -> 539591.1213 | AD45: 530872.9249 | AE45: -25104.0726 | AF45: -8067.033533 | AG45: 59255.19747 | AH45: 58341.54031 | AI45: 11262.01222 | AJ45: 18142.09107 | AK45: 144372.2522 | AL45: 147779.0278 | AM45: 306148.8954 | AN45: 249859.5581 | AO45: =AC45 -> 539591.1213
B46: Cash & cash equivalents at end of year | C46: =SUM(C44,C45) -> 136983.5503 | D46: 192978.5952 | E46: 230292.296 | F46: 275353.5236 | G46: 274345.4287 | H46: 375890.8636 | I46: 389485.6875 | J46: 462985.7104 | K46: 451868.5053 | L46: 579258.362 | M46: 536571.3835 | N46: 617777.8941 | O46: 617777.8941 | P46: 582976.9662 | Q46: 658016.3393 | R46: 693575.7366 | S46: 735996.7134 | T46: 775646.3618 | U46: 770199.1631 | V46: 785474.4833 | W46: 436035.3189 | X46: 439585.9444 | Y46: 586077.1344 | Z46: 481338.3438 | AA46: 539591.1213 | AB46: 539591.1213 | AC46: 530872.9249 | AD46: -25104.0726 | AE46: -8067.033533 | AF46: 59255.19747 | AG46: 58341.54031 | AH46: 11262.01222 | AI46: 18142.09107 | AJ46: 144372.2522 | AK46: 147779.0278 | AL46: 306148.8954 | AM46: 249859.5581 | AN46: 313855.2836 | AO46: 313855.2836

Sheet BalanceSheet (hidden)
B1: =IF(ISBLANK(Assumptions!$C$4),"Example Limited",Assumptions!$C$4) -> Example (Pty) Limited
B2: Cash Flow Projections - Balance Sheet
B3: © www.excel-skills.com
C4: =IF(ISBLANK(Assumptions!$C$5)=TRUE,DATE(YEAR(TODAY()),MONTH(TODAY())+1,0),DATE(YEAR(Assumptions!$C$5),MONTH(Assumptions!$C$5),0)) -> 2021-02-28 | D4: =IF(ISBLANK(Assumptions!$C$5)=TRUE,DATE(YEAR(TODAY()),MONTH(TODAY())+1,0),DATE(YEAR(Assumptions!$C$5),MONTH(Assumptions!$C$5)+1,0)) -> 2021-03-31 | E4: =DATE(YEAR(D4),MONTH(D4)+2,0) -> 2021-04-30 | F4: =DATE(YEAR(E4),MONTH(E4)+2,0) -> 2021-05-31 | G4: 2021-06-30 | H4: 2021-07-31 | I4: 2021-08-31 | J4: 2021-09-30 | K4: 2021-10-31 | L4: 2021-11-30 | M4: 2021-12-31 | N4: 2022-01-31 | O4: =DATE(YEAR(N4),MONTH(N4)+2,0) -> 2022-02-28 | P4: ="Year-"&YEAR(O4) -> Year-2022 | Q4: =DATE(YEAR(O4),MONTH(O4)+2,0) -> 2022-03-31 | R4: =DATE(YEAR(Q4),MONTH(Q4)+2,0) -> 2022-04-30 | S4: 2022-05-31 | T4: 2022-06-30 | U4: 2022-07-31 | V4: 2022-08-31 | W4: 2022-09-30 | X4: 2022-10-31 | Y4: 2022-11-30 | Z4: 2022-12-31 | AA4: 2023-01-31 | AB4: 2023-02-28 | AC4: ="Year-"&YEAR(AB4) -> Year-2023 | AD4: =DATE(YEAR(AB4),MONTH(AB4)+2,0) -> 2023-03-31 | AE4: =DATE(YEAR(AD4),MONTH(AD4)+2,0) -> 2023-04-30 | AF4: 2023-05-31 | AG4: 2023-06-30 | AH4: 2023-07-31 | AI4: 2023-08-31 | AJ4: 2023-09-30 | AK4: 2023-10-31 | AL4: 2023-11-30 | AM4: 2023-12-31 | AN4: 2024-01-31 | AO4: 2024-02-29 | AP4: ="Year-"&YEAR(AO4) -> Year-2024
B5: ASSETS
B6: Non-Current Assets
A7: PPE | B7: Property, Plant & Equipment | C7: =SUMIF(Assumptions!$A$71:$C$95,$A7,Assumptions!$C$71:$C$95) -> 1050000 | D7: =C7-CashFlow!C28-CashFlow!C10 -> 1035000 | E7: =D7-CashFlow!D28-CashFlow!D10 -> 1020000 | F7: =E7-CashFlow!E28-CashFlow!E10 -> 1005000 | G7: =F7-CashFlow!F28-CashFlow!F10 -> 990000 | H7: =G7-CashFlow!G28-CashFlow!G10 -> 975000 | I7: =H7-CashFlow!H28-CashFlow!H10 -> 960000 | J7: =I7-CashFlow!I28-CashFlow!I10 -> 945000 | K7: =J7-CashFlow!J28-CashFlow!J10 -> 930000 | L7: =K7-CashFlow!K28-CashFlow!K10 -> 915000 | M7: =L7-CashFlow!L28-CashFlow!L10 -> 900000 | N7: =M7-CashFlow!M28-CashFlow!M10 -> 1121000 | O7: =N7-CashFlow!N28-CashFlow!N10 -> 1102000 | P7: =O7 -> 1102000 | Q7: =P7-CashFlow!P28-CashFlow!P10 -> 1083000 | R7: =Q7-CashFlow!Q28-CashFlow!Q10 -> 1064000 | S7: =R7-CashFlow!R28-CashFlow!R10 -> 1045000 | T7: =S7-CashFlow!S28-CashFlow!S10 -> 1026000 | U7: =T7-CashFlow!T28-CashFlow!T10 -> 1007000 | V7: =U7-CashFlow!U28-CashFlow!U10 -> 1283000 | W7: =V7-CashFlow!V28-CashFlow!V10 -> 1259000 | X7: =W7-CashFlow!W28-CashFlow!W10 -> 1235000 | Y7: =X7-CashFlow!X28-CashFlow!X10 -> 1211000 | Z7: =Y7-CashFlow!Y28-CashFlow!Y10 -> 1187000 | AA7: =Z7-CashFlow!Z28-CashFlow!Z10 -> 1163000 | AB7: =AA7-CashFlow!AA28-CashFlow!AA10 -> 1139000 | AC7: =AB7 -> 1139000 | AD7: =AC7-CashFlow!AC28-CashFlow!AC10 -> 1115000 | AE7: =AD7-CashFlow!AD28-CashFlow!AD10 -> 1268000 | AF7: =AE7-CashFlow!AE28-CashFlow!AE10 -> 1241000 | AG7: =AF7-CashFlow!AF28-CashFlow!AF10 -> 1214000 | AH7: =AG7-CashFlow!AG28-CashFlow!AG10 -> 1187000 | AI7: =AH7-CashFlow!AH28-CashFlow!AH10 -> 1162000 | AJ7: =AI7-CashFlow!AI28-CashFlow!AI10 -> 1137000 | AK7: =AJ7-CashFlow!AJ28-CashFlow!AJ10 -> 1112000 | AL7: =AK7-CashFlow!AK28-CashFlow!AK10 -> 1087000 | AM7: =AL7-CashFlow!AL28-CashFlow!AL10 -> 1062000 | AN7: =AM7-CashFlow!AM28-CashFlow!AM10 -> 1037000 | AO7: =AN7-CashFlow!AN28-CashFlow!AN10 -> 1012000 | AP7: =AO7 -> 1012000
A8: INA | B8: Intangible Assets | C8: =SUMIF(Assumptions!$A$71:$C$95,$A8,Assumptions!$C$71:$C$95) -> 120000 | D8: =C8-CashFlow!C29-CashFlow!C11 -> 119000 | E8: =D8-CashFlow!D29-CashFlow!D11 -> 118000 | F8: =E8-CashFlow!E29-CashFlow!E11 -> 117000 | G8: =F8-CashFlow!F29-CashFlow!F11 -> 116000 | H8: =G8-CashFlow!G29-CashFlow!G11 -> 115000 | I8: =H8-CashFlow!H29-CashFlow!H11 -> 114000 | J8: =I8-CashFlow!I29-CashFlow!I11 -> 113000 | K8: =J8-CashFlow!J29-CashFlow!J11 -> 112000 | L8: =K8-CashFlow!K29-CashFlow!K11 -> 111000 | M8: =L8-CashFlow!L29-CashFlow!L11 -> 110000 | N8: =M8-CashFlow!M29-CashFlow!M11 -> 109000 | O8: =N8-CashFlow!N29-CashFlow!N11 -> 108000 | P8: =O8 -> 108000 | Q8: =P8-CashFlow!P29-CashFlow!P11 -> 107000 | R8: =Q8-CashFlow!Q29-CashFlow!Q11 -> 106000 | S8: =R8-CashFlow!R29-CashFlow!R11 -> 105000 | T8: =S8-CashFlow!S29-CashFlow!S11 -> 104000 | U8: =T8-CashFlow!T29-CashFlow!T11 -> 103000 | V8: =U8-CashFlow!U29-CashFlow!U11 -> 102000 | W8: =V8-CashFlow!V29-CashFlow!V11 -> 101000 | X8: =W8-CashFlow!W29-CashFlow!W11 -> 100000 | Y8: =X8-CashFlow!X29-CashFlow!X11 -> 99000 | Z8: =Y8-CashFlow!Y29-CashFlow!Y11 -> 98000 | AA8: =Z8-CashFlow!Z29-CashFlow!Z11 -> 97000 | AB8: =AA8-CashFlow!AA29-CashFlow!AA11 -> 96000 | AC8: =AB8 -> 96000 | AD8: =AC8-CashFlow!AC29-CashFlow!AC11 -> 95000 | AE8: =AD8-CashFlow!AD29-CashFlow!AD11 -> 94000 | AF8: =AE8-CashFlow!AE29-CashFlow!AE11 -> 93000 | AG8: =AF8-CashFlow!AF29-CashFlow!AF11 -> 92000 | AH8: =AG8-CashFlow!AG29-CashFlow!AG11 -> 91000 | AI8: =AH8-CashFlow!AH29-CashFlow!AH11 -> 90000 | AJ8: =AI8-CashFlow!AI29-CashFlow!AI11 -> 89000 | AK8: =AJ8-CashFlow!AJ29-CashFlow!AJ11 -> 88000 | AL8: =AK8-CashFlow!AK29-CashFlow!AK11 -> 87000 | AM8: =AL8-CashFlow!AL29-CashFlow!AL11 -> 86000 | AN8: =AM8-CashFlow!AM29-CashFlow!AM11 -> 85000 | AO8: =AN8-CashFlow!AN29-CashFlow!AN11 -> 84000 | AP8: =AO8 -> 84000
A9: INV | B9: Investments | C9: =SUMIF(Assumptions!$A$71:$C$95,$A9,Assumptions!$C$71:$C$95) -> 800000 | D9: =C9-CashFlow!C30 -> 800000 | E9: =D9-CashFlow!D30 -> 800000 | F9: =E9-CashFlow!E30 -> 800000 | G9: =F9-CashFlow!F30 -> 800000 | H9: =G9-CashFlow!G30 -> 800000 | I9: =H9-CashFlow!H30 -> 800000 | J9: =I9-CashFlow!I30 -> 800000 | K9: =J9-CashFlow!J30 -> 800000 | L9: =K9-CashFlow!K30 -> 800000 | M9: =L9-CashFlow!L30 -> 800000 | N9: =M9-CashFlow!M30 -> 800000 | O9: =N9-CashFlow!N30 -> 800000 | P9: 800000 | Q9: =P9-CashFlow!P30 -> 800000 | R9: =Q9-CashFlow!Q30 -> 800000 | S9: =R9-CashFlow!R30 -> 800000 | T9: =S9-CashFlow!S30 -> 800000 | U9: =T9-CashFlow!T30 -> 800000 | V9: =U9-CashFlow!U30 -> 800000 | W9: =V9-CashFlow!V30 -> 800000 | X9: =W9-CashFlow!W30 -> 1200000 | Y9: =X9-CashFlow!X30 -> 1200000 | Z9: =Y9-CashFlow!Y30 -> 1200000 | AA9: =Z9-CashFlow!Z30 -> 1200000 | AB9: =AA9-CashFlow!AA30 -> 1200000 | AC9: 1200000 | AD9: =AC9-CashFlow!AC30 -> 1200000 | AE9: =AD9-CashFlow!AD30 -> 1800000 | AF9: =AE9-CashFlow!AE30 -> 1800000 | AG9: =AF9-CashFlow!AF30 -> 1800000 | AH9: =AG9-CashFlow!AG30 -> 1800000 | AI9: =AH9-CashFlow!AH30 -> 1800000 | AJ9: =AI9-CashFlow!AI30 -> 1800000 | AK9: =AJ9-CashFlow!AJ30 -> 1800000 | AL9: =AK9-CashFlow!AK30 -> 1800000 | AM9: =AL9-CashFlow!AL30 -> 1800000 | AN9: =AM9-CashFlow!AM30 -> 1800000 | AO9: =AN9-CashFlow!AN30 -> 1800000 | AP9: 1800000
C10: =SUM(C7:C9) -> 1970000 | D10: 1954000 | E10: 1938000 | F10: 1922000 | G10: 1906000 | H10: 1890000 | I10: 1874000 | J10: 1858000 | K10: 1842000 | L10: 1826000 | M10: 1810000 | N10: 2030000 | O10: 2010000 | P10: 2010000 | Q10: 1990000 | R10: 1970000 | S10: 1950000 | T10: 1930000 | U10: 1910000 | V10: 2185000 | W10: 2160000 | X10: 2535000 | Y10: 2510000 | Z10: 2485000 | AA10: 2460000 | AB10: 2435000 | AC10: 2435000 | AD10: 2410000 | AE10: 3162000 | AF10: 3134000 | AG10: 3106000 | AH10: 3078000 | AI10: 3052000 | AJ10: 3026000 | AK10: 3000000 | AL10: 2974000 | AM10: 2948000 | AN10: 2922000 | AO10: 2896000 | AP10: 2896000
B11: Current Assets
A12: STC | B12: Inventory | C12: =SUMIF(Assumptions!$A$71:$C$95,$A12,Assumptions!$C$71:$C$95) -> 170000 | D12: =(IF(COLUMN(D$4)-MATCH(MAX(DATE(YEAR(D$4-D$53),MONTH(D$4-D$53)+1,0),DATE(YEAR($D$4),MONTH($D$4),0)),$A$4:$AP$4,0)=0,0,SUM(OFFSET($A$54,0,MATCH(MAX(DATE(YEAR(D$4-D$53),MONTH(D$4-D$53)+1,0),DATE(YEAR($D$4),MONTH($D$4),0)),$A$4:$AP$4,0),1,COLUMN(D$4)-MATCH(MAX(DATE(YEAR(D$4-D$53),MONTH(D$4-D$53)+1,0),DATE(YEAR($D$4),MONTH($D$4),0)),$A$4:$AP$4,0))))+IF(ISNA(MATCH(DATE(YEAR(D$4-D$53),MONTH(D$4-D$53)+1,0),$A$4:$AP$4,0)),0,IF(DATE(YEAR(D$4-D$53),MONTH(D$4-D$53)+1,0)<=$C$4,0,OFFSET($A$54,0,MATCH(DATE(YEAR(D$4-D$53),MONTH(D$4-D$53)+1,0),$A$4:$AP$4,0)-1,1,1)/OFFSET($A$43,0,MATCH(DATE(YEAR(D$4-D$53),MONTH(D$4-D$53)+1,0),$A$4:$AP$4,0)-1,1,1)*IF((D$4-D$53)>DATE(YEAR($D$4),MONTH($D$4),0),(D$53-(D$4-DATE(YEAR(D$4-D$53),MONTH(D$4-D$53)+1,0))),0)))+IF($C$53=0,0,($C$12/$C$53*IF(DATE(YEAR($D$4),MONTH($D$4),0)>(D$4-D$53),DATE(YEAR($D$4),MONTH($D$4),0)-(D$4-D$53),0)))) -> 179651.6129 | E12: =(IF(COLUMN(E$4)-MATCH(MAX(DATE(YEAR(E$4-E$53),MONTH(E$4-E$53)+1,0),DATE(YEAR($D$4),MONTH($D$4),0)),$A$4:$AP$4,0)=0,0,SUM(OFFSET($A$54,0,MATCH(MAX(DATE(YEAR(E$4-E$53),MONTH(E$4-E$53)+1,0),DATE(YEAR($D$4),MONTH($D$4),0)),$A$4:$AP$4,0),1,COLUMN(E$4)-MATCH(MAX(DATE(YEAR(E$4-E$53),MONTH(E$4-E$53)+1,0),DATE(YEAR($D$4),MONTH($D$4),0)),$A$4:$AP$4,0))))+IF(ISNA(MATCH(DATE(YEAR(E$4-E$53),MONTH(E$4-E$53)+1,0),$A$4:$AP$4,0)),0,IF(DATE(YEAR(E$4-E$53),MONTH(E$4-E$53)+1,0)<=$C$4,0,OFFSET($A$54,0,MATCH(DATE(YEAR(E$4-E$53),MONTH(E$4-E$53)+1,0),$A$4:$AP$4,0)-1,1,1)/OFFSET($A$43,0,MATCH(DATE(YEAR(E$4-E$53),MONTH(E$4-E$53)+1,0),$A$4:$AP$4,0)-1,1,1)*IF((E$4-E$53)>DATE(YEAR($D$4),MONTH($D$4),0),(E$53-(E$4-DATE(YEAR(E$4-E$53),MONTH(E$4-E$53)+1,0))),0)))+IF($C$53=0,0,($C$12/$C$53*IF(DATE(YEAR($D$4),MONTH($D$4),0)>(E$4-E$53),DATE(YEAR($D$4),MONTH($D$4),0)-(E$4-E$53),0)))) -> 198380 | F12: 193741.9355 | G12: 202280 | H12: 198648.3871 | I12: 195000 | J12: 193280 | K12: 194477.4194 | L12: 203648 | M12: 158864.5161 | N12: 204758.7097 | O12: 208978.5806 | P12: =O12 -> 208978.5806 | Q12: =(IF(COLUMN(Q$4)-MATCH(MAX(DATE(YEAR(Q$4-Q$53),MONTH(Q$4-Q$53)+1,0),DATE(YEAR($D$4),MONTH($D$4),0)),$A$4:$AP$4,0)=0,0,SUM(OFFSET($A$54,0,MATCH(MAX(DATE(YEAR(Q$4-Q$53),MONTH(Q$4-Q$53)+1,0),DATE(YEAR($D$4),MONTH($D$4),0)),$A$4:$AP$4,0),1,COLUMN(Q$4)-MATCH(MAX(DATE(YEAR(Q$4-Q$53),MONTH(Q$4-Q$53)+1,0),DATE(YEAR($D$4),MONTH($D$4),0)),$A$4:$AP$4,0))))+IF(ISNA(MATCH(DATE(YEAR(Q$4-Q$53),MONTH(Q$4-Q$53)+1,0),$A$4:$AP$4,0)),0,IF(DATE(YEAR(Q$4-Q$53),MONTH(Q$4-Q$53)+1,0)<=$C$4,0,OFFSET($A$54,0,MATCH(DATE(YEAR(Q$4-Q$53),MONTH(Q$4-Q$53)+1,0),$A$4:$AP$4,0)-1,1,1)/OFFSET($A$43,0,MATCH(DATE(YEAR(Q$4-Q$53),MONTH(Q$4-Q$53)+1,0),$A$4:$AP$4,0)-1,1,1)*IF((Q$4-Q$53)>DATE(YEAR($D$4),MONTH($D$4),0),(Q$53-(Q$4-DATE(YEAR(Q$4-Q$53),MONTH(Q$4-Q$53)+1,0))),0)))+IF($C$53=0,0,($C$12/$C$53*IF(DATE(YEAR($D$4),MONTH($D$4),0)>(Q$4-Q$53),DATE(YEAR($D$4),MONTH($D$4),0)-(Q$4-Q$53),0)))) -> 201414.1935 | R12: 203520 | S12: 192123.871 | T12: 211584 | U12: 213801.2903 | V12: 201352.2581 | W12: 189224 | X12: 194460 | Y12: 214272 | Z12: 156360 | AA12: 210240 | AB12: 222336 | AC12: =AB12 -> 222336 | AD12: =(IF(COLUMN(AD$4)-MATCH(MAX(DATE(YEAR(AD$4-AD$53),MONTH(AD$4-AD$53)+1,0),DATE(YEAR($D$4),MONTH($D$4),0)),$A$4:$AP$4,0)=0,0,SUM(OFFSET($A$54,0,MATCH(MAX(DATE(YEAR(AD$4-AD$53),MONTH(AD$4-AD$53)+1,0),DATE(YEAR($D$4),MONTH($D$4),0)),$A$4:$AP$4,0),1,COLUMN(AD$4)-MATCH(MAX(DATE(YEAR(AD$4-AD$53),MONTH(AD$4-AD$53)+1,0),DATE(YEAR($D$4),MONTH($D$4),0)),$A$4:$AP$4,0))))+IF(ISNA(MATCH(DATE(YEAR(AD$4-AD$53),MONTH(AD$4-AD$53)+1,0),$A$4:$AP$4,0)),0,IF(DATE(YEAR(AD$4-AD$53),MONTH(AD$4-AD$53)+1,0)<=$C$4,0,OFFSET($A$54,0,MATCH(DATE(YEAR(AD$4-AD$53),MONTH(AD$4-AD$53)+1,0),$A$4:$AP$4,0)-1,1,1)/OFFSET($A$43,0,MATCH(DATE(YEAR(AD$4-AD$53),MONTH(AD$4-AD$53)+1,0),$A$4:$AP$4,0)-1,1,1)*IF((AD$4-AD$53)>DATE(YEAR($D$4),MONTH($D$4),0),(AD$53-(AD$4-DATE(YEAR(AD$4-AD$53),MONTH(AD$4-AD$53)+1,0))),0)))+IF($C$53=0,0,($C$12/$C$53*IF(DATE(YEAR($D$4),MONTH($D$4),0)>(AD$4-AD$53),DATE(YEAR($D$4),MONTH($D$4),0)-(AD$4-AD$53),0)))) -> 198929.0323 | AE12: 216300 | AF12: 206941.9355 | AG12: 222000 | AH12: 213038.7097 | AI12: 221864.5161 | AJ12: 228540 | AK12: 218206.4516 | AL12: 233700 | AM12: 180000 | AN12: 226509.6774 | AO12: 232790.3226 | AP12: =AO12 -> 232790.3226
A13: DEB | B13: Trade Receivables | C13: =SUMIF(Assumptions!$A$71:$C$95,$A13,Assumptions!$C$71:$C$95) -> 370000 | D13: =(IF(COLUMN(D$4)-MATCH(MAX(DATE(YEAR(D$4-D$55),MONTH(D$4-D$55)+1,0),DATE(YEAR($D$4),MONTH($D$4),0)),$A$4:$AP$4,0)=0,0,SUM(OFFSET($A$56,0,MATCH(MAX(DATE(YEAR(D$4-D$55),MONTH(D$4-D$55)+1,0),DATE(YEAR($D$4),MONTH($D$4),0)),$A$4:$AP$4,0),1,COLUMN(D$4)-MATCH(MAX(DATE(YEAR(D$4-D$55),MONTH(D$4-D$55)+1,0),DATE(YEAR($D$4),MONTH($D$4),0)),$A$4:$AP$4,0))))+IF(ISNA(MATCH(DATE(YEAR(D$4-D$55),MONTH(D$4-D$55)+1,0),$A$4:$AP$4,0)),0,IF(DATE(YEAR(D$4-D$55),MONTH(D$4-D$55)+1,0)<=$C$4,0,OFFSET($A$56,0,MATCH(DATE(YEAR(D$4-D$55),MONTH(D$4-D$55)+1,0),$A$4:$AP$4,0)-1,1,1)/OFFSET($A$43,0,MATCH(DATE(YEAR(D$4-D$55),MONTH(D$4-D$55)+1,0),$A$4:$AP$4,0)-1,1,1)*IF((D$4-D$55)>DATE(YEAR($D$4),MONTH($D$4),0),(D$55-(D$4-DATE(YEAR(D$4-D$55),MONTH(D$4-D$55)+1,0))),0)))+IF(C$55=0,0,($C$13/$C$55*IF(DATE(YEAR($D$4),MONTH($D$4),0)>(D$4-D$55),DATE(YEAR($D$4),MONTH($D$4),0)-(D$4-D$55),0)))) -> 380798.3871 | E13: =(IF(COLUMN(E$4)-MATCH(MAX(DATE(YEAR(E$4-E$55),MONTH(E$4-E$55)+1,0),DATE(YEAR($D$4),MONTH($D$4),0)),$A$4:$AP$4,0)=0,0,SUM(OFFSET($A$56,0,MATCH(MAX(DATE(YEAR(E$4-E$55),MONTH(E$4-E$55)+1,0),DATE(YEAR($D$4),MONTH($D$4),0)),$A$4:$AP$4,0),1,COLUMN(E$4)-MATCH(MAX(DATE(YEAR(E$4-E$55),MONTH(E$4-E$55)+1,0),DATE(YEAR($D$4),MONTH($D$4),0)),$A$4:$AP$4,0))))+IF(ISNA(MATCH(DATE(YEAR(E$4-E$55),MONTH(E$4-E$55)+1,0),$A$4:$AP$4,0)),0,IF(DATE(YEAR(E$4-E$55),MONTH(E$4-E$55)+1,0)<=$C$4,0,OFFSET($A$56,0,MATCH(DATE(YEAR(E$4-E$55),MONTH(E$4-E$55)+1,0),$A$4:$AP$4,0)-1,1,1)/OFFSET($A$43,0,MATCH(DATE(YEAR(E$4-E$55),MONTH(E$4-E$55)+1,0),$A$4:$AP$4,0)-1,1,1)*IF((E$4-E$55)>DATE(YEAR($D$4),MONTH($D$4),0),(E$55-(E$4-DATE(YEAR(E$4-E$55),MONTH(E$4-E$55)+1,0))),0)))+IF(D$55=0,0,($C$13/$C$55*IF(DATE(YEAR($D$4),MONTH($D$4),0)>(E$4-E$55),DATE(YEAR($D$4),MONTH($D$4),0)-(E$4-E$55),0)))) -> 402691.6667 | F13: 404354.8387 | G13: 424733.3333 | H13: 410661.2903 | I13: 410846.7742 | J13: 414000 | K13: 410754.0323 | L13: 431441.6667 | M13: 347318.5484 | N13: 431806.4516 | O13: 448089.2857 | P13: 448089.2857 | Q13: =(IF(COLUMN(Q$4)-MATCH(MAX(DATE(YEAR(Q$4-Q$55),MONTH(Q$4-Q$55)+1,0),DATE(YEAR($D$4),MONTH($D$4),0)),$A$4:$AP$4,0)=0,0,SUM(OFFSET($A$56,0,MATCH(MAX(DATE(YEAR(Q$4-Q$55),MONTH(Q$4-Q$55)+1,0),DATE(YEAR($D$4),MONTH($D$4),0)),$A$4:$AP$4,0),1,COLUMN(Q$4)-MATCH(MAX(DATE(YEAR(Q$4-Q$55),MONTH(Q$4-Q$55)+1,0),DATE(YEAR($D$4),MONTH($D$4),0)),$A$4:$AP$4,0))))+IF(ISNA(MATCH(DATE(YEAR(Q$4-Q$55),MONTH(Q$4-Q$55)+1,0),$A$4:$AP$4,0)),0,IF(DATE(YEAR(Q$4-Q$55),MONTH(Q$4-Q$55)+1,0)<=$C$4,0,OFFSET($A$56,0,MATCH(DATE(YEAR(Q$4-Q$55),MONTH(Q$4-Q$55)+1,0),$A$4:$AP$4,0)-1,1,1)/OFFSET($A$43,0,MATCH(DATE(YEAR(Q$4-Q$55),MONTH(Q$4-Q$55)+1,0),$A$4:$AP$4,0)-1,1,1)*IF((Q$4-Q$55)>DATE(YEAR($D$4),MONTH($D$4),0),(Q$55-(Q$4-DATE(YEAR(Q$4-Q$55),MONTH(Q$4-Q$55)+1,0))),0)))+IF(P$55=0,0,($C$13/$C$55*IF(DATE(YEAR($D$4),MONTH($D$4),0)>(Q$4-Q$55),DATE(YEAR($D$4),MONTH($D$4),0)-(Q$4-Q$55),0)))) -> 427725.8065 | R13: =(IF(COLUMN(R$4)-MATCH(MAX(DATE(YEAR(R$4-R$55),MONTH(R$4-R$55)+1,0),DATE(YEAR($D$4),MONTH($D$4),0)),$A$4:$AP$4,0)=0,0,SUM(OFFSET($A$56,0,MATCH(MAX(DATE(YEAR(R$4-R$55),MONTH(R$4-R$55)+1,0),DATE(YEAR($D$4),MONTH($D$4),0)),$A$4:$AP$4,0),1,COLUMN(R$4)-MATCH(MAX(DATE(YEAR(R$4-R$55),MONTH(R$4-R$55)+1,0),DATE(YEAR($D$4),MONTH($D$4),0)),$A$4:$AP$4,0))))+IF(ISNA(MATCH(DATE(YEAR(R$4-R$55),MONTH(R$4-R$55)+1,0),$A$4:$AP$4,0)),0,IF(DATE(YEAR(R$4-R$55),MONTH(R$4-R$55)+1,0)<=$C$4,0,OFFSET($A$56,0,MATCH(DATE(YEAR(R$4-R$55),MONTH(R$4-R$55)+1,0),$A$4:$AP$4,0)-1,1,1)/OFFSET($A$43,0,MATCH(DATE(YEAR(R$4-R$55),MONTH(R$4-R$55)+1,0),$A$4:$AP$4,0)-1,1,1)*IF((R$4-R$55)>DATE(YEAR($D$4),MONTH($D$4),0),(R$55-(R$4-DATE(YEAR(R$4-R$55),MONTH(R$4-R$55)+1,0))),0)))+IF(Q$55=0,0,($C$13/$C$55*IF(DATE(YEAR($D$4),MONTH($D$4),0)>(R$4-R$55),DATE(YEAR($D$4),MONTH($D$4),0)-(R$4-R$55),0)))) -> 437479.1667 | S13: 414741.9355 | T13: 446775 | U13: 443955.6452 | V13: 432288.7097 | W13: 431729.1667 | X13: 434866.9355 | Y13: 469679.1667 | Z13: 361229.8387 | AA13: 462318.5484 | AB13: 487825.8929 | AC13: 487825.8929 | AD13: =(IF(COLUMN(AD$4)-MATCH(MAX(DATE(YEAR(AD$4-AD$55),MONTH(AD$4-AD$55)+1,0),DATE(YEAR($D$4),MONTH($D$4),0)),$A$4:$AP$4,0)=0,0,SUM(OFFSET($A$56,0,MATCH(MAX(DATE(YEAR(AD$4-AD$55),MONTH(AD$4-AD$55)+1,0),DATE(YEAR($D$4),MONTH($D$4),0)),$A$4:$AP$4,0),1,COLUMN(AD$4)-MATCH(MAX(DATE(YEAR(AD$4-AD$55),MONTH(AD$4-AD$55)+1,0),DATE(YEAR($D$4),MONTH($D$4),0)),$A$4:$AP$4,0))))+IF(ISNA(MATCH(DATE(YEAR(AD$4-AD$55),MONTH(AD$4-AD$55)+1,0),$A$4:$AP$4,0)),0,IF(DATE(YEAR(AD$4-AD$55),MONTH(AD$4-AD$55)+1,0)<=$C$4,0,OFFSET($A$56,0,MATCH(DATE(YEAR(AD$4-AD$55),MONTH(AD$4-AD$55)+1,0),$A$4:$AP$4,0)-1,1,1)/OFFSET($A$43,0,MATCH(DATE(YEAR(AD$4-AD$55),MONTH(AD$4-AD$55)+1,0),$A$4:$AP$4,0)-1,1,1)*IF((AD$4-AD$55)>DATE(YEAR($D$4),MONTH($D$4),0),(AD$55-(AD$4-DATE(YEAR(AD$4-AD$55),MONTH(AD$4-AD$55)+1,0))),0)))+IF(AC$55=0,0,($C$13/$C$55*IF(DATE(YEAR($D$4),MONTH($D$4),0)>(AD$4-AD$55),DATE(YEAR($D$4),MONTH($D$4),0)-(AD$4-AD$55),0)))) -> 447758.0645 | AE13: =(IF(COLUMN(AE$4)-MATCH(MAX(DATE(YEAR(AE$4-AE$55),MONTH(AE$4-AE$55)+1,0),DATE(YEAR($D$4),MONTH($D$4),0)),$A$4:$AP$4,0)=0,0,SUM(OFFSET($A$56,0,MATCH(MAX(DATE(YEAR(AE$4-AE$55),MONTH(AE$4-AE$55)+1,0),DATE(YEAR($D$4),MONTH($D$4),0)),$A$4:$AP$4,0),1,COLUMN(AE$4)-MATCH(MAX(DATE(YEAR(AE$4-AE$55),MONTH(AE$4-AE$55)+1,0),DATE(YEAR($D$4),MONTH($D$4),0)),$A$4:$AP$4,0))))+IF(ISNA(MATCH(DATE(YEAR(AE$4-AE$55),MONTH(AE$4-AE$55)+1,0),$A$4:$AP$4,0)),0,IF(DATE(YEAR(AE$4-AE$55),MONTH(AE$4-AE$55)+1,0)<=$C$4,0,OFFSET($A$56,0,MATCH(DATE(YEAR(AE$4-AE$55),MONTH(AE$4-AE$55)+1,0),$A$4:$AP$4,0)-1,1,1)/OFFSET($A$43,0,MATCH(DATE(YEAR(AE$4-AE$55),MONTH(AE$4-AE$55)+1,0),$A$4:$AP$4,0)-1,1,1)*IF((AE$4-AE$55)>DATE(YEAR($D$4),MONTH($D$4),0),(AE$55-(AE$4-DATE(YEAR(AE$4-AE$55),MONTH(AE$4-AE$55)+1,0))),0)))+IF(AD$55=0,0,($C$13/$C$55*IF(DATE(YEAR($D$4),MONTH($D$4),0)>(AE$4-AE$55),DATE(YEAR($D$4),MONTH($D$4),0)-(AE$4-AE$55),0)))) -> 484437.5 | AF13: 467419.3548 | AG13: 492775 | AH13: 479290.3226 | AI13: 489120.9677 | AJ13: 500633.3333 | AK13: 487451.6129 | AL13: 517998.3333 | AM13: 414000 | AN13: 499415.3226 | AO13: 515170.2586 | AP13: 515170.2586
A14: ADV | B14: Loans & Advances | C14: =SUMIF(Assumptions!$A$71:$C$95,$A14,Assumptions!$C$71:$C$95) -> 55000 | D14: =C14-CashFlow!C16 -> 55000 | E14: =D14-CashFlow!D16 -> 55000 | F14: =E14-CashFlow!E16 -> 55000 | G14: =F14-CashFlow!F16 -> 55000 | H14: =G14-CashFlow!G16 -> 55000 | I14: =H14-CashFlow!H16 -> 55000 | J14: =I14-CashFlow!I16 -> 65000 | K14: =J14-CashFlow!J16 -> 65000 | L14: =K14-CashFlow!K16 -> 55000 | M14: =L14-CashFlow!L16 -> 55000 | N14: =M14-CashFlow!M16 -> 55000 | O14: =N14-CashFlow!N16 -> 55000 | P14: 55000 | Q14: =P14-CashFlow!P16 -> 55000 | R14: =Q14-CashFlow!Q16 -> 55000 | S14: =R14-CashFlow!R16 -> 55000 | T14: =S14-CashFlow!S16 -> 55000 | U14: =T14-CashFlow!T16 -> 55000 | V14: =U14-CashFlow!U16 -> 55000 | W14: =V14-CashFlow!V16 -> 55000 | X14: =W14-CashFlow!W16 -> 75000 | Y14: =X14-CashFlow!X16 -> 75000 | Z14: =Y14-CashFlow!Y16 -> 75000 | AA14: =Z14-CashFlow!Z16 -> 75000 | AB14: =AA14-CashFlow!AA16 -> 75000 | AC14: 75000 | AD14: =AC14-CashFlow!AC16 -> 75000 | AE14: =AD14-CashFlow!AD16 -> 75000 | AF14: =AE14-CashFlow!AE16 -> 75000 | AG14: =AF14-CashFlow!AF16 -> 75000 | AH14: =AG14-CashFlow!AG16 -> 75000 | AI14: =AH14-CashFlow!AH16 -> 75000 | AJ14: =AI14-CashFlow!AI16 -> 75000 | AK14: =AJ14-CashFlow!AJ16 -> 75000 | AL14: =AK14-CashFlow!AK16 -> 75000 | AM14: =AL14-CashFlow!AL16 -> 75000 | AN14: =AM14-CashFlow!AM16 -> 75000 | AO14: =AN14-CashFlow!AN16 -> 75000 | AP14: 75000
A15: ODB | B15: Other Receivables | C15: =SUMIF(Assumptions!$A$71:$C$95,$A15,Assumptions!$C$71:$C$95) -> 53000 | D15: =C15-CashFlow!C17 -> 53000 | E15: =D15-CashFlow!D17 -> 53000 | F15: =E15-CashFlow!E17 -> 53000 | G15: =F15-CashFlow!F17 -> 53000 | H15: =G15-CashFlow!G17 -> 53000 | I15: =H15-CashFlow!H17 -> 53000 | J15: =I15-CashFlow!I17 -> 53000 | K15: =J15-CashFlow!J17 -> 53000 | L15: =K15-CashFlow!K17 -> 53000 | M15: =L15-CashFlow!L17 -> 53000 | N15: =M15-CashFlow!M17 -> 53000 | O15: =N15-CashFlow!N17 -> 53000 | P15: 53000 | Q15: =P15-CashFlow!P17 -> 53000 | R15: =Q15-CashFlow!Q17 -> 53000 | S15: =R15-CashFlow!R17 -> 53000 | T15: =S15-CashFlow!S17 -> 53000 | U15: =T15-CashFlow!T17 -> 53000 | V15: =U15-CashFlow!U17 -> 60000 | W15: =V15-CashFlow!V17 -> 60000 | X15: =W15-CashFlow!W17 -> 60000 | Y15: =X15-CashFlow!X17 -> 60000 | Z15: =Y15-CashFlow!Y17 -> 60000 | AA15: =Z15-CashFlow!Z17 -> 60000 | AB15: =AA15-CashFlow!AA17 -> 60000 | AC15: 60000 | AD15: =AC15-CashFlow!AC17 -> 60000 | AE15: =AD15-CashFlow!AD17 -> 60000 | AF15: =AE15-CashFlow!AE17 -> 60000 | AG15: =AF15-CashFlow!AF17 -> 60000 | AH15: =AG15-CashFlow!AG17 -> 60000 | AI15: =AH15-CashFlow!AH17 -> 60000 | AJ15: =AI15-CashFlow!AI17 -> 60000 | AK15: =AJ15-CashFlow!AJ17 -> 60000 | AL15: =AK15-CashFlow!AK17 -> 60000 | AM15: =AL15-CashFlow!AL17 -> 60000 | AN15: =AM15-CashFlow!AM17 -> 60000 | AO15: =AN15-CashFlow!AN17 -> 60000 | AP15: 60000
A16: CSH | B16: Cash & Cash Equivalents | C16: =SUMIF(Assumptions!$A$71:$C$95,$A16,Assumptions!$C$71:$C$95) -> 171000 | D16: =IF(CashFlow!C46>=0,CashFlow!C46,0) -> 136983.5503 | E16: =IF(CashFlow!D46>=0,CashFlow!D46,0) -> 192978.5952 | F16: =IF(CashFlow!E46>=0,CashFlow!E46,0) -> 230292.296 | G16: =IF(CashFlow!F46>=0,CashFlow!F46,0) -> 275353.5236 | H16: =IF(CashFlow!G46>=0,CashFlow!G46,0) -> 274345.4287 | I16: =IF(CashFlow!H46>=0,CashFlow!H46,0) -> 375890.8636 | J16: =IF(CashFlow!I46>=0,CashFlow!I46,0) -> 389485.6875 | K16: =IF(CashFlow!J46>=0,CashFlow!J46,0) -> 462985.7104 | L16: =IF(CashFlow!K46>=0,CashFlow!K46,0) -> 451868.5053 | M16: =IF(CashFlow!L46>=0,CashFlow!L46,0) -> 579258.362 | N16: =IF(CashFlow!M46>=0,CashFlow!M46,0) -> 536571.3835 | O16: =IF(CashFlow!N46>=0,CashFlow!N46,0) -> 617777.8941 | P16: 617777.8941 | Q16: =IF(CashFlow!P46>=0,CashFlow!P46,0) -> 582976.9662 | R16: =IF(CashFlow!Q46>=0,CashFlow!Q46,0) -> 658016.3393 | S16: =IF(CashFlow!R46>=0,CashFlow!R46,0) -> 693575.7366 | T16: =IF(CashFlow!S46>=0,CashFlow!S46,0) -> 735996.7134 | U16: =IF(CashFlow!T46>=0,CashFlow!T46,0) -> 775646.3618 | V16: =IF(CashFlow!U46>=0,CashFlow!U46,0) -> 770199.1631 | W16: =IF(CashFlow!V46>=0,CashFlow!V46,0) -> 785474.4833 | X16: =IF(CashFlow!W46>=0,CashFlow!W46,0) -> 436035.3189 | Y16: =IF(CashFlow!X46>=0,CashFlow!X46,0) -> 439585.9444 | Z16: =IF(CashFlow!Y46>=0,CashFlow!Y46,0) -> 586077.1344 | AA16: =IF(CashFlow!Z46>=0,CashFlow!Z46,0) -> 481338.3438 | AB16: =IF(CashFlow!AA46>=0,CashFlow!AA46,0) -> 539591.1213 | AC16: 539591.1213 | AD16: =IF(CashFlow!AC46>=0,CashFlow!AC46,0) -> 530872.9249 | AE16: =IF(CashFlow!AD46>=0,CashFlow!AD46,0) -> 0 | AF16: =IF(CashFlow!AE46>=0,CashFlow!AE46,0) -> 0 | AG16: =IF(CashFlow!AF46>=0,CashFlow!AF46,0) -> 59255.19747 | AH16: =IF(CashFlow!AG46>=0,CashFlow!AG46,0) -> 58341.54031 | AI16: =IF(CashFlow!AH46>=0,CashFlow!AH46,0) -> 11262.01222 | AJ16: =IF(CashFlow!AI46>=0,CashFlow!AI46,0) -> 18142.09107 | AK16: =IF(CashFlow!AJ46>=0,CashFlow!AJ46,0) -> 144372.2522 | AL16: =IF(CashFlow!AK46>=0,CashFlow!AK46,0) -> 147779.0278 | AM16: =IF(CashFlow!AL46>=0,CashFlow!AL46,0) -> 306148.8954 | AN16: =IF(CashFlow!AM46>=0,CashFlow!AM46,0) -> 249859.5581 | AO16: =IF(CashFlow!AN46>=0,CashFlow!AN46,0) -> 313855.2836 | AP16: 313855.2836
C17: =SUM(C12:C16) -> 819000 | D17: =SUM(D12:D16) -> 805433.5503 | E17: 902050.2618 | F17: 936389.0701 | G17: 1010366.857 | H17: 991655.1062 | I17: 1089737.638 | J17: 1114765.688 | K17: 1186217.162 | L17: 1194958.172 | M17: 1193441.427 | N17: 1281136.545 | O17: 1382845.76 | P17: =SUM(P12:P16) -> 1382845.76 | Q17: 1320116.966 | R17: 1407015.506 | S17: 1408441.543 | T17: 1502355.713 | U17: 1541403.297 | V17: 1518840.131 | W17: 1521427.65 | X17: 1200362.254 | Y17: 1258537.111 | Z17: 1238666.973 | AA17: 1288896.892 | AB17: 1384753.014 | AC17: =SUM(AC12:AC16) -> 1384753.014 | AD17: 1312560.022 | AE17: 835737.5 | AF17: 809361.2903 | AG17: 909030.1975 | AH17: 885670.5726 | AI17: 857247.4961 | AJ17: 882315.4244 | AK17: 985030.3167 | AL17: 1034477.361 | AM17: 1035148.895 | AN17: 1110784.558 | AO17: 1196815.865 | AP17: =SUM(AP12:AP16) -> 1196815.865
B18: Total Assets | C18: =SUM(C10,C17) -> 2789000 | D18: =SUM(D10,D17) -> 2759433.55 | E18: 2840050.262 | F18: 2858389.07 | G18: 2916366.857 | H18: 2881655.106 | I18: 2963737.638 | J18: 2972765.688 | K18: 3028217.162 | L18: 3020958.172 | M18: 3003441.427 | N18: 3311136.545 | O18: 3392845.76 | P18: =SUM(P10,P17) -> 3392845.76 | Q18: 3310116.966 | R18: 3377015.506 | S18: 3358441.543 | T18: 3432355.713 | U18: 3451403.297 | V18: 3703840.131 | W18: 3681427.65 | X18: 3735362.254 | Y18: 3768537.111 | Z18: 3723666.973 | AA18: 3748896.892 | AB18: 3819753.014 | AC18: =SUM(AC10,AC17) -> 3819753.014 | AD18: 3722560.022 | AE18: 3997737.5 | AF18: 3943361.29 | AG18: 4015030.197 | AH18: 3963670.573 | AI18: 3909247.496 | AJ18: 3908315.424 | AK18: 3985030.317 | AL18: 4008477.361 | AM18: 3983148.895 | AN18: 4032784.558 | AO18: 4092815.865 | AP18: =SUM(AP10,AP17) -> 4092815.865
B19: EQUITY & LIABILITIES
B20: Equity
A21: CAP | B21: Shareholders' Contributions | C21: =-SUMIF(Assumptions!$A$71:$C$95,$A21,Assumptions!$C$71:$C$95) -> 1000 | D21: =C21+CashFlow!C33 -> 1000 | E21: =D21+CashFlow!D33 -> 1000 | F21: =E21+CashFlow!E33 -> 1000 | G21: =F21+CashFlow!F33 -> 1000 | H21: =G21+CashFlow!G33 -> 1000 | I21: =H21+CashFlow!H33 -> 1000 | J21: =I21+CashFlow!I33 -> 1000 | K21: =J21+CashFlow!J33 -> 1000 | L21: =K21+CashFlow!K33 -> 1000 | M21: =L21+CashFlow!L33 -> 1000 | N21: =M21+CashFlow!M33 -> 1000 | O21: =N21+CashFlow!N33 -> 1000 | P21: =O21 -> 1000 | Q21: =P21+CashFlow!P33 -> 1000 | R21: =Q21+CashFlow!Q33 -> 1000 | S21: =R21+CashFlow!R33 -> 1000 | T21: =S21+CashFlow!S33 -> 1000 | U21: =T21+CashFlow!T33 -> 1000 | V21: =U21+CashFlow!U33 -> 1000 | W21: =V21+CashFlow!V33 -> 1000 | X21: =W21+CashFlow!W33 -> 1000 | Y21: =X21+CashFlow!X33 -> 1000 | Z21: =Y21+CashFlow!Y33 -> 1000 | AA21: =Z21+CashFlow!Z33 -> 1000 | AB21: =AA21+CashFlow!AA33 -> 1000 | AC21: =AB21 -> 1000 | AD21: =AC21+CashFlow!AC33 -> 1000 | AE21: =AD21+CashFlow!AD33 -> 1000 | AF21: =AE21+CashFlow!AE33 -> 1000 | AG21: =AF21+CashFlow!AF33 -> 1000 | AH21: =AG21+CashFlow!AG33 -> 1000 | AI21: =AH21+CashFlow!AH33 -> 1000 | AJ21: =AI21+CashFlow!AI33 -> 1000 | AK21: =AJ21+CashFlow!AJ33 -> 1000 | AL21: =AK21+CashFlow!AK33 -> 1000 | AM21: =AL21+CashFlow!AL33 -> 1000 | AN21: =AM21+CashFlow!AM33 -> 1000 | AO21: =AN21+CashFlow!AN33 -> 1000 | AP21: =AO21 -> 1000
A22: RES | B22: Reserves | C22: =-SUMIF(Assumptions!$A$71:$C$95,$A22,Assumptions!$C$71:$C$95) -> 0 | D22: =C22+CashFlow!C12 -> 0 | E22: =D22+CashFlow!D12 -> 0 | F22: =E22+CashFlow!E12 -> 0 | G22: =F22+CashFlow!F12 -> 0 | H22: =G22+CashFlow!G12 -> 0 | I22: =H22+CashFlow!H12 -> 0 | J22: =I22+CashFlow!I12 -> 0 | K22: =J22+CashFlow!J12 -> 0 | L22: =K22+CashFlow!K12 -> 0 | M22: =L22+CashFlow!L12 -> 0 | N22: =M22+CashFlow!M12 -> 0 | O22: =N22+CashFlow!N12 -> 0 | P22: 0 | Q22: =P22+CashFlow!P12 -> 0 | R22: =Q22+CashFlow!Q12 -> 0 | S22: =R22+CashFlow!R12 -> 0 | T22: =S22+CashFlow!S12 -> 0 | U22: =T22+CashFlow!T12 -> 0 | V22: =U22+CashFlow!U12 -> 0 | W22: =V22+CashFlow!V12 -> 0 | X22: =W22+CashFlow!W12 -> 0 | Y22: =X22+CashFlow!X12 -> 0 | Z22: =Y22+CashFlow!Y12 -> 0 | AA22: =Z22+CashFlow!Z12 -> 0 | AB22: =AA22+CashFlow!AA12 -> 0 | AC22: 0 | AD22: =AC22+CashFlow!AC12 -> 0 | AE22: =AD22+CashFlow!AD12 -> 0 | AF22: =AE22+CashFlow!AE12 -> 0 | AG22: =AF22+CashFlow!AF12 -> 0 | AH22: =AG22+CashFlow!AG12 -> 0 | AI22: =AH22+CashFlow!AH12 -> 0 | AJ22: =AI22+CashFlow!AI12 -> 0 | AK22: =AJ22+CashFlow!AJ12 -> 0 | AL22: =AK22+CashFlow!AK12 -> 0 | AM22: =AL22+CashFlow!AL12 -> 0 | AN22: =AM22+CashFlow!AM12 -> 0 | AO22: =AN22+CashFlow!AN12 -> 0 | AP22: 0
A23: EAR | B23: Retained Earnings | C23: =-SUMIF(Assumptions!$A$71:$C$95,$A23,Assumptions!$C$71:$C$95) -> 400000 | D23: =C23+IncState!C61 -> 440354.5 | E23: =D23+IncState!D61 -> 479451.7417 | F23: =E23+IncState!E61 -> 524327.0435 | G23: =F23+IncState!F61 -> 521154.1321 | H23: =G23+IncState!G61 -> 557046.7426 | I23: =H23+IncState!H61 -> 591951.6181 | J23: =I23+IncState!I61 -> 639316.6354 | K23: =J23+IncState!J61 -> 652054.785 | L23: =K23+IncState!K61 -> 678091.706 | M23: =L23+IncState!L61 -> 702320.6469 | N23: =M23+IncState!M61 -> 758298.9446 | O23: =N23+IncState!N61 -> 802072.4918 | P23: 802072.4918 | Q23: =P23+IncState!P61 -> 848019.5102 | R23: =Q23+IncState!Q61 -> 876785.5134 | S23: =R23+IncState!R61 -> 920239.7065 | T23: =S23+IncState!S61 -> 957119.6262 | U23: =T23+IncState!T61 -> 1006358.982 | V23: =U23+IncState!U61 -> 1022851.093 | W23: =V23+IncState!V61 -> 1069493.437 | X23: =W23+IncState!W61 -> 1101123.482 | Y23: =X23+IncState!X61 -> 1152086.15 | Z23: =Y23+IncState!Y61 -> 1133439.342 | AA23: =Z23+IncState!Z61 -> 1169459.611 | AB23: =AA23+IncState!AA61 -> 1218539.849 | AC23: 1218539.849 | AD23: =AC23+IncState!AC61 -> 1265185.921 | AE23: =AD23+IncState!AD61 -> 1279244.51 | AF23: =AE23+IncState!AE61 -> 1324471.663 | AG23: =AF23+IncState!AF61 -> 1362734.506 | AH23: =AG23+IncState!AG61 -> 1351634.182 | AI23: =AH23+IncState!AH61 -> 1402388.171 | AJ23: =AI23+IncState!AI61 -> 1436725.095 | AK23: =AJ23+IncState!AJ61 -> 1494726.471 | AL23: =AK23+IncState!AK61 -> 1539153.758 | AM23: =AL23+IncState!AL61 -> 1563265.472 | AN23: =AM23+IncState!AM61 -> 1617323.269 | AO23: =AN23+IncState!AN61 -> 1663999.387 | AP23: 1663999.387
C24: =SUM(C21:C23) -> 401000 | D24: =SUM(D21:D23) -> 441354.5 | E24: 480451.7417 | F24: 525327.0435 | G24: 522154.1321 | H24: 558046.7426 | I24: 592951.6181 | J24: 640316.6354 | K24: 653054.785 | L24: 679091.706 | M24: 703320.6469 | N24: 759298.9446 | O24: 803072.4918 | P24: =SUM(P21:P23) -> 803072.4918 | Q24: 849019.5102 | R24: 877785.5134 | S24: 921239.7065 | T24: 958119.6262 | U24: 1007358.982 | V24: 1023851.093 | W24: 1070493.437 | X24: 1102123.482 | Y24: 1153086.15 | Z24: 1134439.342 | AA24: 1170459.611 | AB24: 1219539.849 | AC24: 1219539.849 | AD24: 1266185.921 | AE24: 1280244.51 | AF24: 1325471.663 | AG24: 1363734.506 | AH24: 1352634.182 | AI24: 1403388.171 | AJ24: 1437725.095 | AK24: 1495726.471 | AL24: 1540153.758 | AM24: 1564265.472 | AN24: 1618323.269 | AO24: 1664999.387 | AP24: =SUM(AP21:AP23) -> 1664999.387
B25: Non-Current Liabilities
A26: LT1 | B26: Long Term Loans 1 | C26: =-SUMIF(Assumptions!$A$71:$C$95,$A26,Assumptions!$C$71:$C$95) -> 1200000 | D26: =C26+CashFlow!C39+CashFlow!C35 -> 1194225.32 | E26: =D26+CashFlow!D39+CashFlow!D35 -> 1188401.314 | F26: =E26+CashFlow!E39+CashFlow!E35 -> 1182527.562 | G26: =F26+CashFlow!F39+CashFlow!F35 -> 1176603.638 | H26: =G26+CashFlow!G39+CashFlow!G35 -> 1170629.114 | I26: =H26+CashFlow!H39+CashFlow!H35 -> 1164603.557 | J26: =I26+CashFlow!I39+CashFlow!I35 -> 1158526.532 | K26: =J26+CashFlow!J39+CashFlow!J35 -> 1152397.6 | L26: =K26+CashFlow!K39+CashFlow!K35 -> 1146216.315 | M26: =L26+CashFlow!L39+CashFlow!L35 -> 1139982.233 | N26: =M26+CashFlow!M39+CashFlow!M35 -> 1133694.901 | O26: =N26+CashFlow!N39+CashFlow!N35 -> 1127353.865 | P26: =O26 -> 1127353.865 | Q26: =P26+CashFlow!P39+CashFlow!P35 -> 1120958.665 | R26: =Q26+CashFlow!Q39+CashFlow!Q35 -> 1114508.84 | S26: =R26+CashFlow!R39+CashFlow!R35 -> 1108003.923 | T26: =S26+CashFlow!S39+CashFlow!S35 -> 1101443.443 | U26: =T26+CashFlow!T39+CashFlow!T35 -> 1094826.926 | V26: =U26+CashFlow!U39+CashFlow!U35 -> 1088153.892 | W26: =V26+CashFlow!V39+CashFlow!V35 -> 1081423.86 | X26: =W26+CashFlow!W39+CashFlow!W35 -> 1074636.342 | Y26: =X26+CashFlow!X39+CashFlow!X35 -> 1067790.847 | Z26: =Y26+CashFlow!Y39+CashFlow!Y35 -> 1060886.88 | AA26: =Z26+CashFlow!Z39+CashFlow!Z35 -> 1053923.942 | AB26: =AA26+CashFlow!AA39+CashFlow!AA35 -> 1046901.529 | AC26: =AB26 -> 1046901.529 | AD26: =AC26+CashFlow!AC39+CashFlow!AC35 -> 1039819.132 | AE26: =AD26+CashFlow!AD39+CashFlow!AD35 -> 1032676.241 | AF26: =AE26+CashFlow!AE39+CashFlow!AE35 -> 1025472.337 | AG26: =AF26+CashFlow!AF39+CashFlow!AF35 -> 1018206.899 | AH26: =AG26+CashFlow!AG39+CashFlow!AG35 -> 1010879.403 | AI26: =AH26+CashFlow!AH39+CashFlow!AH35 -> 1003489.318 | AJ26: =AI26+CashFlow!AI39+CashFlow!AI35 -> 996036.1087 | AK26: =AJ26+CashFlow!AJ39+CashFlow!AJ35 -> 988519.2369 | AL26: =AK26+CashFlow!AK39+CashFlow!AK35 -> 980938.1585 | AM26: =AL26+CashFlow!AL39+CashFlow!AL35 -> 973292.325 | AN26: =AM26+CashFlow!AM39+CashFlow!AM35 -> 965581.1834 | AO26: =AN26+CashFlow!AN39+CashFlow!AN35 -> 957804.1758 | AP26: =AO26 -> 957804.1758
A27: LT2 | B27: Long Term Loans 2 | C27: =-SUMIF(Assumptions!$A$71:$C$95,$A27,Assumptions!$C$71:$C$95) -> 500000 | D27: =C27+CashFlow!C40+CashFlow!C36 -> 496464.0566 | E27: =D27+CashFlow!D40+CashFlow!D36 -> 492900.8569 | F27: =E27+CashFlow!E40+CashFlow!E36 -> 489310.191 | G27: =F27+CashFlow!F40+CashFlow!F36 -> 485691.8469 | H27: =G27+CashFlow!G40+CashFlow!G36 -> 482045.6115 | I27: =H27+CashFlow!H40+CashFlow!H36 -> 577664.081 | J27: =I27+CashFlow!I40+CashFlow!I36 -> 573248.7762 | K27: =J27+CashFlow!J40+CashFlow!J36 -> 568799.4368 | L27: =K27+CashFlow!K40+CashFlow!K36 -> 564315.8003 | M27: =L27+CashFlow!L40+CashFlow!L36 -> 559797.6025 | N27: =M27+CashFlow!M40+CashFlow!M36 -> 555244.5769 | O27: =N27+CashFlow!N40+CashFlow!N36 -> 550656.4551 | P27: 550656.4551 | Q27: =P27+CashFlow!P40+CashFlow!P36 -> 546032.9665 | R27: =Q27+CashFlow!Q40+CashFlow!Q36 -> 541373.8386 | S27: =R27+CashFlow!R40+CashFlow!R36 -> 536678.7965 | T27: =S27+CashFlow!S40+CashFlow!S36 -> 531947.5634 | U27: =T27+CashFlow!T40+CashFlow!T36 -> 527179.8605 | V27: =U27+CashFlow!U40+CashFlow!U36 -> 522375.4065 | W27: =V27+CashFlow!V40+CashFlow!V36 -> 517533.9181 | X27: =W27+CashFlow!W40+CashFlow!W36 -> 512655.11 | Y27: =X27+CashFlow!X40+CashFlow!X36 -> 507738.6944 | Z27: =Y27+CashFlow!Y40+CashFlow!Y36 -> 502784.3814 | AA27: =Z27+CashFlow!Z40+CashFlow!Z36 -> 497791.8789 | AB27: =AA27+CashFlow!AA40+CashFlow!AA36 -> 492760.8925 | AC27: 492760.8925 | AD27: =AC27+CashFlow!AC40+CashFlow!AC36 -> 487691.1256 | AE27: =AD27+CashFlow!AD40+CashFlow!AD36 -> 482582.2793 | AF27: =AE27+CashFlow!AE40+CashFlow!AE36 -> 477434.0523 | AG27: =AF27+CashFlow!AF40+CashFlow!AF36 -> 472246.141 | AH27: =AG27+CashFlow!AG40+CashFlow!AG36 -> 467018.2396 | AI27: =AH27+CashFlow!AH40+CashFlow!AH36 -> 461750.0397 | AJ27: =AI27+CashFlow!AI40+CashFlow!AI36 -> 456441.2309 | AK27: =AJ27+CashFlow!AJ40+CashFlow!AJ36 -> 451091.4999 | AL27: =AK27+CashFlow!AK40+CashFlow!AK36 -> 445700.5315 | AM27: =AL27+CashFlow!AL40+CashFlow!AL36 -> 440268.0076 | AN27: =AM27+CashFlow!AM40+CashFlow!AM36 -> 434793.6081 | AO27: =AN27+CashFlow!AN40+CashFlow!AN36 -> 429277.0101 | AP27: 429277.0101
A28: LT3 | B28: Long Term Loans 3 | C28: =-SUMIF(Assumptions!$A$71:$C$95,$A28,Assumptions!$C$71:$C$95) -> 0 | D28: =C28+CashFlow!C41+CashFlow!C37 -> 0 | E28: =D28+CashFlow!D41+CashFlow!D37 -> 0 | F28: =E28+CashFlow!E41+CashFlow!E37 -> 0 | G28: =F28+CashFlow!F41+CashFlow!F37 -> 0 | H28: =G28+CashFlow!G41+CashFlow!G37 -> 0 | I28: =H28+CashFlow!H41+CashFlow!H37 -> 0 | J28: =I28+CashFlow!I41+CashFlow!I37 -> 0 | K28: =J28+CashFlow!J41+CashFlow!J37 -> 0 | L28: =K28+CashFlow!K41+CashFlow!K37 -> 0 | M28: =L28+CashFlow!L41+CashFlow!L37 -> 0 | N28: =M28+CashFlow!M41+CashFlow!M37 -> 237100.4948 | O28: =N28+CashFlow!N41+CashFlow!N37 -> 234170.7865 | P28: 234170.7865 | Q28: =P28+CashFlow!P41+CashFlow!P37 -> 231210.5603 | R28: =Q28+CashFlow!Q41+CashFlow!Q37 -> 228219.4985 | S28: =R28+CashFlow!R41+CashFlow!R37 -> 225197.2798 | T28: =S28+CashFlow!S41+CashFlow!S37 -> 222143.5796 | U28: =T28+CashFlow!T41+CashFlow!T37 -> 219058.07 | V28: =U28+CashFlow!U41+CashFlow!U37 -> 512316.0383 | W28: =V28+CashFlow!V41+CashFlow!V37 -> 505503.777 | X28: =W28+CashFlow!W41+CashFlow!W37 -> 498620.5547 | Y28: =X28+CashFlow!X41+CashFlow!X37 -> 491665.6322 | Z28: =Y28+CashFlow!Y41+CashFlow!Y37 -> 484638.2626 | AA28: =Z28+CashFlow!Z41+CashFlow!Z37 -> 477537.6912 | AB28: =AA28+CashFlow!AA41+CashFlow!AA37 -> 470363.1555 | AC28: 470363.1555 | AD28: =AC28+CashFlow!AC41+CashFlow!AC37 -> 463113.885 | AE28: =AD28+CashFlow!AD41+CashFlow!AD37 -> 633614.4725 | AF28: =AE28+CashFlow!AE41+CashFlow!AE37 -> 624016.1077 | AG28: =AF28+CashFlow!AF41+CashFlow!AF37 -> 614317.76 | AH28: =AG28+CashFlow!AG41+CashFlow!AG37 -> 604518.3878 | AI28: =AH28+CashFlow!AH41+CashFlow!AH37 -> 594616.9388 | AJ28: =AI28+CashFlow!AI41+CashFlow!AI37 -> 584612.3497 | AK28: =AJ28+CashFlow!AJ41+CashFlow!AJ37 -> 574503.5462 | AL28: =AK28+CashFlow!AK41+CashFlow!AK37 -> 564289.4426 | AM28: =AL28+CashFlow!AL41+CashFlow!AL37 -> 553968.9421 | AN28: =AM28+CashFlow!AM41+CashFlow!AM37 -> 543540.9364 | AO28: =AN28+CashFlow!AN41+CashFlow!AN37 -> 533004.3056 | AP28: 533004.3056
A29: FIN | B29: Finance Leases | C29: =-SUMIF(Assumptions!$A$71:$C$95,$A29,Assumptions!$C$71:$C$95) -> 425000 | D29: =C29+CashFlow!C42+CashFlow!C38 -> 417985.0879 | E29: =D29+CashFlow!D42+CashFlow!D38 -> 410902.9495 | F29: =E29+CashFlow!E42+CashFlow!E38 -> 403752.9407 | G29: =F29+CashFlow!F42+CashFlow!F38 -> 396534.4109 | H29: =G29+CashFlow!G42+CashFlow!G38 -> 389246.7036 | I29: =H29+CashFlow!H42+CashFlow!H38 -> 381889.1557 | J29: =I29+CashFlow!I42+CashFlow!I38 -> 374461.098 | K29: =J29+CashFlow!J42+CashFlow!J38 -> 366961.8547 | L29: =K29+CashFlow!K42+CashFlow!K38 -> 359390.7437 | M29: =L29+CashFlow!L42+CashFlow!L38 -> 351747.0762 | N29: =M29+CashFlow!M42+CashFlow!M38 -> 344030.1569 | O29: =N29+CashFlow!N42+CashFlow!N38 -> 336239.2838 | P29: 336239.2838 | Q29: =P29+CashFlow!P42+CashFlow!P38 -> 328373.7481 | R29: =Q29+CashFlow!Q42+CashFlow!Q38 -> 320432.8344 | S29: =R29+CashFlow!R42+CashFlow!R38 -> 312415.8203 | T29: =S29+CashFlow!S42+CashFlow!S38 -> 304321.9765 | U29: =T29+CashFlow!T42+CashFlow!T38 -> 296150.5666 | V29: =U29+CashFlow!U42+CashFlow!U38 -> 287900.8474 | W29: =V29+CashFlow!V42+CashFlow!V38 -> 279572.0684 | X29: =W29+CashFlow!W42+CashFlow!W38 -> 271163.472 | Y29: =X29+CashFlow!X42+CashFlow!X38 -> 262674.2931 | Z29: =Y29+CashFlow!Y42+CashFlow!Y38 -> 254103.7597 | AA29: =Z29+CashFlow!Z42+CashFlow!Z38 -> 245451.0919 | AB29: =AA29+CashFlow!AA42+CashFlow!AA38 -> 236715.5028 | AC29: 236715.5028 | AD29: =AC29+CashFlow!AC42+CashFlow!AC38 -> 227896.1975 | AE29: =AD29+CashFlow!AD42+CashFlow!AD38 -> 218992.374 | AF29: =AE29+CashFlow!AE42+CashFlow!AE38 -> 210003.2221 | AG29: =AF29+CashFlow!AF42+CashFlow!AF38 -> 200927.9242 | AH29: =AG29+CashFlow!AG42+CashFlow!AG38 -> 191765.6547 | AI29: =AH29+CashFlow!AH42+CashFlow!AH38 -> 182515.5801 | AJ29: =AI29+CashFlow!AI42+CashFlow!AI38 -> 173176.859 | AK29: =AJ29+CashFlow!AJ42+CashFlow!AJ38 -> 163748.6417 | AL29: =AK29+CashFlow!AK42+CashFlow!AK38 -> 154230.0708 | AM29: =AL29+CashFlow!AL42+CashFlow!AL38 -> 144620.2802 | AN29: =AM29+CashFlow!AM42+CashFlow!AM38 -> 134918.3957 | AO29: =AN29+CashFlow!AN42+CashFlow!AN38 -> 125123.5349 | AP29: 125123.5349
C30: =SUM(C26:C29) -> 2125000 | D30: =SUM(D26:D29) -> 2108674.464 | E30: 2092205.121 | F30: 2075590.693 | G30: 2058829.896 | H30: 2041921.429 | I30: 2124156.794 | J30: 2106236.406 | K30: 2088158.891 | L30: 2069922.86 | M30: 2051526.912 | N30: 2270070.13 | O30: 2248420.39 | P30: =SUM(P26:P29) -> 2248420.39 | Q30: 2226575.94 | R30: 2204535.012 | S30: 2182295.82 | T30: 2159856.563 | U30: 2137215.423 | V30: 2410746.184 | W30: 2384033.623 | X30: 2357075.478 | Y30: 2329869.467 | Z30: 2302413.284 | AA30: 2274704.604 | AB30: 2246741.079 | AC30: 2246741.079 | AD30: 2218520.341 | AE30: 2367865.366 | AF30: 2336925.719 | AG30: 2305698.724 | AH30: 2274181.685 | AI30: 2242371.876 | AJ30: 2210266.548 | AK30: 2177862.925 | AL30: 2145158.203 | AM30: 2112149.555 | AN30: 2078834.124 | AO30: 2045209.026 | AP30: =SUM(AP26:AP29) -> 2045209.026
B31: Current Liabilities
A32: OVD | B32: Bank Overdraft | C32: =-SUMIF(Assumptions!$A$71:$C$95,$A32,Assumptions!$C$71:$C$95) -> 0 | D32: =IF(CashFlow!C46<0,-CashFlow!C46,0) -> 0 | E32: =IF(CashFlow!D46<0,-CashFlow!D46,0) -> 0 | F32: =IF(CashFlow!E46<0,-CashFlow!E46,0) -> 0 | G32: =IF(CashFlow!F46<0,-CashFlow!F46,0) -> 0 | H32: =IF(CashFlow!G46<0,-CashFlow!G46,0) -> 0 | I32: =IF(CashFlow!H46<0,-CashFlow!H46,0) -> 0 | J32: =IF(CashFlow!I46<0,-CashFlow!I46,0) -> 0 | K32: =IF(CashFlow!J46<0,-CashFlow!J46,0) -> 0 | L32: =IF(CashFlow!K46<0,-CashFlow!K46,0) -> 0 | M32: =IF(CashFlow!L46<0,-CashFlow!L46,0) -> 0 | N32: =IF(CashFlow!M46<0,-CashFlow!M46,0) -> 0 | O32: =IF(CashFlow!N46<0,-CashFlow!N46,0) -> 0 | P32: =O32 -> 0 | Q32: =IF(CashFlow!P46<0,-CashFlow!P46,0) -> 0 | R32: =IF(CashFlow!Q46<0,-CashFlow!Q46,0) -> 0 | S32: =IF(CashFlow!R46<0,-CashFlow!R46,0) -> 0 | T32: =IF(CashFlow!S46<0,-CashFlow!S46,0) -> 0 | U32: =IF(CashFlow!T46<0,-CashFlow!T46,0) -> 0 | V32: =IF(CashFlow!U46<0,-CashFlow!U46,0) -> 0 | W32: =IF(CashFlow!V46<0,-CashFlow!V46,0) -> 0 | X32: =IF(CashFlow!W46<0,-CashFlow!W46,0) -> 0 | Y32: =IF(CashFlow!X46<0,-CashFlow!X46,0) -> 0 | Z32: =IF(CashFlow!Y46<0,-CashFlow!Y46,0) -> 0 | AA32: =IF(CashFlow!Z46<0,-CashFlow!Z46,0) -> 0 | AB32: =IF(CashFlow!AA46<0,-CashFlow!AA46,0) -> 0 | AC32: =AB32 -> 0 | AD32: =IF(CashFlow!AC46<0,-CashFlow!AC46,0) -> 0 | AE32: =IF(CashFlow!AD46<0,-CashFlow!AD46,0) -> 25104.0726 | AF32: =IF(CashFlow!AE46<0,-CashFlow!AE46,0) -> 8067.033533 | AG32: =IF(CashFlow!AF46<0,-CashFlow!AF46,0) -> 0 | AH32: =IF(CashFlow!AG46<0,-CashFlow!AG46,0) -> 0 | AI32: =IF(CashFlow!AH46<0,-CashFlow!AH46,0) -> 0 | AJ32: =IF(CashFlow!AI46<0,-CashFlow!AI46,0) -> 0 | AK32: =IF(CashFlow!AJ46<0,-CashFlow!AJ46,0) -> 0 | AL32: =IF(CashFlow!AK46<0,-CashFlow!AK46,0) -> 0 | AM32: =IF(CashFlow!AL46<0,-CashFlow!AL46,0) -> 0 | AN32: =IF(CashFlow!AM46<0,-CashFlow!AM46,0) -> 0 | AO32: =IF(CashFlow!AN46<0,-CashFlow!AN46,0) -> 0 | AP32: =AO32 -> 0
A33: CRE | B33: Trade Payables | C33: =-SUMIF(Assumptions!$A$71:$C$95,$A33,Assumptions!$C$71:$C$95) -> 130000 | D33: =(IF(COLUMN(D$4)-MATCH(MAX(DATE(YEAR(D$4-D$57),MONTH(D$4-D$57)+1,0),DATE(YEAR($D$4),MONTH($D$4),0)),$A$4:$AP$4,0)=0,0,SUM(OFFSET($A$58,0,MATCH(MAX(DATE(YEAR(D$4-D$57),MONTH(D$4-D$57)+1,0),DATE(YEAR($D$4),MONTH($D$4),0)),$A$4:$AP$4,0),1,COLUMN(D$4)-MATCH(MAX(DATE(YEAR(D$4-D$57),MONTH(D$4-D$57)+1,0),DATE(YEAR($D$4),MONTH($D$4),0)),$A$4:$AP$4,0))))+IF(ISNA(MATCH(DATE(YEAR(D$4-D$57),MONTH(D$4-D$57)+1,0),$A$4:$AP$4,0)),0,IF(DATE(YEAR(D$4-D$57),MONTH(D$4-D$57)+1,0)<=$C$4,0,OFFSET($A$58,0,MATCH(DATE(YEAR(D$4-D$57),MONTH(D$4-D$57)+1,0),$A$4:$AP$4,0)-1,1,1)/OFFSET($A$43,0,MATCH(DATE(YEAR(D$4-D$57),MONTH(D$4-D$57)+1,0),$A$4:$AP$4,0)-1,1,1)*IF((D$4-D$57)>DATE(YEAR($D$4),MONTH($D$4),0),(D$57-(D$4-DATE(YEAR(D$4-D$57),MONTH(D$4-D$57)+1,0))),0)))+IF(C$57=0,0,($C$33/$C$57*IF(DATE(YEAR($D$4),MONTH($D$4),0)>(D$4-D$57),DATE(YEAR($D$4),MONTH($D$4),0)-(D$4-D$57),0)))) -> 145252.4194 | E33: =(IF(COLUMN(E$4)-MATCH(MAX(DATE(YEAR(E$4-E$57),MONTH(E$4-E$57)+1,0),DATE(YEAR($D$4),MONTH($D$4),0)),$A$4:$AP$4,0)=0,0,SUM(OFFSET($A$58,0,MATCH(MAX(DATE(YEAR(E$4-E$57),MONTH(E$4-E$57)+1,0),DATE(YEAR($D$4),MONTH($D$4),0)),$A$4:$AP$4,0),1,COLUMN(E$4)-MATCH(MAX(DATE(YEAR(E$4-E$57),MONTH(E$4-E$57)+1,0),DATE(YEAR($D$4),MONTH($D$4),0)),$A$4:$AP$4,0))))+IF(ISNA(MATCH(DATE(YEAR(E$4-E$57),MONTH(E$4-E$57)+1,0),$A$4:$AP$4,0)),0,IF(DATE(YEAR(E$4-E$57),MONTH(E$4-E$57)+1,0)<=$C$4,0,OFFSET($A$58,0,MATCH(DATE(YEAR(E$4-E$57),MONTH(E$4-E$57)+1,0),$A$4:$AP$4,0)-1,1,1)/OFFSET($A$43,0,MATCH(DATE(YEAR(E$4-E$57),MONTH(E$4-E$57)+1,0),$A$4:$AP$4,0)-1,1,1)*IF((E$4-E$57)>DATE(YEAR($D$4),MONTH($D$4),0),(E$57-(E$4-DATE(YEAR(E$4-E$57),MONTH(E$4-E$57)+1,0))),0)))+IF(D$57=0,0,($C$33/$C$57*IF(DATE(YEAR($D$4),MONTH($D$4),0)>(E$4-E$57),DATE(YEAR($D$4),MONTH($D$4),0)-(E$4-E$57),0)))) -> 159861.5 | F33: 159764.6774 | G33: 219584.8333 | H33: 173171.4516 | I33: 171858.2258 | J33: 157891.1667 | K33: 189264.0323 | L33: 193033.6333 | M33: 135251.129 | N33: 164501.1935 | O33: 168773.1786 | P33: 168773.1786 | Q33: =(IF(COLUMN(Q$4)-MATCH(MAX(DATE(YEAR(Q$4-Q$57),MONTH(Q$4-Q$57)+1,0),DATE(YEAR($D$4),MONTH($D$4),0)),$A$4:$AP$4,0)=0,0,SUM(OFFSET($A$58,0,MATCH(MAX(DATE(YEAR(Q$4-Q$57),MONTH(Q$4-Q$57)+1,0),DATE(YEAR($D$4),MONTH($D$4),0)),$A$4:$AP$4,0),1,COLUMN(Q$4)-MATCH(MAX(DATE(YEAR(Q$4-Q$57),MONTH(Q$4-Q$57)+1,0),DATE(YEAR($D$4),MONTH($D$4),0)),$A$4:$AP$4,0))))+IF(ISNA(MATCH(DATE(YEAR(Q$4-Q$57),MONTH(Q$4-Q$57)+1,0),$A$4:$AP$4,0)),0,IF(DATE(YEAR(Q$4-Q$57),MONTH(Q$4-Q$57)+1,0)<=$C$4,0,OFFSET($A$58,0,MATCH(DATE(YEAR(Q$4-Q$57),MONTH(Q$4-Q$57)+1,0),$A$4:$AP$4,0)-1,1,1)/OFFSET($A$43,0,MATCH(DATE(YEAR(Q$4-Q$57),MONTH(Q$4-Q$57)+1,0),$A$4:$AP$4,0)-1,1,1)*IF((Q$4-Q$57)>DATE(YEAR($D$4),MONTH($D$4),0),(Q$57-(Q$4-DATE(YEAR(Q$4-Q$57),MONTH(Q$4-Q$57)+1,0))),0)))+IF(P$57=0,0,($C$33/$C$57*IF(DATE(YEAR($D$4),MONTH($D$4),0)>(Q$4-Q$57),DATE(YEAR($D$4),MONTH($D$4),0)-(Q$4-Q$57),0)))) -> 162740.5806 | R33: =(IF(COLUMN(R$4)-MATCH(MAX(DATE(YEAR(R$4-R$57),MONTH(R$4-R$57)+1,0),DATE(YEAR($D$4),MONTH($D$4),0)),$A$4:$AP$4,0)=0,0,SUM(OFFSET($A$58,0,MATCH(MAX(DATE(YEAR(R$4-R$57),MONTH(R$4-R$57)+1,0),DATE(YEAR($D$4),MONTH($D$4),0)),$A$4:$AP$4,0),1,COLUMN(R$4)-MATCH(MAX(DATE(YEAR(R$4-R$57),MONTH(R$4-R$57)+1,0),DATE(YEAR($D$4),MONTH($D$4),0)),$A$4:$AP$4,0))))+IF(ISNA(MATCH(DATE(YEAR(R$4-R$57),MONTH(R$4-R$57)+1,0),$A$4:$AP$4,0)),0,IF(DATE(YEAR(R$4-R$57),MONTH(R$4-R$57)+1,0)<=$C$4,0,OFFSET($A$58,0,MATCH(DATE(YEAR(R$4-R$57),MONTH(R$4-R$57)+1,0),$A$4:$AP$4,0)-1,1,1)/OFFSET($A$43,0,MATCH(DATE(YEAR(R$4-R$57),MONTH(R$4-R$57)+1,0),$A$4:$AP$4,0)-1,1,1)*IF((R$4-R$57)>DATE(YEAR($D$4),MONTH($D$4),0),(R$57-(R$4-DATE(YEAR(R$4-R$57),MONTH(R$4-R$57)+1,0))),0)))+IF(Q$57=0,0,($C$33/$C$57*IF(DATE(YEAR($D$4),MONTH($D$4),0)>(R$4-R$57),DATE(YEAR($D$4),MONTH($D$4),0)-(R$4-R$57),0)))) -> 183423.4667 | S33: 155618 | T33: 170814.8667 | U33: 172905.0968 | V33: 187918.9032 | W33: 153672.2 | X33: 157409.0323 | Y33: 179407.6667 | Z33: 168515.8065 | AA33: 193990.9032 | AB33: 180334.7857 | AC33: 180334.7857 | AD33: =(IF(COLUMN(AD$4)-MATCH(MAX(DATE(YEAR(AD$4-AD$57),MONTH(AD$4-AD$57)+1,0),DATE(YEAR($D$4),MONTH($D$4),0)),$A$4:$AP$4,0)=0,0,SUM(OFFSET($A$58,0,MATCH(MAX(DATE(YEAR(AD$4-AD$57),MONTH(AD$4-AD$57)+1,0),DATE(YEAR($D$4),MONTH($D$4),0)),$A$4:$AP$4,0),1,COLUMN(AD$4)-MATCH(MAX(DATE(YEAR(AD$4-AD$57),MONTH(AD$4-AD$57)+1,0),DATE(YEAR($D$4),MONTH($D$4),0)),$A$4:$AP$4,0))))+IF(ISNA(MATCH(DATE(YEAR(AD$4-AD$57),MONTH(AD$4-AD$57)+1,0),$A$4:$AP$4,0)),0,IF(DATE(YEAR(AD$4-AD$57),MONTH(AD$4-AD$57)+1,0)<=$C$4,0,OFFSET($A$58,0,MATCH(DATE(YEAR(AD$4-AD$57),MONTH(AD$4-AD$57)+1,0),$A$4:$AP$4,0)-1,1,1)/OFFSET($A$43,0,MATCH(DATE(YEAR(AD$4-AD$57),MONTH(AD$4-AD$57)+1,0),$A$4:$AP$4,0)-1,1,1)*IF((AD$4-AD$57)>DATE(YEAR($D$4),MONTH($D$4),0),(AD$57-(AD$4-DATE(YEAR(AD$4-AD$57),MONTH(AD$4-AD$57)+1,0))),0)))+IF(AC$57=0,0,($C$33/$C$57*IF(DATE(YEAR($D$4),MONTH($D$4),0)>(AD$4-AD$57),DATE(YEAR($D$4),MONTH($D$4),0)-(AD$4-AD$57),0)))) -> 161356.871 | AE33: =(IF(COLUMN(AE$4)-MATCH(MAX(DATE(YEAR(AE$4-AE$57),MONTH(AE$4-AE$57)+1,0),DATE(YEAR($D$4),MONTH($D$4),0)),$A$4:$AP$4,0)=0,0,SUM(OFFSET($A$58,0,MATCH(MAX(DATE(YEAR(AE$4-AE$57),MONTH(AE$4-AE$57)+1,0),DATE(YEAR($D$4),MONTH($D$4),0)),$A$4:$AP$4,0),1,COLUMN(AE$4)-MATCH(MAX(DATE(YEAR(AE$4-AE$57),MONTH(AE$4-AE$57)+1,0),DATE(YEAR($D$4),MONTH($D$4),0)),$A$4:$AP$4,0))))+IF(ISNA(MATCH(DATE(YEAR(AE$4-AE$57),MONTH(AE$4-AE$57)+1,0),$A$4:$AP$4,0)),0,IF(DATE(YEAR(AE$4-AE$57),MONTH(AE$4-AE$57)+1,0)<=$C$4,0,OFFSET($A$58,0,MATCH(DATE(YEAR(AE$4-AE$57),MONTH(AE$4-AE$57)+1,0),$A$4:$AP$4,0)-1,1,1)/OFFSET($A$43,0,MATCH(DATE(YEAR(AE$4-AE$57),MONTH(AE$4-AE$57)+1,0),$A$4:$AP$4,0)-1,1,1)*IF((AE$4-AE$57)>DATE(YEAR($D$4),MONTH($D$4),0),(AE$57-(AE$4-DATE(YEAR(AE$4-AE$57),MONTH(AE$4-AE$57)+1,0))),0)))+IF(AD$57=0,0,($C$33/$C$57*IF(DATE(YEAR($D$4),MONTH($D$4),0)>(AE$4-AE$57),DATE(YEAR($D$4),MONTH($D$4),0)-(AE$4-AE$57),0)))) -> 214299.4333 | AF33: 172990.4194 | AG33: 197593.7667 | AH33: 238206.5484 | AI33: 181166.5484 | AJ33: 186653.4333 | AK33: 178362.0323 | AL33: 211999.4333 | AM33: 156489.7742 | AN33: 192147.1935 | AO33: 198403.5517 | AP33: 198403.5517
A34: VAT | B34: Sales Tax | C34: =-SUMIF(Assumptions!$A$71:$C$95,$A34,Assumptions!$C$71:$C$95) -> 16000 | D34: =IF(D61=0,0,SUM(OFFSET(D62,0,0,1,-MIN(D61,COLUMN(D$4)-COLUMN($B$4))))-SUM(OFFSET(D63,0,0,1,-MIN(D61,COLUMN(D$4)-COLUMN($B$4))))) -> 28458.75 | E34: =IF(E61=0,0,SUM(OFFSET(E62,0,0,1,-MIN(E61,COLUMN(E$4)-COLUMN($B$4))))-SUM(OFFSET(E63,0,0,1,-MIN(E61,COLUMN(E$4)-COLUMN($B$4))))) -> 56634 | F34: 29357.25 | G34: 48682.5 | H34: 27441.75 | I34: 54771 | J34: 29901.75 | K34: 54366 | L34: 25411.05 | M34: 50421.45 | N34: 32575.65 | O34: 62579.7 | P34: 62579.7 | Q34: =IF(Q61=0,0,SUM(OFFSET(Q62,0,0,1,-MIN(Q61,COLUMN(Q$4)-COLUMN($B$4))))-SUM(OFFSET(Q63,0,0,1,-MIN(Q61,COLUMN(Q$4)-COLUMN($B$4))))) -> 31912.65 | R34: 60216.45 | S34: 31334.1 | T34: 61268.55 | U34: 32479.05 | V34: 59323.95 | W34: 33089.7 | X34: 66315 | Y34: 33915.75 | Z34: 53292 | AA34: 30727.35 | AB34: 64137.3 | AC34: 64137.3 | AD34: =IF(AD61=0,0,SUM(OFFSET(AD62,0,0,1,-MIN(AD61,COLUMN(AD$4)-COLUMN($B$4))))-SUM(OFFSET(AD63,0,0,1,-MIN(AD61,COLUMN(AD$4)-COLUMN($B$4))))) -> 34356.75 | AE34: 62616.75 | AF34: 34710.75 | AG34: 67927.5 | AH34: 22889.25 | AI34: 58320.9 | AJ34: 36317.1 | AK34: 73169.55 | AL34: 33979.35 | AM34: 63680.7 | AN34: 35894.1 | AO34: 70203.9 | AP34: 70203.9
A35: PAY | B35: Payroll Accruals | C35: =-SUMIF(Assumptions!$A$71:$C$95,$A35,Assumptions!$C$71:$C$95) -> 20000 | D35: =IF(D71=0,0,SUM(OFFSET(D72,0,0,1,-MIN(D71,COLUMN(D$4)-COLUMN($B$4))))) -> 20000 | E35: 20000 | F35: 20000 | G35: 20000 | H35: 20000 | I35: 20000 | J35: 20000 | K35: 20000 | L35: 20000 | M35: 20000 | N35: 20000 | O35: 20000 | P35: 20000 | Q35: =IF(Q71=0,0,SUM(OFFSET(Q72,0,0,1,-MIN(Q71,COLUMN(Q$4)-COLUMN($B$4))))) -> 22000 | R35: 22000 | S35: 22000 | T35: 22000 | U35: 22000 | V35: 22000 | W35: 22000 | X35: 22000 | Y35: 22000 | Z35: 22000 | AA35: 22000 | AB35: 22000 | AC35: 22000 | AD35: =IF(AD71=0,0,SUM(OFFSET(AD72,0,0,1,-MIN(AD71,COLUMN(AD$4)-COLUMN($B$4))))) -> 24000 | AE35: 24000 | AF35: 24000 | AG35: 24000 | AH35: 24000 | AI35: 24000 | AJ35: 24000 | AK35: 24000 | AL35: 24000 | AM35: 24000 | AN35: 24000 | AO35: 24000 | AP35: 24000
A36: ACC | B36: Other Accruals | C36: =-SUMIF(Assumptions!$A$71:$C$95,$A36,Assumptions!$C$71:$C$95) -> 55000 | D36: =C36+CashFlow!C21 -> 0 | E36: =D36+CashFlow!D21 -> 0 | F36: =E36+CashFlow!E21 -> 0 | G36: =F36+CashFlow!F21 -> 0 | H36: =G36+CashFlow!G21 -> 0 | I36: =H36+CashFlow!H21 -> 0 | J36: =I36+CashFlow!I21 -> 0 | K36: =J36+CashFlow!J21 -> 0 | L36: =K36+CashFlow!K21 -> 0 | M36: =L36+CashFlow!L21 -> 0 | N36: =M36+CashFlow!M21 -> 0 | O36: =N36+CashFlow!N21 -> 60000 | P36: 60000 | Q36: =P36+CashFlow!P21 -> 0 | R36: =Q36+CashFlow!Q21 -> 0 | S36: =R36+CashFlow!R21 -> 0 | T36: =S36+CashFlow!S21 -> 0 | U36: =T36+CashFlow!T21 -> 0 | V36: =U36+CashFlow!U21 -> 0 | W36: =V36+CashFlow!V21 -> 0 | X36: =W36+CashFlow!W21 -> 0 | Y36: =X36+CashFlow!X21 -> 0 | Z36: =Y36+CashFlow!Y21 -> 0 | AA36: =Z36+CashFlow!Z21 -> 0 | AB36: =AA36+CashFlow!AA21 -> 66000 | AC36: 66000 | AD36: =AC36+CashFlow!AC21 -> 0 | AE36: =AD36+CashFlow!AD21 -> 0 | AF36: =AE36+CashFlow!AE21 -> 0 | AG36: =AF36+CashFlow!AF21 -> 0 | AH36: =AG36+CashFlow!AG21 -> 0 | AI36: =AH36+CashFlow!AH21 -> 0 | AJ36: =AI36+CashFlow!AI21 -> 0 | AK36: =AJ36+CashFlow!AJ21 -> 0 | AL36: =AK36+CashFlow!AK21 -> 0 | AM36: =AL36+CashFlow!AL21 -> 0 | AN36: =AM36+CashFlow!AM21 -> 0 | AO36: =AN36+CashFlow!AN21 -> 50000 | AP36: 50000
A37: TAX | B37: Provision For Taxation | C37: =-SUMIF(Assumptions!$A$71:$C$95,$A37,Assumptions!$C$71:$C$95) -> 0 | D37: =IF(D66=0,0,SUM(OFFSET(D67,0,0,1,-MIN(D66,COLUMN(D$4)-COLUMN($B$4))))) -> 15693.41667 | E37: 30897.89954 | F37: 48349.4058 | G37: 47115.49582 | H37: 61073.73322 | I37: 0 | J37: 18419.72895 | K37: 23373.45377 | L37: 33498.92309 | M37: 42921.28897 | N37: 64690.62698 | O37: 0 | P37: 0 | Q37: =IF(Q66=0,0,SUM(OFFSET(Q67,0,0,1,-MIN(Q66,COLUMN(Q$4)-COLUMN($B$4))))) -> 17868.28495 | R37: 29055.06397 | S37: 45953.91681 | T37: 60296.10784 | U37: 79444.74604 | V37: 0 | W37: 18138.6893 | X37: 30439.26213 | Y37: 50258.07767 | Z37: 43006.5411 | AA37: 57014.42366 | AB37: 0 | AC37: 0 | AD37: =IF(AD66=0,0,SUM(OFFSET(AD67,0,0,1,-MIN(AD66,COLUMN(AD$4)-COLUMN($B$4))))) -> 18140.13911 | AE37: 23607.36805 | AF37: 41195.70554 | AG37: 56075.70008 | AH37: 51758.90726 | AI37: 0 | AJ37: 13353.248 | AK37: 35909.33873 | AL37: 53186.61687 | AM37: 62563.39456 | AN37: 83585.87147 | AO37: 0 | AP37: 0
A38: DIV | B38: Dividends Payable | C38: =-SUMIF(Assumptions!$A$71:$C$95,$A38,Assumptions!$C$71:$C$95) -> 0 | D38: =D80 -> 0 | E38: =E80 -> 0 | F38: 0 | G38: 0 | H38: 0 | I38: 0 | J38: 0 | K38: 0 | L38: 0 | M38: 0 | N38: 0 | O38: 0 | P38: 0 | Q38: 0 | R38: 0 | S38: 0 | T38: 0 | U38: 0 | V38: 0 | W38: 0 | X38: 0 | Y38: 0 | Z38: 0 | AA38: 0 | AB38: 0 | AC38: 0 | AD38: 0 | AE38: 0 | AF38: 0 | AG38: 0 | AH38: 0 | AI38: 0 | AJ38: 0 | AK38: 0 | AL38: 0 | AM38: 0 | AN38: 0 | AO38: 0 | AP38: 0
A39: OPV | B39: Other Provisions | C39: =-SUMIF(Assumptions!$A$71:$C$95,$A39,Assumptions!$C$71:$C$95) -> 42000 | D39: =C39+CashFlow!C22 -> 0 | E39: =D39+CashFlow!D22 -> 0 | F39: =E39+CashFlow!E22 -> 0 | G39: =F39+CashFlow!F22 -> 0 | H39: =G39+CashFlow!G22 -> 0 | I39: =H39+CashFlow!H22 -> 0 | J39: =I39+CashFlow!I22 -> 0 | K39: =J39+CashFlow!J22 -> 0 | L39: =K39+CashFlow!K22 -> 0 | M39: =L39+CashFlow!L22 -> 0 | N39: =M39+CashFlow!M22 -> 0 | O39: =N39+CashFlow!N22 -> 30000 | P39: 30000 | Q39: =P39+CashFlow!P22 -> 0 | R39: =Q39+CashFlow!Q22 -> 0 | S39: =R39+CashFlow!R22 -> 0 | T39: =S39+CashFlow!S22 -> 0 | U39: =T39+CashFlow!T22 -> 0 | V39: =U39+CashFlow!U22 -> 0 | W39: =V39+CashFlow!V22 -> 0 | X39: =W39+CashFlow!W22 -> 0 | Y39: =X39+CashFlow!X22 -> 0 | Z39: =Y39+CashFlow!Y22 -> 0 | AA39: =Z39+CashFlow!Z22 -> 0 | AB39: =AA39+CashFlow!AA22 -> 21000 | AC39: 21000 | AD39: =AC39+CashFlow!AC22 -> 0 | AE39: =AD39+CashFlow!AD22 -> 0 | AF39: =AE39+CashFlow!AE22 -> 0 | AG39: =AF39+CashFlow!AF22 -> 0 | AH39: =AG39+CashFlow!AG22 -> 0 | AI39: =AH39+CashFlow!AH22 -> 0 | AJ39: =AI39+CashFlow!AI22 -> 0 | AK39: =AJ39+CashFlow!AJ22 -> 0 | AL39: =AK39+CashFlow!AK22 -> 0 | AM39: =AL39+CashFlow!AL22 -> 0 | AN39: =AM39+CashFlow!AM22 -> 0 | AO39: =AN39+CashFlow!AN22 -> 40000 | AP39: 40000
C40: =SUM(C32:C39) -> 263000 | D40: =SUM(D32:D39) -> 209404.586 | E40: 267393.3995 | F40: 257471.3332 | G40: 335382.8292 | H40: 281686.9348 | I40: 246629.2258 | J40: 226212.6456 | K40: 287003.486 | L40: 271943.6064 | M40: 248593.868 | N40: 281767.4705 | O40: 341352.8786 | P40: =SUM(P32:P39) -> 341352.8786 | Q40: 234521.5156 | R40: 294694.9806 | S40: 254906.0168 | T40: 314379.5245 | U40: 306828.8928 | V40: 269242.8532 | W40: 226900.5893 | X40: 276163.2944 | Y40: 285581.4943 | Z40: 286814.3475 | AA40: 303732.6769 | AB40: 353472.0857 | AC40: =SUM(AC32:AC39) -> 353472.0857 | AD40: 237853.7601 | AE40: 349627.624 | AF40: 280963.9084 | AG40: 345596.9667 | AH40: 336854.7056 | AI40: 263487.4484 | AJ40: 260323.7813 | AK40: 311440.921 | AL40: 323165.4002 | AM40: 306733.8688 | AN40: 335627.165 | AO40: 382607.4517 | AP40: =SUM(AP32:AP39) -> 382607.4517
B41: Total Equity & Liabilities | C41: =SUM(C24,C30,C40) -> 2789000 | D41: =SUM(D24,D30,D40) -> 2759433.55 | E41: 2840050.262 | F41: 2858389.07 | G41: 2916366.857 | H41: 2881655.106 | I41: 2963737.638 | J41: 2972765.688 | K41: 3028217.162 | L41: 3020958.172 | M41: 3003441.427 | N41: 3311136.545 | O41: 3392845.76 | P41: =SUM(P24,P30,P40) -> 3392845.76 | Q41: 3310116.966 | R41: 3377015.506 | S41: 3358441.543 | T41: 3432355.713 | U41: 3451403.297 | V41: 3703840.131 | W41: 3681427.65 | X41: 3735362.254 | Y41: 3768537.111 | Z41: 3723666.973 | AA41: 3748896.892 | AB41: 3819753.014 | AC41: =SUM(AC24,AC30,AC40) -> 3819753.014 | AD41: 3722560.022 | AE41: 3997737.5 | AF41: 3943361.29 | AG41: 4015030.197 | AH41: 3963670.573 | AI41: 3909247.496 | AJ41: 3908315.424 | AK41: 3985030.317 | AL41: 4008477.361 | AM41: 3983148.895 | AN41: 4032784.558 | AO41: 4092815.865 | AP41: =SUM(AP24,AP30,AP40) -> 4092815.865
C42: =IF(ROUND(C18-C41,0)<>0,ROUND(C18-C41,0),"") -> 
B43: Days in month | D43: =D4-DATE(YEAR(D4),MONTH(D4),1)+1 -> 31 | E43: 30 | F43: 31 | G43: 30 | H43: 31 | I43: 31 | J43: 30 | K43: 31 | L43: 30 | M43: 31 | N43: 31 | O43: 28 | P43: =SUM(D43:O43) -> 365 | Q43: =Q4-DATE(YEAR(Q4),MONTH(Q4),1)+1 -> 31 | R43: 30 | S43: 31 | T43: 30 | U43: 31 | V43: 31 | W43: 30 | X43: 31 | Y43: 30 | Z43: 31 | AA43: 31 | AB43: 28 | AC43: =SUM(Q43:AB43) -> 365 | AD43: =AD4-DATE(YEAR(AD4),MONTH(AD4),1)+1 -> 31 | AE43: 30 | AF43: 31 | AG43: 30 | AH43: 31 | AI43: 31 | AJ43: 30 | AK43: 31 | AL43: 30 | AM43: 31 | AN43: 31 | AO43: 29 | AP43: =SUM(AD43:AO43) -> 366
B45: Current Ratio | D45: =IF(D$40=0,0,D$17/D$40) -> 3.8463033 | E45: 3.373494871 | F45: 3.636867291 | G45: 3.012577774 | H45: 3.520415694 | I45: 4.418525964 | J45: 4.927954777 | K45: 4.133110641 | L45: 4.394139607 | M45: 4.800767759 | N45: 4.546786548 | O45: 4.051073968 | P45: 4.051073968 | Q45: 5.628980193 | R45: 4.774480729 | S45: 5.525336595 | T45: 4.778796316 | U45: 5.023657593 | V45: 5.641153006 | W45: 6.705260901 | X45: 4.346566973 | Y45: 4.406928096 | Z45: 4.318706451 | AA45: 4.243523961 | AB45: 3.917573891 | AC45: 3.917573891 | AD45: 5.518348843 | AE45: 2.390364613 | AF45: 2.880659281 | AG45: 2.630318796 | AH45: 2.629236159 | AI45: 3.253466157 | AJ45: 3.389300124 | AK45: 3.162815964 | AL45: 3.201077097 | AM45: 3.374745996 | AN45: 3.309578824 | AO45: 3.128051635 | AP45: 3.128051635
B46: Quick Ratio | D46: =IF(D$40=0,0,(D$17-D$12)/D$40) -> 2.988386975 | E46: 2.631591741 | F46: 2.884387654 | G46: 2.409446122 | H46: 2.815205894 | I46: 3.627865411 | J46: 4.073537467 | K46: 3.455497201 | L46: 3.645278464 | M46: 4.161715326 | N46: 3.820092621 | O46: 3.438867089 | P46: 3.438867089 | Q46: 4.770149851 | R46: 4.083868356 | S46: 4.771631864 | T46: 4.105775385 | U46: 4.326848084 | V46: 4.893306756 | W46: 5.871309784 | X46: 3.642418362 | Y46: 3.656627379 | Z46: 3.773545439 | AA46: 3.551336337 | AB46: 3.288568068 | AC46: 3.288568068 | AD46: 4.681998674 | AE46: 1.771706403 | AF46: 2.14411651 | AG46: 1.987952047 | AH46: 1.996801148 | AI46: 2.411435474 | AJ46: 2.511393393 | AK46: 2.462180829 | AL46: 2.477917997 | AM46: 2.78791807 | AN46: 2.634694008 | AO46: 2.519620404 | AP46: 2.519620404
B47: Inventory Days | D47: =IF(D$54=0,0,D$12/D$54*D$43) -> 30 | E47: 30 | F47: 30 | G47: 30 | H47: 30 | I47: 30 | J47: 30 | K47: 30 | L47: 30 | M47: 30 | N47: 30 | O47: 29.95679195 | P47: =O47 -> 29.95679195 | Q47: =IF(Q$54=0,0,Q$12/Q$54*Q$43) -> 30 | R47: 30 | S47: 30 | T47: 30 | U47: 30 | V47: 30 | W47: 30 | X47: 30 | Y47: 30 | Z47: 30 | AA47: 30 | AB47: 29.88387097 | AC47: =AB47 -> 29.88387097 | AD47: =IF(AD$54=0,0,AD$12/AD$54*AD$43) -> 30 | AE47: 30 | AF47: 30 | AG47: 30 | AH47: 30 | AI47: 30 | AJ47: 30 | AK47: 30 | AL47: 30 | AM47: 30 | AN47: 30 | AO47: 29.97211576 | AP47: =AO47 -> 29.97211576
B48: Debtors Days | D48: =IF(D$56=0,0,D$13/D$56*D$43) -> 25 | E48: 25 | F48: 25 | G48: 25 | H48: 25 | I48: 25 | J48: 25 | K48: 25 | L48: 25 | M48: 25 | N48: 25 | O48: 25 | P48: =O48 -> 25 | Q48: =IF(Q$56=0,0,Q$13/Q$56*Q$43) -> 25 | R48: 25 | S48: 25 | T48: 25 | U48: 25 | V48: 25 | W48: 25 | X48: 25 | Y48: 25 | Z48: 25 | AA48: 25 | AB48: 25 | AC48: =AB48 -> 25 | AD48: =IF(AD$56=0,0,AD$13/AD$56*AD$43) -> 25 | AE48: 25 | AF48: 25 | AG48: 25 | AH48: 25 | AI48: 25 | AJ48: 25 | AK48: 25 | AL48: 25 | AM48: 25 | AN48: 25 | AO48: 25 | AP48: =AO48 -> 25
B49: Creditors Days | D49: =IF(D$58=0,0,D$33/D$58*D$43) -> 20 | E49: 20 | F49: 20 | G49: 20 | H49: 20 | I49: 20 | J49: 20 | K49: 20 | L49: 20 | M49: 20 | N49: 20 | O49: 20 | P49: 20 | Q49: =IF(Q$58=0,0,Q$33/Q$58*Q$43) -> 20 | R49: 20 | S49: 20 | T49: 20 | U49: 20 | V49: 20 | W49: 20 | X49: 20 | Y49: 20 | Z49: 20 | AA49: 20 | AB49: 20 | AC49: 20 | AD49: =IF(AD$58=0,0,AD$33/AD$58*AD$43) -> 20 | AE49: 20 | AF49: 20 | AG49: 20 | AH49: 20 | AI49: 20 | AJ49: 20 | AK49: 20 | AL49: 20 | AM49: 20 | AN49: 20 | AO49: 20 | AP49: 20
B50: Debt / Equity | D50: =IF(D$24=0,0,D$30/D$24) -> 4.777734144 | E50: =IF(E$24=0,0,E$30/E$24) -> 4.354662371 | F50: 3.951044819 | G50: 3.942954329 | H50: 3.659050888 | I50: 3.582344206 | J50: 3.289366994 | K50: 3.197524831 | L50: 3.0480756 | M50: 2.916915522 | N50: 2.989692197 | O50: 2.79977264 | P50: 2.79977264 | Q50: 2.622526236 | R50: 2.51147345 | S50: 2.368868607 | T50: 2.254266068 | U50: 2.121602588 | V50: 2.354586717 | W50: 2.227041792 | X50: 2.138667325 | Y50: 2.02055108 | Z50: 2.029560505 | AA50: 1.943428532 | AB50: 1.842285909 | AC50: 1.842285909 | AD50: 1.752128423 | AE50: 1.849541512 | AF50: 1.763089912 | AG50: 1.690724048 | AH50: 1.681298399 | AI50: 1.59782726 | AJ50: 1.537336001 | AK50: 1.456056951 | AL50: 1.392820809 | AM50: 1.350250065 | AN50: 1.284560485 | AO50: 1.228354222 | AP50: 1.228354222
B52: Workings: (Not Printed)
B53: Inventory Days | C53: =Assumptions!$C$42 -> 30 | D53: =Assumptions!$C$42 -> 30 | E53: =Assumptions!$C$42 -> 30 | F53: =Assumptions!$C$42 -> 30 | G53: =Assumptions!$C$42 -> 30 | H53: =Assumptions!$C$42 -> 30 | I53: =Assumptions!$C$42 -> 30 | J53: =Assumptions!$C$42 -> 30 | K53: =Assumptions!$C$42 -> 30 | L53: =Assumptions!$C$42 -> 30 | M53: =Assumptions!$C$42 -> 30 | N53: =Assumptions!$C$42 -> 30 | O53: =Assumptions!$C$42 -> 30 | Q53: =Assumptions!$C$42 -> 30 | R53: =Assumptions!$C$42 -> 30 | S53: =Assumptions!$C$42 -> 30 | T53: =Assumptions!$C$42 -> 30 | U53: =Assumptions!$C$42 -> 30 | V53: =Assumptions!$C$42 -> 30 | W53: =Assumptions!$C$42 -> 30 | X53: =Assumptions!$C$42 -> 30 | Y53: =Assumptions!$C$42 -> 30 | Z53: =Assumptions!$C$42 -> 30 | AA53: =Assumptions!$C$42 -> 30 | AB53: =Assumptions!$C$42 -> 30 | AD53: =Assumptions!$C$42 -> 30 | AE53: =Assumptions!$C$42 -> 30 | AF53: =Assumptions!$C$42 -> 30 | AG53: =Assumptions!$C$42 -> 30 | AH53: =Assumptions!$C$42 -> 30 | AI53: =Assumptions!$C$42 -> 30 | AJ53: =Assumptions!$C$42 -> 30 | AK53: =Assumptions!$C$42 -> 30 | AL53: =Assumptions!$C$42 -> 30 | AM53: =Assumptions!$C$42 -> 30 | AN53: =Assumptions!$C$42 -> 30 | AO53: =Assumptions!$C$42 -> 30
B54: Monthly COS | D54: =IncState!C10 -> 185640 | E54: =IncState!D10 -> 198380 | F54: =IncState!E10 -> 200200 | G54: =IncState!F10 -> 202280 | H54: =IncState!G10 -> 205270 | I54: =IncState!H10 -> 201500 | J54: =IncState!I10 -> 193280 | K54: =IncState!J10 -> 200960 | L54: =IncState!K10 -> 203648 | M54: =IncState!L10 -> 164160 | N54: =IncState!M10 -> 211584 | O54: =IncState!N10 -> 195328 | Q54: =IncState!P10 -> 208128 | R54: =IncState!Q10 -> 203520 | S54: =IncState!R10 -> 198528 | T54: =IncState!S10 -> 211584 | U54: =IncState!T10 -> 220928 | V54: =IncState!U10 -> 208064 | W54: =IncState!V10 -> 189224 | X54: =IncState!W10 -> 200942 | Y54: =IncState!X10 -> 214272 | Z54: =IncState!Y10 -> 161572 | AA54: =IncState!Z10 -> 217248 | AB54: =IncState!AA10 -> 208320 | AD54: =IncState!AC10 -> 205560 | AE54: =IncState!AD10 -> 216300 | AF54: =IncState!AE10 -> 213840 | AG54: =IncState!AF10 -> 222000 | AH54: =IncState!AG10 -> 220140 | AI54: =IncState!AH10 -> 229260 | AJ54: =IncState!AI10 -> 228540 | AK54: =IncState!AJ10 -> 225480 | AL54: =IncState!AK10 -> 233700 | AM54: =IncState!AL10 -> 186000 | AN54: =IncState!AM10 -> 234060 | AO54: =IncState!AN10 -> 225240
B55: Debtors Days | C55: =Assumptions!$C$43 -> 25 | D55: =Assumptions!$C$43 -> 25 | E55: =Assumptions!$C$43 -> 25 | F55: =Assumptions!$C$43 -> 25 | G55: =Assumptions!$C$43 -> 25 | H55: =Assumptions!$C$43 -> 25 | I55: =Assumptions!$C$43 -> 25 | J55: =Assumptions!$C$43 -> 25 | K55: =Assumptions!$C$43 -> 25 | L55: =Assumptions!$C$43 -> 25 | M55: =Assumptions!$C$43 -> 25 | N55: =Assumptions!$C$43 -> 25 | O55: =Assumptions!$C$43 -> 25 | Q55: =Assumptions!$C$43 -> 25 | R55: =Assumptions!$C$43 -> 25 | S55: =Assumptions!$C$43 -> 25 | T55: =Assumptions!$C$43 -> 25 | U55: =Assumptions!$C$43 -> 25 | V55: =Assumptions!$C$43 -> 25 | W55: =Assumptions!$C$43 -> 25 | X55: =Assumptions!$C$43 -> 25 | Y55: =Assumptions!$C$43 -> 25 | Z55: =Assumptions!$C$43 -> 25 | AA55: =Assumptions!$C$43 -> 25 | AB55: =Assumptions!$C$43 -> 25 | AD55: =Assumptions!$C$43 -> 25 | AE55: =Assumptions!$C$43 -> 25 | AF55: =Assumptions!$C$43 -> 25 | AG55: =Assumptions!$C$43 -> 25 | AH55: =Assumptions!$C$43 -> 25 | AI55: =Assumptions!$C$43 -> 25 | AJ55: =Assumptions!$C$43 -> 25 | AK55: =Assumptions!$C$43 -> 25 | AL55: =Assumptions!$C$43 -> 25 | AM55: =Assumptions!$C$43 -> 25 | AN55: =Assumptions!$C$43 -> 25 | AO55: =Assumptions!$C$43 -> 25 | AP55: =Assumptions!$C$43 -> 25
B56: Monthly Turnover (Inclusive) | D56: =(SUMIF(IncState!$A$4:$AO$7,"V1C1*",IncState!C$4:C$7)*(1+Assumptions!$C$52))+(SUMIF(IncState!$A$4:$AO$7,"V2C1*",IncState!C$4:C$7)*(1+Assumptions!$C$53))+(SUMIF(IncState!$A$4:$AO$7,"V3C1*",IncState!C$4:C$7)*(1+Assumptions!$C$54))+(SUMIF(IncState!$A$4:$AO$7,"V4C1*",IncState!C$4:C$7)*(1+Assumptions!$C$55)) -> 472190 | E56: =(SUMIF(IncState!$A$4:$AO$7,"V1C1*",IncState!D$4:D$7)*(1+Assumptions!$C$52))+(SUMIF(IncState!$A$4:$AO$7,"V2C1*",IncState!D$4:D$7)*(1+Assumptions!$C$53))+(SUMIF(IncState!$A$4:$AO$7,"V3C1*",IncState!D$4:D$7)*(1+Assumptions!$C$54))+(SUMIF(IncState!$A$4:$AO$7,"V4C1*",IncState!D$4:D$7)*(1+Assumptions!$C$55)) -> 483230 | F56: =(SUMIF(IncState!$A$4:$AO$7,"V1C1*",IncState!E$4:E$7)*(1+Assumptions!$C$52))+(SUMIF(IncState!$A$4:$AO$7,"V2C1*",IncState!E$4:E$7)*(1+Assumptions!$C$53))+(SUMIF(IncState!$A$4:$AO$7,"V3C1*",IncState!E$4:E$7)*(1+Assumptions!$C$54))+(SUMIF(IncState!$A$4:$AO$7,"V4C1*",IncState!E$4:E$7)*(1+Assumptions!$C$55)) -> 501400 | G56: =(SUMIF(IncState!$A$4:$AO$7,"V1C1*",IncState!F$4:F$7)*(1+Assumptions!$C$52))+(SUMIF(IncState!$A$4:$AO$7,"V2C1*",IncState!F$4:F$7)*(1+Assumptions!$C$53))+(SUMIF(IncState!$A$4:$AO$7,"V3C1*",IncState!F$4:F$7)*(1+Assumptions!$C$54))+(SUMIF(IncState!$A$4:$AO$7,"V4C1*",IncState!F$4:F$7)*(1+Assumptions!$C$55)) -> 509680 | H56: =(SUMIF(IncState!$A$4:$AO$7,"V1C1*",IncState!G$4:G$7)*(1+Assumptions!$C$52))+(SUMIF(IncState!$A$4:$AO$7,"V2C1*",IncState!G$4:G$7)*(1+Assumptions!$C$53))+(SUMIF(IncState!$A$4:$AO$7,"V3C1*",IncState!G$4:G$7)*(1+Assumptions!$C$54))+(SUMIF(IncState!$A$4:$AO$7,"V4C1*",IncState!G$4:G$7)*(1+Assumptions!$C$55)) -> 509220 | I56: =(SUMIF(IncState!$A$4:$AO$7,"V1C1*",IncState!H$4:H$7)*(1+Assumptions!$C$52))+(SUMIF(IncState!$A$4:$AO$7,"V2C1*",IncState!H$4:H$7)*(1+Assumptions!$C$53))+(SUMIF(IncState!$A$4:$AO$7,"V3C1*",IncState!H$4:H$7)*(1+Assumptions!$C$54))+(SUMIF(IncState!$A$4:$AO$7,"V4C1*",IncState!H$4:H$7)*(1+Assumptions!$C$55)) -> 509450 | J56: =(SUMIF(IncState!$A$4:$AO$7,"V1C1*",IncState!I$4:I$7)*(1+Assumptions!$C$52))+(SUMIF(IncState!$A$4:$AO$7,"V2C1*",IncState!I$4:I$7)*(1+Assumptions!$C$53))+(SUMIF(IncState!$A$4:$AO$7,"V3C1*",IncState!I$4:I$7)*(1+Assumptions!$C$54))+(SUMIF(IncState!$A$4:$AO$7,"V4C1*",IncState!I$4:I$7)*(1+Assumptions!$C$55)) -> 496800 | K56: =(SUMIF(IncState!$A$4:$AO$7,"V1C1*",IncState!J$4:J$7)*(1+Assumptions!$C$52))+(SUMIF(IncState!$A$4:$AO$7,"V2C1*",IncState!J$4:J$7)*(1+Assumptions!$C$53))+(SUMIF(IncState!$A$4:$AO$7,"V3C1*",IncState!J$4:J$7)*(1+Assumptions!$C$54))+(SUMIF(IncState!$A$4:$AO$7,"V4C1*",IncState!J$4:J$7)*(1+Assumptions!$C$55)) -> 509335 | L56: =(SUMIF(IncState!$A$4:$AO$7,"V1C1*",IncState!K$4:K$7)*(1+Assumptions!$C$52))+(SUMIF(IncState!$A$4:$AO$7,"V2C1*",IncState!K$4:K$7)*(1+Assumptions!$C$53))+(SUMIF(IncState!$A$4:$AO$7,"V3C1*",IncState!K$4:K$7)*(1+Assumptions!$C$54))+(SUMIF(IncState!$A$4:$AO$7,"V4C1*",IncState!K$4:K$7)*(1+Assumptions!$C$55)) -> 517730 | M56: =(SUMIF(IncState!$A$4:$AO$7,"V1C1*",IncState!L$4:L$7)*(1+Assumptions!$C$52))+(SUMIF(IncState!$A$4:$AO$7,"V2C1*",IncState!L$4:L$7)*(1+Assumptions!$C$53))+(SUMIF(IncState!$A$4:$AO$7,"V3C1*",IncState!L$4:L$7)*(1+Assumptions!$C$54))+(SUMIF(IncState!$A$4:$AO$7,"V4C1*",IncState!L$4:L$7)*(1+Assumptions!$C$55)) -> 430675 | N56: =(SUMIF(IncState!$A$4:$AO$7,"V1C1*",IncState!M$4:M$7)*(1+Assumptions!$C$52))+(SUMIF(IncState!$A$4:$AO$7,"V2C1*",IncState!M$4:M$7)*(1+Assumptions!$C$53))+(SUMIF(IncState!$A$4:$AO$7,"V3C1*",IncState!M$4:M$7)*(1+Assumptions!$C$54))+(SUMIF(IncState!$A$4:$AO$7,"V4C1*",IncState!M$4:M$7)*(1+Assumptions!$C$55)) -> 535440 | O56: =(SUMIF(IncState!$A$4:$AO$7,"V1C1*",IncState!N$4:N$7)*(1+Assumptions!$C$52))+(SUMIF(IncState!$A$4:$AO$7,"V2C1*",IncState!N$4:N$7)*(1+Assumptions!$C$53))+(SUMIF(IncState!$A$4:$AO$7,"V3C1*",IncState!N$4:N$7)*(1+Assumptions!$C$54))+(SUMIF(IncState!$A$4:$AO$7,"V4C1*",IncState!N$4:N$7)*(1+Assumptions!$C$55)) -> 501860 | Q56: =(SUMIF(IncState!$A$4:$AO$7,"V1C1*",IncState!P$4:P$7)*(1+Assumptions!$C$52))+(SUMIF(IncState!$A$4:$AO$7,"V2C1*",IncState!P$4:P$7)*(1+Assumptions!$C$53))+(SUMIF(IncState!$A$4:$AO$7,"V3C1*",IncState!P$4:P$7)*(1+Assumptions!$C$54))+(SUMIF(IncState!$A$4:$AO$7,"V4C1*",IncState!P$4:P$7)*(1+Assumptions!$C$55)) -> 530380 | R56: =(SUMIF(IncState!$A$4:$AO$7,"V1C1*",IncState!Q$4:Q$7)*(1+Assumptions!$C$52))+(SUMIF(IncState!$A$4:$AO$7,"V2C1*",IncState!Q$4:Q$7)*(1+Assumptions!$C$53))+(SUMIF(IncState!$A$4:$AO$7,"V3C1*",IncState!Q$4:Q$7)*(1+Assumptions!$C$54))+(SUMIF(IncState!$A$4:$AO$7,"V4C1*",IncState!Q$4:Q$7)*(1+Assumptions!$C$55)) -> 524975 | S56: =(SUMIF(IncState!$A$4:$AO$7,"V1C1*",IncState!R$4:R$7)*(1+Assumptions!$C$52))+(SUMIF(IncState!$A$4:$AO$7,"V2C1*",IncState!R$4:R$7)*(1+Assumptions!$C$53))+(SUMIF(IncState!$A$4:$AO$7,"V3C1*",IncState!R$4:R$7)*(1+Assumptions!$C$54))+(SUMIF(IncState!$A$4:$AO$7,"V4C1*",IncState!R$4:R$7)*(1+Assumptions!$C$55)) -> 514280 | T56: =(SUMIF(IncState!$A$4:$AO$7,"V1C1*",IncState!S$4:S$7)*(1+Assumptions!$C$52))+(SUMIF(IncState!$A$4:$AO$7,"V2C1*",IncState!S$4:S$7)*(1+Assumptions!$C$53))+(SUMIF(IncState!$A$4:$AO$7,"V3C1*",IncState!S$4:S$7)*(1+Assumptions!$C$54))+(SUMIF(IncState!$A$4:$AO$7,"V4C1*",IncState!S$4:S$7)*(1+Assumptions!$C$55)) -> 536130 | U56: =(SUMIF(IncState!$A$4:$AO$7,"V1C1*",IncState!T$4:T$7)*(1+Assumptions!$C$52))+(SUMIF(IncState!$A$4:$AO$7,"V2C1*",IncState!T$4:T$7)*(1+Assumptions!$C$53))+(SUMIF(IncState!$A$4:$AO$7,"V3C1*",IncState!T$4:T$7)*(1+Assumptions!$C$54))+(SUMIF(IncState!$A$4:$AO$7,"V4C1*",IncState!T$4:T$7)*(1+Assumptions!$C$55)) -> 550505 | V56: =(SUMIF(IncState!$A$4:$AO$7,"V1C1*",IncState!U$4:U$7)*(1+Assumptions!$C$52))+(SUMIF(IncState!$A$4:$AO$7,"V2C1*",IncState!U$4:U$7)*(1+Assumptions!$C$53))+(SUMIF(IncState!$A$4:$AO$7,"V3C1*",IncState!U$4:U$7)*(1+Assumptions!$C$54))+(SUMIF(IncState!$A$4:$AO$7,"V4C1*",IncState!U$4:U$7)*(1+Assumptions!$C$55)) -> 536038 | W56: =(SUMIF(IncState!$A$4:$AO$7,"V1C1*",IncState!V$4:V$7)*(1+Assumptions!$C$52))+(SUMIF(IncState!$A$4:$AO$7,"V2C1*",IncState!V$4:V$7)*(1+Assumptions!$C$53))+(SUMIF(IncState!$A$4:$AO$7,"V3C1*",IncState!V$4:V$7)*(1+Assumptions!$C$54))+(SUMIF(IncState!$A$4:$AO$7,"V4C1*",IncState!V$4:V$7)*(1+Assumptions!$C$55)) -> 518075 | X56: =(SUMIF(IncState!$A$4:$AO$7,"V1C1*",IncState!W$4:W$7)*(1+Assumptions!$C$52))+(SUMIF(IncState!$A$4:$AO$7,"V2C1*",IncState!W$4:W$7)*(1+Assumptions!$C$53))+(SUMIF(IncState!$A$4:$AO$7,"V3C1*",IncState!W$4:W$7)*(1+Assumptions!$C$54))+(SUMIF(IncState!$A$4:$AO$7,"V4C1*",IncState!W$4:W$7)*(1+Assumptions!$C$55)) -> 539235 | Y56: =(SUMIF(IncState!$A$4:$AO$7,"V1C1*",IncState!X$4:X$7)*(1+Assumptions!$C$52))+(SUMIF(IncState!$A$4:$AO$7,"V2C1*",IncState!X$4:X$7)*(1+Assumptions!$C$53))+(SUMIF(IncState!$A$4:$AO$7,"V3C1*",IncState!X$4:X$7)*(1+Assumptions!$C$54))+(SUMIF(IncState!$A$4:$AO$7,"V4C1*",IncState!X$4:X$7)*(1+Assumptions!$C$55)) -> 563615 | Z56: =(SUMIF(IncState!$A$4:$AO$7,"V1C1*",IncState!Y$4:Y$7)*(1+Assumptions!$C$52))+(SUMIF(IncState!$A$4:$AO$7,"V2C1*",IncState!Y$4:Y$7)*(1+Assumptions!$C$53))+(SUMIF(IncState!$A$4:$AO$7,"V3C1*",IncState!Y$4:Y$7)*(1+Assumptions!$C$54))+(SUMIF(IncState!$A$4:$AO$7,"V4C1*",IncState!Y$4:Y$7)*(1+Assumptions!$C$55)) -> 447925 | AA56: =(SUMIF(IncState!$A$4:$AO$7,"V1C1*",IncState!Z$4:Z$7)*(1+Assumptions!$C$52))+(SUMIF(IncState!$A$4:$AO$7,"V2C1*",IncState!Z$4:Z$7)*(1+Assumptions!$C$53))+(SUMIF(IncState!$A$4:$AO$7,"V3C1*",IncState!Z$4:Z$7)*(1+Assumptions!$C$54))+(SUMIF(IncState!$A$4:$AO$7,"V4C1*",IncState!Z$4:Z$7)*(1+Assumptions!$C$55)) -> 573275 | AB56: =(SUMIF(IncState!$A$4:$AO$7,"V1C1*",IncState!AA$4:AA$7)*(1+Assumptions!$C$52))+(SUMIF(IncState!$A$4:$AO$7,"V2C1*",IncState!AA$4:AA$7)*(1+Assumptions!$C$53))+(SUMIF(IncState!$A$4:$AO$7,"V3C1*",IncState!AA$4:AA$7)*(1+Assumptions!$C$54))+(SUMIF(IncState!$A$4:$AO$7,"V4C1*",IncState!AA$4:AA$7)*(1+Assumptions!$C$55)) -> 546365 | AD56: =(SUMIF(IncState!$A$4:$AO$7,"V1C1*",IncState!AC$4:AC$7)*(1+Assumptions!$C$52))+(SUMIF(IncState!$A$4:$AO$7,"V2C1*",IncState!AC$4:AC$7)*(1+Assumptions!$C$53))+(SUMIF(IncState!$A$4:$AO$7,"V3C1*",IncState!AC$4:AC$7)*(1+Assumptions!$C$54))+(SUMIF(IncState!$A$4:$AO$7,"V4C1*",IncState!AC$4:AC$7)*(1+Assumptions!$C$55)) -> 555220 | AE56: =(SUMIF(IncState!$A$4:$AO$7,"V1C1*",IncState!AD$4:AD$7)*(1+Assumptions!$C$52))+(SUMIF(IncState!$A$4:$AO$7,"V2C1*",IncState!AD$4:AD$7)*(1+Assumptions!$C$53))+(SUMIF(IncState!$A$4:$AO$7,"V3C1*",IncState!AD$4:AD$7)*(1+Assumptions!$C$54))+(SUMIF(IncState!$A$4:$AO$7,"V4C1*",IncState!AD$4:AD$7)*(1+Assumptions!$C$55)) -> 581325 | AF56: =(SUMIF(IncState!$A$4:$AO$7,"V1C1*",IncState!AE$4:AE$7)*(1+Assumptions!$C$52))+(SUMIF(IncState!$A$4:$AO$7,"V2C1*",IncState!AE$4:AE$7)*(1+Assumptions!$C$53))+(SUMIF(IncState!$A$4:$AO$7,"V3C1*",IncState!AE$4:AE$7)*(1+Assumptions!$C$54))+(SUMIF(IncState!$A$4:$AO$7,"V4C1*",IncState!AE$4:AE$7)*(1+Assumptions!$C$55)) -> 579600 | AG56: =(SUMIF(IncState!$A$4:$AO$7,"V1C1*",IncState!AF$4:AF$7)*(1+Assumptions!$C$52))+(SUMIF(IncState!$A$4:$AO$7,"V2C1*",IncState!AF$4:AF$7)*(1+Assumptions!$C$53))+(SUMIF(IncState!$A$4:$AO$7,"V3C1*",IncState!AF$4:AF$7)*(1+Assumptions!$C$54))+(SUMIF(IncState!$A$4:$AO$7,"V4C1*",IncState!AF$4:AF$7)*(1+Assumptions!$C$55)) -> 591330 | AH56: =(SUMIF(IncState!$A$4:$AO$7,"V1C1*",IncState!AG$4:AG$7)*(1+Assumptions!$C$52))+(SUMIF(IncState!$A$4:$AO$7,"V2C1*",IncState!AG$4:AG$7)*(1+Assumptions!$C$53))+(SUMIF(IncState!$A$4:$AO$7,"V3C1*",IncState!AG$4:AG$7)*(1+Assumptions!$C$54))+(SUMIF(IncState!$A$4:$AO$7,"V4C1*",IncState!AG$4:AG$7)*(1+Assumptions!$C$55)) -> 594320 | AI56: =(SUMIF(IncState!$A$4:$AO$7,"V1C1*",IncState!AH$4:AH$7)*(1+Assumptions!$C$52))+(SUMIF(IncState!$A$4:$AO$7,"V2C1*",IncState!AH$4:AH$7)*(1+Assumptions!$C$53))+(SUMIF(IncState!$A$4:$AO$7,"V3C1*",IncState!AH$4:AH$7)*(1+Assumptions!$C$54))+(SUMIF(IncState!$A$4:$AO$7,"V4C1*",IncState!AH$4:AH$7)*(1+Assumptions!$C$55)) -> 606510 | AJ56: =(SUMIF(IncState!$A$4:$AO$7,"V1C1*",IncState!AI$4:AI$7)*(1+Assumptions!$C$52))+(SUMIF(IncState!$A$4:$AO$7,"V2C1*",IncState!AI$4:AI$7)*(1+Assumptions!$C$53))+(SUMIF(IncState!$A$4:$AO$7,"V3C1*",IncState!AI$4:AI$7)*(1+Assumptions!$C$54))+(SUMIF(IncState!$A$4:$AO$7,"V4C1*",IncState!AI$4:AI$7)*(1+Assumptions!$C$55)) -> 600760 | AK56: =(SUMIF(IncState!$A$4:$AO$7,"V1C1*",IncState!AJ$4:AJ$7)*(1+Assumptions!$C$52))+(SUMIF(IncState!$A$4:$AO$7,"V2C1*",IncState!AJ$4:AJ$7)*(1+Assumptions!$C$53))+(SUMIF(IncState!$A$4:$AO$7,"V3C1*",IncState!AJ$4:AJ$7)*(1+Assumptions!$C$54))+(SUMIF(IncState!$A$4:$AO$7,"V4C1*",IncState!AJ$4:AJ$7)*(1+Assumptions!$C$55)) -> 604440 | AL56: =(SUMIF(IncState!$A$4:$AO$7,"V1C1*",IncState!AK$4:AK$7)*(1+Assumptions!$C$52))+(SUMIF(IncState!$A$4:$AO$7,"V2C1*",IncState!AK$4:AK$7)*(1+Assumptions!$C$53))+(SUMIF(IncState!$A$4:$AO$7,"V3C1*",IncState!AK$4:AK$7)*(1+Assumptions!$C$54))+(SUMIF(IncState!$A$4:$AO$7,"V4C1*",IncState!AK$4:AK$7)*(1+Assumptions!$C$55)) -> 621598 | AM56: =(SUMIF(IncState!$A$4:$AO$7,"V1C1*",IncState!AL$4:AL$7)*(1+Assumptions!$C$52))+(SUMIF(IncState!$A$4:$AO$7,"V2C1*",IncState!AL$4:AL$7)*(1+Assumptions!$C$53))+(SUMIF(IncState!$A$4:$AO$7,"V3C1*",IncState!AL$4:AL$7)*(1+Assumptions!$C$54))+(SUMIF(IncState!$A$4:$AO$7,"V4C1*",IncState!AL$4:AL$7)*(1+Assumptions!$C$55)) -> 513360 | AN56: =(SUMIF(IncState!$A$4:$AO$7,"V1C1*",IncState!AM$4:AM$7)*(1+Assumptions!$C$52))+(SUMIF(IncState!$A$4:$AO$7,"V2C1*",IncState!AM$4:AM$7)*(1+Assumptions!$C$53))+(SUMIF(IncState!$A$4:$AO$7,"V3C1*",IncState!AM$4:AM$7)*(1+Assumptions!$C$54))+(SUMIF(IncState!$A$4:$AO$7,"V4C1*",IncState!AM$4:AM$7)*(1+Assumptions!$C$55)) -> 619275 | AO56: =(SUMIF(IncState!$A$4:$AO$7,"V1C1*",IncState!AN$4:AN$7)*(1+Assumptions!$C$52))+(SUMIF(IncState!$A$4:$AO$7,"V2C1*",IncState!AN$4:AN$7)*(1+Assumptions!$C$53))+(SUMIF(IncState!$A$4:$AO$7,"V3C1*",IncState!AN$4:AN$7)*(1+Assumptions!$C$54))+(SUMIF(IncState!$A$4:$AO$7,"V4C1*",IncState!AN$4:AN$7)*(1+Assumptions!$C$55)) -> 597597.5
B57: Creditors Days | C57: =Assumptions!$C$44 -> 20 | D57: =Assumptions!$C$44 -> 20 | E57: =Assumptions!$C$44 -> 20 | F57: =Assumptions!$C$44 -> 20 | G57: =Assumptions!$C$44 -> 20 | H57: =Assumptions!$C$44 -> 20 | I57: =Assumptions!$C$44 -> 20 | J57: =Assumptions!$C$44 -> 20 | K57: =Assumptions!$C$44 -> 20 | L57: =Assumptions!$C$44 -> 20 | M57: =Assumptions!$C$44 -> 20 | N57: =Assumptions!$C$44 -> 20 | O57: =Assumptions!$C$44 -> 20 | Q57: =Assumptions!$C$44 -> 20 | R57: =Assumptions!$C$44 -> 20 | S57: =Assumptions!$C$44 -> 20 | T57: =Assumptions!$C$44 -> 20 | U57: =Assumptions!$C$44 -> 20 | V57: =Assumptions!$C$44 -> 20 | W57: =Assumptions!$C$44 -> 20 | X57: =Assumptions!$C$44 -> 20 | Y57: =Assumptions!$C$44 -> 20 | Z57: =Assumptions!$C$44 -> 20 | AA57: =Assumptions!$C$44 -> 20 | AB57: =Assumptions!$C$44 -> 20 | AD57: =Assumptions!$C$44 -> 20 | AE57: =Assumptions!$C$44 -> 20 | AF57: =Assumptions!$C$44 -> 20 | AG57: =Assumptions!$C$44 -> 20 | AH57: =Assumptions!$C$44 -> 20 | AI57: =Assumptions!$C$44 -> 20 | AJ57: =Assumptions!$C$44 -> 20 | AK57: =Assumptions!$C$44 -> 20 | AL57: =Assumptions!$C$44 -> 20 | AM57: =Assumptions!$C$44 -> 20 | AN57: =Assumptions!$C$44 -> 20 | AO57: =Assumptions!$C$44 -> 20 | AP57: =Assumptions!$C$44 -> 20
B58: Monthly Payables (Inclusive) | D58: =((SUMIF(IncState!$A$7:$AO$59,"*V1C1*",IncState!C$7:C$59)-SUMIF(CashFlow!$A$27:$AO$31,"*V1C1*",CashFlow!C$27:C$31))*(1+Assumptions!$C$52))+((SUMIF(IncState!$A$7:$AO$59,"*V2C1*",IncState!C$7:C$59)-SUMIF(CashFlow!$A$27:$AO$31,"*V2C1*",CashFlow!C$27:C$31))*(1+Assumptions!$C$53))+((SUMIF(IncState!$A$7:$AO$59,"*V3C1*",IncState!C$7:C$59)-SUMIF(CashFlow!$A$27:$AO$31,"*V3C1*",CashFlow!C$27:C$31))*(1+Assumptions!$C$54))+((SUMIF(IncState!$A$7:$AO$59,"*V4C1*",IncState!C$7:C$59)-SUMIF(CashFlow!$A$27:$AO$31,"*V4C1*",CashFlow!C$27:C$31))*(1+Assumptions!$C$55)) -> 225141.25 | E58: =((SUMIF(IncState!$A$7:$AO$59,"*V1C1*",IncState!D$7:D$59)-SUMIF(CashFlow!$A$27:$AO$31,"*V1C1*",CashFlow!D$27:D$31))*(1+Assumptions!$C$52))+((SUMIF(IncState!$A$7:$AO$59,"*V2C1*",IncState!D$7:D$59)-SUMIF(CashFlow!$A$27:$AO$31,"*V2C1*",CashFlow!D$27:D$31))*(1+Assumptions!$C$53))+((SUMIF(IncState!$A$7:$AO$59,"*V3C1*",IncState!D$7:D$59)-SUMIF(CashFlow!$A$27:$AO$31,"*V3C1*",CashFlow!D$27:D$31))*(1+Assumptions!$C$54))+((SUMIF(IncState!$A$7:$AO$59,"*V4C1*",IncState!D$7:D$59)-SUMIF(CashFlow!$A$27:$AO$31,"*V4C1*",CashFlow!D$27:D$31))*(1+Assumptions!$C$55)) -> 239792.25 | F58: =((SUMIF(IncState!$A$7:$AO$59,"*V1C1*",IncState!E$7:E$59)-SUMIF(CashFlow!$A$27:$AO$31,"*V1C1*",CashFlow!E$27:E$31))*(1+Assumptions!$C$52))+((SUMIF(IncState!$A$7:$AO$59,"*V2C1*",IncState!E$7:E$59)-SUMIF(CashFlow!$A$27:$AO$31,"*V2C1*",CashFlow!E$27:E$31))*(1+Assumptions!$C$53))+((SUMIF(IncState!$A$7:$AO$59,"*V3C1*",IncState!E$7:E$59)-SUMIF(CashFlow!$A$27:$AO$31,"*V3C1*",CashFlow!E$27:E$31))*(1+Assumptions!$C$54))+((SUMIF(IncState!$A$7:$AO$59,"*V4C1*",IncState!E$7:E$59)-SUMIF(CashFlow!$A$27:$AO$31,"*V4C1*",CashFlow!E$27:E$31))*(1+Assumptions!$C$55)) -> 247635.25 | G58: =((SUMIF(IncState!$A$7:$AO$59,"*V1C1*",IncState!F$7:F$59)-SUMIF(CashFlow!$A$27:$AO$31,"*V1C1*",CashFlow!F$27:F$31))*(1+Assumptions!$C$52))+((SUMIF(IncState!$A$7:$AO$59,"*V2C1*",IncState!F$7:F$59)-SUMIF(CashFlow!$A$27:$AO$31,"*V2C1*",CashFlow!F$27:F$31))*(1+Assumptions!$C$53))+((SUMIF(IncState!$A$7:$AO$59,"*V3C1*",IncState!F$7:F$59)-SUMIF(CashFlow!$A$27:$AO$31,"*V3C1*",CashFlow!F$27:F$31))*(1+Assumptions!$C$54))+((SUMIF(IncState!$A$7:$AO$59,"*V4C1*",IncState!F$7:F$59)-SUMIF(CashFlow!$A$27:$AO$31,"*V4C1*",CashFlow!F$27:F$31))*(1+Assumptions!$C$55)) -> 329377.25 | H58: =((SUMIF(IncState!$A$7:$AO$59,"*V1C1*",IncState!G$7:G$59)-SUMIF(CashFlow!$A$27:$AO$31,"*V1C1*",CashFlow!G$27:G$31))*(1+Assumptions!$C$52))+((SUMIF(IncState!$A$7:$AO$59,"*V2C1*",IncState!G$7:G$59)-SUMIF(CashFlow!$A$27:$AO$31,"*V2C1*",CashFlow!G$27:G$31))*(1+Assumptions!$C$53))+((SUMIF(IncState!$A$7:$AO$59,"*V3C1*",IncState!G$7:G$59)-SUMIF(CashFlow!$A$27:$AO$31,"*V3C1*",CashFlow!G$27:G$31))*(1+Assumptions!$C$54))+((SUMIF(IncState!$A$7:$AO$59,"*V4C1*",IncState!G$7:G$59)-SUMIF(CashFlow!$A$27:$AO$31,"*V4C1*",CashFlow!G$27:G$31))*(1+Assumptions!$C$55)) -> 268415.75 | I58: =((SUMIF(IncState!$A$7:$AO$59,"*V1C1*",IncState!H$7:H$59)-SUMIF(CashFlow!$A$27:$AO$31,"*V1C1*",CashFlow!H$27:H$31))*(1+Assumptions!$C$52))+((SUMIF(IncState!$A$7:$AO$59,"*V2C1*",IncState!H$7:H$59)-SUMIF(CashFlow!$A$27:$AO$31,"*V2C1*",CashFlow!H$27:H$31))*(1+Assumptions!$C$53))+((SUMIF(IncState!$A$7:$AO$59,"*V3C1*",IncState!H$7:H$59)-SUMIF(CashFlow!$A$27:$AO$31,"*V3C1*",CashFlow!H$27:H$31))*(1+Assumptions!$C$54))+((SUMIF(IncState!$A$7:$AO$59,"*V4C1*",IncState!H$7:H$59)-SUMIF(CashFlow!$A$27:$AO$31,"*V4C1*",CashFlow!H$27:H$31))*(1+Assumptions!$C$55)) -> 266380.25 | J58: =((SUMIF(IncState!$A$7:$AO$59,"*V1C1*",IncState!I$7:I$59)-SUMIF(CashFlow!$A$27:$AO$31,"*V1C1*",CashFlow!I$27:I$31))*(1+Assumptions!$C$52))+((SUMIF(IncState!$A$7:$AO$59,"*V2C1*",IncState!I$7:I$59)-SUMIF(CashFlow!$A$27:$AO$31,"*V2C1*",CashFlow!I$27:I$31))*(1+Assumptions!$C$53))+((SUMIF(IncState!$A$7:$AO$59,"*V3C1*",IncState!I$7:I$59)-SUMIF(CashFlow!$A$27:$AO$31,"*V3C1*",CashFlow!I$27:I$31))*(1+Assumptions!$C$54))+((SUMIF(IncState!$A$7:$AO$59,"*V4C1*",IncState!I$7:I$59)-SUMIF(CashFlow!$A$27:$AO$31,"*V4C1*",CashFlow!I$27:I$31))*(1+Assumptions!$C$55)) -> 236836.75 | K58: =((SUMIF(IncState!$A$7:$AO$59,"*V1C1*",IncState!J$7:J$59)-SUMIF(CashFlow!$A$27:$AO$31,"*V1C1*",CashFlow!J$27:J$31))*(1+Assumptions!$C$52))+((SUMIF(IncState!$A$7:$AO$59,"*V2C1*",IncState!J$7:J$59)-SUMIF(CashFlow!$A$27:$AO$31,"*V2C1*",CashFlow!J$27:J$31))*(1+Assumptions!$C$53))+((SUMIF(IncState!$A$7:$AO$59,"*V3C1*",IncState!J$7:J$59)-SUMIF(CashFlow!$A$27:$AO$31,"*V3C1*",CashFlow!J$27:J$31))*(1+Assumptions!$C$54))+((SUMIF(IncState!$A$7:$AO$59,"*V4C1*",IncState!J$7:J$59)-SUMIF(CashFlow!$A$27:$AO$31,"*V4C1*",CashFlow!J$27:J$31))*(1+Assumptions!$C$55)) -> 293359.25 | L58: =((SUMIF(IncState!$A$7:$AO$59,"*V1C1*",IncState!K$7:K$59)-SUMIF(CashFlow!$A$27:$AO$31,"*V1C1*",CashFlow!K$27:K$31))*(1+Assumptions!$C$52))+((SUMIF(IncState!$A$7:$AO$59,"*V2C1*",IncState!K$7:K$59)-SUMIF(CashFlow!$A$27:$AO$31,"*V2C1*",CashFlow!K$27:K$31))*(1+Assumptions!$C$53))+((SUMIF(IncState!$A$7:$AO$59,"*V3C1*",IncState!K$7:K$59)-SUMIF(CashFlow!$A$27:$AO$31,"*V3C1*",CashFlow!K$27:K$31))*(1+Assumptions!$C$54))+((SUMIF(IncState!$A$7:$AO$59,"*V4C1*",IncState!K$7:K$59)-SUMIF(CashFlow!$A$27:$AO$31,"*V4C1*",CashFlow!K$27:K$31))*(1+Assumptions!$C$55)) -> 289550.45 | M58: =((SUMIF(IncState!$A$7:$AO$59,"*V1C1*",IncState!L$7:L$59)-SUMIF(CashFlow!$A$27:$AO$31,"*V1C1*",CashFlow!L$27:L$31))*(1+Assumptions!$C$52))+((SUMIF(IncState!$A$7:$AO$59,"*V2C1*",IncState!L$7:L$59)-SUMIF(CashFlow!$A$27:$AO$31,"*V2C1*",CashFlow!L$27:L$31))*(1+Assumptions!$C$53))+((SUMIF(IncState!$A$7:$AO$59,"*V3C1*",IncState!L$7:L$59)-SUMIF(CashFlow!$A$27:$AO$31,"*V3C1*",CashFlow!L$27:L$31))*(1+Assumptions!$C$54))+((SUMIF(IncState!$A$7:$AO$59,"*V4C1*",IncState!L$7:L$59)-SUMIF(CashFlow!$A$27:$AO$31,"*V4C1*",CashFlow!L$27:L$31))*(1+Assumptions!$C$55)) -> 209639.25 | N58: =((SUMIF(IncState!$A$7:$AO$59,"*V1C1*",IncState!M$7:M$59)-SUMIF(CashFlow!$A$27:$AO$31,"*V1C1*",CashFlow!M$27:M$31))*(1+Assumptions!$C$52))+((SUMIF(IncState!$A$7:$AO$59,"*V2C1*",IncState!M$7:M$59)-SUMIF(CashFlow!$A$27:$AO$31,"*V2C1*",CashFlow!M$27:M$31))*(1+Assumptions!$C$53))+((SUMIF(IncState!$A$7:$AO$59,"*V3C1*",IncState!M$7:M$59)-SUMIF(CashFlow!$A$27:$AO$31,"*V3C1*",CashFlow!M$27:M$31))*(1+Assumptions!$C$54))+((SUMIF(IncState!$A$7:$AO$59,"*V4C1*",IncState!M$7:M$59)-SUMIF(CashFlow!$A$27:$AO$31,"*V4C1*",CashFlow!M$27:M$31))*(1+Assumptions!$C$55)) -> 254976.85 | O58: =((SUMIF(IncState!$A$7:$AO$59,"*V1C1*",IncState!N$7:N$59)-SUMIF(CashFlow!$A$27:$AO$31,"*V1C1*",CashFlow!N$27:N$31))*(1+Assumptions!$C$52))+((SUMIF(IncState!$A$7:$AO$59,"*V2C1*",IncState!N$7:N$59)-SUMIF(CashFlow!$A$27:$AO$31,"*V2C1*",CashFlow!N$27:N$31))*(1+Assumptions!$C$53))+((SUMIF(IncState!$A$7:$AO$59,"*V3C1*",IncState!N$7:N$59)-SUMIF(CashFlow!$A$27:$AO$31,"*V3C1*",CashFlow!N$27:N$31))*(1+Assumptions!$C$54))+((SUMIF(IncState!$A$7:$AO$59,"*V4C1*",IncState!N$7:N$59)-SUMIF(CashFlow!$A$27:$AO$31,"*V4C1*",CashFlow!N$27:N$31))*(1+Assumptions!$C$55)) -> 236282.45 | Q58: =((SUMIF(IncState!$A$7:$AO$59,"*V1C1*",IncState!P$7:P$59)-SUMIF(CashFlow!$A$27:$AO$31,"*V1C1*",CashFlow!P$27:P$31))*(1+Assumptions!$C$52))+((SUMIF(IncState!$A$7:$AO$59,"*V2C1*",IncState!P$7:P$59)-SUMIF(CashFlow!$A$27:$AO$31,"*V2C1*",CashFlow!P$27:P$31))*(1+Assumptions!$C$53))+((SUMIF(IncState!$A$7:$AO$59,"*V3C1*",IncState!P$7:P$59)-SUMIF(CashFlow!$A$27:$AO$31,"*V3C1*",CashFlow!P$27:P$31))*(1+Assumptions!$C$54))+((SUMIF(IncState!$A$7:$AO$59,"*V4C1*",IncState!P$7:P$59)-SUMIF(CashFlow!$A$27:$AO$31,"*V4C1*",CashFlow!P$27:P$31))*(1+Assumptions!$C$55)) -> 252247.9 | R58: =((SUMIF(IncState!$A$7:$AO$59,"*V1C1*",IncState!Q$7:Q$59)-SUMIF(CashFlow!$A$27:$AO$31,"*V1C1*",CashFlow!Q$27:Q$31))*(1+Assumptions!$C$52))+((SUMIF(IncState!$A$7:$AO$59,"*V2C1*",IncState!Q$7:Q$59)-SUMIF(CashFlow!$A$27:$AO$31,"*V2C1*",CashFlow!Q$27:Q$31))*(1+Assumptions!$C$53))+((SUMIF(IncState!$A$7:$AO$59,"*V3C1*",IncState!Q$7:Q$59)-SUMIF(CashFlow!$A$27:$AO$31,"*V3C1*",CashFlow!Q$27:Q$31))*(1+Assumptions!$C$54))+((SUMIF(IncState!$A$7:$AO$59,"*V4C1*",IncState!Q$7:Q$59)-SUMIF(CashFlow!$A$27:$AO$31,"*V4C1*",CashFlow!Q$27:Q$31))*(1+Assumptions!$C$55)) -> 275135.2 | S58: =((SUMIF(IncState!$A$7:$AO$59,"*V1C1*",IncState!R$7:R$59)-SUMIF(CashFlow!$A$27:$AO$31,"*V1C1*",CashFlow!R$27:R$31))*(1+Assumptions!$C$52))+((SUMIF(IncState!$A$7:$AO$59,"*V2C1*",IncState!R$7:R$59)-SUMIF(CashFlow!$A$27:$AO$31,"*V2C1*",CashFlow!R$27:R$31))*(1+Assumptions!$C$53))+((SUMIF(IncState!$A$7:$AO$59,"*V3C1*",IncState!R$7:R$59)-SUMIF(CashFlow!$A$27:$AO$31,"*V3C1*",CashFlow!R$27:R$31))*(1+Assumptions!$C$54))+((SUMIF(IncState!$A$7:$AO$59,"*V4C1*",IncState!R$7:R$59)-SUMIF(CashFlow!$A$27:$AO$31,"*V4C1*",CashFlow!R$27:R$31))*(1+Assumptions!$C$55)) -> 241207.9 | T58: =((SUMIF(IncState!$A$7:$AO$59,"*V1C1*",IncState!S$7:S$59)-SUMIF(CashFlow!$A$27:$AO$31,"*V1C1*",CashFlow!S$27:S$31))*(1+Assumptions!$C$52))+((SUMIF(IncState!$A$7:$AO$59,"*V2C1*",IncState!S$7:S$59)-SUMIF(CashFlow!$A$27:$AO$31,"*V2C1*",CashFlow!S$27:S$31))*(1+Assumptions!$C$53))+((SUMIF(IncState!$A$7:$AO$59,"*V3C1*",IncState!S$7:S$59)-SUMIF(CashFlow!$A$27:$AO$31,"*V3C1*",CashFlow!S$27:S$31))*(1+Assumptions!$C$54))+((SUMIF(IncState!$A$7:$AO$59,"*V4C1*",IncState!S$7:S$59)-SUMIF(CashFlow!$A$27:$AO$31,"*V4C1*",CashFlow!S$27:S$31))*(1+Assumptions!$C$55)) -> 256222.3 | U58: =((SUMIF(IncState!$A$7:$AO$59,"*V1C1*",IncState!T$7:T$59)-SUMIF(CashFlow!$A$27:$AO$31,"*V1C1*",CashFlow!T$27:T$31))*(1+Assumptions!$C$52))+((SUMIF(IncState!$A$7:$AO$59,"*V2C1*",IncState!T$7:T$59)-SUMIF(CashFlow!$A$27:$AO$31,"*V2C1*",CashFlow!T$27:T$31))*(1+Assumptions!$C$53))+((SUMIF(IncState!$A$7:$AO$59,"*V3C1*",IncState!T$7:T$59)-SUMIF(CashFlow!$A$27:$AO$31,"*V3C1*",CashFlow!T$27:T$31))*(1+Assumptions!$C$54))+((SUMIF(IncState!$A$7:$AO$59,"*V4C1*",IncState!T$7:T$59)-SUMIF(CashFlow!$A$27:$AO$31,"*V4C1*",CashFlow!T$27:T$31))*(1+Assumptions!$C$55)) -> 268002.9 | V58: =((SUMIF(IncState!$A$7:$AO$59,"*V1C1*",IncState!U$7:U$59)-SUMIF(CashFlow!$A$27:$AO$31,"*V1C1*",CashFlow!U$27:U$31))*(1+Assumptions!$C$52))+((SUMIF(IncState!$A$7:$AO$59,"*V2C1*",IncState!U$7:U$59)-SUMIF(CashFlow!$A$27:$AO$31,"*V2C1*",CashFlow!U$27:U$31))*(1+Assumptions!$C$53))+((SUMIF(IncState!$A$7:$AO$59,"*V3C1*",IncState!U$7:U$59)-SUMIF(CashFlow!$A$27:$AO$31,"*V3C1*",CashFlow!U$27:U$31))*(1+Assumptions!$C$54))+((SUMIF(IncState!$A$7:$AO$59,"*V4C1*",IncState!U$7:U$59)-SUMIF(CashFlow!$A$27:$AO$31,"*V4C1*",CashFlow!U$27:U$31))*(1+Assumptions!$C$55)) -> 291274.3 | W58: =((SUMIF(IncState!$A$7:$AO$59,"*V1C1*",IncState!V$7:V$59)-SUMIF(CashFlow!$A$27:$AO$31,"*V1C1*",CashFlow!V$27:V$31))*(1+Assumptions!$C$52))+((SUMIF(IncState!$A$7:$AO$59,"*V2C1*",IncState!V$7:V$59)-SUMIF(CashFlow!$A$27:$AO$31,"*V2C1*",CashFlow!V$27:V$31))*(1+Assumptions!$C$53))+((SUMIF(IncState!$A$7:$AO$59,"*V3C1*",IncState!V$7:V$59)-SUMIF(CashFlow!$A$27:$AO$31,"*V3C1*",CashFlow!V$27:V$31))*(1+Assumptions!$C$54))+((SUMIF(IncState!$A$7:$AO$59,"*V4C1*",IncState!V$7:V$59)-SUMIF(CashFlow!$A$27:$AO$31,"*V4C1*",CashFlow!V$27:V$31))*(1+Assumptions!$C$55)) -> 230508.3 | X58: =((SUMIF(IncState!$A$7:$AO$59,"*V1C1*",IncState!W$7:W$59)-SUMIF(CashFlow!$A$27:$AO$31,"*V1C1*",CashFlow!W$27:W$31))*(1+Assumptions!$C$52))+((SUMIF(IncState!$A$7:$AO$59,"*V2C1*",IncState!W$7:W$59)-SUMIF(CashFlow!$A$27:$AO$31,"*V2C1*",CashFlow!W$27:W$31))*(1+Assumptions!$C$53))+((SUMIF(IncState!$A$7:$AO$59,"*V3C1*",IncState!W$7:W$59)-SUMIF(CashFlow!$A$27:$AO$31,"*V3C1*",CashFlow!W$27:W$31))*(1+Assumptions!$C$54))+((SUMIF(IncState!$A$7:$AO$59,"*V4C1*",IncState!W$7:W$59)-SUMIF(CashFlow!$A$27:$AO$31,"*V4C1*",CashFlow!W$27:W$31))*(1+Assumptions!$C$55)) -> 243984 | Y58: =((SUMIF(IncState!$A$7:$AO$59,"*V1C1*",IncState!X$7:X$59)-SUMIF(CashFlow!$A$27:$AO$31,"*V1C1*",CashFlow!X$27:X$31))*(1+Assumptions!$C$52))+((SUMIF(IncState!$A$7:$AO$59,"*V2C1*",IncState!X$7:X$59)-SUMIF(CashFlow!$A$27:$AO$31,"*V2C1*",CashFlow!X$27:X$31))*(1+Assumptions!$C$53))+((SUMIF(IncState!$A$7:$AO$59,"*V3C1*",IncState!X$7:X$59)-SUMIF(CashFlow!$A$27:$AO$31,"*V3C1*",CashFlow!X$27:X$31))*(1+Assumptions!$C$54))+((SUMIF(IncState!$A$7:$AO$59,"*V4C1*",IncState!X$7:X$59)-SUMIF(CashFlow!$A$27:$AO$31,"*V4C1*",CashFlow!X$27:X$31))*(1+Assumptions!$C$55)) -> 269111.5 | Z58: =((SUMIF(IncState!$A$7:$AO$59,"*V1C1*",IncState!Y$7:Y$59)-SUMIF(CashFlow!$A$27:$AO$31,"*V1C1*",CashFlow!Y$27:Y$31))*(1+Assumptions!$C$52))+((SUMIF(IncState!$A$7:$AO$59,"*V2C1*",IncState!Y$7:Y$59)-SUMIF(CashFlow!$A$27:$AO$31,"*V2C1*",CashFlow!Y$27:Y$31))*(1+Assumptions!$C$53))+((SUMIF(IncState!$A$7:$AO$59,"*V3C1*",IncState!Y$7:Y$59)-SUMIF(CashFlow!$A$27:$AO$31,"*V3C1*",CashFlow!Y$27:Y$31))*(1+Assumptions!$C$54))+((SUMIF(IncState!$A$7:$AO$59,"*V4C1*",IncState!Y$7:Y$59)-SUMIF(CashFlow!$A$27:$AO$31,"*V4C1*",CashFlow!Y$27:Y$31))*(1+Assumptions!$C$55)) -> 261199.5 | AA58: =((SUMIF(IncState!$A$7:$AO$59,"*V1C1*",IncState!Z$7:Z$59)-SUMIF(CashFlow!$A$27:$AO$31,"*V1C1*",CashFlow!Z$27:Z$31))*(1+Assumptions!$C$52))+((SUMIF(IncState!$A$7:$AO$59,"*V2C1*",IncState!Z$7:Z$59)-SUMIF(CashFlow!$A$27:$AO$31,"*V2C1*",CashFlow!Z$27:Z$31))*(1+Assumptions!$C$53))+((SUMIF(IncState!$A$7:$AO$59,"*V3C1*",IncState!Z$7:Z$59)-SUMIF(CashFlow!$A$27:$AO$31,"*V3C1*",CashFlow!Z$27:Z$31))*(1+Assumptions!$C$54))+((SUMIF(IncState!$A$7:$AO$59,"*V4C1*",IncState!Z$7:Z$59)-SUMIF(CashFlow!$A$27:$AO$31,"*V4C1*",CashFlow!Z$27:Z$31))*(1+Assumptions!$C$55)) -> 300685.9 | AB58: =((SUMIF(IncState!$A$7:$AO$59,"*V1C1*",IncState!AA$7:AA$59)-SUMIF(CashFlow!$A$27:$AO$31,"*V1C1*",CashFlow!AA$27:AA$31))*(1+Assumptions!$C$52))+((SUMIF(IncState!$A$7:$AO$59,"*V2C1*",IncState!AA$7:AA$59)-SUMIF(CashFlow!$A$27:$AO$31,"*V2C1*",CashFlow!AA$27:AA$31))*(1+Assumptions!$C$53))+((SUMIF(IncState!$A$7:$AO$59,"*V3C1*",IncState!AA$7:AA$59)-SUMIF(CashFlow!$A$27:$AO$31,"*V3C1*",CashFlow!AA$27:AA$31))*(1+Assumptions!$C$54))+((SUMIF(IncState!$A$7:$AO$59,"*V4C1*",IncState!AA$7:AA$59)-SUMIF(CashFlow!$A$27:$AO$31,"*V4C1*",CashFlow!AA$27:AA$31))*(1+Assumptions!$C$55)) -> 252468.7 | AD58: =((SUMIF(IncState!$A$7:$AO$59,"*V1C1*",IncState!AC$7:AC$59)-SUMIF(CashFlow!$A$27:$AO$31,"*V1C1*",CashFlow!AC$27:AC$31))*(1+Assumptions!$C$52))+((SUMIF(IncState!$A$7:$AO$59,"*V2C1*",IncState!AC$7:AC$59)-SUMIF(CashFlow!$A$27:$AO$31,"*V2C1*",CashFlow!AC$27:AC$31))*(1+Assumptions!$C$53))+((SUMIF(IncState!$A$7:$AO$59,"*V3C1*",IncState!AC$7:AC$59)-SUMIF(CashFlow!$A$27:$AO$31,"*V3C1*",CashFlow!AC$27:AC$31))*(1+Assumptions!$C$54))+((SUMIF(IncState!$A$7:$AO$59,"*V4C1*",IncState!AC$7:AC$59)-SUMIF(CashFlow!$A$27:$AO$31,"*V4C1*",CashFlow!AC$27:AC$31))*(1+Assumptions!$C$55)) -> 250103.15 | AE58: =((SUMIF(IncState!$A$7:$AO$59,"*V1C1*",IncState!AD$7:AD$59)-SUMIF(CashFlow!$A$27:$AO$31,"*V1C1*",CashFlow!AD$27:AD$31))*(1+Assumptions!$C$52))+((SUMIF(IncState!$A$7:$AO$59,"*V2C1*",IncState!AD$7:AD$59)-SUMIF(CashFlow!$A$27:$AO$31,"*V2C1*",CashFlow!AD$27:AD$31))*(1+Assumptions!$C$53))+((SUMIF(IncState!$A$7:$AO$59,"*V3C1*",IncState!AD$7:AD$59)-SUMIF(CashFlow!$A$27:$AO$31,"*V3C1*",CashFlow!AD$27:AD$31))*(1+Assumptions!$C$54))+((SUMIF(IncState!$A$7:$AO$59,"*V4C1*",IncState!AD$7:AD$59)-SUMIF(CashFlow!$A$27:$AO$31,"*V4C1*",CashFlow!AD$27:AD$31))*(1+Assumptions!$C$55)) -> 321449.15 | AF58: =((SUMIF(IncState!$A$7:$AO$59,"*V1C1*",IncState!AE$7:AE$59)-SUMIF(CashFlow!$A$27:$AO$31,"*V1C1*",CashFlow!AE$27:AE$31))*(1+Assumptions!$C$52))+((SUMIF(IncState!$A$7:$AO$59,"*V2C1*",IncState!AE$7:AE$59)-SUMIF(CashFlow!$A$27:$AO$31,"*V2C1*",CashFlow!AE$27:AE$31))*(1+Assumptions!$C$53))+((SUMIF(IncState!$A$7:$AO$59,"*V3C1*",IncState!AE$7:AE$59)-SUMIF(CashFlow!$A$27:$AO$31,"*V3C1*",CashFlow!AE$27:AE$31))*(1+Assumptions!$C$54))+((SUMIF(IncState!$A$7:$AO$59,"*V4C1*",IncState!AE$7:AE$59)-SUMIF(CashFlow!$A$27:$AO$31,"*V4C1*",CashFlow!AE$27:AE$31))*(1+Assumptions!$C$55)) -> 268135.15 | AG58: =((SUMIF(IncState!$A$7:$AO$59,"*V1C1*",IncState!AF$7:AF$59)-SUMIF(CashFlow!$A$27:$AO$31,"*V1C1*",CashFlow!AF$27:AF$31))*(1+Assumptions!$C$52))+((SUMIF(IncState!$A$7:$AO$59,"*V2C1*",IncState!AF$7:AF$59)-SUMIF(CashFlow!$A$27:$AO$31,"*V2C1*",CashFlow!AF$27:AF$31))*(1+Assumptions!$C$53))+((SUMIF(IncState!$A$7:$AO$59,"*V3C1*",IncState!AF$7:AF$59)-SUMIF(CashFlow!$A$27:$AO$31,"*V3C1*",CashFlow!AF$27:AF$31))*(1+Assumptions!$C$54))+((SUMIF(IncState!$A$7:$AO$59,"*V4C1*",IncState!AF$7:AF$59)-SUMIF(CashFlow!$A$27:$AO$31,"*V4C1*",CashFlow!AF$27:AF$31))*(1+Assumptions!$C$55)) -> 296390.65 | AH58: =((SUMIF(IncState!$A$7:$AO$59,"*V1C1*",IncState!AG$7:AG$59)-SUMIF(CashFlow!$A$27:$AO$31,"*V1C1*",CashFlow!AG$27:AG$31))*(1+Assumptions!$C$52))+((SUMIF(IncState!$A$7:$AO$59,"*V2C1*",IncState!AG$7:AG$59)-SUMIF(CashFlow!$A$27:$AO$31,"*V2C1*",CashFlow!AG$27:AG$31))*(1+Assumptions!$C$53))+((SUMIF(IncState!$A$7:$AO$59,"*V3C1*",IncState!AG$7:AG$59)-SUMIF(CashFlow!$A$27:$AO$31,"*V3C1*",CashFlow!AG$27:AG$31))*(1+Assumptions!$C$54))+((SUMIF(IncState!$A$7:$AO$59,"*V4C1*",IncState!AG$7:AG$59)-SUMIF(CashFlow!$A$27:$AO$31,"*V4C1*",CashFlow!AG$27:AG$31))*(1+Assumptions!$C$55)) -> 369220.15 | AI58: =((SUMIF(IncState!$A$7:$AO$59,"*V1C1*",IncState!AH$7:AH$59)-SUMIF(CashFlow!$A$27:$AO$31,"*V1C1*",CashFlow!AH$27:AH$31))*(1+Assumptions!$C$52))+((SUMIF(IncState!$A$7:$AO$59,"*V2C1*",IncState!AH$7:AH$59)-SUMIF(CashFlow!$A$27:$AO$31,"*V2C1*",CashFlow!AH$27:AH$31))*(1+Assumptions!$C$53))+((SUMIF(IncState!$A$7:$AO$59,"*V3C1*",IncState!AH$7:AH$59)-SUMIF(CashFlow!$A$27:$AO$31,"*V3C1*",CashFlow!AH$27:AH$31))*(1+Assumptions!$C$54))+((SUMIF(IncState!$A$7:$AO$59,"*V4C1*",IncState!AH$7:AH$59)-SUMIF(CashFlow!$A$27:$AO$31,"*V4C1*",CashFlow!AH$27:AH$31))*(1+Assumptions!$C$55)) -> 280808.15 | AJ58: =((SUMIF(IncState!$A$7:$AO$59,"*V1C1*",IncState!AI$7:AI$59)-SUMIF(CashFlow!$A$27:$AO$31,"*V1C1*",CashFlow!AI$27:AI$31))*(1+Assumptions!$C$52))+((SUMIF(IncState!$A$7:$AO$59,"*V2C1*",IncState!AI$7:AI$59)-SUMIF(CashFlow!$A$27:$AO$31,"*V2C1*",CashFlow!AI$27:AI$31))*(1+Assumptions!$C$53))+((SUMIF(IncState!$A$7:$AO$59,"*V3C1*",IncState!AI$7:AI$59)-SUMIF(CashFlow!$A$27:$AO$31,"*V3C1*",CashFlow!AI$27:AI$31))*(1+Assumptions!$C$54))+((SUMIF(IncState!$A$7:$AO$59,"*V4C1*",IncState!AI$7:AI$59)-SUMIF(CashFlow!$A$27:$AO$31,"*V4C1*",CashFlow!AI$27:AI$31))*(1+Assumptions!$C$55)) -> 279980.15 | AK58: =((SUMIF(IncState!$A$7:$AO$59,"*V1C1*",IncState!AJ$7:AJ$59)-SUMIF(CashFlow!$A$27:$AO$31,"*V1C1*",CashFlow!AJ$27:AJ$31))*(1+Assumptions!$C$52))+((SUMIF(IncState!$A$7:$AO$59,"*V2C1*",IncState!AJ$7:AJ$59)-SUMIF(CashFlow!$A$27:$AO$31,"*V2C1*",CashFlow!AJ$27:AJ$31))*(1+Assumptions!$C$53))+((SUMIF(IncState!$A$7:$AO$59,"*V3C1*",IncState!AJ$7:AJ$59)-SUMIF(CashFlow!$A$27:$AO$31,"*V3C1*",CashFlow!AJ$27:AJ$31))*(1+Assumptions!$C$54))+((SUMIF(IncState!$A$7:$AO$59,"*V4C1*",IncState!AJ$7:AJ$59)-SUMIF(CashFlow!$A$27:$AO$31,"*V4C1*",CashFlow!AJ$27:AJ$31))*(1+Assumptions!$C$55)) -> 276461.15 | AL58: =((SUMIF(IncState!$A$7:$AO$59,"*V1C1*",IncState!AK$7:AK$59)-SUMIF(CashFlow!$A$27:$AO$31,"*V1C1*",CashFlow!AK$27:AK$31))*(1+Assumptions!$C$52))+((SUMIF(IncState!$A$7:$AO$59,"*V2C1*",IncState!AK$7:AK$59)-SUMIF(CashFlow!$A$27:$AO$31,"*V2C1*",CashFlow!AK$27:AK$31))*(1+Assumptions!$C$53))+((SUMIF(IncState!$A$7:$AO$59,"*V3C1*",IncState!AK$7:AK$59)-SUMIF(CashFlow!$A$27:$AO$31,"*V3C1*",CashFlow!AK$27:AK$31))*(1+Assumptions!$C$54))+((SUMIF(IncState!$A$7:$AO$59,"*V4C1*",IncState!AK$7:AK$59)-SUMIF(CashFlow!$A$27:$AO$31,"*V4C1*",CashFlow!AK$27:AK$31))*(1+Assumptions!$C$55)) -> 317999.15 | AM58: =((SUMIF(IncState!$A$7:$AO$59,"*V1C1*",IncState!AL$7:AL$59)-SUMIF(CashFlow!$A$27:$AO$31,"*V1C1*",CashFlow!AL$27:AL$31))*(1+Assumptions!$C$52))+((SUMIF(IncState!$A$7:$AO$59,"*V2C1*",IncState!AL$7:AL$59)-SUMIF(CashFlow!$A$27:$AO$31,"*V2C1*",CashFlow!AL$27:AL$31))*(1+Assumptions!$C$53))+((SUMIF(IncState!$A$7:$AO$59,"*V3C1*",IncState!AL$7:AL$59)-SUMIF(CashFlow!$A$27:$AO$31,"*V3C1*",CashFlow!AL$27:AL$31))*(1+Assumptions!$C$54))+((SUMIF(IncState!$A$7:$AO$59,"*V4C1*",IncState!AL$7:AL$59)-SUMIF(CashFlow!$A$27:$AO$31,"*V4C1*",CashFlow!AL$27:AL$31))*(1+Assumptions!$C$55)) -> 242559.15 | AN58: =((SUMIF(IncState!$A$7:$AO$59,"*V1C1*",IncState!AM$7:AM$59)-SUMIF(CashFlow!$A$27:$AO$31,"*V1C1*",CashFlow!AM$27:AM$31))*(1+Assumptions!$C$52))+((SUMIF(IncState!$A$7:$AO$59,"*V2C1*",IncState!AM$7:AM$59)-SUMIF(CashFlow!$A$27:$AO$31,"*V2C1*",CashFlow!AM$27:AM$31))*(1+Assumptions!$C$53))+((SUMIF(IncState!$A$7:$AO$59,"*V3C1*",IncState!AM$7:AM$59)-SUMIF(CashFlow!$A$27:$AO$31,"*V3C1*",CashFlow!AM$27:AM$31))*(1+Assumptions!$C$54))+((SUMIF(IncState!$A$7:$AO$59,"*V4C1*",IncState!AM$7:AM$59)-SUMIF(CashFlow!$A$27:$AO$31,"*V4C1*",CashFlow!AM$27:AM$31))*(1+Assumptions!$C$55)) -> 297828.15 | AO58: =((SUMIF(IncState!$A$7:$AO$59,"*V1C1*",IncState!AN$7:AN$59)-SUMIF(CashFlow!$A$27:$AO$31,"*V1C1*",CashFlow!AN$27:AN$31))*(1+Assumptions!$C$52))+((SUMIF(IncState!$A$7:$AO$59,"*V2C1*",IncState!AN$7:AN$59)-SUMIF(CashFlow!$A$27:$AO$31,"*V2C1*",CashFlow!AN$27:AN$31))*(1+Assumptions!$C$53))+((SUMIF(IncState!$A$7:$AO$59,"*V3C1*",IncState!AN$7:AN$59)-SUMIF(CashFlow!$A$27:$AO$31,"*V3C1*",CashFlow!AN$27:AN$31))*(1+Assumptions!$C$54))+((SUMIF(IncState!$A$7:$AO$59,"*V4C1*",IncState!AN$7:AN$59)-SUMIF(CashFlow!$A$27:$AO$31,"*V4C1*",CashFlow!AN$27:AN$31))*(1+Assumptions!$C$55)) -> 287685.15
B59: Sales Tax:
B60: Payment Month? | C60: =IF(OR(MONTH(C$4)=Assumptions!$C$57,((MONTH(C$4)-Assumptions!$C$57)/MAX(Assumptions!$C$56,1))-ROUND((MONTH(C$4)-Assumptions!$C$57)/MAX(Assumptions!$C$56,1),0)=0),"Yes","No") -> No | D60: =IF(OR(MONTH(D$4)=Assumptions!$C$57,((MONTH(D$4)-Assumptions!$C$57)/MAX(Assumptions!$C$56,1))-ROUND((MONTH(D$4)-Assumptions!$C$57)/MAX(Assumptions!$C$56,1),0)=0),"Yes","No") -> Yes | E60: =IF(OR(MONTH(E$4)=Assumptions!$C$57,((MONTH(E$4)-Assumptions!$C$57)/MAX(Assumptions!$C$56,1))-ROUND((MONTH(E$4)-Assumptions!$C$57)/MAX(Assumptions!$C$56,1),0)=0),"Yes","No") -> No | F60: =IF(OR(MONTH(F$4)=Assumptions!$C$57,((MONTH(F$4)-Assumptions!$C$57)/MAX(Assumptions!$C$56,1))-ROUND((MONTH(F$4)-Assumptions!$C$57)/MAX(Assumptions!$C$56,1),0)=0),"Yes","No") -> Yes | G60: =IF(OR(MONTH(G$4)=Assumptions!$C$57,((MONTH(G$4)-Assumptions!$C$57)/MAX(Assumptions!$C$56,1))-ROUND((MONTH(G$4)-Assumptions!$C$57)/MAX(Assumptions!$C$56,1),0)=0),"Yes","No") -> No | H60: =IF(OR(MONTH(H$4)=Assumptions!$C$57,((MONTH(H$4)-Assumptions!$C$57)/MAX(Assumptions!$C$56,1))-ROUND((MONTH(H$4)-Assumptions!$C$57)/MAX(Assumptions!$C$56,1),0)=0),"Yes","No") -> Yes | I60: =IF(OR(MONTH(I$4)=Assumptions!$C$57,((MONTH(I$4)-Assumptions!$C$57)/MAX(Assumptions!$C$56,1))-ROUND((MONTH(I$4)-Assumptions!$C$57)/MAX(Assumptions!$C$56,1),0)=0),"Yes","No") -> No | J60: =IF(OR(MONTH(J$4)=Assumptions!$C$57,((MONTH(J$4)-Assumptions!$C$57)/MAX(Assumptions!$C$56,1))-ROUND((MONTH(J$4)-Assumptions!$C$57)/MAX(Assumptions!$C$56,1),0)=0),"Yes","No") -> Yes | K60: =IF(OR(MONTH(K$4)=Assumptions!$C$57,((MONTH(K$4)-Assumptions!$C$57)/MAX(Assumptions!$C$56,1))-ROUND((MONTH(K$4)-Assumptions!$C$57)/MAX(Assumptions!$C$56,1),0)=0),"Yes","No") -> No | L60: =IF(OR(MONTH(L$4)=Assumptions!$C$57,((MONTH(L$4)-Assumptions!$C$57)/MAX(Assumptions!$C$56,1))-ROUND((MONTH(L$4)-Assumptions!$C$57)/MAX(Assumptions!$C$56,1),0)=0),"Yes","No") -> Yes | M60: =IF(OR(MONTH(M$4)=Assumptions!$C$57,((MONTH(M$4)-Assumptions!$C$57)/MAX(Assumptions!$C$56,1))-ROUND((MONTH(M$4)-Assumptions!$C$57)/MAX(Assumptions!$C$56,1),0)=0),"Yes","No") -> No | N60: =IF(OR(MONTH(N$4)=Assumptions!$C$57,((MONTH(N$4)-Assumptions!$C$57)/MAX(Assumptions!$C$56,1))-ROUND((MONTH(N$4)-Assumptions!$C$57)/MAX(Assumptions!$C$56,1),0)=0),"Yes","No") -> Yes | O60: =IF(OR(MONTH(O$4)=Assumptions!$C$57,((MONTH(O$4)-Assumptions!$C$57)/MAX(Assumptions!$C$56,1))-ROUND((MONTH(O$4)-Assumptions!$C$57)/MAX(Assumptions!$C$56,1),0)=0),"Yes","No") -> No | Q60: =IF(OR(MONTH(Q$4)=Assumptions!$C$57,((MONTH(Q$4)-Assumptions!$C$57)/MAX(Assumptions!$C$56,1))-ROUND((MONTH(Q$4)-Assumptions!$C$57)/MAX(Assumptions!$C$56,1),0)=0),"Yes","No") -> Yes | R60: =IF(OR(MONTH(R$4)=Assumptions!$C$57,((MONTH(R$4)-Assumptions!$C$57)/MAX(Assumptions!$C$56,1))-ROUND((MONTH(R$4)-Assumptions!$C$57)/MAX(Assumptions!$C$56,1),0)=0),"Yes","No") -> No | S60: =IF(OR(MONTH(S$4)=Assumptions!$C$57,((MONTH(S$4)-Assumptions!$C$57)/MAX(Assumptions!$C$56,1))-ROUND((MONTH(S$4)-Assumptions!$C$57)/MAX(Assumptions!$C$56,1),0)=0),"Yes","No") -> Yes | T60: =IF(OR(MONTH(T$4)=Assumptions!$C$57,((MONTH(T$4)-Assumptions!$C$57)/MAX(Assumptions!$C$56,1))-ROUND((MONTH(T$4)-Assumptions!$C$57)/MAX(Assumptions!$C$56,1),0)=0),"Yes","No") -> No | U60: =IF(OR(MONTH(U$4)=Assumptions!$C$57,((MONTH(U$4)-Assumptions!$C$57)/MAX(Assumptions!$C$56,1))-ROUND((MONTH(U$4)-Assumptions!$C$57)/MAX(Assumptions!$C$56,1),0)=0),"Yes","No") -> Yes | V60: =IF(OR(MONTH(V$4)=Assumptions!$C$57,((MONTH(V$4)-Assumptions!$C$57)/MAX(Assumptions!$C$56,1))-ROUND((MONTH(V$4)-Assumptions!$C$57)/MAX(Assumptions!$C$56,1),0)=0),"Yes","No") -> No | W60: =IF(OR(MONTH(W$4)=Assumptions!$C$57,((MONTH(W$4)-Assumptions!$C$57)/MAX(Assumptions!$C$56,1))-ROUND((MONTH(W$4)-Assumptions!$C$57)/MAX(Assumptions!$C$56,1),0)=0),"Yes","No") -> Yes | X60: =IF(OR(MONTH(X$4)=Assumptions!$C$57,((MONTH(X$4)-Assumptions!$C$57)/MAX(Assumptions!$C$56,1))-ROUND((MONTH(X$4)-Assumptions!$C$57)/MAX(Assumptions!$C$56,1),0)=0),"Yes","No") -> No | Y60: =IF(OR(MONTH(Y$4)=Assumptions!$C$57,((MONTH(Y$4)-Assumptions!$C$57)/MAX(Assumptions!$C$56,1))-ROUND((MONTH(Y$4)-Assumptions!$C$57)/MAX(Assumptions!$C$56,1),0)=0),"Yes","No") -> Yes | Z60: =IF(OR(MONTH(Z$4)=Assumptions!$C$57,((MONTH(Z$4)-Assumptions!$C$57)/MAX(Assumptions!$C$56,1))-ROUND((MONTH(Z$4)-Assumptions!$C$57)/MAX(Assumptions!$C$56,1),0)=0),"Yes","No") -> No | AA60: =IF(OR(MONTH(AA$4)=Assumptions!$C$57,((MONTH(AA$4)-Assumptions!$C$57)/MAX(Assumptions!$C$56,1))-ROUND((MONTH(AA$4)-Assumptions!$C$57)/MAX(Assumptions!$C$56,1),0)=0),"Yes","No") -> Yes | AB60: =IF(OR(MONTH(AB$4)=Assumptions!$C$57,((MONTH(AB$4)-Assumptions!$C$57)/MAX(Assumptions!$C$56,1))-ROUND((MONTH(AB$4)-Assumptions!$C$57)/MAX(Assumptions!$C$56,1),0)=0),"Yes","No") -> No | AD60: =IF(OR(MONTH(AD$4)=Assumptions!$C$57,((MONTH(AD$4)-Assumptions!$C$57)/MAX(Assumptions!$C$56,1))-ROUND((MONTH(AD$4)-Assumptions!$C$57)/MAX(Assumptions!$C$56,1),0)=0),"Yes","No") -> Yes | AE60: =IF(OR(MONTH(AE$4)=Assumptions!$C$57,((MONTH(AE$4)-Assumptions!$C$57)/MAX(Assumptions!$C$56,1))-ROUND((MONTH(AE$4)-Assumptions!$C$57)/MAX(Assumptions!$C$56,1),0)=0),"Yes","No") -> No | AF60: =IF(OR(MONTH(AF$4)=Assumptions!$C$57,((MONTH(AF$4)-Assumptions!$C$57)/MAX(Assumptions!$C$56,1))-ROUND((MONTH(AF$4)-Assumptions!$C$57)/MAX(Assumptions!$C$56,1),0)=0),"Yes","No") -> Yes | AG60: =IF(OR(MONTH(AG$4)=Assumptions!$C$57,((MONTH(AG$4)-Assumptions!$C$57)/MAX(Assumptions!$C$56,1))-ROUND((MONTH(AG$4)-Assumptions!$C$57)/MAX(Assumptions!$C$56,1),0)=0),"Yes","No") -> No | AH60: =IF(OR(MONTH(AH$4)=Assumptions!$C$57,((MONTH(AH$4)-Assumptions!$C$57)/MAX(Assumptions!$C$56,1))-ROUND((MONTH(AH$4)-Assumptions!$C$57)/MAX(Assumptions!$C$56,1),0)=0),"Yes","No") -> Yes | AI60: =IF(OR(MONTH(AI$4)=Assumptions!$C$57,((MONTH(AI$4)-Assumptions!$C$57)/MAX(Assumptions!$C$56,1))-ROUND((MONTH(AI$4)-Assumptions!$C$57)/MAX(Assumptions!$C$56,1),0)=0),"Yes","No") -> No | AJ60: =IF(OR(MONTH(AJ$4)=Assumptions!$C$57,((MONTH(AJ$4)-Assumptions!$C$57)/MAX(Assumptions!$C$56,1))-ROUND((MONTH(AJ$4)-Assumptions!$C$57)/MAX(Assumptions!$C$56,1),0)=0),"Yes","No") -> Yes | AK60: =IF(OR(MONTH(AK$4)=Assumptions!$C$57,((MONTH(AK$4)-Assumptions!$C$57)/MAX(Assumptions!$C$56,1))-ROUND((MONTH(AK$4)-Assumptions!$C$57)/MAX(Assumptions!$C$56,1),0)=0),"Yes","No") -> No | AL60: =IF(OR(MONTH(AL$4)=Assumptions!$C$57,((MONTH(AL$4)-Assumptions!$C$57)/MAX(Assumptions!$C$56,1))-ROUND((MONTH(AL$4)-Assumptions!$C$57)/MAX(Assumptions!$C$56,1),0)=0),"Yes","No") -> Yes | AM60: =IF(OR(MONTH(AM$4)=Assumptions!$C$57,((MONTH(AM$4)-Assumptions!$C$57)/MAX(Assumptions!$C$56,1))-ROUND((MONTH(AM$4)-Assumptions!$C$57)/MAX(Assumptions!$C$56,1),0)=0),"Yes","No") -> No | AN60: =IF(OR(MONTH(AN$4)=Assumptions!$C$57,((MONTH(AN$4)-Assumptions!$C$57)/MAX(Assumptions!$C$56,1))-ROUND((MONTH(AN$4)-Assumptions!$C$57)/MAX(Assumptions!$C$56,1),0)=0),"Yes","No") -> Yes | AO60: =IF(OR(MONTH(AO$4)=Assumptions!$C$57,((MONTH(AO$4)-Assumptions!$C$57)/MAX(Assumptions!$C$56,1))-ROUND((MONTH(AO$4)-Assumptions!$C$57)/MAX(Assumptions!$C$56,1),0)=0),"Yes","No") -> No
B61: Month Index | C61: =IF(C60="Yes",1-Assumptions!$D$58,IF(ISTEXT(B61),Assumptions!$C$56-MATCH("Yes",$C$60:$AO$60,0)+COLUMN($B$4),IF(ISBLANK(B61),A61+2,B61+1))) -> 2 | D61: =IF(D60="Yes",1-Assumptions!$D$58,IF(ISTEXT(C61),Assumptions!$C$56-MATCH("Yes",$C$60:$AO$60,0)+COLUMN($B$4),IF(ISBLANK(C61),B61+2,C61+1))) -> 1 | E61: =IF(E60="Yes",1-Assumptions!$D$58,IF(ISTEXT(D61),Assumptions!$C$56-MATCH("Yes",$C$60:$AO$60,0)+COLUMN($B$4),IF(ISBLANK(D61),C61+2,D61+1))) -> 2 | F61: =IF(F60="Yes",1-Assumptions!$D$58,IF(ISTEXT(E61),Assumptions!$C$56-MATCH("Yes",$C$60:$AO$60,0)+COLUMN($B$4),IF(ISBLANK(E61),D61+2,E61+1))) -> 1 | G61: =IF(G60="Yes",1-Assumptions!$D$58,IF(ISTEXT(F61),Assumptions!$C$56-MATCH("Yes",$C$60:$AO$60,0)+COLUMN($B$4),IF(ISBLANK(F61),E61+2,F61+1))) -> 2 | H61: =IF(H60="Yes",1-Assumptions!$D$58,IF(ISTEXT(G61),Assumptions!$C$56-MATCH("Yes",$C$60:$AO$60,0)+COLUMN($B$4),IF(ISBLANK(G61),F61+2,G61+1))) -> 1 | I61: =IF(I60="Yes",1-Assumptions!$D$58,IF(ISTEXT(H61),Assumptions!$C$56-MATCH("Yes",$C$60:$AO$60,0)+COLUMN($B$4),IF(ISBLANK(H61),G61+2,H61+1))) -> 2 | J61: =IF(J60="Yes",1-Assumptions!$D$58,IF(ISTEXT(I61),Assumptions!$C$56-MATCH("Yes",$C$60:$AO$60,0)+COLUMN($B$4),IF(ISBLANK(I61),H61+2,I61+1))) -> 1 | K61: =IF(K60="Yes",1-Assumptions!$D$58,IF(ISTEXT(J61),Assumptions!$C$56-MATCH("Yes",$C$60:$AO$60,0)+COLUMN($B$4),IF(ISBLANK(J61),I61+2,J61+1))) -> 2 | L61: =IF(L60="Yes",1-Assumptions!$D$58,IF(ISTEXT(K61),Assumptions!$C$56-MATCH("Yes",$C$60:$AO$60,0)+COLUMN($B$4),IF(ISBLANK(K61),J61+2,K61+1))) -> 1 | M61: =IF(M60="Yes",1-Assumptions!$D$58,IF(ISTEXT(L61),Assumptions!$C$56-MATCH("Yes",$C$60:$AO$60,0)+COLUMN($B$4),IF(ISBLANK(L61),K61+2,L61+1))) -> 2 | N61: =IF(N60="Yes",1-Assumptions!$D$58,IF(ISTEXT(M61),Assumptions!$C$56-MATCH("Yes",$C$60:$AO$60,0)+COLUMN($B$4),IF(ISBLANK(M61),L61+2,M61+1))) -> 1 | O61: =IF(O60="Yes",1-Assumptions!$D$58,IF(ISTEXT(N61),Assumptions!$C$56-MATCH("Yes",$C$60:$AO$60,0)+COLUMN($B$4),IF(ISBLANK(N61),M61+2,N61+1))) -> 2 | Q61: =IF(Q60="Yes",1-Assumptions!$D$58,IF(ISTEXT(P61),Assumptions!$C$56-MATCH("Yes",$C$60:$AO$60,0)+COLUMN($B$4),IF(ISBLANK(P61),O61+2,P61+1))) -> 1 | R61: =IF(R60="Yes",1-Assumptions!$D$58,IF(ISTEXT(Q61),Assumptions!$C$56-MATCH("Yes",$C$60:$AO$60,0)+COLUMN($B$4),IF(ISBLANK(Q61),P61+2,Q61+1))) -> 2 | S61: =IF(S60="Yes",1-Assumptions!$D$58,IF(ISTEXT(R61),Assumptions!$C$56-MATCH("Yes",$C$60:$AO$60,0)+COLUMN($B$4),IF(ISBLANK(R61),Q61+2,R61+1))) -> 1 | T61: =IF(T60="Yes",1-Assumptions!$D$58,IF(ISTEXT(S61),Assumptions!$C$56-MATCH("Yes",$C$60:$AO$60,0)+COLUMN($B$4),IF(ISBLANK(S61),R61+2,S61+1))) -> 2 | U61: =IF(U60="Yes",1-Assumptions!$D$58,IF(ISTEXT(T61),Assumptions!$C$56-MATCH("Yes",$C$60:$AO$60,0)+COLUMN($B$4),IF(ISBLANK(T61),S61+2,T61+1))) -> 1 | V61: =IF(V60="Yes",1-Assumptions!$D$58,IF(ISTEXT(U61),Assumptions!$C$56-MATCH("Yes",$C$60:$AO$60,0)+COLUMN($B$4),IF(ISBLANK(U61),T61+2,U61+1))) -> 2 | W61: =IF(W60="Yes",1-Assumptions!$D$58,IF(ISTEXT(V61),Assumptions!$C$56-MATCH("Yes",$C$60:$AO$60,0)+COLUMN($B$4),IF(ISBLANK(V61),U61+2,V61+1))) -> 1 | X61: =IF(X60="Yes",1-Assumptions!$D$58,IF(ISTEXT(W61),Assumptions!$C$56-MATCH("Yes",$C$60:$AO$60,0)+COLUMN($B$4),IF(ISBLANK(W61),V61+2,W61+1))) -> 2 | Y61: =IF(Y60="Yes",1-Assumptions!$D$58,IF(ISTEXT(X61),Assumptions!$C$56-MATCH("Yes",$C$60:$AO$60,0)+COLUMN($B$4),IF(ISBLANK(X61),W61+2,X61+1))) -> 1 | Z61: =IF(Z60="Yes",1-Assumptions!$D$58,IF(ISTEXT(Y61),Assumptions!$C$56-MATCH("Yes",$C$60:$AO$60,0)+COLUMN($B$4),IF(ISBLANK(Y61),X61+2,Y61+1))) -> 2 | AA61: =IF(AA60="Yes",1-Assumptions!$D$58,IF(ISTEXT(Z61),Assumptions!$C$56-MATCH("Yes",$C$60:$AO$60,0)+COLUMN($B$4),IF(ISBLANK(Z61),Y61+2,Z61+1))) -> 1 | AB61: =IF(AB60="Yes",1-Assumptions!$D$58,IF(ISTEXT(AA61),Assumptions!$C$56-MATCH("Yes",$C$60:$AO$60,0)+COLUMN($B$4),IF(ISBLANK(AA61),Z61+2,AA61+1))) -> 2 | AD61: =IF(AD60="Yes",1-Assumptions!$D$58,IF(ISTEXT(AC61),Assumptions!$C$56-MATCH("Yes",$C$60:$AO$60,0)+COLUMN($B$4),IF(ISBLANK(AC61),AB61+2,AC61+1))) -> 1 | AE61: =IF(AE60="Yes",1-Assumptions!$D$58,IF(ISTEXT(AD61),Assumptions!$C$56-MATCH("Yes",$C$60:$AO$60,0)+COLUMN($B$4),IF(ISBLANK(AD61),AC61+2,AD61+1))) -> 2 | AF61: =IF(AF60="Yes",1-Assumptions!$D$58,IF(ISTEXT(AE61),Assumptions!$C$56-MATCH("Yes",$C$60:$AO$60,0)+COLUMN($B$4),IF(ISBLANK(AE61),AD61+2,AE61+1))) -> 1 | AG61: =IF(AG60="Yes",1-Assumptions!$D$58,IF(ISTEXT(AF61),Assumptions!$C$56-MATCH("Yes",$C$60:$AO$60,0)+COLUMN($B$4),IF(ISBLANK(AF61),AE61+2,AF61+1))) -> 2 | AH61: =IF(AH60="Yes",1-Assumptions!$D$58,IF(ISTEXT(AG61),Assumptions!$C$56-MATCH("Yes",$C$60:$AO$60,0)+COLUMN($B$4),IF(ISBLANK(AG61),AF61+2,AG61+1))) -> 1 | AI61: =IF(AI60="Yes",1-Assumptions!$D$58,IF(ISTEXT(AH61),Assumptions!$C$56-MATCH("Yes",$C$60:$AO$60,0)+COLUMN($B$4),IF(ISBLANK(AH61),AG61+2,AH61+1))) -> 2 | AJ61: =IF(AJ60="Yes",1-Assumptions!$D$58,IF(ISTEXT(AI61),Assumptions!$C$56-MATCH("Yes",$C$60:$AO$60,0)+COLUMN($B$4),IF(ISBLANK(AI61),AH61+2,AI61+1))) -> 1 | AK61: =IF(AK60="Yes",1-Assumptions!$D$58,IF(ISTEXT(AJ61),Assumptions!$C$56-MATCH("Yes",$C$60:$AO$60,0)+COLUMN($B$4),IF(ISBLANK(AJ61),AI61+2,AJ61+1))) -> 2 | AL61: =IF(AL60="Yes",1-Assumptions!$D$58,IF(ISTEXT(AK61),Assumptions!$C$56-MATCH("Yes",$C$60:$AO$60,0)+COLUMN($B$4),IF(ISBLANK(AK61),AJ61+2,AK61+1))) -> 1 | AM61: =IF(AM60="Yes",1-Assumptions!$D$58,IF(ISTEXT(AL61),Assumptions!$C$56-MATCH("Yes",$C$60:$AO$60,0)+COLUMN($B$4),IF(ISBLANK(AL61),AK61+2,AL61+1))) -> 2 | AN61: =IF(AN60="Yes",1-Assumptions!$D$58,IF(ISTEXT(AM61),Assumptions!$C$56-MATCH("Yes",$C$60:$AO$60,0)+COLUMN($B$4),IF(ISBLANK(AM61),AL61+2,AM61+1))) -> 1 | AO61: =IF(AO60="Yes",1-Assumptions!$D$58,IF(ISTEXT(AN61),Assumptions!$C$56-MATCH("Yes",$C$60:$AO$60,0)+COLUMN($B$4),IF(ISBLANK(AN61),AM61+2,AN61+1))) -> 2
